Workbook

Sheet Introduction and guidance
D10: Layer excreta mass balance model
D15: Nutritional Management Best Available Techniques for Poultry (click here to see regulations)
D17: Best Available Techniques (BAT) Reference Document for the Intensive Rearing of Poultry or Pigs (click here to see reference document)
D19: Introduction: Farms with more than 40,000 rearing places for poultry fall in scope of regulations requiring the adoption of Best Available Techniques (BAT) to reduce environmental emissions. BAT for pig and poultry farms is outlined in a published BAT Conclusions (BATC) document (see link above). BAT 3 requires farms to reduce total nitrogen excreted whilst BAT 4 requires the reduction of total phosphorus excreted. The BATC include levels for total nitrogen and total phosphorus excreted, measured per animal place. All permitted farms must meet these levels. BAT 24 requires the monitoring of total nitrogen and total phosphorus excreted with two recognised methods: Calculation by using a mass balance or estimation using manure analysis results. Issued permits contain conditions requiring submission of the derived data on an annual basis. This simple spreadsheet tool has been designed to assist farms in assessing compliance with the new BAT for poultry and follows a mass balance calculation approach. The tool is recognised by the Environment Agency, Natural Resources Wales, Northern Ireland Environment Agency and Scottish Environment Protection Agency. Instructions: To calculate the BAT Emission levels please follow the instructions embedded within each worksheet. Details of the Flock and Diets need entering in the ‘Flock Input Details’ and ‘Diet Input Details’ worksheets, the emission values and feed intake data will then be calculated in the ‘Results’ worksheet. Only when all values are completed within the input forms will the BAT values be calculated. Inputs need to accurately reflect your system usage across the year. You should save a copy of your completed calculator tool in case it is requested as part of future permit compliance checks. You will need to read the terms of use below and tick the agree box before you can use the tool.
D33: BAT Total Nitrogen and Phosphorus Excreted Levels
D34: Parameter | G34: Category | I34: BAT-associated total nitrogen excreted ⁽¹⁾⁽²⁾ (kg N excreted/animal place/year) | M34: BAT-associated total Phosphorus excreted ⁽¹⁾⁽²⁾ (kg P₂O₅ excreted/animal place/year)
D35: Total nutrient excreted | G35: Layers | I35: 0.4 - 0.8 | M35: 0.10 - 0.45
D36: (1) The lower end of the range can be achieved by using a combination of techniques. (2) The BAT-associated total nitrogen/phosphorus excreted is not applicable to pullets or breeders, for all poultry species. The associated monitoring is in BAT 24. The BAT-associated total phosphorus or nitrogen excreted levels may not be applicable to organic livestock production nor to the rearing of poultry species not indicated above.
D37: Acknowledgements: This simple spreadsheet tool has been designed, based on an update of the previous model (created by AIC), by Ricardo. This work model has been developed on behalf of the Environment Agency alongside a partnership of industry bodies (BPC, BEIC) to assist farms in assessing compliance with the new BAT for poultry. The tool has been reviewed by industry representatives and is recognised by the Environment Agency, Natural Resources Wales, Northern Ireland Environment Agency and Scottish Environment Protection Agency.
D39: Terms of use | AE39: FALSE
D40: Enter your installation name and permit reference number in the white boxes below:
D41: Installation Name: | I41: Permit Number:
D42: To use the calculator, first read the terms of use below and tick the box to confirm your acceptance (the calculator will not work if this box is not ticked) | O42: Tick to confirm acceptance
AH43: FALSE
D44: Terms of use In making use of the BAT Emission Calculator (“the Calculator”), I agree to and accept the following: 1. I understand that the Calculator has been made available to me by the PARTNERS (Environment Agency, BPC, BEIC) (“the Partners”), and that whilst the Partners have used their best endeavours to ensure the accuracy of the Calculator, the Partners accept no liability or responsibility whatsoever for any errors or omissions in the Calculator. 2. I understand that, so far as is permitted in law, the Partners accept no liability or responsibility whatsoever for any losses, financial penalties or other consequential losses howsoever arising from my use of the Calculator. 3. It is my responsibility to ensure that the data that I input into the Calculator is accurate and correct. 4. I accept that the Partners and their employees and agents do not have sufficient knowledge of my individual farm or business to provide advice as to my individual requirements. 5. I understand that the Calculator is no substitute for professional advice and that I should seek professional advice as to my compliance requirements under any relevant legislation. 6. I agree that it is my responsibility to ensure that I comply with the relevant compliance requirements under any relevant legislation. 7. I agree that English law applies to my use of the Calculator, and the Courts of England and Wales have jurisdiction to hear any disputes arising from my use of the Calculator. 8. I agree that if I am using the Calculator in a professional capacity for the benefit of a client, it is my responsibility as my client’s professional adviser to advise my client on his / her compliance with the relevant requirements under any relevant legislation.
D65: Please note: If further details on the data inputs and calculations are required, calculation sheets can be unlocked within the model by right clicking the 'Introduction and guidance' tab, clicking 'Unhide...' highlighting each sheet and clicking 'OK'.

Sheet Diet input details
E1: Input data - diet details
B3: Diet input table 1: | H3: Flock details input instructions Please note: One complete workbook needs to be filled out per management system on your farm. Diet input table 1: Please input protein and phosphorus levels (values can be found on all feed declaration tickets) for the appropriate diets in the white boxes in the "Diet Details" table. If the diets are the same between phases, then please put the same protein and phosphorus values in both respective sets of boxes. If feed diet groups are not used then leave the cells blank and move on to the next used group. There is a separate row for composition of Whole Wheat. If Whole Wheat is not fed these cells can be left blank. Diet input table 2: Enter the start and end weeks within the production cycle for each diet including the proportion (percentage of total ration fed) of the diet that is made up using Whole Wheat in the final column. The feed start week must be at least 16 and the feed end week must be no more than 100. If Whole Wheat is not fed these cells can be left blank. Diet input table 3: State if phytase is used within the diet. This is a drop down box with Absent or Present. Present represents inlcusion of phytase at a rate of 1,000 FTU/kg of feed.
B4: Diet Details
B5: Diet | C5: Crude Protein (%) | D5: Total Nitrogen (%) | E5: Total Phosphorus (%)
B6: Ration 1 | D6: =IF(C6="","",C6/6.25) -> 
B7: Ration 2
B8: Ration 3
B9: Ration 4
B10: Ration 5
B11: Whole Wheat
B13: Diet input table 2:
B14: Feed Plan Details
B15: Diet | C15: Feed Start (Week) | D15: Feed End (Week) | E15: Whole Wheat (% of ration) | F15: Weeks in ration
B16: Ration 1 | F16: =IF(D16="","",D16-C16) -> 
B17: Ration 2 | C17: =IF(D17="","",D16) ->  | F17: =IF(D17="","",D17-C17) -> 
B18: Ration 3 | F18: =IF(D18="","",D18-C18) -> 
B19: Ration 4 | F19: =IF(D19="","",D19-C19) -> 
B20: Ration 5 | C20: =IF(D20="","",D19) ->  | F20: =IF(D20="","",D20-C20) -> 
B22: Diet input table 3:
B23: Nutrient Retention
B24: Phytase feed additive value | D24: Please select

Sheet Flock input details
D1: Input data - flock details
B3: Flock input table 1: | G3: Flock details input instructions Flock input table 1: Enter number of birds per cycle and number of days between the final clearance and the next cycle in the two white boxes. The number of birds per cycle entry cell will go red if the value entered is below 40,000 rearing places, the BAT regulation limit. If you have under 40,000 birds you can still use this tool as normal. Select the most appropriate flock type for your system. Included flock types are Brown free-range, Brown colony and White free-range. Flock input table 2 (optional): Enter a value for the final bodyweight of birds in your flock. The difference between your value and the target value from performance objectives will be calculated. This difference will be used to update the performance data to more accurately reflect your system. If this table is left blank the standard performance data will be used. Flock input table 3: This table is to help calculate the mortality rate across the production cycle. The No. of birds at start of Ration 1 is equal to Number of birds per cycle in Table 1. In the following white cells, please indicate the number of birds at the end of each feed ration. The mortality rate will be calcualted and applied to the backround calculations.
B4: Per Shed/Farm
B5: Number of birds per cycle
B6: Weeks empty between cycles
B7: Cycle Length in Weeks | C7: =IF('Diet input details'!D17="",'Diet input details'!D16-'Diet input details'!C16,IF('Diet input details'!D18="",'Diet input details'!D17-'Diet input details'!C16,IF('Diet input details'!D19="",'Diet input details'!D18-'Diet input details'!C16,IF('Diet input details'!D20="",'Diet input details'!D19-'Diet input details'!C16,'Diet input details'!D20-'Diet input details'!C16)))) -> 0
B8: Flock Type | C8: Please select
B11: Flock input table 2:
B12: Modelling Factors | C12: Your Value (g) | D12: Target Value (g)
B13: Bodyweight (g) | D13: =_xlfn.IFNA(INDEX(Table13[Bodyweight Mid-point (g)],MATCH(1,('Flock input details'!$C$8='Performance Data'!$A$8:$A$262)*(Table23[Age at clear in weeks]='Performance Data'!$B$8:$B$262),0)),"") -> 
B16: Flock input table 3:
C17: No. of birds at start | D17: No of. birds at end | E17: No. of weeks in phase
B18: Ration 1 | C18: =C5 -> 0 | E18: ='Diet input details'!F16 -> 
B19: Ration 2 | C19: =IF(D19="","",D18) ->  | E19: ='Diet input details'!F17 -> 
B20: Ration 3 | C20: =IF(D20="","",D19) ->  | E20: ='Diet input details'!F18 -> 
B21: Ration 4 | C21: =IF(D21="","",D20) ->  | E21: ='Diet input details'!F19 ->  | H21: Brown Free-range performance data | K21: Brown Colony performance data | N21: White Free-range performance data
B22: Ration 5 | C22: =IF(D22="","",D21) ->  | E22: ='Diet input details'!F20 -> 

Sheet Results
E1: Export data - emission levels
B4: Installation name: | D4: ='Introduction and guidance'!$F$41 -> 0 | G4: Permit Number: | I4: ='Introduction and guidance'!$L$41 -> 0
B7: BAT Emission Level | K7: Use the data given in this box to demonstrate compliance with the nitrogen and phosphorus excretion levels. Based on the data entered within the diet and flock details input the emission levels are calculated within the BAT Emission level box, and colour coded green to show compliance with the upper limits of the BAT standards. If the cells turn red then the emission levels are not compliant. - Nitrogen upper limit = 0.4-0.8kg N/animal/place/year - Phosphorus upper limit = 0.10-0.45kg P/animal place/year
B8: Nitrogen excreted Per animal place (kg N/ Year) | E8: Phosphorus excreted Per animal place (kg P/ Year)
B9: =H22 ->  | E9: =I22 -> 
B11: Percentage of BAT upper Limit
B12: =B9/0.8 ->  | E12: =E9/0.45 -> 
C15: Flock Intake Data | H15: Flock Emission Data
C16: Cumulative feed intake of the flock (t) | D16: Nitrogen intake of the flock (t) | E16: Phosphorus intake of the flock (t) | H16: Nitrogen excreted by the flock (t) | I16: Phosphorus excreted by the flock (t)
B17: Per cycle | C17: =Dataset!B99 -> 0 | D17: =Dataset!C99 -> 0 | E17: =Dataset!D99 -> 0 | G17: Per cycle | H17: =Dataset!E99 -> 0 | I17: =Dataset!F99 -> 0
B18: Per year | C18: =Dataset!B100 ->  | D18: =Dataset!C100 ->  | E18: =Dataset!D100 ->  | G18: Per year | H18: =Dataset!E100 ->  | I18: =Dataset!F100 -> 
C20: Per Animal Intake Data | H20: Per Animal Emission Data
C21: Cumulative feed intake (kg) | D21: Nitrogen intake (kg) | E21: Phosphorus intake (kg) | H21: Nitrogen excreted (kg) | I21: Phosphorus excreted (kg)
B22: Per animal place/year | C22: =Dataset!B92 ->  | D22: =Dataset!B90 ->  | E22: =Dataset!B91 ->  | G22: Per animal place/year | H22: =Dataset!C90 ->  | I22: =Dataset!C91 -> 
C25: Emission Levels
C26: Per cycle (t) | E26: Per year (t) | F26: kg per tonne liveweight
B27: Nitrogen | C27: =H17 -> 0 | E27: =H18 ->  | F27: =((C27*1000)/(Dataset!$B$109/1000)) -> 
B28: Phosphorus | C28: =I17 -> 0 | E28: =I18 ->  | F28: =((C28*1000)/(Dataset!$B$109/1000)) -> 

Sheet References and assumptions log (hidden)
A1: References and assumptions log
A3: Unique ID | B3: Description with key details | C3: Location in workbook | D3: Link to evidence | E3: Date of last update | F3: Initials | G3: Methodology behind assumption | H3: Assumptions | I3: Any other comments | J3: Reference or assumption
A4: Layer 01 | B4: This table presents performance data on layers taken from Hyline performance guides | C4: =CELL("address",'Data tables'!B4) -> '[Layers_Model draft_V5_Password protected.xlsm]Data tables'!$B$4 | D4: White - https://www.hyline.co.uk/services/management-guides/ Brown - https://www.hyline.co.uk/services/management-guides/ | E4: 2023-03-22 | F4: LR | G4: This data has been used to pull out body weight, cumulative intake, feed conversion ratio, and egg production vales for poultry. | H4: Assumed this data is accurate and representative of standard performance. | I4: The data used is for Hyline breeds as this was found to be one of the most common breeds of layer hens in the UK. Lohmann was considered but there was low data availability | J4: Reference
A5: Layer 02 | B5: Nitrogen Conversion Factor | C5: =CELL("address",'Data tables'!B272) -> '[Layers_Model draft_V5_Password protected.xlsm]Data tables'!$B$272 | D5: Standardised conversion factor in nutritional calculations | E5: 2023-03-22 | F5: LR | G5: This factor is used to convert crude protein content of feed to nitrogen. | H5: Does not consider specifics of individual feeds but is a standardised factor used within the industry. | I5: None. | J5: Reference
A6: Layer 03 | B6: Effect of Phytase on intake and excretion of dry matter, phosphorus, and nitrogen | C6: =CELL("address",'Data tables'!B280) -> '[Layers_Model draft_V5_Password protected.xlsm]Data tables'!$B$280 | D6: Effects of phytase supplementation on production performance, egg and bone quality, plasma biochemistry and mineral excretion of layers fed varying levels of phosphorus | Elsevier Enhanced Reader | E6: 2023-03-22 | F6: LR | G6: This data has been used to calculate the impact of including phytase in the diet on the excretion of phosphorus. | H6: This paper is assumed to reflect standard production in the UK, and the impact to be replicable. | I6: This reference can be updated should a more appropriate one be discovered | J6: Reference
A7: Layer 04 | B7: Phytase feed additives effect on nitrogen | C7: None | D7: None | E7: 2023-03-22 | F7: LR | G7: None | H7: Within the model calculations nitrogen is not impacted by phytase, this is an assumption based on current literature. | I7: This can be updated in the model a link is found. | J7: Assumption
A8: Layer 05 | B8: Nutrient content of eggs | C8: =CELL("address",'Data tables'!B303) -> '[Layers_Model draft_V5_Password protected.xlsm]Data tables'!$B$303 | D8: Defra_WT1568_14860_WT1568WorkPackage6. (1).pdf | E8: 2023-03-22 | F8: LR | G8: This data has been used to calculate the nutrient content of eggs. | H8: This data is referenced in the DEFRA BAT document so is assumed to be accurate for UK production | I8: This is a non-excretion output of the mass balance model. This can be updated should new data become available | J8: Reference
A9: Layer 06 | B9: Nitrogen Content of Layer Liveweight | C9: =CELL("address",'Data tables'!B312) -> '[Layers_Model draft_V5_Password protected.xlsm]Data tables'!$B$312 | D9: Defra_WT1568_14860_WT1568WorkPackage6. (1).pdf | E9: 2023-03-30 | F9: LR | G9: This document contain a value for phosphorus concentration of layer liveweight | H9: This data was used to calculate the amount of nitrogen retained in the liveweight of the bird. This is used to calculate excretion | I9: The value in this paper is from a different source. It has been used in this model as it is used in the DEFRA calculations and so assumed to be appropriate. This can be updated if more appropriate data becomes available | J9: Reference
A10: Layer 07 | B10: Phosphorus Content of Layer Liveweight | C10: =CELL("address",'Data tables'!B312) -> '[Layers_Model draft_V5_Password protected.xlsm]Data tables'!$B$312 | D10: Defra_WT1568_14860_WT1568WorkPackage6. (1).pdf | E10: 2023-03-30 | F10: LR | G10: This document contains a value for nitrogen concentration of layer liveweight | H10: This data was used to calculate the amount of phosphorus retained in the liveweight of the bird. This is used to calculate excretion | I10: The value in this paper is from a different source. It has been used in this model as it is used in the DEFRA calculations and so assumed to be appropriate. This can be updated if more appropriate data becomes available | J10: Reference
A11: Layer 08 | B11: Effect of Phytase on eggs | C11: =CELL("address",'Data tables'!B292) -> '[Layers_Model draft_V5_Password protected.xlsm]Data tables'!$B$292 | D11: Effects of phytase supplementation on production performance, egg and bone quality, plasma biochemistry and mineral excretion of layers fed varying levels of phosphorus | Elsevier Enhanced Reader | E11: 2023-03-22 | F11: LR | G11: None | H11: This paper was used to determine that phytase didn't not influence egg characteristics (weight, number, composition) | I11: None | J11: Assumption
A12: Layer 09 | B12: Bodyweight Averages | C12: None | D12: None | E12: 2023-03-23 | F12: LR | G12: In the performance objective data, the bodyweight at each week was provided as a range rather than as a single value. | H12: The mean of the upper and lower values was calculated and used in further calculations. This is assumed to be an accurate representation of production standards | I12: This data can be updated if better sources become available | J12: Assumption
A13: Layer 10 | B13: Wholewheat Feed | C13: None | D13: None | E13: 2023-03-23 | F13: LR | G13: Wholewheat was an input in the AIC broiler model and so has been included in this model as no evidence was found to not | H13: This is assumed to appropriate for a layer model | I13: These input cells can be left as zero and therefore have no impact on the rest of the model. These can also be removed if this is considered more appropriate | J13: Assumption
A14: Layer 11 | B14: Midpoints of performance data were used | C14: =CELL("address",Table13[[#Headers],[Flock Type]]) -> '[Layers_Model draft_V5_Password protected.xlsm]Performance Data'!$A$7 | D14: None | E14: 2023-03-30 | F14: LR | G14: For some parameters used in the performance data sets were given as ranges rather than single values. To allow for modelling to be based of these values a midpoint was taken. | H14: It is assumed that these mid-point values are a relevant representation of performance in practice. | I14: This approach can be updated if necessary | J14: Assumption
A15: Layer 12 | B15: Calculation of cumulative egg mass | C15: =CELL("address",Table13[[#Headers],[Cumulative Feed Intake (g/bird)]]) -> '[Layers_Model draft_V5_Password protected.xlsm]Performance Data'!$J$7 | D15: None | E15: 2023-03-30 | F15: LR | G15: Cumulative egg weight was calculated using the cumulative amount of eggs and egg weight | I15: This approach can be updated if necessary | J15: Assumption
A16: Layer 13 | B16: Mortality rate is considered linear | C16: =CELL("address",Table13[[#Headers],[Mortality (%)]]) -> '[Layers_Model draft_V5_Password protected.xlsm]Performance Data'!$D$7 | D16: None | E16: 2023-03-30 | F16: LR | G16: The mortality rate is currently input to the model as three values, and these are applied in a linear fashion | H16: This may not be how mortality works out in reality | I16: This approach can be updated if necessary | J16: Assumption

Sheet Data tables (hidden)
A1: Data tables holding background data
A3: Table 1. HyLine Brown Colony Performance Data
A4: Source: | B4: Layer 01
A5: This table presents performance data on layers taken from HyLine production guides
A7: AGE (weeks) | B7: % HEN-DAY Current | C7: HEN-DAY EGGS Cumulative | D7: HEN-HOUSED EGGS Cumulative | E7: MORT-ALITY Cumulative (%) | F7: BODY WEIGHT (kg) | G7: FEED INTAKE (g / bird / day) | H7: WATER CONSUMPTION (ml/bird/day) | I7: HEN-HOUSED EGG MASS Cumulative (kg) | J7: AVG. EGG WEIGHT (g / egg)
A8: 18 | B8: 4–14 | C8: 0.3–1.0 | D8: 0.3–1.0 | E8: 0.0 | F8: 1.47 –1.57 | G8: 82–88 | H8: 123–176 | I8: 0.0 | J8: 48.8–50.0
A9: 19 | B9: 24–38 | C9: 2.0–3.6 | D9: 2.0–3.6 | E9: 0.1 | F9: 1.57 –1.67 | G9: 85–91 | H9: 128–182 | I9: 0.1 | J9: 49.0–51.0
A10: 20 | B10: 45–72 | C10: 5.1–8.7 | D10: 5.1 –8.7 | E10: 0.1 | F10: 1.63 –1.73 | G10: 91–97 | H10: 137–194 | I10: 0.3 | J10: 50.2–52.2
A11: 21 | B11: 75–86 | C11: 10.4 –14.7 | D11: 10.3 –14.7 | E11: 0.2 | F11: 1.67 –1.77 | G11: 95–101 | H11: 143–202 | I11: 0.5 | J11: 51.5 –53.6
A12: 22 | B12: 87–92 | C12: 16.5 –21.1 | D12: 16.4 –21.1 | E12: 0.3 | F12: 1.72 –1.82 | G12: 99–105 | H12: 149–210 | I12: 0.9 | J12: 53.1 –55.3
A13: 23 | B13: 92–94 | C13: 22.9–27.7 | D13: 22.8–27.7 | E13: 0.3 | F13: 1.75 –1.85 | G13: 103 –109 | H13: 155–218 | I13: 1.2 | J13: 54.4–56.6
A14: 24 | B14: 92–95 | C14: 29.3–34.4 | D14: 29.2–34.3 | E14: 0.4 | F14: 1.78 –1.9 | G14: 105 –111 | H14: 158–222 | I14: 1.6 | J14: 55.5–57.7
A15: 25 | B15: 93–95 | C15: 35.8–41.0 | D15: 35.7 –40.9 | E15: 0.4 | F15: 1.79 –1.91 | G15: 106 –112 | H15: 159–224 | I15: 2.0 | J15: 56.6–59.0
A16: 26 | B16: 94–96 | C16: 42.4–47.7 | D16: 42.3–47.6 | E16: 0.5 | F16: 1.80 –1.92 | G16: 107 –113 | H16: 161–226 | I16: 2.3 | J16: 57.3 –59.7
A17: 27 | B17: 95–96 | C17: 49.1 –54.5 | D17: 48.9–54.3 | E17: 0.6 | F17: 1.82 –1.94 | G17: 107 –113 | H17: 161–226 | I17: 2.7 | J17: 58.4–60.8
A18: 28 | B18: 95–96 | C18: 55.7 –61.2 | D18: 55.5–60.9 | E18: 0.6 | F18: 1.83 –1.95 | G18: 107 –113 | H18: 161–226 | I18: 3.1 | J18: 59.0–61.4
A19: 29 | B19: 95–96 | C19: 62.4–67.9 | D19: 62.1 –67.6 | E19: 0.7 | F19: 1.84 –1.96 | G19: 107 –113 | H19: 161–226 | I19: 3.5 | J19: 59.3–61.7
A20: 30 | B20: 94–96 | C20: 69.0–74.6 | D20: 68.6–74.3 | E20: 0.7 | F20: 1.84 –1.96 | G20: 107 –113 | H20: 161–226 | I20: 3.9 | J20: 59.7 –62.1
A21: 31 | B21: 94–96 | C21: 75.5–81.3 | D21: 75.1 –80.9 | E21: 0.8 | F21: 1.84 –1.96 | G21: 108 –114 | H21: 162–228 | I21: 4.3 | J21: 59.9–62.3
A22: 32 | B22: 94–95 | C22: 82.1 –88.0 | D22: 81.7 –87.5 | E22: 0.9 | F22: 1.85 –1.97 | G22: 108 –114 | H22: 162– 228 | I22: 4.7 | J22: 60.1 –62.5
A23: 33 | B23: 94–95 | C23: 88.7 –94.6 | D23: 88.2–94.1 | E23: 0.9 | F23: 1.85 –1.97 | G23: 108 –114 | H23: 162–228 | I23: 5.1 | J23: 60.3–62.7
A24: 34 | B24: 94–95 | C24: 95.3–101.3 | D24: 94.7 –100.7 | E24: 1.0 | F24: 1.85 –1.97 | G24: 108 –114 | H24: 162–228 | I24: 5.5 | J24: 60.5–62.9
A25: 35 | B25: 94–95 | C25: 101.9 –107.9 | D25: 101.2 –107.3 | E25: 1.0 | F25: 1.85 –1.97 | G25: 108 –114 | H25: 162–228 | I25: 5.9 | J25: 60.6–63.0
A26: 36 | B26: 93–94 | C26: 108.4 –114.5 | D26: 107.6 –113.8 | E26: 1.1 | F26: 1.86 –1.98 | G26: 108 –114 | H26: 162–228 | I26: 6.3 | J26: 60.7 –63.1
A27: 37 | B27: 93–94 | C27: 114.9 –121.1 | D27: 114.1 –120.3 | E27: 1.2 | F27: 1.86 –1.98 | G27: 108 –114 | H27: 162–228 | I27: 6.7 | J27: 60.8–63.2
A28: 38 | B28: 93–94 | C28: 121.4 –127.7 | D28: 120.5 –126.8 | E28: 1.2 | F28: 1.86 –1.98 | G28: 108 –114 | H28: 162–228 | I28: 7.1 | J28: 60.9–63.3
A29: 39 | B29: 92–93 | C29: 127.8 –134.2 | D29: 126.9 –133.2 | E29: 1.3 | F29: 1.87 –1.99 | G29: 108 –114 | H29: 162–228 | I29: 7.5 | J29: 61.0 –63.4
A30: 40 | B30: 92–93 | C30: 134.3 –140.7 | D30: 133.2 –139.6 | E30: 1.4 | F30: 1.87 –1.99 | G30: 108 –114 | H30: 162–228 | I30: 7.9 | J30: 61.1 –63.5
A31: 41 | B31: 91–93 | C31: 140.6–147.2 | D31: 139.5 –146.0 | E31: 1.4 | F31: 1.87 –1.99 | G31: 108 –114 | H31: 162–228 | I31: 8.3 | J31: 61.2 –63.6
A32: 42 | B32: 91–92 | C32: 147.0 –153.7 | D32: 145.8 –152.4 | E32: 1.5 | F32: 1.88 –2 | G32: 108 –114 | H32: 162–228 | I32: 8.7 | J32: 61.3 –63.9
A33: 43 | B33: 90–92 | C33: 153.3 –160.1 | D33: 152.0 –158.7 | E33: 1.6 | F33: 1.88 –2 | G33: 108 – 114 | H33: 162–228 | I33: 9.1 | J33: 61.5 –64.1
A34: 44 | B34: 90–92 | C34: 159.6 –166.5 | D34: 158.1 –165.0 | E34: 1.6 | F34: 1.88 –2 | G34: 108 –114 | H34: 162–228 | I34: 9.5 | J34: 61.6 –64.2
A35: 45 | B35: 89–91 | C35: 165.8 –172.9 | D35: 164.3 –171.3 | E35: 1.7 | F35: 1.89 –2.01 | G35: 107 –113 | H35: 161–226 | I35: 9.9 | J35: 61.6 –64.2
A36: 46 | B36: 89–91 | C36: 172.1 –179.3 | D36: 170.4 –177.6 | E36: 1.8 | F36: 1.89 –2.01 | G36: 107 – 113 | H36: 161–226 | I36: 10.3 | J36: 61.7 –64.3
A37: 47 | B37: 88–90 | C37: 178.2 –185.6 | D37: 176.4 –183.7 | E37: 1.9 | F37: 1.89 –2.01 | G37: 107–113 | H37: 161–226 | I37: 10.6 | J37: 61.8 –64.4
A38: 48 | B38: 88–90 | C38: 184.4 –191.9 | D38: 182.5 –189.9 | E38: 1.9 | F38: 1.89 –2.01 | G38: 107–113 | H38: 161–226 | I38: 11.0 | J38: 61.9 –64.5
A39: 49 | B39: 88–90 | C39: 190.5 –198.2 | D39: 188.5 –196.1 | E39: 2.0 | F39: 1.89 –2.01 | G39: 107–113 | H39: 161–226 | I39: 11.4 | J39: 62.0–64.6
A40: 50 | B40: 88–89 | C40: 196.7–204.4 | D40: 194.5 –202.2 | E40: 2.1 | F40: 1.89 –2.01 | G40: 107–113 | H40: 161–226 | I40: 11.8 | J40: 62.1 –64.7
A41: 51 | B41: 87–89 | C41: 202.8–210.6 | D41: 200.5–208.3 | E41: 2.1 | F41: 1.89 –2.01 | G41: 106–112 | H41: 159–224 | I41: 12.2 | J41: 62.1 –64.7
A42: 52 | B42: 87–89 | C42: 208.9–216.9 | D42: 206.4–214.4 | E42: 2.2 | F42: 1.89 –2.01 | G42: 106–112 | H42: 159–224 | I42: 12.5 | J42: 62.2–64.8
A43: 53 | B43: 87–88 | C43: 215.0 –223.0 | D43: 212.4 –220.4 | E43: 2.3 | F43: 1.89 –2.01 | G43: 106–112 | H43: 159–224 | I43: 12.9 | J43: 62.2–64.8
A44: 54 | B44: 87–88 | C44: 221.1 –229.2 | D44: 218.3 –226.4 | E44: 2.3 | F44: 1.89 –2.01 | G44: 106–112 | H44: 159–224 | I44: 13.3 | J44: 62.2–64.8
A45: 55 | B45: 86–88 | C45: 227.1 –235.3 | D45: 224.2–232.4 | E45: 2.4 | F45: 1.90 –2.02 | G45: 106–112 | H45: 159–224 | I45: 13.7 | J45: 62.2–64.8
A46: 56 | B46: 86–87 | C46: 233.1 –241.4 | D46: 230.1 –238.4 | E46: 2.5 | F46: 1.90 –2.02 | G46: 106–112 | H46: 159–224 | I46: 14.0 | J46: 62.3–64.9
A47: 57 | B47: 85–87 | C47: 239.1–247.5 | D47: 235.9–244.3 | E47: 2.6 | F47: 1.90 –2.02 | G47: 106–112 | H47: 159–224 | I47: 14.4 | J47: 62.3–64.9
A48: 58 | B48: 85–87 | C48: 245.0–253.6 | D48: 241.7 –250.2 | E48: 2.6 | F48: 1.90 –2.02 | G48: 106–112 | H48: 159–224 | I48: 14.8 | J48: 62.3–64.9
A49: 59 | B49: 85–87 | C49: 251.0 –259.7 | D49: 247.5 –256.1 | E49: 2.7 | F49: 1.90 –2.02 | G49: 106–112 | H49: 159–224 | I49: 15.1 | J49: 62.4–65.0
A50: 60 | B50: 84–86 | C50: 256.8–265.7 | D50: 253.2–262.0 | E50: 2.8 | F50: 1.90 –2.02 | G50: 106– 112 | H50: 159–224 | I50: 15.5 | J50: 62.4–65.0
A51: 61 | B51: 84–86 | C51: 262.7 –271.7 | D51: 258.9–267.8 | E51: 2.9 | F51: 1.90 –2.02 | G51: 106– 112 | H51: 159– 224 | I51: 15.9 | J51: 62.5–65.1
A52: 62 | B52: 83–86 | C52: 268.5–277.8 | D52: 264.5–273.7 | E52: 2.9 | F52: 1.90 –2.02 | G52: 106–112 | H52: 159–224 | I52: 16.2 | J52: 62.5–65.1
A53: 63 | B53: 83–85 | C53: 274.3 –283.7 | D53: 270.1 –279.4 | E53: 3.0 | F53: 1.90 –2.02 | G53: 106–112 | H53: 159–224 | I53: 16.6 | J53: 62.6–65.2
A54: 64 | B54: 83–85 | C54: 280.1 –289.7 | D54: 275.8–285.2 | E54: 3.1 | F54: 1.90 –2.02 | G54: 106–112 | H54: 159–224 | I54: 16.9 | J54: 62.6–65.2
A55: 65 | B55: 83–85 | C55: 286.0–295.6 | D55: 281.4 –291.0 | E55: 3.2 | F55: 1.90 –2.02 | G55: 106–112 | H55: 159–224 | I55: 17.3 | J55: 62.7 –65.3
A56: 66 | B56: 82–84 | C56: 291.7 –301.5 | D56: 286.9–296.6 | E56: 3.3 | F56: 1.90 –2.02 | G56: 106–112 | H56: 159–224 | I56: 17.7 | J56: 62.7 –65.3
A57: 67 | B57: 81–84 | C57: 297.4 –307.4 | D57: 292.4–302.3 | E57: 3.4 | F57: 1.90 –2.02 | G57: 106–112 | H57: 159–224 | I57: 18.0 | J57: 62.8–65.4
A58: 68 | B58: 81–83 | C58: 303.0–313.2 | D58: 297.9 –307.9 | E58: 3.5 | F58: 1.90 –2.02 | G58: 106–112 | H58: 159–224 | I58: 18.4 | J58: 62.8–65.4
A59: 69 | B59: 81–82 | C59: 308.7 –318.9 | D59: 303.3–313.4 | E59: 3.7 | F59: 1.90 –2.02 | G59: 106–112 | H59: 159–224 | I59: 18.7 | J59: 62.9–65.5
A60: 70 | B60: 80–82 | C60: 314.3 –324.7 | D60: 308.7 –319.0 | E60: 3.8 | F60: 1.91 –2.03 | G60: 106–112 | H60: 159–224 | I60: 19.1 | J60: 62.9–65.5
A61: 71 | B61: 79–81 | C61: 319.8 –330.3 | D61: 314.0 –324.4 | E61: 3.9 | F61: 1.91 –2.03 | G61: 106–112 | H61: 159–224 | I61: 19.4 | J61: 63.0–65.6
A62: 72 | B62: 79–81 | C62: 325.4–336.0 | D62: 319.3 –329.9 | E62: 4.0 | F62: 1.91 –2.03 | G62: 106–112 | H62: 159–224 | I62: 19.7 | J62: 63.0–65.6
A63: 73 | B63: 78–80 | C63: 330.8–341.6 | D63: 324.6–335.2 | E63: 4.1 | F63: 1.91 –2.03 | G63: 106–112 | H63: 159–224 | I63: 20.1 | J63: 63.1 –65.7
A64: 74 | B64: 77–80 | C64: 336.2–347.2 | D64: 329.7–340.6 | E64: 4.3 | F64: 1.91 –2.03 | G64: 106–112 | H64: 159–224 | I64: 20.4 | J64: 63.1 –65.7
A65: 75 | B65: 76–79 | C65: 341.5 –352.7 | D65: 334.8–345.9 | E65: 4.4 | F65: 1.91 –2.03 | G65: 106–112 | H65: 159–224 | I65: 20.7 | J65: 63.2–65.8
A66: 76 | B66: 76–78 | C66: 346.9–358.2 | D66: 339.9–351.1 | E66: 4.5 | F66: 1.91 –2.03 | G66: 106–112 | H66: 159–224 | I66: 21.1 | J66: 63.2–65.8
A67: 77 | B67: 75–77 | C67: 352.1 –363.6 | D67: 344.9–356.2 | E67: 4.7 | F67: 1.91 –2.03 | G67: 106–112 | H67: 159–224 | I67: 21.4 | J67: 63.3–65.9
A68: 78 | B68: 75–77 | C68: 357.4 –369.0 | D68: 349.9–361.3 | E68: 4.8 | F68: 1.91 –2.03 | G68: 106–112 | H68: 159–224 | I68: 21.7 | J68: 63.3–65.9
A69: 79 | B69: 74–77 | C69: 362.5–374.4 | D69: 354.8–366.5 | E69: 5.0 | F69: 1.91 –2.03 | G69: 106–112 | H69: 159–224 | I69: 22.0 | J69: 63.4–66.0
A70: 80 | B70: 74–76 | C70: 367.7 –379.7 | D70: 359.7 –371.5 | E70: 5.1 | F70: 1.91 –2.03 | G70: 106–112 | H70: 159–224 | I70: 22.4 | J70: 63.5–66.1
A71: 81 | B71: 74–76 | C71: 372.9–385.0 | D71: 364.6–376.5 | E71: 5.3 | F71: 1.91 –2.03 | G71: 106–112 | H71: 159–224 | I71: 22.7 | J71: 63.5–66.1
A72: 82 | B72: 74–76 | C72: 378.1 –390.3 | D72: 369.5–381.6 | E72: 5.4 | F72: 1.91 –2.03 | G72: 106–112 | H72: 159–224 | I72: 23.0 | J72: 63.5–66.1
A73: 83 | B73: 73–75 | C73: 383.2–395.6 | D73: 374.4 –386.5 | E73: 5.6 | F73: 1.91 –2.03 | G73: 106–112 | H73: 159–224 | I73: 23.3 | J73: 63.6–66.2
A74: 84 | B74: 73–75 | C74: 388.3–400.8 | D74: 379.2–391.5 | E74: 5.7 | F74: 1.91 –2.03 | G74: 106–112 | H74: 159–224 | I74: 23.6 | J74: 63.6–66.2
A75: 85 | B75: 73–75 | C75: 393.4–406.1 | D75: 384.0–396.4 | E75: 5.9 | F75: 1.91 –2.03 | G75: 106–112 | H75: 159–224 | I75: 23.9 | J75: 63.6–66.2
A76: 86 | B76: 73–75 | C76: 398.5–411.3 | D76: 388.8–401.4 | E76: 6.0 | F76: 1.91 –2.03 | G76: 106–112 | H76: 159–224 | I76: 24.2 | J76: 63.6–66.2
A77: 87 | B77: 72–74 | C77: 403.6–416.5 | D77: 393.5–406.2 | E77: 6.2 | F77: 1.91 –2.03 | G77: 106–112 | H77: 159–224 | I77: 24.5 | J77: 63.7 –66.3
A78: 88 | B78: 72–74 | C78: 408.6–421.7 | D78: 398.2–411.1 | E78: 6.3 | F78: 1.91 –2.03 | G78: 106–112 | H78: 159–224 | I78: 24.9 | J78: 63.7 –66.3
A79: 89 | B79: 72–74 | C79: 413.6 –426.9 | D79: 402.9–415.9 | E79: 6.5 | F79: 1.91 –2.03 | G79: 106–112 | H79: 159–224 | I79: 25.2 | J79: 63.7 –66.3
A80: 90 | B80: 72–74 | C80: 418.7 –432.0 | D80: 407.7 –420.7 | E80: 6.6 | F80: 1.91 –2.03 | G80: 106–112 | H80: 159–224 | I80: 25.5 | J80: 63.7 –66.3
A81: 91 | B81: 71–73 | C81: 423.6–437.2 | D81: 412.3 –425.5 | E81: 6.8 | F81: 1.92 –2.04 | G81: 105–111 | H81: 157–222 | I81: 25.8 | J81: 63.8–66.4
A82: 92 | B82: 71–73 | C82: 428.6–442.3 | D82: 416.9 –430.3 | E82: 7.0 | F82: 1.92 –2.04 | G82: 105–111 | H82: 157–222 | I82: 26.1 | J82: 63.8–66.4
A83: 93 | B83: 71–73 | C83: 433.6–447.4 | D83: 421.5 –435.0 | E83: 7.1 | F83: 1.92 –2.04 | G83: 105–111 | H83: 157–222 | I83: 26.4 | J83: 63.8–66.4
A84: 94 | B84: 71–73 | C84: 438.6–452.5 | D84: 426.1 –439.7 | E84: 7.3 | F84: 1.92 –2.04 | G84: 105–111 | H84: 157–222 | I84: 26.7 | J84: 63.9–66.5
A85: 95 | B85: 70–72 | C85: 443.5–457.5 | D85: 430.7 –444.4 | E85: 7.5 | F85: 1.92 –2.04 | G85: 105–111 | H85: 157–222 | I85: 27.0 | J85: 63.9–66.5
A86: 96 | B86: 70–72 | C86: 448.4–462.6 | D86: 435.2–449.1 | E86: 7.6 | F86: 1.92 –2.04 | G86: 105–111 | H86: 157–222 | I86: 27.3 | J86: 63.9–66.5
A87: 97 | B87: 70–72 | C87: 453.3–467.6 | D87: 439.7 –453.7 | E87: 7.8 | F87: 1.92 –2.04 | G87: 105–111 | H87: 157–222 | I87: 27.6 | J87: 64.0–66.6
A88: 98 | B88: 69–71 | C88: 458.1 –472.6 | D88: 444.1–458.3 | E88: 8.0 | F88: 1.92 –2.04 | G88: 105–111 | H88: 157–222 | I88: 27.8 | J88: 64.0–66.6
A89: 99 | B89: 69–71 | C89: 462.9–477.5 | D89: 448.6–462.8 | E89: 8.2 | F89: 1.92 –2.04 | G89: 105–111 | H89: 157–222 | I89: 28.1 | J89: 64.0–66.6
A90: 100 | B90: 69–71 | C90: 467.7 –482.5 | D90: 453.0–467.4 | E90: 8.4 | F90: 1.92 –2.04 | G90: 105–111 | H90: 157–222 | I90: 28.4 | J90: 64.0–66.7
A92: Table 2. HyLine Brown Free Range Performance Data
A93: Source: | B93: Layer 01
A94: This table presents performance data on layers taken from HyLine production guides
A96: AGE (weeks) | B96: % HEN-DAY Current | C96: HEN-DAY EGGS Cumulative | D96: HEN-HOUSED EGGS Cumulative | E96: MORT-ALITY Cumulative (%) | F96: BODY WEIGHT (kg) | G96: FEED INTAKE (g/bird/day) | H96: WATER INTAKE (ml/bird/day) | I96: HH EGG MASS Cumulative (kg) | J96: AVG. EGG WEIGHT (g/egg)
A97: 18 | B97: 1.1–7.7 | C97: 0.1–0.5 | D97: 0.1–0.5 | E97: 0.05 | F97: 1.49 – 1.61 | G97: 73–88 | H97: 110–176 | I97: 0.0 | J97: 45.4–49.9
A98: 19 | B98: 8.2–27.1 | C98: 0.7–2.4 | D98: 0.7–2.4 | E98: 0.08 | F98: 1.59 – 1.70 | G98: 85–94 | H98: 128–188 | I98: 0.1 | J98: 48.3–51.7
A99: 20 | B99: 30.8–57.3 | C99: 2.8–6.4 | D99: 2.8–6.4 | E99: 0.13 | F99: 1.65 – 1.77 | G99: 90–99 | H99: 135–198 | I99: 0.2 | J99: 50.7–53.7
A100: 21 | B100: 61.4–80.5 | C100: 7.1–12.1 | D100: 7.1–12.1 | E100: 0.20 | F100: 1.70 – 1.81 | G100: 97–103 | H100: 146–206 | I100: 0.5 | J100: 52.6–55.8
A101: 22 | B101: 82.4–90.6 | C101: 12.9–18.4 | D101: 12.8–18.4 | E101: 0.27 | F101: 1.75 – 1.85 | G101: 100–107 | H101: 150–214 | I101: 0.8 | J101: 54.2–57.8
A102: 23 | B102: 90.6–94.1 | C102: 19.2–25.0 | D102: 19.2–25.0 | E102: 0.34 | F102: 1.78 – 1.88 | G102: 104–111 | H102: 156–222 | I102: 1.2 | J102: 55.6–59.0
A103: 24 | B103: 93.2–95.5 | C103: 25.7–31.7 | D103: 25.7–31.6 | E103: 0.40 | F103: 1.81 – 1.91 | G103: 109–114 | H103: 164–228 | I103: 1.6 | J103: 56.7–60.1
A104: 25 | B104: 94.2–96.2 | C104: 32.3–38.4 | D104: 32.2–38.3 | E104: 0.46 | F104: 1.82 – 1.93 | G104: 112–119 | H104: 168–238 | I104: 2.0 | J104: 57.6–61.1
A105: 26 | B105: 94.6–96.4 | C105: 39.0–45.2 | D105: 38.8–45.0 | E105: 0.50 | F105: 1.83 – 1.94 | G105: 114–121 | H105: 171–242 | I105: 2.4 | J105: 58.4–61.8
A106: 27 | B106: 94.8–96.6 | C106: 45.6–51.9 | D106: 45.4–51.8 | E106: 0.55 | F106: 1.85 – 1.95 | G106: 115–122 | H106: 173–244 | I106: 2.8 | J106: 59.1–62.2
A107: 28 | B107: 94.8–96.6 | C107: 52.2–58.7 | D107: 52.0–58.5 | E107: 0.61 | F107: 1.86 – 1.97 | G107: 116–123 | H107: 174–246 | I107: 3.2 | J107: 59.6–62.4
A108: 29 | B108: 94.8–96.6 | C108: 58.9–65.5 | D108: 58.6–65.2 | E108: 0.66 | F108: 1.87 – 1.98 | G108: 117–124 | H108: 176–248 | I108: 3.6 | J108: 60.1–62.7
A109: 30 | B109: 94.8–96.5 | C109: 65.5–72.2 | D109: 65.2–71.9 | E109: 0.71 | F109: 1.87 – 1.98 | G109: 117–125 | H109: 176–250 | I109: 4.0 | J109: 60.5–63.0
A110: 31 | B110: 94.7–96.5 | C110: 72.1–79.0 | D110: 71.8–78.6 | E110: 0.76 | F110: 1.87 – 1.98 | G110: 117–125 | H110: 176–250 | I110: 4.4 | J110: 60.9–63.3
A111: 32 | B111: 94.7–96.5 | C111: 78.8–85.7 | D111: 78.4–85.3 | E111: 0.80 | F111: 1.88 – 1.99 | G111: 117–125 | H111: 176–250 | I111: 4.9 | J111: 61.1–63.5
A112: 33 | B112: 94.6–96.3 | C112: 85.4–92.5 | D112: 84.9–92.0 | E112: 0.86 | F112: 1.88 – 1.99 | G112: 117–125 | H112: 176–250 | I112: 5.3 | J112: 61.4–63.8
A113: 34 | B113: 94.4–96.1 | C113: 92.0–99.2 | D113: 91.5–98.7 | E113: 0.92 | F113: 1.89 – 2.00 | G113: 117–125 | H113: 176–250 | I113: 5.7 | J113: 61.6–64.0
A114: 35 | B114: 94.2–96 | C114: 98.6–105.9 | D114: 98.0–105.3 | E114: 0.97 | F114: 1.89 – 2.00 | G114: 117–125 | H114: 176–250 | I114: 6.1 | J114: 61.8–64.2
A115: 36 | B115: 94.0–95.8 | C115: 105.2–112.6 | D115: 104.5–111.9 | E115: 1.02 | F115: 1.89 – 2.00 | G115: 116–124 | H115: 174–248 | I115: 6.5 | J115: 62.0–64.4
A116: 37 | B116: 93.7–95.7 | C116: 111.7–119.3 | D116: 111.0–118.6 | E116: 1.08 | F116: 1.89 – 2.00 | G116: 116–124 | H116: 174–248 | I116: 6.9 | J116: 62.1–64.6
A117: 38 | B117: 93.5–95.5 | C117: 118.3–126.0 | D117: 117.5–125.2 | E117: 1.12 | F117: 1.89 – 2.01 | G117: 116–124 | H117: 174–248 | I117: 7.3 | J117: 62.3–64.7
A118: 39 | B118: 93.3–95.3 | C118: 124.8–132.7 | D118: 123.9–131.8 | E118: 1.18 | F118: 1.90 – 2.01 | G118: 116–124 | H118: 174–248 | I118: 7.8 | J118: 62.4–64.9
A119: 40 | B119: 93.1–95 | C119: 131.3–139.3 | D119: 130.4–138.3 | E119: 1.24 | F119: 1.90 – 2.01 | G119: 116–124 | H119: 174–248 | I119: 8.2 | J119: 62.5–65.0
A120: 41 | B120: 92.8–94.9 | C120: 137.8–146.0 | D120: 136.8–144.9 | E120: 1.30 | F120: 1.90 – 2.02 | G120: 116–124 | H120: 174–248 | I120: 8.6 | J120: 62.6–65.1
A121: 42 | B121: 92.5–94.6 | C121: 144.3–152.6 | D121: 143.2–151.4 | E121: 1.35 | F121: 1.91 – 2.02 | G121: 116–124 | H121: 174–248 | I121: 9.0 | J121: 62.7–65.1
A122: 43 | B122: 92.1–94.4 | C122: 150.8–159.2 | D122: 149.5–157.9 | E122: 1.41 | F122: 1.91 – 2.02 | G122: 116–124 | H122: 174–248 | I122: 9.4 | J122: 62.8–65.2
A123: 44 | B123: 91.8–94.1 | C123: 157.2–165.8 | D123: 155.9–164.4 | E123: 1.47 | F123: 1.91 – 2.02 | G123: 116–124 | H123: 174–248 | I123: 9.8 | J123: 62.9–65.2
A124: 45 | B124: 91.5–93.8 | C124: 163.6–172.3 | D124: 162.2–170.9 | E124: 1.52 | F124: 1.92 – 2.03 | G124: 116–124 | H124: 174–248 | I124: 10.2 | J124: 62.9–65.3
A125: 46 | B125: 91.2–93.5 | C125: 170.0–178.9 | D125: 168.4–177.3 | E125: 1.59 | F125: 1.92 – 2.03 | G125: 116–124 | H125: 174–248 | I125: 10.6 | J125: 63.0–65.3
A126: 47 | B126: 90.9–93.3 | C126: 176.3–185.4 | D126: 174.7–183.8 | E126: 1.64 | F126: 1.92 – 2.03 | G126: 116–124 | H126: 174–248 | I126: 11.0 | J126: 63.1–65.4
A127: 48 | B127: 90.7–93.1 | C127: 182.7–191.9 | D127: 181.0–190.2 | E127: 1.70 | F127: 1.92 – 2.03 | G127: 116–124 | H127: 174–248 | I127: 11.5 | J127: 63.1–65.4
A128: 49 | B128: 90.4–92.8 | C128: 189.0–198.4 | D128: 187.2–196.5 | E128: 1.76 | F128: 1.92 – 2.03 | G128: 116–124 | H128: 174–248 | I128: 11.9 | J128: 63.2–65.5
A129: 50 | B129: 90.0–92.7 | C129: 195.3–204.9 | D129: 193.4–202.9 | E129: 1.83 | F129: 1.92 – 2.03 | G129: 116–124 | H129: 174–248 | I129: 12.3 | J129: 63.2–65.5
A130: 51 | B130: 89.8–92.4 | C130: 201.6–211.4 | D130: 199.5–209.3 | E130: 1.89 | F130: 1.92 – 2.03 | G130: 116–124 | H130: 174–248 | I130: 12.7 | J130: 63.3–65.6
A131: 52 | B131: 89.6–92.2 | C131: 207.9–217.8 | D131: 205.7–215.6 | E131: 1.95 | F131: 1.92 – 2.03 | G131: 116–124 | H131: 174–248 | I131: 13.1 | J131: 63.3–65.6
A132: 53 | B132: 89.4–91.9 | C132: 214.1–224.3 | D132: 211.8–221.9 | E132: 2.01 | F132: 1.92 – 2.03 | G132: 116–124 | H132: 174–248 | I132: 13.5 | J132: 63.4–65.7
A133: 54 | B133: 89.3–91.7 | C133: 220.4–230.7 | D133: 217.9–228.2 | E133: 2.09 | F133: 1.92 – 2.03 | G133: 116–124 | H133: 174–248 | I133: 13.9 | J133: 63.4–65.7
A134: 55 | B134: 88.9–91.5 | C134: 226.6–237.1 | D134: 224.0–234.4 | E134: 2.16 | F134: 1.93 – 2.04 | G134: 116–124 | H134: 174–248 | I134: 14.3 | J134: 63.4–65.8
A135: 56 | B135: 88.7–91.4 | C135: 232.8–243.5 | D135: 230.1–240.7 | E135: 2.24 | F135: 1.93 – 2.04 | G135: 116–124 | H135: 174–248 | I135: 14.7 | J135: 63.5–65.8
A136: 57 | B136: 88.4–91.2 | C136: 239.0–249.9 | D136: 236.1–246.9 | E136: 2.33 | F136: 1.93 – 2.04 | G136: 116–124 | H136: 174–248 | I136: 15.1 | J136: 63.5–65.9
A137: 58 | B137: 88.2–91 | C137: 245.2–256.3 | D137: 242.2–253.2 | E137: 2.40 | F137: 1.93 – 2.04 | G137: 116–124 | H137: 174–248 | I137: 15.5 | J137: 63.5–65.9
A138: 59 | B138: 87.9–90.8 | C138: 251.3–262.6 | D138: 248.2–259.4 | E138: 2.49 | F138: 1.93 – 2.04 | G138: 116–124 | H138: 174–248 | I138: 15.9 | J138: 63.6–66.0
A139: 60 | B139: 87.6–90.5 | C139: 257.5–269.0 | D139: 254.1–265.5 | E139: 2.57 | F139: 1.93 – 2.04 | G139: 116–124 | H139: 174–248 | I139: 16.3 | J139: 63.6–66.0
A140: 61 | B140: 87.3–90.2 | C140: 263.6–275.3 | D140: 260.1 –271.7 | E140: 2.65 | F140: 1.93 –2.04 | G140: 116–124 | H140: 174–248 | I140: 16.6 | J140: 63.6–66.1
A141: 62 | B141: 87.0–90.0 | C141: 269.7–281.6 | D141: 266.0 –277.8 | E141: 2.77 | F141: 1.93 –2.04 | G141: 116–124 | H141: 174–248 | I141: 17 | J141: 63.7–66.1
A142: 63 | B142: 86.7–89.8 | C142: 275.7–287.9 | D142: 271.9 –283.9 | E142: 2.85 | F142: 1.93 –2.04 | G142: 116–124 | H142: 174–248 | I142: 17.4 | J142: 63.7–66.2
A143: 64 | B143: 86.4–89.6 | C143: 281.8–294.1 | D143: 277.8 –290.0 | E143: 2.92 | F143: 1.93 –2.04 | G143: 116–124 | H143: 174–248 | I143: 17.8 | J143: 63.7–66.2
A144: 65 | B144: 86.1–89.3 | C144: 287.8–300.4 | D144: 283.6 –296.1 | E144: 2.97 | F144: 1.93 –2.04 | G144: 116–124 | H144: 174–248 | I144: 18.2 | J144: 63.8–66.3
A145: 66 | B145: 85.6–89.0 | C145: 293.8–306.6 | D145: 289.4 –302.1 | E145: 3.08 | F145: 1.93 –2.04 | G145: 116–124 | H145: 174–248 | I145: 18.6 | J145: 63.8–66.3
A146: 67 | B146: 85.1–88.6 | C146: 299.7–312.8 | D146: 295.2 –308.1 | E146: 3.14 | F146: 1.93 –2.04 | G146: 116–124 | H146: 174–248 | I146: 19 | J146: 63.8–66.4
A147: 68 | B147: 84.5–88.3 | C147: 305.7–319.0 | D147: 300.9 –314.1 | E147: 3.2 | F147: 1.93 –2.04 | G147: 116–124 | H147: 174–248 | I147: 19.4 | J147: 63.8–66.4
A148: 69 | B148: 83.8–88.0 | C148: 311.5–325.2 | D148: 306.6 –320.1 | E148: 3.3 | F148: 1.93 –2.04 | G148: 116–124 | H148: 174–248 | I148: 19.7 | J148: 63.8–66.4
A149: 70 | B149: 83.2–87.6 | C149: 317.4–331.3 | D149: 312.2 –326.0 | E149: 3.43 | F149: 1.93 –2.04 | G149: 116–124 | H149: 174–248 | I149: 20.1 | J149: 63.9–66.5
A150: 71 | B150: 82.7–87.0 | C150: 323.1–337.4 | D150: 317.8 –331.9 | E150: 3.58 | F150: 1.93 –2.04 | G150: 116–124 | H150: 174–248 | I150: 20.5 | J150: 63.9–66.5
A151: 72 | B151: 82.0–86.4 | C151: 328.9–343.4 | D151: 323.3 –337.7 | E151: 3.73 | F151: 1.93 –2.04 | G151: 116–124 | H151: 174–248 | I151: 20.8 | J151: 63.9–66.6
A152: 73 | B152: 81.4–85.8 | C152: 334.6–349.4 | D152: 328.8 –343.5 | E152: 3.88 | F152: 1.93 –2.04 | G152: 116–124 | H152: 174–248 | I152: 21.2 | J152: 63.9–66.6
A153: 74 | B153: 80.7–85.2 | C153: 340.2–355.4 | D153: 334.2 –349.2 | E153: 4.03 | F153: 1.93 –2.04 | G153: 116–124 | H153: 174–248 | I153: 21.6 | J153: 63.9–66.7
A154: 75 | B154: 80.1–84.6 | C154: 345.8–361.3 | D154: 339.6 –354.9 | E154: 4.18 | F154: 1.93 –2.04 | G154: 116–124 | H154: 174–248 | I154: 21.9 | J154: 64.0–66.7
A155: 76 | B155: 79.5–84.0 | C155: 351.4–367.2 | D155: 344.9 –360.5 | E155: 4.33 | F155: 1.93 –2.04 | G155: 116–124 | H155: 174–248 | I155: 22.3 | J155: 64.0–66.8
A156: 77 | B156: 78.9–83.4 | C156: 356.9–373.1 | D156: 350.2 –366.1 | E156: 4.48 | F156: 1.93 –2.04 | G156: 116–124 | H156: 174–248 | I156: 22.7 | J156: 64.0–66.8
A157: 78 | B157: 78.3–82.8 | C157: 362.4–378.8 | D157: 355.4 –371.6 | E157: 4.63 | F157: 1.93 –2.04 | G157: 116–124 | H157: 174–248 | I157: 23 | J157: 64.0–66.9
A158: 79 | B158: 77.7–82.2 | C158: 367.8–384.6 | D158: 360.6 –377.1 | E158: 4.78 | F158: 1.93 –2.04 | G158: 116–124 | H158: 174–248 | I158: 23.4 | J158: 64.0–66.9
A159: 80 | B159: 77.1–81.6 | C159: 373.2–390.3 | D159: 365.7 –382.5 | E159: 4.93 | F159: 1.93 –2.04 | G159: 116–124 | H159: 174–248 | I159: 23.7 | J159: 64.0–67.0
A160: 81 | B160: 76.6–81.0 | C160: 378.6–396.0 | D160: 370.8 –387.9 | E160: 5.08 | F160: 1.93 –2.04 | G160: 116–124 | H160: 174–248 | I160: 24 | J160: 64.0–67.0
A161: 82 | B161: 76.1–80.4 | C161: 383.9–401.6 | D161: 375.8 –393.2 | E161: 5.23 | F161: 1.93 –2.04 | G161: 116–124 | H161: 174–248 | I161: 24.4 | J161: 64.1–67.1
A162: 83 | B162: 75.6–79.8 | C162: 389.2–407.2 | D162: 380.9 –398.5 | E162: 5.38 | F162: 1.93 –2.04 | G162: 116–124 | H162: 174–248 | I162: 24.7 | J162: 64.1–67.1
A163: 84 | B163: 75.2–79.2 | C163: 394.5–412.7 | D163: 385.8 –403.7 | E163: 5.53 | F163: 1.93 –2.04 | G163: 116–124 | H163: 174–248 | I163: 25.1 | J163: 64.1–67.2
A164: 85 | B164: 74.8–78.6 | C164: 399.7–418.2 | D164: 390.8 –408.9 | E164: 5.68 | F164: 1.93 –2.04 | G164: 116–124 | H164: 174–248 | I164: 25.4 | J164: 64.1–67.2
A165: 86 | B165: 74.4–78.0 | C165: 404.9–423.7 | D165: 395.7 –414.1 | E165: 5.83 | F165: 1.93 –2.04 | G165: 116–124 | H165: 174–248 | I165: 25.7 | J165: 64.1–67.3
A166: 87 | B166: 74.0–77.4 | C166: 410.1–429.1 | D166: 400.5 –419.2 | E166: 5.98 | F166: 1.93 –2.04 | G166: 116–124 | H166: 174–248 | I166: 26.1 | J166: 64.1–67.3
A167: 88 | B167: 73.6–76.8 | C167: 415.2–434.5 | D167: 405.4 –424.2 | E167: 6.13 | F167: 1.93 –2.04 | G167: 116–124 | H167: 174–248 | I167: 26.4 | J167: 64.1–67.4
A168: 89 | B168: 73.3–76.3 | C168: 420.4–439.8 | D168: 410.2 –429.2 | E168: 6.28 | F168: 1.93 –2.04 | G168: 116–124 | H168: 174–248 | I168: 26.7 | J168: 64.1–67.4
A169: 90 | B169: 73.0–75.8 | C169: 425.5–445.2 | D169: 415.0 –434.2 | E169: 6.45 | F169: 1.93 –2.04 | G169: 116–124 | H169: 174–248 | I169: 27 | J169: 64.1–67.5
A170: 91 | B170: 72.7–75.3 | C170: 430.6–450.4 | D170: 419.7 –439.1 | E170: 6.65 | F170: 1.94 –2.05 | G170: 116–124 | H170: 174–248 | I170: 27.3 | J170: 64.2–67.5
A171: 92 | B171: 72.4–74.9 | C171: 435.6–455.7 | D171: 424.4 –444.0 | E171: 6.85 | F171: 1.94 –2.05 | G171: 116–124 | H171: 174–248 | I171: 27.7 | J171: 64.2–67.6
A172: 93 | B172: 72.1–74.5 | C172: 440.7–460.9 | D172: 429.1 –448.8 | E172: 7.1 | F172: 1.94 –2.05 | G172: 116–124 | H172: 174–248 | I172: 28 | J172: 64.2–67.6
A173: 94 | B173: 71.8–74.1 | C173: 445.7–466.1 | D173: 433.8 –453.6 | E173: 7.3 | F173: 1.94 –2.05 | G173: 116–124 | H173: 174–248 | I173: 28.3 | J173: 64.2–67.7
A174: 95 | B174: 71.5–73.7 | C174: 450.7–471.2 | D174: 438.4 –458.4 | E174: 7.5 | F174: 1.94 –2.05 | G174: 116–124 | H174: 174–248 | I174: 28.6 | J174: 64.2–67.7
A175: 96 | B175: 71.2–73.3 | C175: 455.7–476.4 | D175: 443.0 –463.2 | E175: 7.6 | F175: 1.94 –2.05 | G175: 116–124 | H175: 174–248 | I175: 28.9 | J175: 64.2–67.8
A176: 97 | B176: 70.9–72.9 | C176: 460.7–481.5 | D176: 447.6 –467.9 | E176: 7.8 | F176: 1.94 –2.05 | G176: 116–124 | H176: 174–248 | I176: 29.2 | J176: 64.2–67.8
A177: 98 | B177: 70.6–72.5 | C177: 465.6–486.5 | D177: 452.1 –472.5 | E177: 8 | F177: 1.94 –2.05 | G177: 116–124 | H177: 174–248 | I177: 29.5 | J177: 64.2–67.9
A178: 99 | B178: 70.3–72.1 | C178: 470.5–491.6 | D178: 456.7 –477.2 | E178: 8.2 | F178: 1.94 –2.05 | G178: 116–124 | H178: 174–248 | I178: 29.8 | J178: 64.2–67.9
A179: 100 | B179: 70.0–71.7 | C179: 475.4–496.6 | D179: 461.2 –481.8 | E179: 8.4 | F179: 1.94 –2.05 | G179: 116–124 | H179: 174–248 | I179: 30.1 | J179: 64.2–68.0
A181: Table 3. HyLine White Performance Data
A182: Source: | B182: Layer 01
A183: This table presents performance data on layers taken from Hyline production guides
A185: AGE (weeks) | B185: % HEN-DAYCurrent | C185: HEN-DAY EGGS Cumulative | D185: HEN-HOUSED EGGS Cumulative | E185: MORT-ALITY Cumulative (%) | F185: BODY WEIGHT (kg) | G185: FEED INTAKE (g / bird / day) | H185: WATER CONSUMPTION (ml / bird / day) | I185: HEN-HOUSED EGG MASSCumulative (kg) | J185: AVG. EGG WEIGHT (g / egg)
A186: 18 | B186: 2–3 | C186: 0.1–0.2 | D186: 0.1–0.2 | E186: 0.1 | F186: 1.23–1.30 | G186: 63–74 | H186: 95 – 148 | I186: 0.01–0.01 | J186: 44.2
A187: 19 | B187: 15 –22 | C187: 1.2–1.8 | D187: 1.2–1.7 | E187: 0.1 | F187: 1.27–1.37 | G187: 68–77 | H187: 102 – 155 | I187: 0.06–0.09 | J187: 45
A188: 20 | B188: 35–50 | C188: 3.6–5.3 | D188: 3.6–5.2 | E188: 0.1 | F188: 1.32–1.43 | G188: 73–80 | H188: 109 – 161 | I188: 0.2–0.3 | J188: 45.9
A189: 21 | B189: 60–67 | C189: 7.8–9.9 | D189: 7.8–9.9 | E189: 0.2 | F189: 1.38–1.47 | G189: 76–84 | H189: 114 – 169 | I189: 0.4–0.5 | J189: 48
A190: 22 | B190: 80–84 | C190: 13.4–15.8 | D190: 13.4–15.8 | E190: 0.2 | F190: 1.41–1.49 | G190: 80–88 | H190: 120 – 177 | I190: 0.6–0.8 | J190: 49.8
A191: 23 | B191: 88–92 | C191: 19.6–22.3 | D191: 19.6–22.2 | E191: 0.3 | F191: 1.43–1.50 | G191: 85–93 | H191: 128 – 186 | I191: 0.9–1.1 | J191: 51.3
A192: 24 | B192: 91–94 | C192: 26.0–28.9 | D192: 25.9–28.8 | E192: 0.4 | F192: 1.45–1.51 | G192: 89–96 | H192: 134 – 192 | I192: 1.3–1.5 | J192: 52.6
A193: 25 | B193: 93–95 | C193: 32.5–35.5 | D193: 32.4–35.4 | E193: 0.5 | F193: 1.47–1.53 | G193: 93–99 | H193: 139 – 197 | I193: 1.6–1.8 | J193: 53.7
A194: 26 | B194: 94–96 | C194: 39.1–42.2 | D194: 39.0–42.1 | E194: 0.5 | F194: 1.48–1.54 | G194: 94–101 | H194: 142 – 202 | I194: 2.0–2.2 | J194: 54.7
A195: 27 | B195: 95–96 | C195: 45.7–49.0 | D195: 45.6–48.8 | E195: 0.6 | F195: 1.48–1.55 | G195: 96–102 | H195: 143 – 205 | I195: 2.3–2.6 | J195: 55.5
A196: 28 | B196: 95–96 | C196: 52.4–55.7 | D196: 52.1–55.5 | E196: 0.6 | F196: 1.49–1.55 | G196: 96–103 | H196: 144 – 205 | I196: 2.7–3.0 | J196: 56.3
A197: 29 | B197: 95–97 | C197: 59.0–62.5 | D197: 58.7–62.2 | E197: 0.7 | F197: 1.50–1.56 | G197: 97–103 | H197: 145 – 206 | I197: 3.1–3.4 | J197: 57
A198: 30 | B198: 95–97 | C198: 65.6–69.2 | D198: 65.3–68.9 | E198: 0.7 | F198: 1.50–1.56 | G198: 97–103 | H198: 146 – 206 | I198: 3.4–3.8 | J198: 57.6
A199: 31 | B199: 95–97 | C199: 72.3–76.0 | D199: 71.9–75.6 | E199: 0.8 | F199: 1.51–1.57 | G199: 97–103 | H199: 146 – 207 | I199: 3.8–4.1 | J199: 58.1
A200: 32 | B200: 95–96 | C200: 78.9–82.7 | D200: 78.5–82.3 | E200: 0.9 | F200: 1.51–1.57 | G200: 98–104 | H200: 146 – 207 | I200: 4.2–4.5 | J200: 58.5
A201: 33 | B201: 94–96 | C201: 85.5–89.5 | D201: 85.0–89.0 | E201: 0.9 | F201: 1.52–1.58 | G201: 98–104 | H201: 147 – 208 | I201: 4.6–4.9 | J201: 59
A202: 34 | B202: 94–96 | C202: 92.1–96.2 | D202: 91.5–95.6 | E202: 1 | F202: 1.52–1.58 | G202: 98–104 | H202: 147 – 208 | I202: 4.9–5.4 | J202: 59.3
A203: 35 | B203: 94–95 | C203: 98.7–102.9 | D203: 98.1–102.2 | E203: 1 | F203: 1.53–1.59 | G203: 98–104 | H203: 147 – 209 | I203: 5.3–5.8 | J203: 59.7
A204: 36 | B204: 94–95 | C204: 105.2–109.5 | D204: 104.6–108.8 | E204: 1.1 | F204: 1.53–1.59 | G204: 98–105 | H204: 147 – 209 | I204: 5.7–6.2 | J204: 60
A205: 37 | B205: 93–95 | C205: 111.8–116.2 | D205: 111.0–115.4 | E205: 1.1 | F205: 1.53–1.59 | G205: 98–105 | H205: 147 – 209 | I205: 6.1–6.6 | J205: 60.3
A206: 38 | B206: 93–95 | C206: 118.3–122.8 | D206: 117.5–122.0 | E206: 1.2 | F206: 1.54–1.60 | G206: 98–105 | H206: 147 – 209 | I206: 6.5–7.0 | J206: 60.5
... 107 more rows

Sheet Performance Data (hidden)
A1: Combined performance data tables for calculations
A3: Table 1. All Layer Varieties Performance Data
A4: Source: | B4: Layer 01
A5: This table presents the combined performance data on layers taken from Hyline production guides
A7: Flock Type | B7: AGE (weeks) | C7: Ration | D7: Mortality (%) | E7: Hen-Housed Eggs Cumulative Mid-point | F7: Bodyweight Mid-point (kg) | G7: Bodyweight Mid-point (g) | H7: Feed Intake Mid-point (g/bird/day) | I7: Feed Intake (g/bird/week) | J7: Cumulative Feed Intake (g/bird) | K7: Average Egg Weight Mid-point (g/egg) | L7: Cumulative Egg Weight (g)
A8: Brown Free-range | B8: 16 | C8: =IF(AND(Table13[[#This Row],[AGE (weeks)]]>='Diet input details'!$C$16,Table13[[#This Row],[AGE (weeks)]]<='Diet input details'!$D$16),"Ration 1",IF(AND(Table13[[#This Row],[AGE (weeks)]]>='Diet input details'!$C$17,Table13[[#This Row],[AGE (weeks)]]<='Diet input details'!$D$17),"Ration 2",IF(AND(Table13[[#This Row],[AGE (weeks)]]>='Diet input details'!$C$18,Table13[[#This Row],[AGE (weeks)]]<='Diet input details'!$D$18),"Ration 3",IF(AND(Table13[[#This Row],[AGE (weeks)]]>='Diet input details'!$C$19,Table13[[#This Row],[AGE (weeks)]]<='Diet input details'!$D$19),"Ration 4",IF(AND(Table13[[#This Row],[AGE (weeks)]]>='Diet input details'!$C$20,Table13[[#This Row],[AGE (weeks)]]<='Diet input details'!$D$20),"Ration 5", "Clear"))))) -> Clear | D8: =(VLOOKUP(Table13[[#This Row],[Ration]],Table22[#All],2,FALSE)) ->  | E8: 0.3 | F8: 1.55 | G8: =Table13[[#This Row],[Bodyweight Mid-point (kg)]]*1000 -> 1550 | H8: 80.5 | I8: =Table13[[#This Row],[Feed Intake Mid-point (g/bird/day)]]*7 -> 563.5 | J8: =Table13[[#This Row],[Feed Intake (g/bird/week)]] -> 563.5 | K8: 47.65 | L8: =(Table13[[#This Row],[Hen-Housed Eggs Cumulative Mid-point]]*Table13[[#This Row],[Average Egg Weight Mid-point (g/egg)]]) -> 14.295
A9: Brown Free-range | B9: 17 | C9: =IF(AND(Table13[[#This Row],[AGE (weeks)]]>='Diet input details'!$C$16,Table13[[#This Row],[AGE (weeks)]]<='Diet input details'!$D$16),"Ration 1",IF(AND(Table13[[#This Row],[AGE (weeks)]]>='Diet input details'!$C$17,Table13[[#This Row],[AGE (weeks)]]<='Diet input details'!$D$17),"Ration 2",IF(AND(Table13[[#This Row],[AGE (weeks)]]>='Diet input details'!$C$18,Table13[[#This Row],[AGE (weeks)]]<='Diet input details'!$D$18),"Ration 3",IF(AND(Table13[[#This Row],[AGE (weeks)]]>='Diet input details'!$C$19,Table13[[#This Row],[AGE (weeks)]]<='Diet input details'!$D$19),"Ration 4",IF(AND(Table13[[#This Row],[AGE (weeks)]]>='Diet input details'!$C$20,Table13[[#This Row],[AGE (weeks)]]<='Diet input details'!$D$20),"Ration 5", "Clear"))))) -> Clear | D9: =(VLOOKUP(Table13[[#This Row],[Ration]],Table22[#All],2,FALSE)) ->  | E9: 0.3 | F9: 1.55 | G9: =Table13[[#This Row],[Bodyweight Mid-point (kg)]]*1000 -> 1550 | H9: 80.5 | I9: =Table13[[#This Row],[Feed Intake Mid-point (g/bird/day)]]*7 -> 563.5 | J9: =Table13[[#This Row],[Feed Intake (g/bird/week)]] -> 563.5 | K9: 47.65 | L9: =(Table13[[#This Row],[Hen-Housed Eggs Cumulative Mid-point]]*Table13[[#This Row],[Average Egg Weight Mid-point (g/egg)]]) -> 14.295
A10: Brown Free-range | B10: 18 | C10: =IF(AND(Table13[[#This Row],[AGE (weeks)]]>='Diet input details'!$C$16,Table13[[#This Row],[AGE (weeks)]]<='Diet input details'!$D$16),"Ration 1",IF(AND(Table13[[#This Row],[AGE (weeks)]]>='Diet input details'!$C$17,Table13[[#This Row],[AGE (weeks)]]<='Diet input details'!$D$17),"Ration 2",IF(AND(Table13[[#This Row],[AGE (weeks)]]>='Diet input details'!$C$18,Table13[[#This Row],[AGE (weeks)]]<='Diet input details'!$D$18),"Ration 3",IF(AND(Table13[[#This Row],[AGE (weeks)]]>='Diet input details'!$C$19,Table13[[#This Row],[AGE (weeks)]]<='Diet input details'!$D$19),"Ration 4",IF(AND(Table13[[#This Row],[AGE (weeks)]]>='Diet input details'!$C$20,Table13[[#This Row],[AGE (weeks)]]<='Diet input details'!$D$20),"Ration 5", "Clear"))))) -> Clear | D10: =(VLOOKUP(Table13[[#This Row],[Ration]],Table22[#All],2,FALSE)) ->  | E10: 0.3 | F10: 1.55 | G10: =Table13[[#This Row],[Bodyweight Mid-point (kg)]]*1000 -> 1550 | H10: 80.5 | I10: =Table13[[#This Row],[Feed Intake Mid-point (g/bird/day)]]*7 -> 563.5 | J10: =Table13[[#This Row],[Feed Intake (g/bird/week)]] -> 563.5 | K10: 47.65 | L10: =(Table13[[#This Row],[Hen-Housed Eggs Cumulative Mid-point]]*Table13[[#This Row],[Average Egg Weight Mid-point (g/egg)]]) -> 14.295
A11: Brown Free-range | B11: 19 | C11: =IF(AND(Table13[[#This Row],[AGE (weeks)]]>='Diet input details'!$C$16,Table13[[#This Row],[AGE (weeks)]]<='Diet input details'!$D$16),"Ration 1",IF(AND(Table13[[#This Row],[AGE (weeks)]]>='Diet input details'!$C$17,Table13[[#This Row],[AGE (weeks)]]<='Diet input details'!$D$17),"Ration 2",IF(AND(Table13[[#This Row],[AGE (weeks)]]>='Diet input details'!$C$18,Table13[[#This Row],[AGE (weeks)]]<='Diet input details'!$D$18),"Ration 3",IF(AND(Table13[[#This Row],[AGE (weeks)]]>='Diet input details'!$C$19,Table13[[#This Row],[AGE (weeks)]]<='Diet input details'!$D$19),"Ration 4",IF(AND(Table13[[#This Row],[AGE (weeks)]]>='Diet input details'!$C$20,Table13[[#This Row],[AGE (weeks)]]<='Diet input details'!$D$20),"Ration 5", "Clear"))))) -> Clear | D11: =(VLOOKUP(Table13[[#This Row],[Ration]],Table22[#All],2,FALSE)) ->  | E11: 1.55 | F11: 1.645 | G11: =Table13[[#This Row],[Bodyweight Mid-point (kg)]]*1000 -> 1645 | H11: 89.5 | I11: =Table13[[#This Row],[Feed Intake Mid-point (g/bird/day)]]*7 -> 626.5 | J11: =Table13[[#This Row],[Feed Intake (g/bird/week)]]+J10 -> 1190 | K11: 50 | L11: =(Table13[[#This Row],[Hen-Housed Eggs Cumulative Mid-point]]*Table13[[#This Row],[Average Egg Weight Mid-point (g/egg)]]) -> 77.5
A12: Brown Free-range | B12: 20 | C12: =IF(AND(Table13[[#This Row],[AGE (weeks)]]>='Diet input details'!$C$16,Table13[[#This Row],[AGE (weeks)]]<='Diet input details'!$D$16),"Ration 1",IF(AND(Table13[[#This Row],[AGE (weeks)]]>='Diet input details'!$C$17,Table13[[#This Row],[AGE (weeks)]]<='Diet input details'!$D$17),"Ration 2",IF(AND(Table13[[#This Row],[AGE (weeks)]]>='Diet input details'!$C$18,Table13[[#This Row],[AGE (weeks)]]<='Diet input details'!$D$18),"Ration 3",IF(AND(Table13[[#This Row],[AGE (weeks)]]>='Diet input details'!$C$19,Table13[[#This Row],[AGE (weeks)]]<='Diet input details'!$D$19),"Ration 4",IF(AND(Table13[[#This Row],[AGE (weeks)]]>='Diet input details'!$C$20,Table13[[#This Row],[AGE (weeks)]]<='Diet input details'!$D$20),"Ration 5", "Clear"))))) -> Clear | D12: =(VLOOKUP(Table13[[#This Row],[Ration]],Table22[#All],2,FALSE)) ->  | E12: 4.6 | F12: 1.71 | G12: =Table13[[#This Row],[Bodyweight Mid-point (kg)]]*1000 -> 1710 | H12: 94.5 | I12: =Table13[[#This Row],[Feed Intake Mid-point (g/bird/day)]]*7 -> 661.5 | J12: =Table13[[#This Row],[Feed Intake (g/bird/week)]]+J11 -> 1851.5 | K12: 52.2 | L12: =(Table13[[#This Row],[Hen-Housed Eggs Cumulative Mid-point]]*Table13[[#This Row],[Average Egg Weight Mid-point (g/egg)]]) -> 240.12
A13: Brown Free-range | B13: 21 | C13: =IF(AND(Table13[[#This Row],[AGE (weeks)]]>='Diet input details'!$C$16,Table13[[#This Row],[AGE (weeks)]]<='Diet input details'!$D$16),"Ration 1",IF(AND(Table13[[#This Row],[AGE (weeks)]]>='Diet input details'!$C$17,Table13[[#This Row],[AGE (weeks)]]<='Diet input details'!$D$17),"Ration 2",IF(AND(Table13[[#This Row],[AGE (weeks)]]>='Diet input details'!$C$18,Table13[[#This Row],[AGE (weeks)]]<='Diet input details'!$D$18),"Ration 3",IF(AND(Table13[[#This Row],[AGE (weeks)]]>='Diet input details'!$C$19,Table13[[#This Row],[AGE (weeks)]]<='Diet input details'!$D$19),"Ration 4",IF(AND(Table13[[#This Row],[AGE (weeks)]]>='Diet input details'!$C$20,Table13[[#This Row],[AGE (weeks)]]<='Diet input details'!$D$20),"Ration 5", "Clear"))))) -> Clear | D13: =(VLOOKUP(Table13[[#This Row],[Ration]],Table22[#All],2,FALSE)) ->  | E13: 9.6 | F13: 1.755 | G13: =Table13[[#This Row],[Bodyweight Mid-point (kg)]]*1000 -> 1755 | H13: 100 | I13: =Table13[[#This Row],[Feed Intake Mid-point (g/bird/day)]]*7 -> 700 | J13: =Table13[[#This Row],[Feed Intake (g/bird/week)]]+J12 -> 2551.5 | K13: 54.2 | L13: =(Table13[[#This Row],[Hen-Housed Eggs Cumulative Mid-point]]*Table13[[#This Row],[Average Egg Weight Mid-point (g/egg)]]) -> 520.32
A14: Brown Free-range | B14: 22 | C14: =IF(AND(Table13[[#This Row],[AGE (weeks)]]>='Diet input details'!$C$16,Table13[[#This Row],[AGE (weeks)]]<='Diet input details'!$D$16),"Ration 1",IF(AND(Table13[[#This Row],[AGE (weeks)]]>='Diet input details'!$C$17,Table13[[#This Row],[AGE (weeks)]]<='Diet input details'!$D$17),"Ration 2",IF(AND(Table13[[#This Row],[AGE (weeks)]]>='Diet input details'!$C$18,Table13[[#This Row],[AGE (weeks)]]<='Diet input details'!$D$18),"Ration 3",IF(AND(Table13[[#This Row],[AGE (weeks)]]>='Diet input details'!$C$19,Table13[[#This Row],[AGE (weeks)]]<='Diet input details'!$D$19),"Ration 4",IF(AND(Table13[[#This Row],[AGE (weeks)]]>='Diet input details'!$C$20,Table13[[#This Row],[AGE (weeks)]]<='Diet input details'!$D$20),"Ration 5", "Clear"))))) -> Clear | D14: =(VLOOKUP(Table13[[#This Row],[Ration]],Table22[#All],2,FALSE)) ->  | E14: 15.6 | F14: 1.8 | G14: =Table13[[#This Row],[Bodyweight Mid-point (kg)]]*1000 -> 1800 | H14: 103.5 | I14: =Table13[[#This Row],[Feed Intake Mid-point (g/bird/day)]]*7 -> 724.5 | J14: =Table13[[#This Row],[Feed Intake (g/bird/week)]]+J13 -> 3276 | K14: 56 | L14: =(Table13[[#This Row],[Hen-Housed Eggs Cumulative Mid-point]]*Table13[[#This Row],[Average Egg Weight Mid-point (g/egg)]]) -> 873.6
A15: Brown Free-range | B15: 23 | C15: =IF(AND(Table13[[#This Row],[AGE (weeks)]]>='Diet input details'!$C$16,Table13[[#This Row],[AGE (weeks)]]<='Diet input details'!$D$16),"Ration 1",IF(AND(Table13[[#This Row],[AGE (weeks)]]>='Diet input details'!$C$17,Table13[[#This Row],[AGE (weeks)]]<='Diet input details'!$D$17),"Ration 2",IF(AND(Table13[[#This Row],[AGE (weeks)]]>='Diet input details'!$C$18,Table13[[#This Row],[AGE (weeks)]]<='Diet input details'!$D$18),"Ration 3",IF(AND(Table13[[#This Row],[AGE (weeks)]]>='Diet input details'!$C$19,Table13[[#This Row],[AGE (weeks)]]<='Diet input details'!$D$19),"Ration 4",IF(AND(Table13[[#This Row],[AGE (weeks)]]>='Diet input details'!$C$20,Table13[[#This Row],[AGE (weeks)]]<='Diet input details'!$D$20),"Ration 5", "Clear"))))) -> Clear | D15: =(VLOOKUP(Table13[[#This Row],[Ration]],Table22[#All],2,FALSE)) ->  | E15: 22.1 | F15: 1.83 | G15: =Table13[[#This Row],[Bodyweight Mid-point (kg)]]*1000 -> 1830 | H15: 107.5 | I15: =Table13[[#This Row],[Feed Intake Mid-point (g/bird/day)]]*7 -> 752.5 | J15: =Table13[[#This Row],[Feed Intake (g/bird/week)]]+J14 -> 4028.5 | K15: 57.3 | L15: =(Table13[[#This Row],[Hen-Housed Eggs Cumulative Mid-point]]*Table13[[#This Row],[Average Egg Weight Mid-point (g/egg)]]) -> 1266.33
A16: Brown Free-range | B16: 24 | C16: =IF(AND(Table13[[#This Row],[AGE (weeks)]]>='Diet input details'!$C$16,Table13[[#This Row],[AGE (weeks)]]<='Diet input details'!$D$16),"Ration 1",IF(AND(Table13[[#This Row],[AGE (weeks)]]>='Diet input details'!$C$17,Table13[[#This Row],[AGE (weeks)]]<='Diet input details'!$D$17),"Ration 2",IF(AND(Table13[[#This Row],[AGE (weeks)]]>='Diet input details'!$C$18,Table13[[#This Row],[AGE (weeks)]]<='Diet input details'!$D$18),"Ration 3",IF(AND(Table13[[#This Row],[AGE (weeks)]]>='Diet input details'!$C$19,Table13[[#This Row],[AGE (weeks)]]<='Diet input details'!$D$19),"Ration 4",IF(AND(Table13[[#This Row],[AGE (weeks)]]>='Diet input details'!$C$20,Table13[[#This Row],[AGE (weeks)]]<='Diet input details'!$D$20),"Ration 5", "Clear"))))) -> Clear | D16: =(VLOOKUP(Table13[[#This Row],[Ration]],Table22[#All],2,FALSE)) ->  | E16: 28.65 | F16: 1.86 | G16: =Table13[[#This Row],[Bodyweight Mid-point (kg)]]*1000 -> 1860 | H16: 111.5 | I16: =Table13[[#This Row],[Feed Intake Mid-point (g/bird/day)]]*7 -> 780.5 | J16: =Table13[[#This Row],[Feed Intake (g/bird/week)]]+J15 -> 4809 | K16: 58.4 | L16: =(Table13[[#This Row],[Hen-Housed Eggs Cumulative Mid-point]]*Table13[[#This Row],[Average Egg Weight Mid-point (g/egg)]]) -> 1673.16
A17: Brown Free-range | B17: 25 | C17: =IF(AND(Table13[[#This Row],[AGE (weeks)]]>='Diet input details'!$C$16,Table13[[#This Row],[AGE (weeks)]]<='Diet input details'!$D$16),"Ration 1",IF(AND(Table13[[#This Row],[AGE (weeks)]]>='Diet input details'!$C$17,Table13[[#This Row],[AGE (weeks)]]<='Diet input details'!$D$17),"Ration 2",IF(AND(Table13[[#This Row],[AGE (weeks)]]>='Diet input details'!$C$18,Table13[[#This Row],[AGE (weeks)]]<='Diet input details'!$D$18),"Ration 3",IF(AND(Table13[[#This Row],[AGE (weeks)]]>='Diet input details'!$C$19,Table13[[#This Row],[AGE (weeks)]]<='Diet input details'!$D$19),"Ration 4",IF(AND(Table13[[#This Row],[AGE (weeks)]]>='Diet input details'!$C$20,Table13[[#This Row],[AGE (weeks)]]<='Diet input details'!$D$20),"Ration 5", "Clear"))))) -> Clear | D17: =(VLOOKUP(Table13[[#This Row],[Ration]],Table22[#All],2,FALSE)) ->  | E17: 35.25 | F17: 1.875 | G17: =Table13[[#This Row],[Bodyweight Mid-point (kg)]]*1000 -> 1875 | H17: 115.5 | I17: =Table13[[#This Row],[Feed Intake Mid-point (g/bird/day)]]*7 -> 808.5 | J17: =Table13[[#This Row],[Feed Intake (g/bird/week)]]+J16 -> 5617.5 | K17: 59.35 | L17: =(Table13[[#This Row],[Hen-Housed Eggs Cumulative Mid-point]]*Table13[[#This Row],[Average Egg Weight Mid-point (g/egg)]]) -> 2092.0875
A18: Brown Free-range | B18: 26 | C18: =IF(AND(Table13[[#This Row],[AGE (weeks)]]>='Diet input details'!$C$16,Table13[[#This Row],[AGE (weeks)]]<='Diet input details'!$D$16),"Ration 1",IF(AND(Table13[[#This Row],[AGE (weeks)]]>='Diet input details'!$C$17,Table13[[#This Row],[AGE (weeks)]]<='Diet input details'!$D$17),"Ration 2",IF(AND(Table13[[#This Row],[AGE (weeks)]]>='Diet input details'!$C$18,Table13[[#This Row],[AGE (weeks)]]<='Diet input details'!$D$18),"Ration 3",IF(AND(Table13[[#This Row],[AGE (weeks)]]>='Diet input details'!$C$19,Table13[[#This Row],[AGE (weeks)]]<='Diet input details'!$D$19),"Ration 4",IF(AND(Table13[[#This Row],[AGE (weeks)]]>='Diet input details'!$C$20,Table13[[#This Row],[AGE (weeks)]]<='Diet input details'!$D$20),"Ration 5", "Clear"))))) -> Clear | D18: =(VLOOKUP(Table13[[#This Row],[Ration]],Table22[#All],2,FALSE)) ->  | E18: 41.9 | F18: 1.885 | G18: =Table13[[#This Row],[Bodyweight Mid-point (kg)]]*1000 -> 1885 | H18: 117.5 | I18: =Table13[[#This Row],[Feed Intake Mid-point (g/bird/day)]]*7 -> 822.5 | J18: =Table13[[#This Row],[Feed Intake (g/bird/week)]]+J17 -> 6440 | K18: 60.1 | L18: =(Table13[[#This Row],[Hen-Housed Eggs Cumulative Mid-point]]*Table13[[#This Row],[Average Egg Weight Mid-point (g/egg)]]) -> 2518.19
A19: Brown Free-range | B19: 27 | C19: =IF(AND(Table13[[#This Row],[AGE (weeks)]]>='Diet input details'!$C$16,Table13[[#This Row],[AGE (weeks)]]<='Diet input details'!$D$16),"Ration 1",IF(AND(Table13[[#This Row],[AGE (weeks)]]>='Diet input details'!$C$17,Table13[[#This Row],[AGE (weeks)]]<='Diet input details'!$D$17),"Ration 2",IF(AND(Table13[[#This Row],[AGE (weeks)]]>='Diet input details'!$C$18,Table13[[#This Row],[AGE (weeks)]]<='Diet input details'!$D$18),"Ration 3",IF(AND(Table13[[#This Row],[AGE (weeks)]]>='Diet input details'!$C$19,Table13[[#This Row],[AGE (weeks)]]<='Diet input details'!$D$19),"Ration 4",IF(AND(Table13[[#This Row],[AGE (weeks)]]>='Diet input details'!$C$20,Table13[[#This Row],[AGE (weeks)]]<='Diet input details'!$D$20),"Ration 5", "Clear"))))) -> Clear | D19: =(VLOOKUP(Table13[[#This Row],[Ration]],Table22[#All],2,FALSE)) ->  | E19: 48.6 | F19: 1.9 | G19: =Table13[[#This Row],[Bodyweight Mid-point (kg)]]*1000 -> 1900 | H19: 118.5 | I19: =Table13[[#This Row],[Feed Intake Mid-point (g/bird/day)]]*7 -> 829.5 | J19: =Table13[[#This Row],[Feed Intake (g/bird/week)]]+J18 -> 7269.5 | K19: 60.65 | L19: =(Table13[[#This Row],[Hen-Housed Eggs Cumulative Mid-point]]*Table13[[#This Row],[Average Egg Weight Mid-point (g/egg)]]) -> 2947.59
A20: Brown Free-range | B20: 28 | C20: =IF(AND(Table13[[#This Row],[AGE (weeks)]]>='Diet input details'!$C$16,Table13[[#This Row],[AGE (weeks)]]<='Diet input details'!$D$16),"Ration 1",IF(AND(Table13[[#This Row],[AGE (weeks)]]>='Diet input details'!$C$17,Table13[[#This Row],[AGE (weeks)]]<='Diet input details'!$D$17),"Ration 2",IF(AND(Table13[[#This Row],[AGE (weeks)]]>='Diet input details'!$C$18,Table13[[#This Row],[AGE (weeks)]]<='Diet input details'!$D$18),"Ration 3",IF(AND(Table13[[#This Row],[AGE (weeks)]]>='Diet input details'!$C$19,Table13[[#This Row],[AGE (weeks)]]<='Diet input details'!$D$19),"Ration 4",IF(AND(Table13[[#This Row],[AGE (weeks)]]>='Diet input details'!$C$20,Table13[[#This Row],[AGE (weeks)]]<='Diet input details'!$D$20),"Ration 5", "Clear"))))) -> Clear | D20: =(VLOOKUP(Table13[[#This Row],[Ration]],Table22[#All],2,FALSE)) ->  | E20: 55.25 | F20: 1.915 | G20: =Table13[[#This Row],[Bodyweight Mid-point (kg)]]*1000 -> 1915 | H20: 119.5 | I20: =Table13[[#This Row],[Feed Intake Mid-point (g/bird/day)]]*7 -> 836.5 | J20: =Table13[[#This Row],[Feed Intake (g/bird/week)]]+J19 -> 8106 | K20: 61 | L20: =(Table13[[#This Row],[Hen-Housed Eggs Cumulative Mid-point]]*Table13[[#This Row],[Average Egg Weight Mid-point (g/egg)]]) -> 3370.25
A21: Brown Free-range | B21: 29 | C21: =IF(AND(Table13[[#This Row],[AGE (weeks)]]>='Diet input details'!$C$16,Table13[[#This Row],[AGE (weeks)]]<='Diet input details'!$D$16),"Ration 1",IF(AND(Table13[[#This Row],[AGE (weeks)]]>='Diet input details'!$C$17,Table13[[#This Row],[AGE (weeks)]]<='Diet input details'!$D$17),"Ration 2",IF(AND(Table13[[#This Row],[AGE (weeks)]]>='Diet input details'!$C$18,Table13[[#This Row],[AGE (weeks)]]<='Diet input details'!$D$18),"Ration 3",IF(AND(Table13[[#This Row],[AGE (weeks)]]>='Diet input details'!$C$19,Table13[[#This Row],[AGE (weeks)]]<='Diet input details'!$D$19),"Ration 4",IF(AND(Table13[[#This Row],[AGE (weeks)]]>='Diet input details'!$C$20,Table13[[#This Row],[AGE (weeks)]]<='Diet input details'!$D$20),"Ration 5", "Clear"))))) -> Clear | D21: =(VLOOKUP(Table13[[#This Row],[Ration]],Table22[#All],2,FALSE)) ->  | E21: 61.9 | F21: 1.925 | G21: =Table13[[#This Row],[Bodyweight Mid-point (kg)]]*1000 -> 1925 | H21: 120.5 | I21: =Table13[[#This Row],[Feed Intake Mid-point (g/bird/day)]]*7 -> 843.5 | J21: =Table13[[#This Row],[Feed Intake (g/bird/week)]]+J20 -> 8949.5 | K21: 61.4 | L21: =(Table13[[#This Row],[Hen-Housed Eggs Cumulative Mid-point]]*Table13[[#This Row],[Average Egg Weight Mid-point (g/egg)]]) -> 3800.66
A22: Brown Free-range | B22: 30 | C22: =IF(AND(Table13[[#This Row],[AGE (weeks)]]>='Diet input details'!$C$16,Table13[[#This Row],[AGE (weeks)]]<='Diet input details'!$D$16),"Ration 1",IF(AND(Table13[[#This Row],[AGE (weeks)]]>='Diet input details'!$C$17,Table13[[#This Row],[AGE (weeks)]]<='Diet input details'!$D$17),"Ration 2",IF(AND(Table13[[#This Row],[AGE (weeks)]]>='Diet input details'!$C$18,Table13[[#This Row],[AGE (weeks)]]<='Diet input details'!$D$18),"Ration 3",IF(AND(Table13[[#This Row],[AGE (weeks)]]>='Diet input details'!$C$19,Table13[[#This Row],[AGE (weeks)]]<='Diet input details'!$D$19),"Ration 4",IF(AND(Table13[[#This Row],[AGE (weeks)]]>='Diet input details'!$C$20,Table13[[#This Row],[AGE (weeks)]]<='Diet input details'!$D$20),"Ration 5", "Clear"))))) -> Clear | D22: =(VLOOKUP(Table13[[#This Row],[Ration]],Table22[#All],2,FALSE)) ->  | E22: 68.55 | F22: 1.925 | G22: =Table13[[#This Row],[Bodyweight Mid-point (kg)]]*1000 -> 1925 | H22: 121 | I22: =Table13[[#This Row],[Feed Intake Mid-point (g/bird/day)]]*7 -> 847 | J22: =Table13[[#This Row],[Feed Intake (g/bird/week)]]+J21 -> 9796.5 | K22: 61.75 | L22: =(Table13[[#This Row],[Hen-Housed Eggs Cumulative Mid-point]]*Table13[[#This Row],[Average Egg Weight Mid-point (g/egg)]]) -> 4232.9625
A23: Brown Free-range | B23: 31 | C23: =IF(AND(Table13[[#This Row],[AGE (weeks)]]>='Diet input details'!$C$16,Table13[[#This Row],[AGE (weeks)]]<='Diet input details'!$D$16),"Ration 1",IF(AND(Table13[[#This Row],[AGE (weeks)]]>='Diet input details'!$C$17,Table13[[#This Row],[AGE (weeks)]]<='Diet input details'!$D$17),"Ration 2",IF(AND(Table13[[#This Row],[AGE (weeks)]]>='Diet input details'!$C$18,Table13[[#This Row],[AGE (weeks)]]<='Diet input details'!$D$18),"Ration 3",IF(AND(Table13[[#This Row],[AGE (weeks)]]>='Diet input details'!$C$19,Table13[[#This Row],[AGE (weeks)]]<='Diet input details'!$D$19),"Ration 4",IF(AND(Table13[[#This Row],[AGE (weeks)]]>='Diet input details'!$C$20,Table13[[#This Row],[AGE (weeks)]]<='Diet input details'!$D$20),"Ration 5", "Clear"))))) -> Clear | D23: =(VLOOKUP(Table13[[#This Row],[Ration]],Table22[#All],2,FALSE)) ->  | E23: 75.2 | F23: 1.925 | G23: =Table13[[#This Row],[Bodyweight Mid-point (kg)]]*1000 -> 1925 | H23: 121 | I23: =Table13[[#This Row],[Feed Intake Mid-point (g/bird/day)]]*7 -> 847 | J23: =Table13[[#This Row],[Feed Intake (g/bird/week)]]+J22 -> 10643.5 | K23: 62.1 | L23: =(Table13[[#This Row],[Hen-Housed Eggs Cumulative Mid-point]]*Table13[[#This Row],[Average Egg Weight Mid-point (g/egg)]]) -> 4669.92
A24: Brown Free-range | B24: 32 | C24: =IF(AND(Table13[[#This Row],[AGE (weeks)]]>='Diet input details'!$C$16,Table13[[#This Row],[AGE (weeks)]]<='Diet input details'!$D$16),"Ration 1",IF(AND(Table13[[#This Row],[AGE (weeks)]]>='Diet input details'!$C$17,Table13[[#This Row],[AGE (weeks)]]<='Diet input details'!$D$17),"Ration 2",IF(AND(Table13[[#This Row],[AGE (weeks)]]>='Diet input details'!$C$18,Table13[[#This Row],[AGE (weeks)]]<='Diet input details'!$D$18),"Ration 3",IF(AND(Table13[[#This Row],[AGE (weeks)]]>='Diet input details'!$C$19,Table13[[#This Row],[AGE (weeks)]]<='Diet input details'!$D$19),"Ration 4",IF(AND(Table13[[#This Row],[AGE (weeks)]]>='Diet input details'!$C$20,Table13[[#This Row],[AGE (weeks)]]<='Diet input details'!$D$20),"Ration 5", "Clear"))))) -> Clear | D24: =(VLOOKUP(Table13[[#This Row],[Ration]],Table22[#All],2,FALSE)) ->  | E24: 81.85 | F24: 1.935 | G24: =Table13[[#This Row],[Bodyweight Mid-point (kg)]]*1000 -> 1935 | H24: 121 | I24: =Table13[[#This Row],[Feed Intake Mid-point (g/bird/day)]]*7 -> 847 | J24: =Table13[[#This Row],[Feed Intake (g/bird/week)]]+J23 -> 11490.5 | K24: 62.3 | L24: =(Table13[[#This Row],[Hen-Housed Eggs Cumulative Mid-point]]*Table13[[#This Row],[Average Egg Weight Mid-point (g/egg)]]) -> 5099.255
A25: Brown Free-range | B25: 33 | C25: =IF(AND(Table13[[#This Row],[AGE (weeks)]]>='Diet input details'!$C$16,Table13[[#This Row],[AGE (weeks)]]<='Diet input details'!$D$16),"Ration 1",IF(AND(Table13[[#This Row],[AGE (weeks)]]>='Diet input details'!$C$17,Table13[[#This Row],[AGE (weeks)]]<='Diet input details'!$D$17),"Ration 2",IF(AND(Table13[[#This Row],[AGE (weeks)]]>='Diet input details'!$C$18,Table13[[#This Row],[AGE (weeks)]]<='Diet input details'!$D$18),"Ration 3",IF(AND(Table13[[#This Row],[AGE (weeks)]]>='Diet input details'!$C$19,Table13[[#This Row],[AGE (weeks)]]<='Diet input details'!$D$19),"Ration 4",IF(AND(Table13[[#This Row],[AGE (weeks)]]>='Diet input details'!$C$20,Table13[[#This Row],[AGE (weeks)]]<='Diet input details'!$D$20),"Ration 5", "Clear"))))) -> Clear | D25: =(VLOOKUP(Table13[[#This Row],[Ration]],Table22[#All],2,FALSE)) ->  | E25: 88.45 | F25: 1.935 | G25: =Table13[[#This Row],[Bodyweight Mid-point (kg)]]*1000 -> 1935 | H25: 121 | I25: =Table13[[#This Row],[Feed Intake Mid-point (g/bird/day)]]*7 -> 847 | J25: =Table13[[#This Row],[Feed Intake (g/bird/week)]]+J24 -> 12337.5 | K25: 62.6 | L25: =(Table13[[#This Row],[Hen-Housed Eggs Cumulative Mid-point]]*Table13[[#This Row],[Average Egg Weight Mid-point (g/egg)]]) -> 5536.97
A26: Brown Free-range | B26: 34 | C26: =IF(AND(Table13[[#This Row],[AGE (weeks)]]>='Diet input details'!$C$16,Table13[[#This Row],[AGE (weeks)]]<='Diet input details'!$D$16),"Ration 1",IF(AND(Table13[[#This Row],[AGE (weeks)]]>='Diet input details'!$C$17,Table13[[#This Row],[AGE (weeks)]]<='Diet input details'!$D$17),"Ration 2",IF(AND(Table13[[#This Row],[AGE (weeks)]]>='Diet input details'!$C$18,Table13[[#This Row],[AGE (weeks)]]<='Diet input details'!$D$18),"Ration 3",IF(AND(Table13[[#This Row],[AGE (weeks)]]>='Diet input details'!$C$19,Table13[[#This Row],[AGE (weeks)]]<='Diet input details'!$D$19),"Ration 4",IF(AND(Table13[[#This Row],[AGE (weeks)]]>='Diet input details'!$C$20,Table13[[#This Row],[AGE (weeks)]]<='Diet input details'!$D$20),"Ration 5", "Clear"))))) -> Clear | D26: =(VLOOKUP(Table13[[#This Row],[Ration]],Table22[#All],2,FALSE)) ->  | E26: 95.1 | F26: 1.945 | G26: =Table13[[#This Row],[Bodyweight Mid-point (kg)]]*1000 -> 1945 | H26: 121 | I26: =Table13[[#This Row],[Feed Intake Mid-point (g/bird/day)]]*7 -> 847 | J26: =Table13[[#This Row],[Feed Intake (g/bird/week)]]+J25 -> 13184.5 | K26: 62.8 | L26: =(Table13[[#This Row],[Hen-Housed Eggs Cumulative Mid-point]]*Table13[[#This Row],[Average Egg Weight Mid-point (g/egg)]]) -> 5972.28
A27: Brown Free-range | B27: 35 | C27: =IF(AND(Table13[[#This Row],[AGE (weeks)]]>='Diet input details'!$C$16,Table13[[#This Row],[AGE (weeks)]]<='Diet input details'!$D$16),"Ration 1",IF(AND(Table13[[#This Row],[AGE (weeks)]]>='Diet input details'!$C$17,Table13[[#This Row],[AGE (weeks)]]<='Diet input details'!$D$17),"Ration 2",IF(AND(Table13[[#This Row],[AGE (weeks)]]>='Diet input details'!$C$18,Table13[[#This Row],[AGE (weeks)]]<='Diet input details'!$D$18),"Ration 3",IF(AND(Table13[[#This Row],[AGE (weeks)]]>='Diet input details'!$C$19,Table13[[#This Row],[AGE (weeks)]]<='Diet input details'!$D$19),"Ration 4",IF(AND(Table13[[#This Row],[AGE (weeks)]]>='Diet input details'!$C$20,Table13[[#This Row],[AGE (weeks)]]<='Diet input details'!$D$20),"Ration 5", "Clear"))))) -> Clear | D27: =(VLOOKUP(Table13[[#This Row],[Ration]],Table22[#All],2,FALSE)) ->  | E27: 101.65 | F27: 1.945 | G27: =Table13[[#This Row],[Bodyweight Mid-point (kg)]]*1000 -> 1945 | H27: 121 | I27: =Table13[[#This Row],[Feed Intake Mid-point (g/bird/day)]]*7 -> 847 | J27: =Table13[[#This Row],[Feed Intake (g/bird/week)]]+J26 -> 14031.5 | K27: 63 | L27: =(Table13[[#This Row],[Hen-Housed Eggs Cumulative Mid-point]]*Table13[[#This Row],[Average Egg Weight Mid-point (g/egg)]]) -> 6403.95
A28: Brown Free-range | B28: 36 | C28: =IF(AND(Table13[[#This Row],[AGE (weeks)]]>='Diet input details'!$C$16,Table13[[#This Row],[AGE (weeks)]]<='Diet input details'!$D$16),"Ration 1",IF(AND(Table13[[#This Row],[AGE (weeks)]]>='Diet input details'!$C$17,Table13[[#This Row],[AGE (weeks)]]<='Diet input details'!$D$17),"Ration 2",IF(AND(Table13[[#This Row],[AGE (weeks)]]>='Diet input details'!$C$18,Table13[[#This Row],[AGE (weeks)]]<='Diet input details'!$D$18),"Ration 3",IF(AND(Table13[[#This Row],[AGE (weeks)]]>='Diet input details'!$C$19,Table13[[#This Row],[AGE (weeks)]]<='Diet input details'!$D$19),"Ration 4",IF(AND(Table13[[#This Row],[AGE (weeks)]]>='Diet input details'!$C$20,Table13[[#This Row],[AGE (weeks)]]<='Diet input details'!$D$20),"Ration 5", "Clear"))))) -> Clear | D28: =(VLOOKUP(Table13[[#This Row],[Ration]],Table22[#All],2,FALSE)) ->  | E28: 108.2 | F28: 1.945 | G28: =Table13[[#This Row],[Bodyweight Mid-point (kg)]]*1000 -> 1945 | H28: 120 | I28: =Table13[[#This Row],[Feed Intake Mid-point (g/bird/day)]]*7 -> 840 | J28: =Table13[[#This Row],[Feed Intake (g/bird/week)]]+J27 -> 14871.5 | K28: 63.2 | L28: =(Table13[[#This Row],[Hen-Housed Eggs Cumulative Mid-point]]*Table13[[#This Row],[Average Egg Weight Mid-point (g/egg)]]) -> 6838.24
A29: Brown Free-range | B29: 37 | C29: =IF(AND(Table13[[#This Row],[AGE (weeks)]]>='Diet input details'!$C$16,Table13[[#This Row],[AGE (weeks)]]<='Diet input details'!$D$16),"Ration 1",IF(AND(Table13[[#This Row],[AGE (weeks)]]>='Diet input details'!$C$17,Table13[[#This Row],[AGE (weeks)]]<='Diet input details'!$D$17),"Ration 2",IF(AND(Table13[[#This Row],[AGE (weeks)]]>='Diet input details'!$C$18,Table13[[#This Row],[AGE (weeks)]]<='Diet input details'!$D$18),"Ration 3",IF(AND(Table13[[#This Row],[AGE (weeks)]]>='Diet input details'!$C$19,Table13[[#This Row],[AGE (weeks)]]<='Diet input details'!$D$19),"Ration 4",IF(AND(Table13[[#This Row],[AGE (weeks)]]>='Diet input details'!$C$20,Table13[[#This Row],[AGE (weeks)]]<='Diet input details'!$D$20),"Ration 5", "Clear"))))) -> Clear | D29: =(VLOOKUP(Table13[[#This Row],[Ration]],Table22[#All],2,FALSE)) ->  | E29: 114.8 | F29: 1.945 | G29: =Table13[[#This Row],[Bodyweight Mid-point (kg)]]*1000 -> 1945 | H29: 120 | I29: =Table13[[#This Row],[Feed Intake Mid-point (g/bird/day)]]*7 -> 840 | J29: =Table13[[#This Row],[Feed Intake (g/bird/week)]]+J28 -> 15711.5 | K29: 63.35 | L29: =(Table13[[#This Row],[Hen-Housed Eggs Cumulative Mid-point]]*Table13[[#This Row],[Average Egg Weight Mid-point (g/egg)]]) -> 7272.58
A30: Brown Free-range | B30: 38 | C30: =IF(AND(Table13[[#This Row],[AGE (weeks)]]>='Diet input details'!$C$16,Table13[[#This Row],[AGE (weeks)]]<='Diet input details'!$D$16),"Ration 1",IF(AND(Table13[[#This Row],[AGE (weeks)]]>='Diet input details'!$C$17,Table13[[#This Row],[AGE (weeks)]]<='Diet input details'!$D$17),"Ration 2",IF(AND(Table13[[#This Row],[AGE (weeks)]]>='Diet input details'!$C$18,Table13[[#This Row],[AGE (weeks)]]<='Diet input details'!$D$18),"Ration 3",IF(AND(Table13[[#This Row],[AGE (weeks)]]>='Diet input details'!$C$19,Table13[[#This Row],[AGE (weeks)]]<='Diet input details'!$D$19),"Ration 4",IF(AND(Table13[[#This Row],[AGE (weeks)]]>='Diet input details'!$C$20,Table13[[#This Row],[AGE (weeks)]]<='Diet input details'!$D$20),"Ration 5", "Clear"))))) -> Clear | D30: =(VLOOKUP(Table13[[#This Row],[Ration]],Table22[#All],2,FALSE)) ->  | E30: 121.35 | F30: 1.95 | G30: =Table13[[#This Row],[Bodyweight Mid-point (kg)]]*1000 -> 1950 | H30: 120 | I30: =Table13[[#This Row],[Feed Intake Mid-point (g/bird/day)]]*7 -> 840 | J30: =Table13[[#This Row],[Feed Intake (g/bird/week)]]+J29 -> 16551.5 | K30: 63.5 | L30: =(Table13[[#This Row],[Hen-Housed Eggs Cumulative Mid-point]]*Table13[[#This Row],[Average Egg Weight Mid-point (g/egg)]]) -> 7705.725
A31: Brown Free-range | B31: 39 | C31: =IF(AND(Table13[[#This Row],[AGE (weeks)]]>='Diet input details'!$C$16,Table13[[#This Row],[AGE (weeks)]]<='Diet input details'!$D$16),"Ration 1",IF(AND(Table13[[#This Row],[AGE (weeks)]]>='Diet input details'!$C$17,Table13[[#This Row],[AGE (weeks)]]<='Diet input details'!$D$17),"Ration 2",IF(AND(Table13[[#This Row],[AGE (weeks)]]>='Diet input details'!$C$18,Table13[[#This Row],[AGE (weeks)]]<='Diet input details'!$D$18),"Ration 3",IF(AND(Table13[[#This Row],[AGE (weeks)]]>='Diet input details'!$C$19,Table13[[#This Row],[AGE (weeks)]]<='Diet input details'!$D$19),"Ration 4",IF(AND(Table13[[#This Row],[AGE (weeks)]]>='Diet input details'!$C$20,Table13[[#This Row],[AGE (weeks)]]<='Diet input details'!$D$20),"Ration 5", "Clear"))))) -> Clear | D31: =(VLOOKUP(Table13[[#This Row],[Ration]],Table22[#All],2,FALSE)) ->  | E31: 127.85 | F31: 1.955 | G31: =Table13[[#This Row],[Bodyweight Mid-point (kg)]]*1000 -> 1955 | H31: 120 | I31: =Table13[[#This Row],[Feed Intake Mid-point (g/bird/day)]]*7 -> 840 | J31: =Table13[[#This Row],[Feed Intake (g/bird/week)]]+J30 -> 17391.5 | K31: 63.65 | L31: =(Table13[[#This Row],[Hen-Housed Eggs Cumulative Mid-point]]*Table13[[#This Row],[Average Egg Weight Mid-point (g/egg)]]) -> 8137.6525
A32: Brown Free-range | B32: 40 | C32: =IF(AND(Table13[[#This Row],[AGE (weeks)]]>='Diet input details'!$C$16,Table13[[#This Row],[AGE (weeks)]]<='Diet input details'!$D$16),"Ration 1",IF(AND(Table13[[#This Row],[AGE (weeks)]]>='Diet input details'!$C$17,Table13[[#This Row],[AGE (weeks)]]<='Diet input details'!$D$17),"Ration 2",IF(AND(Table13[[#This Row],[AGE (weeks)]]>='Diet input details'!$C$18,Table13[[#This Row],[AGE (weeks)]]<='Diet input details'!$D$18),"Ration 3",IF(AND(Table13[[#This Row],[AGE (weeks)]]>='Diet input details'!$C$19,Table13[[#This Row],[AGE (weeks)]]<='Diet input details'!$D$19),"Ration 4",IF(AND(Table13[[#This Row],[AGE (weeks)]]>='Diet input details'!$C$20,Table13[[#This Row],[AGE (weeks)]]<='Diet input details'!$D$20),"Ration 5", "Clear"))))) -> Clear | D32: =(VLOOKUP(Table13[[#This Row],[Ration]],Table22[#All],2,FALSE)) ->  | E32: 134.35 | F32: 1.955 | G32: =Table13[[#This Row],[Bodyweight Mid-point (kg)]]*1000 -> 1955 | H32: 120 | I32: =Table13[[#This Row],[Feed Intake Mid-point (g/bird/day)]]*7 -> 840 | J32: =Table13[[#This Row],[Feed Intake (g/bird/week)]]+J31 -> 18231.5 | K32: 63.75 | L32: =(Table13[[#This Row],[Hen-Housed Eggs Cumulative Mid-point]]*Table13[[#This Row],[Average Egg Weight Mid-point (g/egg)]]) -> 8564.8125
A33: Brown Free-range | B33: 41 | C33: =IF(AND(Table13[[#This Row],[AGE (weeks)]]>='Diet input details'!$C$16,Table13[[#This Row],[AGE (weeks)]]<='Diet input details'!$D$16),"Ration 1",IF(AND(Table13[[#This Row],[AGE (weeks)]]>='Diet input details'!$C$17,Table13[[#This Row],[AGE (weeks)]]<='Diet input details'!$D$17),"Ration 2",IF(AND(Table13[[#This Row],[AGE (weeks)]]>='Diet input details'!$C$18,Table13[[#This Row],[AGE (weeks)]]<='Diet input details'!$D$18),"Ration 3",IF(AND(Table13[[#This Row],[AGE (weeks)]]>='Diet input details'!$C$19,Table13[[#This Row],[AGE (weeks)]]<='Diet input details'!$D$19),"Ration 4",IF(AND(Table13[[#This Row],[AGE (weeks)]]>='Diet input details'!$C$20,Table13[[#This Row],[AGE (weeks)]]<='Diet input details'!$D$20),"Ration 5", "Clear"))))) -> Clear | D33: =(VLOOKUP(Table13[[#This Row],[Ration]],Table22[#All],2,FALSE)) ->  | E33: 140.85 | F33: 1.96 | G33: =Table13[[#This Row],[Bodyweight Mid-point (kg)]]*1000 -> 1960 | H33: 120 | I33: =Table13[[#This Row],[Feed Intake Mid-point (g/bird/day)]]*7 -> 840 | J33: =Table13[[#This Row],[Feed Intake (g/bird/week)]]+J32 -> 19071.5 | K33: 63.85 | L33: =(Table13[[#This Row],[Hen-Housed Eggs Cumulative Mid-point]]*Table13[[#This Row],[Average Egg Weight Mid-point (g/egg)]]) -> 8993.2725
A34: Brown Free-range | B34: 42 | C34: =IF(AND(Table13[[#This Row],[AGE (weeks)]]>='Diet input details'!$C$16,Table13[[#This Row],[AGE (weeks)]]<='Diet input details'!$D$16),"Ration 1",IF(AND(Table13[[#This Row],[AGE (weeks)]]>='Diet input details'!$C$17,Table13[[#This Row],[AGE (weeks)]]<='Diet input details'!$D$17),"Ration 2",IF(AND(Table13[[#This Row],[AGE (weeks)]]>='Diet input details'!$C$18,Table13[[#This Row],[AGE (weeks)]]<='Diet input details'!$D$18),"Ration 3",IF(AND(Table13[[#This Row],[AGE (weeks)]]>='Diet input details'!$C$19,Table13[[#This Row],[AGE (weeks)]]<='Diet input details'!$D$19),"Ration 4",IF(AND(Table13[[#This Row],[AGE (weeks)]]>='Diet input details'!$C$20,Table13[[#This Row],[AGE (weeks)]]<='Diet input details'!$D$20),"Ration 5", "Clear"))))) -> Clear | D34: =(VLOOKUP(Table13[[#This Row],[Ration]],Table22[#All],2,FALSE)) ->  | E34: 147.3 | F34: 1.965 | G34: =Table13[[#This Row],[Bodyweight Mid-point (kg)]]*1000 -> 1965 | H34: 120 | I34: =Table13[[#This Row],[Feed Intake Mid-point (g/bird/day)]]*7 -> 840 | J34: =Table13[[#This Row],[Feed Intake (g/bird/week)]]+J33 -> 19911.5 | K34: 63.9 | L34: =(Table13[[#This Row],[Hen-Housed Eggs Cumulative Mid-point]]*Table13[[#This Row],[Average Egg Weight Mid-point (g/egg)]]) -> 9412.47
A35: Brown Free-range | B35: 43 | C35: =IF(AND(Table13[[#This Row],[AGE (weeks)]]>='Diet input details'!$C$16,Table13[[#This Row],[AGE (weeks)]]<='Diet input details'!$D$16),"Ration 1",IF(AND(Table13[[#This Row],[AGE (weeks)]]>='Diet input details'!$C$17,Table13[[#This Row],[AGE (weeks)]]<='Diet input details'!$D$17),"Ration 2",IF(AND(Table13[[#This Row],[AGE (weeks)]]>='Diet input details'!$C$18,Table13[[#This Row],[AGE (weeks)]]<='Diet input details'!$D$18),"Ration 3",IF(AND(Table13[[#This Row],[AGE (weeks)]]>='Diet input details'!$C$19,Table13[[#This Row],[AGE (weeks)]]<='Diet input details'!$D$19),"Ration 4",IF(AND(Table13[[#This Row],[AGE (weeks)]]>='Diet input details'!$C$20,Table13[[#This Row],[AGE (weeks)]]<='Diet input details'!$D$20),"Ration 5", "Clear"))))) -> Clear | D35: =(VLOOKUP(Table13[[#This Row],[Ration]],Table22[#All],2,FALSE)) ->  | E35: 153.7 | F35: 1.965 | G35: =Table13[[#This Row],[Bodyweight Mid-point (kg)]]*1000 -> 1965 | H35: 120 | I35: =Table13[[#This Row],[Feed Intake Mid-point (g/bird/day)]]*7 -> 840 | J35: =Table13[[#This Row],[Feed Intake (g/bird/week)]]+J34 -> 20751.5 | K35: 64 | L35: =(Table13[[#This Row],[Hen-Housed Eggs Cumulative Mid-point]]*Table13[[#This Row],[Average Egg Weight Mid-point (g/egg)]]) -> 9836.8
A36: Brown Free-range | B36: 44 | C36: =IF(AND(Table13[[#This Row],[AGE (weeks)]]>='Diet input details'!$C$16,Table13[[#This Row],[AGE (weeks)]]<='Diet input details'!$D$16),"Ration 1",IF(AND(Table13[[#This Row],[AGE (weeks)]]>='Diet input details'!$C$17,Table13[[#This Row],[AGE (weeks)]]<='Diet input details'!$D$17),"Ration 2",IF(AND(Table13[[#This Row],[AGE (weeks)]]>='Diet input details'!$C$18,Table13[[#This Row],[AGE (weeks)]]<='Diet input details'!$D$18),"Ration 3",IF(AND(Table13[[#This Row],[AGE (weeks)]]>='Diet input details'!$C$19,Table13[[#This Row],[AGE (weeks)]]<='Diet input details'!$D$19),"Ration 4",IF(AND(Table13[[#This Row],[AGE (weeks)]]>='Diet input details'!$C$20,Table13[[#This Row],[AGE (weeks)]]<='Diet input details'!$D$20),"Ration 5", "Clear"))))) -> Clear | D36: =(VLOOKUP(Table13[[#This Row],[Ration]],Table22[#All],2,FALSE)) ->  | E36: 160.15 | F36: 1.965 | G36: =Table13[[#This Row],[Bodyweight Mid-point (kg)]]*1000 -> 1965 | H36: 120 | I36: =Table13[[#This Row],[Feed Intake Mid-point (g/bird/day)]]*7 -> 840 | J36: =Table13[[#This Row],[Feed Intake (g/bird/week)]]+J35 -> 21591.5 | K36: 64.05 | L36: =(Table13[[#This Row],[Hen-Housed Eggs Cumulative Mid-point]]*Table13[[#This Row],[Average Egg Weight Mid-point (g/egg)]]) -> 10257.6075
A37: Brown Free-range | B37: 45 | C37: =IF(AND(Table13[[#This Row],[AGE (weeks)]]>='Diet input details'!$C$16,Table13[[#This Row],[AGE (weeks)]]<='Diet input details'!$D$16),"Ration 1",IF(AND(Table13[[#This Row],[AGE (weeks)]]>='Diet input details'!$C$17,Table13[[#This Row],[AGE (weeks)]]<='Diet input details'!$D$17),"Ration 2",IF(AND(Table13[[#This Row],[AGE (weeks)]]>='Diet input details'!$C$18,Table13[[#This Row],[AGE (weeks)]]<='Diet input details'!$D$18),"Ration 3",IF(AND(Table13[[#This Row],[AGE (weeks)]]>='Diet input details'!$C$19,Table13[[#This Row],[AGE (weeks)]]<='Diet input details'!$D$19),"Ration 4",IF(AND(Table13[[#This Row],[AGE (weeks)]]>='Diet input details'!$C$20,Table13[[#This Row],[AGE (weeks)]]<='Diet input details'!$D$20),"Ration 5", "Clear"))))) -> Clear | D37: =(VLOOKUP(Table13[[#This Row],[Ration]],Table22[#All],2,FALSE)) ->  | E37: 166.55 | F37: 1.975 | G37: =Table13[[#This Row],[Bodyweight Mid-point (kg)]]*1000 -> 1975 | H37: 120 | I37: =Table13[[#This Row],[Feed Intake Mid-point (g/bird/day)]]*7 -> 840 | J37: =Table13[[#This Row],[Feed Intake (g/bird/week)]]+J36 -> 22431.5 | K37: 64.1 | L37: =(Table13[[#This Row],[Hen-Housed Eggs Cumulative Mid-point]]*Table13[[#This Row],[Average Egg Weight Mid-point (g/egg)]]) -> 10675.855
A38: Brown Free-range | B38: 46 | C38: =IF(AND(Table13[[#This Row],[AGE (weeks)]]>='Diet input details'!$C$16,Table13[[#This Row],[AGE (weeks)]]<='Diet input details'!$D$16),"Ration 1",IF(AND(Table13[[#This Row],[AGE (weeks)]]>='Diet input details'!$C$17,Table13[[#This Row],[AGE (weeks)]]<='Diet input details'!$D$17),"Ration 2",IF(AND(Table13[[#This Row],[AGE (weeks)]]>='Diet input details'!$C$18,Table13[[#This Row],[AGE (weeks)]]<='Diet input details'!$D$18),"Ration 3",IF(AND(Table13[[#This Row],[AGE (weeks)]]>='Diet input details'!$C$19,Table13[[#This Row],[AGE (weeks)]]<='Diet input details'!$D$19),"Ration 4",IF(AND(Table13[[#This Row],[AGE (weeks)]]>='Diet input details'!$C$20,Table13[[#This Row],[AGE (weeks)]]<='Diet input details'!$D$20),"Ration 5", "Clear"))))) -> Clear | D38: =(VLOOKUP(Table13[[#This Row],[Ration]],Table22[#All],2,FALSE)) ->  | E38: 172.85 | F38: 1.975 | G38: =Table13[[#This Row],[Bodyweight Mid-point (kg)]]*1000 -> 1975 | H38: 120 | I38: =Table13[[#This Row],[Feed Intake Mid-point (g/bird/day)]]*7 -> 840 | J38: =Table13[[#This Row],[Feed Intake (g/bird/week)]]+J37 -> 23271.5 | K38: 64.15 | L38: =(Table13[[#This Row],[Hen-Housed Eggs Cumulative Mid-point]]*Table13[[#This Row],[Average Egg Weight Mid-point (g/egg)]]) -> 11088.3275
A39: Brown Free-range | B39: 47 | C39: =IF(AND(Table13[[#This Row],[AGE (weeks)]]>='Diet input details'!$C$16,Table13[[#This Row],[AGE (weeks)]]<='Diet input details'!$D$16),"Ration 1",IF(AND(Table13[[#This Row],[AGE (weeks)]]>='Diet input details'!$C$17,Table13[[#This Row],[AGE (weeks)]]<='Diet input details'!$D$17),"Ration 2",IF(AND(Table13[[#This Row],[AGE (weeks)]]>='Diet input details'!$C$18,Table13[[#This Row],[AGE (weeks)]]<='Diet input details'!$D$18),"Ration 3",IF(AND(Table13[[#This Row],[AGE (weeks)]]>='Diet input details'!$C$19,Table13[[#This Row],[AGE (weeks)]]<='Diet input details'!$D$19),"Ration 4",IF(AND(Table13[[#This Row],[AGE (weeks)]]>='Diet input details'!$C$20,Table13[[#This Row],[AGE (weeks)]]<='Diet input details'!$D$20),"Ration 5", "Clear"))))) -> Clear | D39: =(VLOOKUP(Table13[[#This Row],[Ration]],Table22[#All],2,FALSE)) ->  | E39: 179.25 | F39: 1.975 | G39: =Table13[[#This Row],[Bodyweight Mid-point (kg)]]*1000 -> 1975 | H39: 120 | I39: =Table13[[#This Row],[Feed Intake Mid-point (g/bird/day)]]*7 -> 840 | J39: =Table13[[#This Row],[Feed Intake (g/bird/week)]]+J38 -> 24111.5 | K39: 64.25 | L39: =(Table13[[#This Row],[Hen-Housed Eggs Cumulative Mid-point]]*Table13[[#This Row],[Average Egg Weight Mid-point (g/egg)]]) -> 11516.8125
A40: Brown Free-range | B40: 48 | C40: =IF(AND(Table13[[#This Row],[AGE (weeks)]]>='Diet input details'!$C$16,Table13[[#This Row],[AGE (weeks)]]<='Diet input details'!$D$16),"Ration 1",IF(AND(Table13[[#This Row],[AGE (weeks)]]>='Diet input details'!$C$17,Table13[[#This Row],[AGE (weeks)]]<='Diet input details'!$D$17),"Ration 2",IF(AND(Table13[[#This Row],[AGE (weeks)]]>='Diet input details'!$C$18,Table13[[#This Row],[AGE (weeks)]]<='Diet input details'!$D$18),"Ration 3",IF(AND(Table13[[#This Row],[AGE (weeks)]]>='Diet input details'!$C$19,Table13[[#This Row],[AGE (weeks)]]<='Diet input details'!$D$19),"Ration 4",IF(AND(Table13[[#This Row],[AGE (weeks)]]>='Diet input details'!$C$20,Table13[[#This Row],[AGE (weeks)]]<='Diet input details'!$D$20),"Ration 5", "Clear"))))) -> Clear | D40: =(VLOOKUP(Table13[[#This Row],[Ration]],Table22[#All],2,FALSE)) ->  | E40: 185.6 | F40: 1.975 | G40: =Table13[[#This Row],[Bodyweight Mid-point (kg)]]*1000 -> 1975 | H40: 120 | I40: =Table13[[#This Row],[Feed Intake Mid-point (g/bird/day)]]*7 -> 840 | J40: =Table13[[#This Row],[Feed Intake (g/bird/week)]]+J39 -> 24951.5 | K40: 64.25 | L40: =(Table13[[#This Row],[Hen-Housed Eggs Cumulative Mid-point]]*Table13[[#This Row],[Average Egg Weight Mid-point (g/egg)]]) -> 11924.8
A41: Brown Free-range | B41: 49 | C41: =IF(AND(Table13[[#This Row],[AGE (weeks)]]>='Diet input details'!$C$16,Table13[[#This Row],[AGE (weeks)]]<='Diet input details'!$D$16),"Ration 1",IF(AND(Table13[[#This Row],[AGE (weeks)]]>='Diet input details'!$C$17,Table13[[#This Row],[AGE (weeks)]]<='Diet input details'!$D$17),"Ration 2",IF(AND(Table13[[#This Row],[AGE (weeks)]]>='Diet input details'!$C$18,Table13[[#This Row],[AGE (weeks)]]<='Diet input details'!$D$18),"Ration 3",IF(AND(Table13[[#This Row],[AGE (weeks)]]>='Diet input details'!$C$19,Table13[[#This Row],[AGE (weeks)]]<='Diet input details'!$D$19),"Ration 4",IF(AND(Table13[[#This Row],[AGE (weeks)]]>='Diet input details'!$C$20,Table13[[#This Row],[AGE (weeks)]]<='Diet input details'!$D$20),"Ration 5", "Clear"))))) -> Clear | D41: =(VLOOKUP(Table13[[#This Row],[Ration]],Table22[#All],2,FALSE)) ->  | E41: 191.85 | F41: 1.975 | G41: =Table13[[#This Row],[Bodyweight Mid-point (kg)]]*1000 -> 1975 | H41: 120 | I41: =Table13[[#This Row],[Feed Intake Mid-point (g/bird/day)]]*7 -> 840 | J41: =Table13[[#This Row],[Feed Intake (g/bird/week)]]+J40 -> 25791.5 | K41: 64.35 | L41: =(Table13[[#This Row],[Hen-Housed Eggs Cumulative Mid-point]]*Table13[[#This Row],[Average Egg Weight Mid-point (g/egg)]]) -> 12345.5475
A42: Brown Free-range | B42: 50 | C42: =IF(AND(Table13[[#This Row],[AGE (weeks)]]>='Diet input details'!$C$16,Table13[[#This Row],[AGE (weeks)]]<='Diet input details'!$D$16),"Ration 1",IF(AND(Table13[[#This Row],[AGE (weeks)]]>='Diet input details'!$C$17,Table13[[#This Row],[AGE (weeks)]]<='Diet input details'!$D$17),"Ration 2",IF(AND(Table13[[#This Row],[AGE (weeks)]]>='Diet input details'!$C$18,Table13[[#This Row],[AGE (weeks)]]<='Diet input details'!$D$18),"Ration 3",IF(AND(Table13[[#This Row],[AGE (weeks)]]>='Diet input details'!$C$19,Table13[[#This Row],[AGE (weeks)]]<='Diet input details'!$D$19),"Ration 4",IF(AND(Table13[[#This Row],[AGE (weeks)]]>='Diet input details'!$C$20,Table13[[#This Row],[AGE (weeks)]]<='Diet input details'!$D$20),"Ration 5", "Clear"))))) -> Clear | D42: =(VLOOKUP(Table13[[#This Row],[Ration]],Table22[#All],2,FALSE)) ->  | E42: 198.15 | F42: 1.975 | G42: =Table13[[#This Row],[Bodyweight Mid-point (kg)]]*1000 -> 1975 | H42: 120 | I42: =Table13[[#This Row],[Feed Intake Mid-point (g/bird/day)]]*7 -> 840 | J42: =Table13[[#This Row],[Feed Intake (g/bird/week)]]+J41 -> 26631.5 | K42: 64.35 | L42: =(Table13[[#This Row],[Hen-Housed Eggs Cumulative Mid-point]]*Table13[[#This Row],[Average Egg Weight Mid-point (g/egg)]]) -> 12750.9525
A43: Brown Free-range | B43: 51 | C43: =IF(AND(Table13[[#This Row],[AGE (weeks)]]>='Diet input details'!$C$16,Table13[[#This Row],[AGE (weeks)]]<='Diet input details'!$D$16),"Ration 1",IF(AND(Table13[[#This Row],[AGE (weeks)]]>='Diet input details'!$C$17,Table13[[#This Row],[AGE (weeks)]]<='Diet input details'!$D$17),"Ration 2",IF(AND(Table13[[#This Row],[AGE (weeks)]]>='Diet input details'!$C$18,Table13[[#This Row],[AGE (weeks)]]<='Diet input details'!$D$18),"Ration 3",IF(AND(Table13[[#This Row],[AGE (weeks)]]>='Diet input details'!$C$19,Table13[[#This Row],[AGE (weeks)]]<='Diet input details'!$D$19),"Ration 4",IF(AND(Table13[[#This Row],[AGE (weeks)]]>='Diet input details'!$C$20,Table13[[#This Row],[AGE (weeks)]]<='Diet input details'!$D$20),"Ration 5", "Clear"))))) -> Clear | D43: =(VLOOKUP(Table13[[#This Row],[Ration]],Table22[#All],2,FALSE)) ->  | E43: 204.4 | F43: 1.975 | G43: =Table13[[#This Row],[Bodyweight Mid-point (kg)]]*1000 -> 1975 | H43: 120 | I43: =Table13[[#This Row],[Feed Intake Mid-point (g/bird/day)]]*7 -> 840 | J43: =Table13[[#This Row],[Feed Intake (g/bird/week)]]+J42 -> 27471.5 | K43: 64.45 | L43: =(Table13[[#This Row],[Hen-Housed Eggs Cumulative Mid-point]]*Table13[[#This Row],[Average Egg Weight Mid-point (g/egg)]]) -> 13173.58
A44: Brown Free-range | B44: 52 | C44: =IF(AND(Table13[[#This Row],[AGE (weeks)]]>='Diet input details'!$C$16,Table13[[#This Row],[AGE (weeks)]]<='Diet input details'!$D$16),"Ration 1",IF(AND(Table13[[#This Row],[AGE (weeks)]]>='Diet input details'!$C$17,Table13[[#This Row],[AGE (weeks)]]<='Diet input details'!$D$17),"Ration 2",IF(AND(Table13[[#This Row],[AGE (weeks)]]>='Diet input details'!$C$18,Table13[[#This Row],[AGE (weeks)]]<='Diet input details'!$D$18),"Ration 3",IF(AND(Table13[[#This Row],[AGE (weeks)]]>='Diet input details'!$C$19,Table13[[#This Row],[AGE (weeks)]]<='Diet input details'!$D$19),"Ration 4",IF(AND(Table13[[#This Row],[AGE (weeks)]]>='Diet input details'!$C$20,Table13[[#This Row],[AGE (weeks)]]<='Diet input details'!$D$20),"Ration 5", "Clear"))))) -> Clear | D44: =(VLOOKUP(Table13[[#This Row],[Ration]],Table22[#All],2,FALSE)) ->  | E44: 210.65 | F44: 1.975 | G44: =Table13[[#This Row],[Bodyweight Mid-point (kg)]]*1000 -> 1975 | H44: 120 | I44: =Table13[[#This Row],[Feed Intake Mid-point (g/bird/day)]]*7 -> 840 | J44: =Table13[[#This Row],[Feed Intake (g/bird/week)]]+J43 -> 28311.5 | K44: 64.45 | L44: =(Table13[[#This Row],[Hen-Housed Eggs Cumulative Mid-point]]*Table13[[#This Row],[Average Egg Weight Mid-point (g/egg)]]) -> 13576.3925
A45: Brown Free-range | B45: 53 | C45: =IF(AND(Table13[[#This Row],[AGE (weeks)]]>='Diet input details'!$C$16,Table13[[#This Row],[AGE (weeks)]]<='Diet input details'!$D$16),"Ration 1",IF(AND(Table13[[#This Row],[AGE (weeks)]]>='Diet input details'!$C$17,Table13[[#This Row],[AGE (weeks)]]<='Diet input details'!$D$17),"Ration 2",IF(AND(Table13[[#This Row],[AGE (weeks)]]>='Diet input details'!$C$18,Table13[[#This Row],[AGE (weeks)]]<='Diet input details'!$D$18),"Ration 3",IF(AND(Table13[[#This Row],[AGE (weeks)]]>='Diet input details'!$C$19,Table13[[#This Row],[AGE (weeks)]]<='Diet input details'!$D$19),"Ration 4",IF(AND(Table13[[#This Row],[AGE (weeks)]]>='Diet input details'!$C$20,Table13[[#This Row],[AGE (weeks)]]<='Diet input details'!$D$20),"Ration 5", "Clear"))))) -> Clear | D45: =(VLOOKUP(Table13[[#This Row],[Ration]],Table22[#All],2,FALSE)) ->  | E45: 216.85 | F45: 1.975 | G45: =Table13[[#This Row],[Bodyweight Mid-point (kg)]]*1000 -> 1975 | H45: 120 | I45: =Table13[[#This Row],[Feed Intake Mid-point (g/bird/day)]]*7 -> 840 | J45: =Table13[[#This Row],[Feed Intake (g/bird/week)]]+J44 -> 29151.5 | K45: 64.55 | L45: =(Table13[[#This Row],[Hen-Housed Eggs Cumulative Mid-point]]*Table13[[#This Row],[Average Egg Weight Mid-point (g/egg)]]) -> 13997.6675
A46: Brown Free-range | B46: 54 | C46: =IF(AND(Table13[[#This Row],[AGE (weeks)]]>='Diet input details'!$C$16,Table13[[#This Row],[AGE (weeks)]]<='Diet input details'!$D$16),"Ration 1",IF(AND(Table13[[#This Row],[AGE (weeks)]]>='Diet input details'!$C$17,Table13[[#This Row],[AGE (weeks)]]<='Diet input details'!$D$17),"Ration 2",IF(AND(Table13[[#This Row],[AGE (weeks)]]>='Diet input details'!$C$18,Table13[[#This Row],[AGE (weeks)]]<='Diet input details'!$D$18),"Ration 3",IF(AND(Table13[[#This Row],[AGE (weeks)]]>='Diet input details'!$C$19,Table13[[#This Row],[AGE (weeks)]]<='Diet input details'!$D$19),"Ration 4",IF(AND(Table13[[#This Row],[AGE (weeks)]]>='Diet input details'!$C$20,Table13[[#This Row],[AGE (weeks)]]<='Diet input details'!$D$20),"Ration 5", "Clear"))))) -> Clear | D46: =(VLOOKUP(Table13[[#This Row],[Ration]],Table22[#All],2,FALSE)) ->  | E46: 223.05 | F46: 1.975 | G46: =Table13[[#This Row],[Bodyweight Mid-point (kg)]]*1000 -> 1975 | H46: 120 | I46: =Table13[[#This Row],[Feed Intake Mid-point (g/bird/day)]]*7 -> 840 | J46: =Table13[[#This Row],[Feed Intake (g/bird/week)]]+J45 -> 29991.5 | K46: 64.55 | L46: =(Table13[[#This Row],[Hen-Housed Eggs Cumulative Mid-point]]*Table13[[#This Row],[Average Egg Weight Mid-point (g/egg)]]) -> 14397.8775
A47: Brown Free-range | B47: 55 | C47: =IF(AND(Table13[[#This Row],[AGE (weeks)]]>='Diet input details'!$C$16,Table13[[#This Row],[AGE (weeks)]]<='Diet input details'!$D$16),"Ration 1",IF(AND(Table13[[#This Row],[AGE (weeks)]]>='Diet input details'!$C$17,Table13[[#This Row],[AGE (weeks)]]<='Diet input details'!$D$17),"Ration 2",IF(AND(Table13[[#This Row],[AGE (weeks)]]>='Diet input details'!$C$18,Table13[[#This Row],[AGE (weeks)]]<='Diet input details'!$D$18),"Ration 3",IF(AND(Table13[[#This Row],[AGE (weeks)]]>='Diet input details'!$C$19,Table13[[#This Row],[AGE (weeks)]]<='Diet input details'!$D$19),"Ration 4",IF(AND(Table13[[#This Row],[AGE (weeks)]]>='Diet input details'!$C$20,Table13[[#This Row],[AGE (weeks)]]<='Diet input details'!$D$20),"Ration 5", "Clear"))))) -> Clear | D47: =(VLOOKUP(Table13[[#This Row],[Ration]],Table22[#All],2,FALSE)) ->  | E47: 229.2 | F47: 1.985 | G47: =Table13[[#This Row],[Bodyweight Mid-point (kg)]]*1000 -> 1985 | H47: 120 | I47: =Table13[[#This Row],[Feed Intake Mid-point (g/bird/day)]]*7 -> 840 | J47: =Table13[[#This Row],[Feed Intake (g/bird/week)]]+J46 -> 30831.5 | K47: 64.6 | L47: =(Table13[[#This Row],[Hen-Housed Eggs Cumulative Mid-point]]*Table13[[#This Row],[Average Egg Weight Mid-point (g/egg)]]) -> 14806.32
A48: Brown Free-range | B48: 56 | C48: =IF(AND(Table13[[#This Row],[AGE (weeks)]]>='Diet input details'!$C$16,Table13[[#This Row],[AGE (weeks)]]<='Diet input details'!$D$16),"Ration 1",IF(AND(Table13[[#This Row],[AGE (weeks)]]>='Diet input details'!$C$17,Table13[[#This Row],[AGE (weeks)]]<='Diet input details'!$D$17),"Ration 2",IF(AND(Table13[[#This Row],[AGE (weeks)]]>='Diet input details'!$C$18,Table13[[#This Row],[AGE (weeks)]]<='Diet input details'!$D$18),"Ration 3",IF(AND(Table13[[#This Row],[AGE (weeks)]]>='Diet input details'!$C$19,Table13[[#This Row],[AGE (weeks)]]<='Diet input details'!$D$19),"Ration 4",IF(AND(Table13[[#This Row],[AGE (weeks)]]>='Diet input details'!$C$20,Table13[[#This Row],[AGE (weeks)]]<='Diet input details'!$D$20),"Ration 5", "Clear"))))) -> Clear | D48: =(VLOOKUP(Table13[[#This Row],[Ration]],Table22[#All],2,FALSE)) ->  | E48: 235.4 | F48: 1.985 | G48: =Table13[[#This Row],[Bodyweight Mid-point (kg)]]*1000 -> 1985 | H48: 120 | I48: =Table13[[#This Row],[Feed Intake Mid-point (g/bird/day)]]*7 -> 840 | J48: =Table13[[#This Row],[Feed Intake (g/bird/week)]]+J47 -> 31671.5 | K48: 64.65 | L48: =(Table13[[#This Row],[Hen-Housed Eggs Cumulative Mid-point]]*Table13[[#This Row],[Average Egg Weight Mid-point (g/egg)]]) -> 15218.61
A49: Brown Free-range | B49: 57 | C49: =IF(AND(Table13[[#This Row],[AGE (weeks)]]>='Diet input details'!$C$16,Table13[[#This Row],[AGE (weeks)]]<='Diet input details'!$D$16),"Ration 1",IF(AND(Table13[[#This Row],[AGE (weeks)]]>='Diet input details'!$C$17,Table13[[#This Row],[AGE (weeks)]]<='Diet input details'!$D$17),"Ration 2",IF(AND(Table13[[#This Row],[AGE (weeks)]]>='Diet input details'!$C$18,Table13[[#This Row],[AGE (weeks)]]<='Diet input details'!$D$18),"Ration 3",IF(AND(Table13[[#This Row],[AGE (weeks)]]>='Diet input details'!$C$19,Table13[[#This Row],[AGE (weeks)]]<='Diet input details'!$D$19),"Ration 4",IF(AND(Table13[[#This Row],[AGE (weeks)]]>='Diet input details'!$C$20,Table13[[#This Row],[AGE (weeks)]]<='Diet input details'!$D$20),"Ration 5", "Clear"))))) -> Clear | D49: =(VLOOKUP(Table13[[#This Row],[Ration]],Table22[#All],2,FALSE)) ->  | E49: 241.5 | F49: 1.985 | G49: =Table13[[#This Row],[Bodyweight Mid-point (kg)]]*1000 -> 1985 | H49: 120 | I49: =Table13[[#This Row],[Feed Intake Mid-point (g/bird/day)]]*7 -> 840 | J49: =Table13[[#This Row],[Feed Intake (g/bird/week)]]+J48 -> 32511.5 | K49: 64.7 | L49: =(Table13[[#This Row],[Hen-Housed Eggs Cumulative Mid-point]]*Table13[[#This Row],[Average Egg Weight Mid-point (g/egg)]]) -> 15625.05
A50: Brown Free-range | B50: 58 | C50: =IF(AND(Table13[[#This Row],[AGE (weeks)]]>='Diet input details'!$C$16,Table13[[#This Row],[AGE (weeks)]]<='Diet input details'!$D$16),"Ration 1",IF(AND(Table13[[#This Row],[AGE (weeks)]]>='Diet input details'!$C$17,Table13[[#This Row],[AGE (weeks)]]<='Diet input details'!$D$17),"Ration 2",IF(AND(Table13[[#This Row],[AGE (weeks)]]>='Diet input details'!$C$18,Table13[[#This Row],[AGE (weeks)]]<='Diet input details'!$D$18),"Ration 3",IF(AND(Table13[[#This Row],[AGE (weeks)]]>='Diet input details'!$C$19,Table13[[#This Row],[AGE (weeks)]]<='Diet input details'!$D$19),"Ration 4",IF(AND(Table13[[#This Row],[AGE (weeks)]]>='Diet input details'!$C$20,Table13[[#This Row],[AGE (weeks)]]<='Diet input details'!$D$20),"Ration 5", "Clear"))))) -> Clear | D50: =(VLOOKUP(Table13[[#This Row],[Ration]],Table22[#All],2,FALSE)) ->  | E50: 247.7 | F50: 1.985 | G50: =Table13[[#This Row],[Bodyweight Mid-point (kg)]]*1000 -> 1985 | H50: 120 | I50: =Table13[[#This Row],[Feed Intake Mid-point (g/bird/day)]]*7 -> 840 | J50: =Table13[[#This Row],[Feed Intake (g/bird/week)]]+J49 -> 33351.5 | K50: 64.7 | L50: =(Table13[[#This Row],[Hen-Housed Eggs Cumulative Mid-point]]*Table13[[#This Row],[Average Egg Weight Mid-point (g/egg)]]) -> 16026.19
A51: Brown Free-range | B51: 59 | C51: =IF(AND(Table13[[#This Row],[AGE (weeks)]]>='Diet input details'!$C$16,Table13[[#This Row],[AGE (weeks)]]<='Diet input details'!$D$16),"Ration 1",IF(AND(Table13[[#This Row],[AGE (weeks)]]>='Diet input details'!$C$17,Table13[[#This Row],[AGE (weeks)]]<='Diet input details'!$D$17),"Ration 2",IF(AND(Table13[[#This Row],[AGE (weeks)]]>='Diet input details'!$C$18,Table13[[#This Row],[AGE (weeks)]]<='Diet input details'!$D$18),"Ration 3",IF(AND(Table13[[#This Row],[AGE (weeks)]]>='Diet input details'!$C$19,Table13[[#This Row],[AGE (weeks)]]<='Diet input details'!$D$19),"Ration 4",IF(AND(Table13[[#This Row],[AGE (weeks)]]>='Diet input details'!$C$20,Table13[[#This Row],[AGE (weeks)]]<='Diet input details'!$D$20),"Ration 5", "Clear"))))) -> Clear | D51: =(VLOOKUP(Table13[[#This Row],[Ration]],Table22[#All],2,FALSE)) ->  | E51: 253.8 | F51: 1.985 | G51: =Table13[[#This Row],[Bodyweight Mid-point (kg)]]*1000 -> 1985 | H51: 120 | I51: =Table13[[#This Row],[Feed Intake Mid-point (g/bird/day)]]*7 -> 840 | J51: =Table13[[#This Row],[Feed Intake (g/bird/week)]]+J50 -> 34191.5 | K51: 64.8 | L51: =(Table13[[#This Row],[Hen-Housed Eggs Cumulative Mid-point]]*Table13[[#This Row],[Average Egg Weight Mid-point (g/egg)]]) -> 16446.24
A52: Brown Free-range | B52: 60 | C52: =IF(AND(Table13[[#This Row],[AGE (weeks)]]>='Diet input details'!$C$16,Table13[[#This Row],[AGE (weeks)]]<='Diet input details'!$D$16),"Ration 1",IF(AND(Table13[[#This Row],[AGE (weeks)]]>='Diet input details'!$C$17,Table13[[#This Row],[AGE (weeks)]]<='Diet input details'!$D$17),"Ration 2",IF(AND(Table13[[#This Row],[AGE (weeks)]]>='Diet input details'!$C$18,Table13[[#This Row],[AGE (weeks)]]<='Diet input details'!$D$18),"Ration 3",IF(AND(Table13[[#This Row],[AGE (weeks)]]>='Diet input details'!$C$19,Table13[[#This Row],[AGE (weeks)]]<='Diet input details'!$D$19),"Ration 4",IF(AND(Table13[[#This Row],[AGE (weeks)]]>='Diet input details'!$C$20,Table13[[#This Row],[AGE (weeks)]]<='Diet input details'!$D$20),"Ration 5", "Clear"))))) -> Clear | D52: =(VLOOKUP(Table13[[#This Row],[Ration]],Table22[#All],2,FALSE)) ->  | E52: 259.8 | F52: 1.985 | G52: =Table13[[#This Row],[Bodyweight Mid-point (kg)]]*1000 -> 1985 | H52: 120 | I52: =Table13[[#This Row],[Feed Intake Mid-point (g/bird/day)]]*7 -> 840 | J52: =Table13[[#This Row],[Feed Intake (g/bird/week)]]+J51 -> 35031.5 | K52: 64.8 | L52: =(Table13[[#This Row],[Hen-Housed Eggs Cumulative Mid-point]]*Table13[[#This Row],[Average Egg Weight Mid-point (g/egg)]]) -> 16835.04
A53: Brown Free-range | B53: 61 | C53: =IF(AND(Table13[[#This Row],[AGE (weeks)]]>='Diet input details'!$C$16,Table13[[#This Row],[AGE (weeks)]]<='Diet input details'!$D$16),"Ration 1",IF(AND(Table13[[#This Row],[AGE (weeks)]]>='Diet input details'!$C$17,Table13[[#This Row],[AGE (weeks)]]<='Diet input details'!$D$17),"Ration 2",IF(AND(Table13[[#This Row],[AGE (weeks)]]>='Diet input details'!$C$18,Table13[[#This Row],[AGE (weeks)]]<='Diet input details'!$D$18),"Ration 3",IF(AND(Table13[[#This Row],[AGE (weeks)]]>='Diet input details'!$C$19,Table13[[#This Row],[AGE (weeks)]]<='Diet input details'!$D$19),"Ration 4",IF(AND(Table13[[#This Row],[AGE (weeks)]]>='Diet input details'!$C$20,Table13[[#This Row],[AGE (weeks)]]<='Diet input details'!$D$20),"Ration 5", "Clear"))))) -> Clear | D53: =(VLOOKUP(Table13[[#This Row],[Ration]],Table22[#All],2,FALSE)) ->  | E53: 265.9 | F53: 1.985 | G53: =Table13[[#This Row],[Bodyweight Mid-point (kg)]]*1000 -> 1985 | H53: 120 | I53: =Table13[[#This Row],[Feed Intake Mid-point (g/bird/day)]]*7 -> 840 | J53: =Table13[[#This Row],[Feed Intake (g/bird/week)]]+J52 -> 35871.5 | K53: 64.85 | L53: =(Table13[[#This Row],[Hen-Housed Eggs Cumulative Mid-point]]*Table13[[#This Row],[Average Egg Weight Mid-point (g/egg)]]) -> 17243.615
A54: Brown Free-range | B54: 62 | C54: =IF(AND(Table13[[#This Row],[AGE (weeks)]]>='Diet input details'!$C$16,Table13[[#This Row],[AGE (weeks)]]<='Diet input details'!$D$16),"Ration 1",IF(AND(Table13[[#This Row],[AGE (weeks)]]>='Diet input details'!$C$17,Table13[[#This Row],[AGE (weeks)]]<='Diet input details'!$D$17),"Ration 2",IF(AND(Table13[[#This Row],[AGE (weeks)]]>='Diet input details'!$C$18,Table13[[#This Row],[AGE (weeks)]]<='Diet input details'!$D$18),"Ration 3",IF(AND(Table13[[#This Row],[AGE (weeks)]]>='Diet input details'!$C$19,Table13[[#This Row],[AGE (weeks)]]<='Diet input details'!$D$19),"Ration 4",IF(AND(Table13[[#This Row],[AGE (weeks)]]>='Diet input details'!$C$20,Table13[[#This Row],[AGE (weeks)]]<='Diet input details'!$D$20),"Ration 5", "Clear"))))) -> Clear | D54: =(VLOOKUP(Table13[[#This Row],[Ration]],Table22[#All],2,FALSE)) ->  | E54: 271.9 | F54: 1.985 | G54: =Table13[[#This Row],[Bodyweight Mid-point (kg)]]*1000 -> 1985 | H54: 120 | I54: =Table13[[#This Row],[Feed Intake Mid-point (g/bird/day)]]*7 -> 840 | J54: =Table13[[#This Row],[Feed Intake (g/bird/week)]]+J53 -> 36711.5 | K54: 64.9 | L54: =(Table13[[#This Row],[Hen-Housed Eggs Cumulative Mid-point]]*Table13[[#This Row],[Average Egg Weight Mid-point (g/egg)]]) -> 17646.31
A55: Brown Free-range | B55: 63 | C55: =IF(AND(Table13[[#This Row],[AGE (weeks)]]>='Diet input details'!$C$16,Table13[[#This Row],[AGE (weeks)]]<='Diet input details'!$D$16),"Ration 1",IF(AND(Table13[[#This Row],[AGE (weeks)]]>='Diet input details'!$C$17,Table13[[#This Row],[AGE (weeks)]]<='Diet input details'!$D$17),"Ration 2",IF(AND(Table13[[#This Row],[AGE (weeks)]]>='Diet input details'!$C$18,Table13[[#This Row],[AGE (weeks)]]<='Diet input details'!$D$18),"Ration 3",IF(AND(Table13[[#This Row],[AGE (weeks)]]>='Diet input details'!$C$19,Table13[[#This Row],[AGE (weeks)]]<='Diet input details'!$D$19),"Ration 4",IF(AND(Table13[[#This Row],[AGE (weeks)]]>='Diet input details'!$C$20,Table13[[#This Row],[AGE (weeks)]]<='Diet input details'!$D$20),"Ration 5", "Clear"))))) -> Clear | D55: =(VLOOKUP(Table13[[#This Row],[Ration]],Table22[#All],2,FALSE)) ->  | E55: 277.9 | F55: 1.985 | G55: =Table13[[#This Row],[Bodyweight Mid-point (kg)]]*1000 -> 1985 | H55: 120 | I55: =Table13[[#This Row],[Feed Intake Mid-point (g/bird/day)]]*7 -> 840 | J55: =Table13[[#This Row],[Feed Intake (g/bird/week)]]+J54 -> 37551.5 | K55: 64.95 | L55: =(Table13[[#This Row],[Hen-Housed Eggs Cumulative Mid-point]]*Table13[[#This Row],[Average Egg Weight Mid-point (g/egg)]]) -> 18049.605
A56: Brown Free-range | B56: 64 | C56: =IF(AND(Table13[[#This Row],[AGE (weeks)]]>='Diet input details'!$C$16,Table13[[#This Row],[AGE (weeks)]]<='Diet input details'!$D$16),"Ration 1",IF(AND(Table13[[#This Row],[AGE (weeks)]]>='Diet input details'!$C$17,Table13[[#This Row],[AGE (weeks)]]<='Diet input details'!$D$17),"Ration 2",IF(AND(Table13[[#This Row],[AGE (weeks)]]>='Diet input details'!$C$18,Table13[[#This Row],[AGE (weeks)]]<='Diet input details'!$D$18),"Ration 3",IF(AND(Table13[[#This Row],[AGE (weeks)]]>='Diet input details'!$C$19,Table13[[#This Row],[AGE (weeks)]]<='Diet input details'!$D$19),"Ration 4",IF(AND(Table13[[#This Row],[AGE (weeks)]]>='Diet input details'!$C$20,Table13[[#This Row],[AGE (weeks)]]<='Diet input details'!$D$20),"Ration 5", "Clear"))))) -> Clear | D56: =(VLOOKUP(Table13[[#This Row],[Ration]],Table22[#All],2,FALSE)) ->  | E56: 283.9 | F56: 1.985 | G56: =Table13[[#This Row],[Bodyweight Mid-point (kg)]]*1000 -> 1985 | H56: 120 | I56: =Table13[[#This Row],[Feed Intake Mid-point (g/bird/day)]]*7 -> 840 | J56: =Table13[[#This Row],[Feed Intake (g/bird/week)]]+J55 -> 38391.5 | K56: 64.95 | L56: =(Table13[[#This Row],[Hen-Housed Eggs Cumulative Mid-point]]*Table13[[#This Row],[Average Egg Weight Mid-point (g/egg)]]) -> 18439.305
A57: Brown Free-range | B57: 65 | C57: =IF(AND(Table13[[#This Row],[AGE (weeks)]]>='Diet input details'!$C$16,Table13[[#This Row],[AGE (weeks)]]<='Diet input details'!$D$16),"Ration 1",IF(AND(Table13[[#This Row],[AGE (weeks)]]>='Diet input details'!$C$17,Table13[[#This Row],[AGE (weeks)]]<='Diet input details'!$D$17),"Ration 2",IF(AND(Table13[[#This Row],[AGE (weeks)]]>='Diet input details'!$C$18,Table13[[#This Row],[AGE (weeks)]]<='Diet input details'!$D$18),"Ration 3",IF(AND(Table13[[#This Row],[AGE (weeks)]]>='Diet input details'!$C$19,Table13[[#This Row],[AGE (weeks)]]<='Diet input details'!$D$19),"Ration 4",IF(AND(Table13[[#This Row],[AGE (weeks)]]>='Diet input details'!$C$20,Table13[[#This Row],[AGE (weeks)]]<='Diet input details'!$D$20),"Ration 5", "Clear"))))) -> Clear | D57: =(VLOOKUP(Table13[[#This Row],[Ration]],Table22[#All],2,FALSE)) ->  | E57: 289.85 | F57: 1.985 | G57: =Table13[[#This Row],[Bodyweight Mid-point (kg)]]*1000 -> 1985 | H57: 120 | I57: =Table13[[#This Row],[Feed Intake Mid-point (g/bird/day)]]*7 -> 840 | J57: =Table13[[#This Row],[Feed Intake (g/bird/week)]]+J56 -> 39231.5 | K57: 65.05 | L57: =(Table13[[#This Row],[Hen-Housed Eggs Cumulative Mid-point]]*Table13[[#This Row],[Average Egg Weight Mid-point (g/egg)]]) -> 18854.7425
A58: Brown Free-range | B58: 66 | C58: =IF(AND(Table13[[#This Row],[AGE (weeks)]]>='Diet input details'!$C$16,Table13[[#This Row],[AGE (weeks)]]<='Diet input details'!$D$16),"Ration 1",IF(AND(Table13[[#This Row],[AGE (weeks)]]>='Diet input details'!$C$17,Table13[[#This Row],[AGE (weeks)]]<='Diet input details'!$D$17),"Ration 2",IF(AND(Table13[[#This Row],[AGE (weeks)]]>='Diet input details'!$C$18,Table13[[#This Row],[AGE (weeks)]]<='Diet input details'!$D$18),"Ration 3",IF(AND(Table13[[#This Row],[AGE (weeks)]]>='Diet input details'!$C$19,Table13[[#This Row],[AGE (weeks)]]<='Diet input details'!$D$19),"Ration 4",IF(AND(Table13[[#This Row],[AGE (weeks)]]>='Diet input details'!$C$20,Table13[[#This Row],[AGE (weeks)]]<='Diet input details'!$D$20),"Ration 5", "Clear"))))) -> Clear | D58: =(VLOOKUP(Table13[[#This Row],[Ration]],Table22[#All],2,FALSE)) ->  | E58: 295.75 | F58: 1.985 | G58: =Table13[[#This Row],[Bodyweight Mid-point (kg)]]*1000 -> 1985 | H58: 120 | I58: =Table13[[#This Row],[Feed Intake Mid-point (g/bird/day)]]*7 -> 840 | J58: =Table13[[#This Row],[Feed Intake (g/bird/week)]]+J57 -> 40071.5 | K58: 65.05 | L58: =(Table13[[#This Row],[Hen-Housed Eggs Cumulative Mid-point]]*Table13[[#This Row],[Average Egg Weight Mid-point (g/egg)]]) -> 19238.5375
A59: Brown Free-range | B59: 67 | C59: =IF(AND(Table13[[#This Row],[AGE (weeks)]]>='Diet input details'!$C$16,Table13[[#This Row],[AGE (weeks)]]<='Diet input details'!$D$16),"Ration 1",IF(AND(Table13[[#This Row],[AGE (weeks)]]>='Diet input details'!$C$17,Table13[[#This Row],[AGE (weeks)]]<='Diet input details'!$D$17),"Ration 2",IF(AND(Table13[[#This Row],[AGE (weeks)]]>='Diet input details'!$C$18,Table13[[#This Row],[AGE (weeks)]]<='Diet input details'!$D$18),"Ration 3",IF(AND(Table13[[#This Row],[AGE (weeks)]]>='Diet input details'!$C$19,Table13[[#This Row],[AGE (weeks)]]<='Diet input details'!$D$19),"Ration 4",IF(AND(Table13[[#This Row],[AGE (weeks)]]>='Diet input details'!$C$20,Table13[[#This Row],[AGE (weeks)]]<='Diet input details'!$D$20),"Ration 5", "Clear"))))) -> Clear | D59: =(VLOOKUP(Table13[[#This Row],[Ration]],Table22[#All],2,FALSE)) ->  | E59: 301.65 | F59: 1.985 | G59: =Table13[[#This Row],[Bodyweight Mid-point (kg)]]*1000 -> 1985 | H59: 120 | I59: =Table13[[#This Row],[Feed Intake Mid-point (g/bird/day)]]*7 -> 840 | J59: =Table13[[#This Row],[Feed Intake (g/bird/week)]]+J58 -> 40911.5 | K59: 65.1 | L59: =(Table13[[#This Row],[Hen-Housed Eggs Cumulative Mid-point]]*Table13[[#This Row],[Average Egg Weight Mid-point (g/egg)]]) -> 19637.415
A60: Brown Free-range | B60: 68 | C60: =IF(AND(Table13[[#This Row],[AGE (weeks)]]>='Diet input details'!$C$16,Table13[[#This Row],[AGE (weeks)]]<='Diet input details'!$D$16),"Ration 1",IF(AND(Table13[[#This Row],[AGE (weeks)]]>='Diet input details'!$C$17,Table13[[#This Row],[AGE (weeks)]]<='Diet input details'!$D$17),"Ration 2",IF(AND(Table13[[#This Row],[AGE (weeks)]]>='Diet input details'!$C$18,Table13[[#This Row],[AGE (weeks)]]<='Diet input details'!$D$18),"Ration 3",IF(AND(Table13[[#This Row],[AGE (weeks)]]>='Diet input details'!$C$19,Table13[[#This Row],[AGE (weeks)]]<='Diet input details'!$D$19),"Ration 4",IF(AND(Table13[[#This Row],[AGE (weeks)]]>='Diet input details'!$C$20,Table13[[#This Row],[AGE (weeks)]]<='Diet input details'!$D$20),"Ration 5", "Clear"))))) -> Clear | D60: =(VLOOKUP(Table13[[#This Row],[Ration]],Table22[#All],2,FALSE)) ->  | E60: 307.5 | F60: 1.985 | G60: =Table13[[#This Row],[Bodyweight Mid-point (kg)]]*1000 -> 1985 | H60: 120 | I60: =Table13[[#This Row],[Feed Intake Mid-point (g/bird/day)]]*7 -> 840 | J60: =Table13[[#This Row],[Feed Intake (g/bird/week)]]+J59 -> 41751.5 | K60: 65.1 | L60: =(Table13[[#This Row],[Hen-Housed Eggs Cumulative Mid-point]]*Table13[[#This Row],[Average Egg Weight Mid-point (g/egg)]]) -> 20018.25
A61: Brown Free-range | B61: 69 | C61: =IF(AND(Table13[[#This Row],[AGE (weeks)]]>='Diet input details'!$C$16,Table13[[#This Row],[AGE (weeks)]]<='Diet input details'!$D$16),"Ration 1",IF(AND(Table13[[#This Row],[AGE (weeks)]]>='Diet input details'!$C$17,Table13[[#This Row],[AGE (weeks)]]<='Diet input details'!$D$17),"Ration 2",IF(AND(Table13[[#This Row],[AGE (weeks)]]>='Diet input details'!$C$18,Table13[[#This Row],[AGE (weeks)]]<='Diet input details'!$D$18),"Ration 3",IF(AND(Table13[[#This Row],[AGE (weeks)]]>='Diet input details'!$C$19,Table13[[#This Row],[AGE (weeks)]]<='Diet input details'!$D$19),"Ration 4",IF(AND(Table13[[#This Row],[AGE (weeks)]]>='Diet input details'!$C$20,Table13[[#This Row],[AGE (weeks)]]<='Diet input details'!$D$20),"Ration 5", "Clear"))))) -> Clear | D61: =(VLOOKUP(Table13[[#This Row],[Ration]],Table22[#All],2,FALSE)) ->  | E61: 313.35 | F61: 1.985 | G61: =Table13[[#This Row],[Bodyweight Mid-point (kg)]]*1000 -> 1985 | H61: 120 | I61: =Table13[[#This Row],[Feed Intake Mid-point (g/bird/day)]]*7 -> 840 | J61: =Table13[[#This Row],[Feed Intake (g/bird/week)]]+J60 -> 42591.5 | K61: 65.1 | L61: =(Table13[[#This Row],[Hen-Housed Eggs Cumulative Mid-point]]*Table13[[#This Row],[Average Egg Weight Mid-point (g/egg)]]) -> 20399.085
A62: Brown Free-range | B62: 70 | C62: =IF(AND(Table13[[#This Row],[AGE (weeks)]]>='Diet input details'!$C$16,Table13[[#This Row],[AGE (weeks)]]<='Diet input details'!$D$16),"Ration 1",IF(AND(Table13[[#This Row],[AGE (weeks)]]>='Diet input details'!$C$17,Table13[[#This Row],[AGE (weeks)]]<='Diet input details'!$D$17),"Ration 2",IF(AND(Table13[[#This Row],[AGE (weeks)]]>='Diet input details'!$C$18,Table13[[#This Row],[AGE (weeks)]]<='Diet input details'!$D$18),"Ration 3",IF(AND(Table13[[#This Row],[AGE (weeks)]]>='Diet input details'!$C$19,Table13[[#This Row],[AGE (weeks)]]<='Diet input details'!$D$19),"Ration 4",IF(AND(Table13[[#This Row],[AGE (weeks)]]>='Diet input details'!$C$20,Table13[[#This Row],[AGE (weeks)]]<='Diet input details'!$D$20),"Ration 5", "Clear"))))) -> Clear | D62: =(VLOOKUP(Table13[[#This Row],[Ration]],Table22[#All],2,FALSE)) ->  | E62: 319.1 | F62: 1.985 | G62: =Table13[[#This Row],[Bodyweight Mid-point (kg)]]*1000 -> 1985 | H62: 120 | I62: =Table13[[#This Row],[Feed Intake Mid-point (g/bird/day)]]*7 -> 840 | J62: =Table13[[#This Row],[Feed Intake (g/bird/week)]]+J61 -> 43431.5 | K62: 65.2 | L62: =(Table13[[#This Row],[Hen-Housed Eggs Cumulative Mid-point]]*Table13[[#This Row],[Average Egg Weight Mid-point (g/egg)]]) -> 20805.32
A63: Brown Free-range | B63: 71 | C63: =IF(AND(Table13[[#This Row],[AGE (weeks)]]>='Diet input details'!$C$16,Table13[[#This Row],[AGE (weeks)]]<='Diet input details'!$D$16),"Ration 1",IF(AND(Table13[[#This Row],[AGE (weeks)]]>='Diet input details'!$C$17,Table13[[#This Row],[AGE (weeks)]]<='Diet input details'!$D$17),"Ration 2",IF(AND(Table13[[#This Row],[AGE (weeks)]]>='Diet input details'!$C$18,Table13[[#This Row],[AGE (weeks)]]<='Diet input details'!$D$18),"Ration 3",IF(AND(Table13[[#This Row],[AGE (weeks)]]>='Diet input details'!$C$19,Table13[[#This Row],[AGE (weeks)]]<='Diet input details'!$D$19),"Ration 4",IF(AND(Table13[[#This Row],[AGE (weeks)]]>='Diet input details'!$C$20,Table13[[#This Row],[AGE (weeks)]]<='Diet input details'!$D$20),"Ration 5", "Clear"))))) -> Clear | D63: =(VLOOKUP(Table13[[#This Row],[Ration]],Table22[#All],2,FALSE)) ->  | E63: 324.85 | F63: 1.985 | G63: =Table13[[#This Row],[Bodyweight Mid-point (kg)]]*1000 -> 1985 | H63: 120 | I63: =Table13[[#This Row],[Feed Intake Mid-point (g/bird/day)]]*7 -> 840 | J63: =Table13[[#This Row],[Feed Intake (g/bird/week)]]+J62 -> 44271.5 | K63: 65.2 | L63: =(Table13[[#This Row],[Hen-Housed Eggs Cumulative Mid-point]]*Table13[[#This Row],[Average Egg Weight Mid-point (g/egg)]]) -> 21180.22
A64: Brown Free-range | B64: 72 | C64: =IF(AND(Table13[[#This Row],[AGE (weeks)]]>='Diet input details'!$C$16,Table13[[#This Row],[AGE (weeks)]]<='Diet input details'!$D$16),"Ration 1",IF(AND(Table13[[#This Row],[AGE (weeks)]]>='Diet input details'!$C$17,Table13[[#This Row],[AGE (weeks)]]<='Diet input details'!$D$17),"Ration 2",IF(AND(Table13[[#This Row],[AGE (weeks)]]>='Diet input details'!$C$18,Table13[[#This Row],[AGE (weeks)]]<='Diet input details'!$D$18),"Ration 3",IF(AND(Table13[[#This Row],[AGE (weeks)]]>='Diet input details'!$C$19,Table13[[#This Row],[AGE (weeks)]]<='Diet input details'!$D$19),"Ration 4",IF(AND(Table13[[#This Row],[AGE (weeks)]]>='Diet input details'!$C$20,Table13[[#This Row],[AGE (weeks)]]<='Diet input details'!$D$20),"Ration 5", "Clear"))))) -> Clear | D64: =(VLOOKUP(Table13[[#This Row],[Ration]],Table22[#All],2,FALSE)) ->  | E64: 330.5 | F64: 1.985 | G64: =Table13[[#This Row],[Bodyweight Mid-point (kg)]]*1000 -> 1985 | H64: 120 | I64: =Table13[[#This Row],[Feed Intake Mid-point (g/bird/day)]]*7 -> 840 | J64: =Table13[[#This Row],[Feed Intake (g/bird/week)]]+J63 -> 45111.5 | K64: 65.25 | L64: =(Table13[[#This Row],[Hen-Housed Eggs Cumulative Mid-point]]*Table13[[#This Row],[Average Egg Weight Mid-point (g/egg)]]) -> 21565.125
A65: Brown Free-range | B65: 73 | C65: =IF(AND(Table13[[#This Row],[AGE (weeks)]]>='Diet input details'!$C$16,Table13[[#This Row],[AGE (weeks)]]<='Diet input details'!$D$16),"Ration 1",IF(AND(Table13[[#This Row],[AGE (weeks)]]>='Diet input details'!$C$17,Table13[[#This Row],[AGE (weeks)]]<='Diet input details'!$D$17),"Ration 2",IF(AND(Table13[[#This Row],[AGE (weeks)]]>='Diet input details'!$C$18,Table13[[#This Row],[AGE (weeks)]]<='Diet input details'!$D$18),"Ration 3",IF(AND(Table13[[#This Row],[AGE (weeks)]]>='Diet input details'!$C$19,Table13[[#This Row],[AGE (weeks)]]<='Diet input details'!$D$19),"Ration 4",IF(AND(Table13[[#This Row],[AGE (weeks)]]>='Diet input details'!$C$20,Table13[[#This Row],[AGE (weeks)]]<='Diet input details'!$D$20),"Ration 5", "Clear"))))) -> Clear | D65: =(VLOOKUP(Table13[[#This Row],[Ration]],Table22[#All],2,FALSE)) ->  | E65: 336.15 | F65: 1.985 | G65: =Table13[[#This Row],[Bodyweight Mid-point (kg)]]*1000 -> 1985 | H65: 120 | I65: =Table13[[#This Row],[Feed Intake Mid-point (g/bird/day)]]*7 -> 840 | J65: =Table13[[#This Row],[Feed Intake (g/bird/week)]]+J64 -> 45951.5 | K65: 65.25 | L65: =(Table13[[#This Row],[Hen-Housed Eggs Cumulative Mid-point]]*Table13[[#This Row],[Average Egg Weight Mid-point (g/egg)]]) -> 21933.7875
A66: Brown Free-range | B66: 74 | C66: =IF(AND(Table13[[#This Row],[AGE (weeks)]]>='Diet input details'!$C$16,Table13[[#This Row],[AGE (weeks)]]<='Diet input details'!$D$16),"Ration 1",IF(AND(Table13[[#This Row],[AGE (weeks)]]>='Diet input details'!$C$17,Table13[[#This Row],[AGE (weeks)]]<='Diet input details'!$D$17),"Ration 2",IF(AND(Table13[[#This Row],[AGE (weeks)]]>='Diet input details'!$C$18,Table13[[#This Row],[AGE (weeks)]]<='Diet input details'!$D$18),"Ration 3",IF(AND(Table13[[#This Row],[AGE (weeks)]]>='Diet input details'!$C$19,Table13[[#This Row],[AGE (weeks)]]<='Diet input details'!$D$19),"Ration 4",IF(AND(Table13[[#This Row],[AGE (weeks)]]>='Diet input details'!$C$20,Table13[[#This Row],[AGE (weeks)]]<='Diet input details'!$D$20),"Ration 5", "Clear"))))) -> Clear | D66: =(VLOOKUP(Table13[[#This Row],[Ration]],Table22[#All],2,FALSE)) ->  | E66: 341.7 | F66: 1.985 | G66: =Table13[[#This Row],[Bodyweight Mid-point (kg)]]*1000 -> 1985 | H66: 120 | I66: =Table13[[#This Row],[Feed Intake Mid-point (g/bird/day)]]*7 -> 840 | J66: =Table13[[#This Row],[Feed Intake (g/bird/week)]]+J65 -> 46791.5 | K66: 65.3 | L66: =(Table13[[#This Row],[Hen-Housed Eggs Cumulative Mid-point]]*Table13[[#This Row],[Average Egg Weight Mid-point (g/egg)]]) -> 22313.01
A67: Brown Free-range | B67: 75 | C67: =IF(AND(Table13[[#This Row],[AGE (weeks)]]>='Diet input details'!$C$16,Table13[[#This Row],[AGE (weeks)]]<='Diet input details'!$D$16),"Ration 1",IF(AND(Table13[[#This Row],[AGE (weeks)]]>='Diet input details'!$C$17,Table13[[#This Row],[AGE (weeks)]]<='Diet input details'!$D$17),"Ration 2",IF(AND(Table13[[#This Row],[AGE (weeks)]]>='Diet input details'!$C$18,Table13[[#This Row],[AGE (weeks)]]<='Diet input details'!$D$18),"Ration 3",IF(AND(Table13[[#This Row],[AGE (weeks)]]>='Diet input details'!$C$19,Table13[[#This Row],[AGE (weeks)]]<='Diet input details'!$D$19),"Ration 4",IF(AND(Table13[[#This Row],[AGE (weeks)]]>='Diet input details'!$C$20,Table13[[#This Row],[AGE (weeks)]]<='Diet input details'!$D$20),"Ration 5", "Clear"))))) -> Clear | D67: =(VLOOKUP(Table13[[#This Row],[Ration]],Table22[#All],2,FALSE)) ->  | E67: 347.25 | F67: 1.985 | G67: =Table13[[#This Row],[Bodyweight Mid-point (kg)]]*1000 -> 1985 | H67: 120 | I67: =Table13[[#This Row],[Feed Intake Mid-point (g/bird/day)]]*7 -> 840 | J67: =Table13[[#This Row],[Feed Intake (g/bird/week)]]+J66 -> 47631.5 | K67: 65.35 | L67: =(Table13[[#This Row],[Hen-Housed Eggs Cumulative Mid-point]]*Table13[[#This Row],[Average Egg Weight Mid-point (g/egg)]]) -> 22692.7875
A68: Brown Free-range | B68: 76 | C68: =IF(AND(Table13[[#This Row],[AGE (weeks)]]>='Diet input details'!$C$16,Table13[[#This Row],[AGE (weeks)]]<='Diet input details'!$D$16),"Ration 1",IF(AND(Table13[[#This Row],[AGE (weeks)]]>='Diet input details'!$C$17,Table13[[#This Row],[AGE (weeks)]]<='Diet input details'!$D$17),"Ration 2",IF(AND(Table13[[#This Row],[AGE (weeks)]]>='Diet input details'!$C$18,Table13[[#This Row],[AGE (weeks)]]<='Diet input details'!$D$18),"Ration 3",IF(AND(Table13[[#This Row],[AGE (weeks)]]>='Diet input details'!$C$19,Table13[[#This Row],[AGE (weeks)]]<='Diet input details'!$D$19),"Ration 4",IF(AND(Table13[[#This Row],[AGE (weeks)]]>='Diet input details'!$C$20,Table13[[#This Row],[AGE (weeks)]]<='Diet input details'!$D$20),"Ration 5", "Clear"))))) -> Clear | D68: =(VLOOKUP(Table13[[#This Row],[Ration]],Table22[#All],2,FALSE)) ->  | E68: 352.7 | F68: 1.985 | G68: =Table13[[#This Row],[Bodyweight Mid-point (kg)]]*1000 -> 1985 | H68: 120 | I68: =Table13[[#This Row],[Feed Intake Mid-point (g/bird/day)]]*7 -> 840 | J68: =Table13[[#This Row],[Feed Intake (g/bird/week)]]+J67 -> 48471.5 | K68: 65.4 | L68: =(Table13[[#This Row],[Hen-Housed Eggs Cumulative Mid-point]]*Table13[[#This Row],[Average Egg Weight Mid-point (g/egg)]]) -> 23066.58
A69: Brown Free-range | B69: 77 | C69: =IF(AND(Table13[[#This Row],[AGE (weeks)]]>='Diet input details'!$C$16,Table13[[#This Row],[AGE (weeks)]]<='Diet input details'!$D$16),"Ration 1",IF(AND(Table13[[#This Row],[AGE (weeks)]]>='Diet input details'!$C$17,Table13[[#This Row],[AGE (weeks)]]<='Diet input details'!$D$17),"Ration 2",IF(AND(Table13[[#This Row],[AGE (weeks)]]>='Diet input details'!$C$18,Table13[[#This Row],[AGE (weeks)]]<='Diet input details'!$D$18),"Ration 3",IF(AND(Table13[[#This Row],[AGE (weeks)]]>='Diet input details'!$C$19,Table13[[#This Row],[AGE (weeks)]]<='Diet input details'!$D$19),"Ration 4",IF(AND(Table13[[#This Row],[AGE (weeks)]]>='Diet input details'!$C$20,Table13[[#This Row],[AGE (weeks)]]<='Diet input details'!$D$20),"Ration 5", "Clear"))))) -> Clear | D69: =(VLOOKUP(Table13[[#This Row],[Ration]],Table22[#All],2,FALSE)) ->  | E69: 358.15 | F69: 1.985 | G69: =Table13[[#This Row],[Bodyweight Mid-point (kg)]]*1000 -> 1985 | H69: 120 | I69: =Table13[[#This Row],[Feed Intake Mid-point (g/bird/day)]]*7 -> 840 | J69: =Table13[[#This Row],[Feed Intake (g/bird/week)]]+J68 -> 49311.5 | K69: 65.4 | L69: =(Table13[[#This Row],[Hen-Housed Eggs Cumulative Mid-point]]*Table13[[#This Row],[Average Egg Weight Mid-point (g/egg)]]) -> 23423.01
A70: Brown Free-range | B70: 78 | C70: =IF(AND(Table13[[#This Row],[AGE (weeks)]]>='Diet input details'!$C$16,Table13[[#This Row],[AGE (weeks)]]<='Diet input details'!$D$16),"Ration 1",IF(AND(Table13[[#This Row],[AGE (weeks)]]>='Diet input details'!$C$17,Table13[[#This Row],[AGE (weeks)]]<='Diet input details'!$D$17),"Ration 2",IF(AND(Table13[[#This Row],[AGE (weeks)]]>='Diet input details'!$C$18,Table13[[#This Row],[AGE (weeks)]]<='Diet input details'!$D$18),"Ration 3",IF(AND(Table13[[#This Row],[AGE (weeks)]]>='Diet input details'!$C$19,Table13[[#This Row],[AGE (weeks)]]<='Diet input details'!$D$19),"Ration 4",IF(AND(Table13[[#This Row],[AGE (weeks)]]>='Diet input details'!$C$20,Table13[[#This Row],[AGE (weeks)]]<='Diet input details'!$D$20),"Ration 5", "Clear"))))) -> Clear | D70: =(VLOOKUP(Table13[[#This Row],[Ration]],Table22[#All],2,FALSE)) ->  | E70: 363.5 | F70: 1.985 | G70: =Table13[[#This Row],[Bodyweight Mid-point (kg)]]*1000 -> 1985 | H70: 120 | I70: =Table13[[#This Row],[Feed Intake Mid-point (g/bird/day)]]*7 -> 840 | J70: =Table13[[#This Row],[Feed Intake (g/bird/week)]]+J69 -> 50151.5 | K70: 65.45 | L70: =(Table13[[#This Row],[Hen-Housed Eggs Cumulative Mid-point]]*Table13[[#This Row],[Average Egg Weight Mid-point (g/egg)]]) -> 23791.075
A71: Brown Free-range | B71: 79 | C71: =IF(AND(Table13[[#This Row],[AGE (weeks)]]>='Diet input details'!$C$16,Table13[[#This Row],[AGE (weeks)]]<='Diet input details'!$D$16),"Ration 1",IF(AND(Table13[[#This Row],[AGE (weeks)]]>='Diet input details'!$C$17,Table13[[#This Row],[AGE (weeks)]]<='Diet input details'!$D$17),"Ration 2",IF(AND(Table13[[#This Row],[AGE (weeks)]]>='Diet input details'!$C$18,Table13[[#This Row],[AGE (weeks)]]<='Diet input details'!$D$18),"Ration 3",IF(AND(Table13[[#This Row],[AGE (weeks)]]>='Diet input details'!$C$19,Table13[[#This Row],[AGE (weeks)]]<='Diet input details'!$D$19),"Ration 4",IF(AND(Table13[[#This Row],[AGE (weeks)]]>='Diet input details'!$C$20,Table13[[#This Row],[AGE (weeks)]]<='Diet input details'!$D$20),"Ration 5", "Clear"))))) -> Clear | D71: =(VLOOKUP(Table13[[#This Row],[Ration]],Table22[#All],2,FALSE)) ->  | E71: 368.85 | F71: 1.985 | G71: =Table13[[#This Row],[Bodyweight Mid-point (kg)]]*1000 -> 1985 | H71: 120 | I71: =Table13[[#This Row],[Feed Intake Mid-point (g/bird/day)]]*7 -> 840 | J71: =Table13[[#This Row],[Feed Intake (g/bird/week)]]+J70 -> 50991.5 | K71: 65.45 | L71: =(Table13[[#This Row],[Hen-Housed Eggs Cumulative Mid-point]]*Table13[[#This Row],[Average Egg Weight Mid-point (g/egg)]]) -> 24141.2325
A72: Brown Free-range | B72: 80 | C72: =IF(AND(Table13[[#This Row],[AGE (weeks)]]>='Diet input details'!$C$16,Table13[[#This Row],[AGE (weeks)]]<='Diet input details'!$D$16),"Ration 1",IF(AND(Table13[[#This Row],[AGE (weeks)]]>='Diet input details'!$C$17,Table13[[#This Row],[AGE (weeks)]]<='Diet input details'!$D$17),"Ration 2",IF(AND(Table13[[#This Row],[AGE (weeks)]]>='Diet input details'!$C$18,Table13[[#This Row],[AGE (weeks)]]<='Diet input details'!$D$18),"Ration 3",IF(AND(Table13[[#This Row],[AGE (weeks)]]>='Diet input details'!$C$19,Table13[[#This Row],[AGE (weeks)]]<='Diet input details'!$D$19),"Ration 4",IF(AND(Table13[[#This Row],[AGE (weeks)]]>='Diet input details'!$C$20,Table13[[#This Row],[AGE (weeks)]]<='Diet input details'!$D$20),"Ration 5", "Clear"))))) -> Clear | D72: =(VLOOKUP(Table13[[#This Row],[Ration]],Table22[#All],2,FALSE)) ->  | E72: 374.1 | F72: 1.985 | G72: =Table13[[#This Row],[Bodyweight Mid-point (kg)]]*1000 -> 1985 | H72: 120 | I72: =Table13[[#This Row],[Feed Intake Mid-point (g/bird/day)]]*7 -> 840 | J72: =Table13[[#This Row],[Feed Intake (g/bird/week)]]+J71 -> 51831.5 | K72: 65.5 | L72: =(Table13[[#This Row],[Hen-Housed Eggs Cumulative Mid-point]]*Table13[[#This Row],[Average Egg Weight Mid-point (g/egg)]]) -> 24503.55
A73: Brown Free-range | B73: 81 | C73: =IF(AND(Table13[[#This Row],[AGE (weeks)]]>='Diet input details'!$C$16,Table13[[#This Row],[AGE (weeks)]]<='Diet input details'!$D$16),"Ration 1",IF(AND(Table13[[#This Row],[AGE (weeks)]]>='Diet input details'!$C$17,Table13[[#This Row],[AGE (weeks)]]<='Diet input details'!$D$17),"Ration 2",IF(AND(Table13[[#This Row],[AGE (weeks)]]>='Diet input details'!$C$18,Table13[[#This Row],[AGE (weeks)]]<='Diet input details'!$D$18),"Ration 3",IF(AND(Table13[[#This Row],[AGE (weeks)]]>='Diet input details'!$C$19,Table13[[#This Row],[AGE (weeks)]]<='Diet input details'!$D$19),"Ration 4",IF(AND(Table13[[#This Row],[AGE (weeks)]]>='Diet input details'!$C$20,Table13[[#This Row],[AGE (weeks)]]<='Diet input details'!$D$20),"Ration 5", "Clear"))))) -> Clear | D73: =(VLOOKUP(Table13[[#This Row],[Ration]],Table22[#All],2,FALSE)) ->  | E73: 379.35 | F73: 1.985 | G73: =Table13[[#This Row],[Bodyweight Mid-point (kg)]]*1000 -> 1985 | H73: 120 | I73: =Table13[[#This Row],[Feed Intake Mid-point (g/bird/day)]]*7 -> 840 | J73: =Table13[[#This Row],[Feed Intake (g/bird/week)]]+J72 -> 52671.5 | K73: 65.5 | L73: =(Table13[[#This Row],[Hen-Housed Eggs Cumulative Mid-point]]*Table13[[#This Row],[Average Egg Weight Mid-point (g/egg)]]) -> 24847.425
A74: Brown Free-range | B74: 82 | C74: =IF(AND(Table13[[#This Row],[AGE (weeks)]]>='Diet input details'!$C$16,Table13[[#This Row],[AGE (weeks)]]<='Diet input details'!$D$16),"Ration 1",IF(AND(Table13[[#This Row],[AGE (weeks)]]>='Diet input details'!$C$17,Table13[[#This Row],[AGE (weeks)]]<='Diet input details'!$D$17),"Ration 2",IF(AND(Table13[[#This Row],[AGE (weeks)]]>='Diet input details'!$C$18,Table13[[#This Row],[AGE (weeks)]]<='Diet input details'!$D$18),"Ration 3",IF(AND(Table13[[#This Row],[AGE (weeks)]]>='Diet input details'!$C$19,Table13[[#This Row],[AGE (weeks)]]<='Diet input details'!$D$19),"Ration 4",IF(AND(Table13[[#This Row],[AGE (weeks)]]>='Diet input details'!$C$20,Table13[[#This Row],[AGE (weeks)]]<='Diet input details'!$D$20),"Ration 5", "Clear"))))) -> Clear | D74: =(VLOOKUP(Table13[[#This Row],[Ration]],Table22[#All],2,FALSE)) ->  | E74: 384.5 | F74: 1.985 | G74: =Table13[[#This Row],[Bodyweight Mid-point (kg)]]*1000 -> 1985 | H74: 120 | I74: =Table13[[#This Row],[Feed Intake Mid-point (g/bird/day)]]*7 -> 840 | J74: =Table13[[#This Row],[Feed Intake (g/bird/week)]]+J73 -> 53511.5 | K74: 65.6 | L74: =(Table13[[#This Row],[Hen-Housed Eggs Cumulative Mid-point]]*Table13[[#This Row],[Average Egg Weight Mid-point (g/egg)]]) -> 25223.2
A75: Brown Free-range | B75: 83 | C75: =IF(AND(Table13[[#This Row],[AGE (weeks)]]>='Diet input details'!$C$16,Table13[[#This Row],[AGE (weeks)]]<='Diet input details'!$D$16),"Ration 1",IF(AND(Table13[[#This Row],[AGE (weeks)]]>='Diet input details'!$C$17,Table13[[#This Row],[AGE (weeks)]]<='Diet input details'!$D$17),"Ration 2",IF(AND(Table13[[#This Row],[AGE (weeks)]]>='Diet input details'!$C$18,Table13[[#This Row],[AGE (weeks)]]<='Diet input details'!$D$18),"Ration 3",IF(AND(Table13[[#This Row],[AGE (weeks)]]>='Diet input details'!$C$19,Table13[[#This Row],[AGE (weeks)]]<='Diet input details'!$D$19),"Ration 4",IF(AND(Table13[[#This Row],[AGE (weeks)]]>='Diet input details'!$C$20,Table13[[#This Row],[AGE (weeks)]]<='Diet input details'!$D$20),"Ration 5", "Clear"))))) -> Clear | D75: =(VLOOKUP(Table13[[#This Row],[Ration]],Table22[#All],2,FALSE)) ->  | E75: 389.7 | F75: 1.985 | G75: =Table13[[#This Row],[Bodyweight Mid-point (kg)]]*1000 -> 1985 | H75: 120 | I75: =Table13[[#This Row],[Feed Intake Mid-point (g/bird/day)]]*7 -> 840 | J75: =Table13[[#This Row],[Feed Intake (g/bird/week)]]+J74 -> 54351.5 | K75: 65.6 | L75: =(Table13[[#This Row],[Hen-Housed Eggs Cumulative Mid-point]]*Table13[[#This Row],[Average Egg Weight Mid-point (g/egg)]]) -> 25564.32
A76: Brown Free-range | B76: 84 | C76: =IF(AND(Table13[[#This Row],[AGE (weeks)]]>='Diet input details'!$C$16,Table13[[#This Row],[AGE (weeks)]]<='Diet input details'!$D$16),"Ration 1",IF(AND(Table13[[#This Row],[AGE (weeks)]]>='Diet input details'!$C$17,Table13[[#This Row],[AGE (weeks)]]<='Diet input details'!$D$17),"Ration 2",IF(AND(Table13[[#This Row],[AGE (weeks)]]>='Diet input details'!$C$18,Table13[[#This Row],[AGE (weeks)]]<='Diet input details'!$D$18),"Ration 3",IF(AND(Table13[[#This Row],[AGE (weeks)]]>='Diet input details'!$C$19,Table13[[#This Row],[AGE (weeks)]]<='Diet input details'!$D$19),"Ration 4",IF(AND(Table13[[#This Row],[AGE (weeks)]]>='Diet input details'!$C$20,Table13[[#This Row],[AGE (weeks)]]<='Diet input details'!$D$20),"Ration 5", "Clear"))))) -> Clear | D76: =(VLOOKUP(Table13[[#This Row],[Ration]],Table22[#All],2,FALSE)) ->  | E76: 394.75 | F76: 1.985 | G76: =Table13[[#This Row],[Bodyweight Mid-point (kg)]]*1000 -> 1985 | H76: 120 | I76: =Table13[[#This Row],[Feed Intake Mid-point (g/bird/day)]]*7 -> 840 | J76: =Table13[[#This Row],[Feed Intake (g/bird/week)]]+J75 -> 55191.5 | K76: 65.65 | L76: =(Table13[[#This Row],[Hen-Housed Eggs Cumulative Mid-point]]*Table13[[#This Row],[Average Egg Weight Mid-point (g/egg)]]) -> 25915.3375
A77: Brown Free-range | B77: 85 | C77: =IF(AND(Table13[[#This Row],[AGE (weeks)]]>='Diet input details'!$C$16,Table13[[#This Row],[AGE (weeks)]]<='Diet input details'!$D$16),"Ration 1",IF(AND(Table13[[#This Row],[AGE (weeks)]]>='Diet input details'!$C$17,Table13[[#This Row],[AGE (weeks)]]<='Diet input details'!$D$17),"Ration 2",IF(AND(Table13[[#This Row],[AGE (weeks)]]>='Diet input details'!$C$18,Table13[[#This Row],[AGE (weeks)]]<='Diet input details'!$D$18),"Ration 3",IF(AND(Table13[[#This Row],[AGE (weeks)]]>='Diet input details'!$C$19,Table13[[#This Row],[AGE (weeks)]]<='Diet input details'!$D$19),"Ration 4",IF(AND(Table13[[#This Row],[AGE (weeks)]]>='Diet input details'!$C$20,Table13[[#This Row],[AGE (weeks)]]<='Diet input details'!$D$20),"Ration 5", "Clear"))))) -> Clear | D77: =(VLOOKUP(Table13[[#This Row],[Ration]],Table22[#All],2,FALSE)) ->  | E77: 399.85 | F77: 1.985 | G77: =Table13[[#This Row],[Bodyweight Mid-point (kg)]]*1000 -> 1985 | H77: 120 | I77: =Table13[[#This Row],[Feed Intake Mid-point (g/bird/day)]]*7 -> 840 | J77: =Table13[[#This Row],[Feed Intake (g/bird/week)]]+J76 -> 56031.5 | K77: 65.65 | L77: =(Table13[[#This Row],[Hen-Housed Eggs Cumulative Mid-point]]*Table13[[#This Row],[Average Egg Weight Mid-point (g/egg)]]) -> 26250.1525
A78: Brown Free-range | B78: 86 | C78: =IF(AND(Table13[[#This Row],[AGE (weeks)]]>='Diet input details'!$C$16,Table13[[#This Row],[AGE (weeks)]]<='Diet input details'!$D$16),"Ration 1",IF(AND(Table13[[#This Row],[AGE (weeks)]]>='Diet input details'!$C$17,Table13[[#This Row],[AGE (weeks)]]<='Diet input details'!$D$17),"Ration 2",IF(AND(Table13[[#This Row],[AGE (weeks)]]>='Diet input details'!$C$18,Table13[[#This Row],[AGE (weeks)]]<='Diet input details'!$D$18),"Ration 3",IF(AND(Table13[[#This Row],[AGE (weeks)]]>='Diet input details'!$C$19,Table13[[#This Row],[AGE (weeks)]]<='Diet input details'!$D$19),"Ration 4",IF(AND(Table13[[#This Row],[AGE (weeks)]]>='Diet input details'!$C$20,Table13[[#This Row],[AGE (weeks)]]<='Diet input details'!$D$20),"Ration 5", "Clear"))))) -> Clear | D78: =(VLOOKUP(Table13[[#This Row],[Ration]],Table22[#All],2,FALSE)) ->  | E78: 404.9 | F78: 1.985 | G78: =Table13[[#This Row],[Bodyweight Mid-point (kg)]]*1000 -> 1985 | H78: 120 | I78: =Table13[[#This Row],[Feed Intake Mid-point (g/bird/day)]]*7 -> 840 | J78: =Table13[[#This Row],[Feed Intake (g/bird/week)]]+J77 -> 56871.5 | K78: 65.7 | L78: =(Table13[[#This Row],[Hen-Housed Eggs Cumulative Mid-point]]*Table13[[#This Row],[Average Egg Weight Mid-point (g/egg)]]) -> 26601.93
A79: Brown Free-range | B79: 87 | C79: =IF(AND(Table13[[#This Row],[AGE (weeks)]]>='Diet input details'!$C$16,Table13[[#This Row],[AGE (weeks)]]<='Diet input details'!$D$16),"Ration 1",IF(AND(Table13[[#This Row],[AGE (weeks)]]>='Diet input details'!$C$17,Table13[[#This Row],[AGE (weeks)]]<='Diet input details'!$D$17),"Ration 2",IF(AND(Table13[[#This Row],[AGE (weeks)]]>='Diet input details'!$C$18,Table13[[#This Row],[AGE (weeks)]]<='Diet input details'!$D$18),"Ration 3",IF(AND(Table13[[#This Row],[AGE (weeks)]]>='Diet input details'!$C$19,Table13[[#This Row],[AGE (weeks)]]<='Diet input details'!$D$19),"Ration 4",IF(AND(Table13[[#This Row],[AGE (weeks)]]>='Diet input details'!$C$20,Table13[[#This Row],[AGE (weeks)]]<='Diet input details'!$D$20),"Ration 5", "Clear"))))) -> Clear | D79: =(VLOOKUP(Table13[[#This Row],[Ration]],Table22[#All],2,FALSE)) ->  | E79: 409.85 | F79: 1.985 | G79: =Table13[[#This Row],[Bodyweight Mid-point (kg)]]*1000 -> 1985 | H79: 120 | I79: =Table13[[#This Row],[Feed Intake Mid-point (g/bird/day)]]*7 -> 840 | J79: =Table13[[#This Row],[Feed Intake (g/bird/week)]]+J78 -> 57711.5 | K79: 65.7 | L79: =(Table13[[#This Row],[Hen-Housed Eggs Cumulative Mid-point]]*Table13[[#This Row],[Average Egg Weight Mid-point (g/egg)]]) -> 26927.145
A80: Brown Free-range | B80: 88 | C80: =IF(AND(Table13[[#This Row],[AGE (weeks)]]>='Diet input details'!$C$16,Table13[[#This Row],[AGE (weeks)]]<='Diet input details'!$D$16),"Ration 1",IF(AND(Table13[[#This Row],[AGE (weeks)]]>='Diet input details'!$C$17,Table13[[#This Row],[AGE (weeks)]]<='Diet input details'!$D$17),"Ration 2",IF(AND(Table13[[#This Row],[AGE (weeks)]]>='Diet input details'!$C$18,Table13[[#This Row],[AGE (weeks)]]<='Diet input details'!$D$18),"Ration 3",IF(AND(Table13[[#This Row],[AGE (weeks)]]>='Diet input details'!$C$19,Table13[[#This Row],[AGE (weeks)]]<='Diet input details'!$D$19),"Ration 4",IF(AND(Table13[[#This Row],[AGE (weeks)]]>='Diet input details'!$C$20,Table13[[#This Row],[AGE (weeks)]]<='Diet input details'!$D$20),"Ration 5", "Clear"))))) -> Clear | D80: =(VLOOKUP(Table13[[#This Row],[Ration]],Table22[#All],2,FALSE)) ->  | E80: 414.8 | F80: 1.985 | G80: =Table13[[#This Row],[Bodyweight Mid-point (kg)]]*1000 -> 1985 | H80: 120 | I80: =Table13[[#This Row],[Feed Intake Mid-point (g/bird/day)]]*7 -> 840 | J80: =Table13[[#This Row],[Feed Intake (g/bird/week)]]+J79 -> 58551.5 | K80: 65.75 | L80: =(Table13[[#This Row],[Hen-Housed Eggs Cumulative Mid-point]]*Table13[[#This Row],[Average Egg Weight Mid-point (g/egg)]]) -> 27273.1
A81: Brown Free-range | B81: 89 | C81: =IF(AND(Table13[[#This Row],[AGE (weeks)]]>='Diet input details'!$C$16,Table13[[#This Row],[AGE (weeks)]]<='Diet input details'!$D$16),"Ration 1",IF(AND(Table13[[#This Row],[AGE (weeks)]]>='Diet input details'!$C$17,Table13[[#This Row],[AGE (weeks)]]<='Diet input details'!$D$17),"Ration 2",IF(AND(Table13[[#This Row],[AGE (weeks)]]>='Diet input details'!$C$18,Table13[[#This Row],[AGE (weeks)]]<='Diet input details'!$D$18),"Ration 3",IF(AND(Table13[[#This Row],[AGE (weeks)]]>='Diet input details'!$C$19,Table13[[#This Row],[AGE (weeks)]]<='Diet input details'!$D$19),"Ration 4",IF(AND(Table13[[#This Row],[AGE (weeks)]]>='Diet input details'!$C$20,Table13[[#This Row],[AGE (weeks)]]<='Diet input details'!$D$20),"Ration 5", "Clear"))))) -> Clear | D81: =(VLOOKUP(Table13[[#This Row],[Ration]],Table22[#All],2,FALSE)) ->  | E81: 419.7 | F81: 1.985 | G81: =Table13[[#This Row],[Bodyweight Mid-point (kg)]]*1000 -> 1985 | H81: 120 | I81: =Table13[[#This Row],[Feed Intake Mid-point (g/bird/day)]]*7 -> 840 | J81: =Table13[[#This Row],[Feed Intake (g/bird/week)]]+J80 -> 59391.5 | K81: 65.75 | L81: =(Table13[[#This Row],[Hen-Housed Eggs Cumulative Mid-point]]*Table13[[#This Row],[Average Egg Weight Mid-point (g/egg)]]) -> 27595.275
A82: Brown Free-range | B82: 90 | C82: =IF(AND(Table13[[#This Row],[AGE (weeks)]]>='Diet input details'!$C$16,Table13[[#This Row],[AGE (weeks)]]<='Diet input details'!$D$16),"Ration 1",IF(AND(Table13[[#This Row],[AGE (weeks)]]>='Diet input details'!$C$17,Table13[[#This Row],[AGE (weeks)]]<='Diet input details'!$D$17),"Ration 2",IF(AND(Table13[[#This Row],[AGE (weeks)]]>='Diet input details'!$C$18,Table13[[#This Row],[AGE (weeks)]]<='Diet input details'!$D$18),"Ration 3",IF(AND(Table13[[#This Row],[AGE (weeks)]]>='Diet input details'!$C$19,Table13[[#This Row],[AGE (weeks)]]<='Diet input details'!$D$19),"Ration 4",IF(AND(Table13[[#This Row],[AGE (weeks)]]>='Diet input details'!$C$20,Table13[[#This Row],[AGE (weeks)]]<='Diet input details'!$D$20),"Ration 5", "Clear"))))) -> Clear | D82: =(VLOOKUP(Table13[[#This Row],[Ration]],Table22[#All],2,FALSE)) ->  | E82: 424.6 | F82: 1.985 | G82: =Table13[[#This Row],[Bodyweight Mid-point (kg)]]*1000 -> 1985 | H82: 120 | I82: =Table13[[#This Row],[Feed Intake Mid-point (g/bird/day)]]*7 -> 840 | J82: =Table13[[#This Row],[Feed Intake (g/bird/week)]]+J81 -> 60231.5 | K82: 65.8 | L82: =(Table13[[#This Row],[Hen-Housed Eggs Cumulative Mid-point]]*Table13[[#This Row],[Average Egg Weight Mid-point (g/egg)]]) -> 27938.68
A83: Brown Free-range | B83: 91 | C83: =IF(AND(Table13[[#This Row],[AGE (weeks)]]>='Diet input details'!$C$16,Table13[[#This Row],[AGE (weeks)]]<='Diet input details'!$D$16),"Ration 1",IF(AND(Table13[[#This Row],[AGE (weeks)]]>='Diet input details'!$C$17,Table13[[#This Row],[AGE (weeks)]]<='Diet input details'!$D$17),"Ration 2",IF(AND(Table13[[#This Row],[AGE (weeks)]]>='Diet input details'!$C$18,Table13[[#This Row],[AGE (weeks)]]<='Diet input details'!$D$18),"Ration 3",IF(AND(Table13[[#This Row],[AGE (weeks)]]>='Diet input details'!$C$19,Table13[[#This Row],[AGE (weeks)]]<='Diet input details'!$D$19),"Ration 4",IF(AND(Table13[[#This Row],[AGE (weeks)]]>='Diet input details'!$C$20,Table13[[#This Row],[AGE (weeks)]]<='Diet input details'!$D$20),"Ration 5", "Clear"))))) -> Clear | D83: =(VLOOKUP(Table13[[#This Row],[Ration]],Table22[#All],2,FALSE)) ->  | E83: 429.4 | F83: 1.995 | G83: =Table13[[#This Row],[Bodyweight Mid-point (kg)]]*1000 -> 1995 | H83: 120 | I83: =Table13[[#This Row],[Feed Intake Mid-point (g/bird/day)]]*7 -> 840 | J83: =Table13[[#This Row],[Feed Intake (g/bird/week)]]+J82 -> 61071.5 | K83: 65.85 | L83: =(Table13[[#This Row],[Hen-Housed Eggs Cumulative Mid-point]]*Table13[[#This Row],[Average Egg Weight Mid-point (g/egg)]]) -> 28275.99
A84: Brown Free-range | B84: 92 | C84: =IF(AND(Table13[[#This Row],[AGE (weeks)]]>='Diet input details'!$C$16,Table13[[#This Row],[AGE (weeks)]]<='Diet input details'!$D$16),"Ration 1",IF(AND(Table13[[#This Row],[AGE (weeks)]]>='Diet input details'!$C$17,Table13[[#This Row],[AGE (weeks)]]<='Diet input details'!$D$17),"Ration 2",IF(AND(Table13[[#This Row],[AGE (weeks)]]>='Diet input details'!$C$18,Table13[[#This Row],[AGE (weeks)]]<='Diet input details'!$D$18),"Ration 3",IF(AND(Table13[[#This Row],[AGE (weeks)]]>='Diet input details'!$C$19,Table13[[#This Row],[AGE (weeks)]]<='Diet input details'!$D$19),"Ration 4",IF(AND(Table13[[#This Row],[AGE (weeks)]]>='Diet input details'!$C$20,Table13[[#This Row],[AGE (weeks)]]<='Diet input details'!$D$20),"Ration 5", "Clear"))))) -> Clear | D84: =(VLOOKUP(Table13[[#This Row],[Ration]],Table22[#All],2,FALSE)) ->  | E84: 434.2 | F84: 1.995 | G84: =Table13[[#This Row],[Bodyweight Mid-point (kg)]]*1000 -> 1995 | H84: 120 | I84: =Table13[[#This Row],[Feed Intake Mid-point (g/bird/day)]]*7 -> 840 | J84: =Table13[[#This Row],[Feed Intake (g/bird/week)]]+J83 -> 61911.5 | K84: 65.9 | L84: =(Table13[[#This Row],[Hen-Housed Eggs Cumulative Mid-point]]*Table13[[#This Row],[Average Egg Weight Mid-point (g/egg)]]) -> 28613.78
A85: Brown Free-range | B85: 93 | C85: =IF(AND(Table13[[#This Row],[AGE (weeks)]]>='Diet input details'!$C$16,Table13[[#This Row],[AGE (weeks)]]<='Diet input details'!$D$16),"Ration 1",IF(AND(Table13[[#This Row],[AGE (weeks)]]>='Diet input details'!$C$17,Table13[[#This Row],[AGE (weeks)]]<='Diet input details'!$D$17),"Ration 2",IF(AND(Table13[[#This Row],[AGE (weeks)]]>='Diet input details'!$C$18,Table13[[#This Row],[AGE (weeks)]]<='Diet input details'!$D$18),"Ration 3",IF(AND(Table13[[#This Row],[AGE (weeks)]]>='Diet input details'!$C$19,Table13[[#This Row],[AGE (weeks)]]<='Diet input details'!$D$19),"Ration 4",IF(AND(Table13[[#This Row],[AGE (weeks)]]>='Diet input details'!$C$20,Table13[[#This Row],[AGE (weeks)]]<='Diet input details'!$D$20),"Ration 5", "Clear"))))) -> Clear | D85: =(VLOOKUP(Table13[[#This Row],[Ration]],Table22[#All],2,FALSE)) ->  | E85: 438.95 | F85: 1.995 | G85: =Table13[[#This Row],[Bodyweight Mid-point (kg)]]*1000 -> 1995 | H85: 120 | I85: =Table13[[#This Row],[Feed Intake Mid-point (g/bird/day)]]*7 -> 840 | J85: =Table13[[#This Row],[Feed Intake (g/bird/week)]]+J84 -> 62751.5 | K85: 65.9 | L85: =(Table13[[#This Row],[Hen-Housed Eggs Cumulative Mid-point]]*Table13[[#This Row],[Average Egg Weight Mid-point (g/egg)]]) -> 28926.805
A86: Brown Free-range | B86: 94 | C86: =IF(AND(Table13[[#This Row],[AGE (weeks)]]>='Diet input details'!$C$16,Table13[[#This Row],[AGE (weeks)]]<='Diet input details'!$D$16),"Ration 1",IF(AND(Table13[[#This Row],[AGE (weeks)]]>='Diet input details'!$C$17,Table13[[#This Row],[AGE (weeks)]]<='Diet input details'!$D$17),"Ration 2",IF(AND(Table13[[#This Row],[AGE (weeks)]]>='Diet input details'!$C$18,Table13[[#This Row],[AGE (weeks)]]<='Diet input details'!$D$18),"Ration 3",IF(AND(Table13[[#This Row],[AGE (weeks)]]>='Diet input details'!$C$19,Table13[[#This Row],[AGE (weeks)]]<='Diet input details'!$D$19),"Ration 4",IF(AND(Table13[[#This Row],[AGE (weeks)]]>='Diet input details'!$C$20,Table13[[#This Row],[AGE (weeks)]]<='Diet input details'!$D$20),"Ration 5", "Clear"))))) -> Clear | D86: =(VLOOKUP(Table13[[#This Row],[Ration]],Table22[#All],2,FALSE)) ->  | E86: 443.7 | F86: 1.995 | G86: =Table13[[#This Row],[Bodyweight Mid-point (kg)]]*1000 -> 1995 | H86: 120 | I86: =Table13[[#This Row],[Feed Intake Mid-point (g/bird/day)]]*7 -> 840 | J86: =Table13[[#This Row],[Feed Intake (g/bird/week)]]+J85 -> 63591.5 | K86: 65.95 | L86: =(Table13[[#This Row],[Hen-Housed Eggs Cumulative Mid-point]]*Table13[[#This Row],[Average Egg Weight Mid-point (g/egg)]]) -> 29262.015
A87: Brown Free-range | B87: 95 | C87: =IF(AND(Table13[[#This Row],[AGE (weeks)]]>='Diet input details'!$C$16,Table13[[#This Row],[AGE (weeks)]]<='Diet input details'!$D$16),"Ration 1",IF(AND(Table13[[#This Row],[AGE (weeks)]]>='Diet input details'!$C$17,Table13[[#This Row],[AGE (weeks)]]<='Diet input details'!$D$17),"Ration 2",IF(AND(Table13[[#This Row],[AGE (weeks)]]>='Diet input details'!$C$18,Table13[[#This Row],[AGE (weeks)]]<='Diet input details'!$D$18),"Ration 3",IF(AND(Table13[[#This Row],[AGE (weeks)]]>='Diet input details'!$C$19,Table13[[#This Row],[AGE (weeks)]]<='Diet input details'!$D$19),"Ration 4",IF(AND(Table13[[#This Row],[AGE (weeks)]]>='Diet input details'!$C$20,Table13[[#This Row],[AGE (weeks)]]<='Diet input details'!$D$20),"Ration 5", "Clear"))))) -> Clear | D87: =(VLOOKUP(Table13[[#This Row],[Ration]],Table22[#All],2,FALSE)) ->  | E87: 448.4 | F87: 1.995 | G87: =Table13[[#This Row],[Bodyweight Mid-point (kg)]]*1000 -> 1995 | H87: 120 | I87: =Table13[[#This Row],[Feed Intake Mid-point (g/bird/day)]]*7 -> 840 | J87: =Table13[[#This Row],[Feed Intake (g/bird/week)]]+J86 -> 64431.5 | K87: 65.95 | L87: =(Table13[[#This Row],[Hen-Housed Eggs Cumulative Mid-point]]*Table13[[#This Row],[Average Egg Weight Mid-point (g/egg)]]) -> 29571.98
A88: Brown Free-range | B88: 96 | C88: =IF(AND(Table13[[#This Row],[AGE (weeks)]]>='Diet input details'!$C$16,Table13[[#This Row],[AGE (weeks)]]<='Diet input details'!$D$16),"Ration 1",IF(AND(Table13[[#This Row],[AGE (weeks)]]>='Diet input details'!$C$17,Table13[[#This Row],[AGE (weeks)]]<='Diet input details'!$D$17),"Ration 2",IF(AND(Table13[[#This Row],[AGE (weeks)]]>='Diet input details'!$C$18,Table13[[#This Row],[AGE (weeks)]]<='Diet input details'!$D$18),"Ration 3",IF(AND(Table13[[#This Row],[AGE (weeks)]]>='Diet input details'!$C$19,Table13[[#This Row],[AGE (weeks)]]<='Diet input details'!$D$19),"Ration 4",IF(AND(Table13[[#This Row],[AGE (weeks)]]>='Diet input details'!$C$20,Table13[[#This Row],[AGE (weeks)]]<='Diet input details'!$D$20),"Ration 5", "Clear"))))) -> Clear | D88: =(VLOOKUP(Table13[[#This Row],[Ration]],Table22[#All],2,FALSE)) ->  | E88: 453.1 | F88: 1.995 | G88: =Table13[[#This Row],[Bodyweight Mid-point (kg)]]*1000 -> 1995 | H88: 120 | I88: =Table13[[#This Row],[Feed Intake Mid-point (g/bird/day)]]*7 -> 840 | J88: =Table13[[#This Row],[Feed Intake (g/bird/week)]]+J87 -> 65271.5 | K88: 66 | L88: =(Table13[[#This Row],[Hen-Housed Eggs Cumulative Mid-point]]*Table13[[#This Row],[Average Egg Weight Mid-point (g/egg)]]) -> 29904.6
A89: Brown Free-range | B89: 97 | C89: =IF(AND(Table13[[#This Row],[AGE (weeks)]]>='Diet input details'!$C$16,Table13[[#This Row],[AGE (weeks)]]<='Diet input details'!$D$16),"Ration 1",IF(AND(Table13[[#This Row],[AGE (weeks)]]>='Diet input details'!$C$17,Table13[[#This Row],[AGE (weeks)]]<='Diet input details'!$D$17),"Ration 2",IF(AND(Table13[[#This Row],[AGE (weeks)]]>='Diet input details'!$C$18,Table13[[#This Row],[AGE (weeks)]]<='Diet input details'!$D$18),"Ration 3",IF(AND(Table13[[#This Row],[AGE (weeks)]]>='Diet input details'!$C$19,Table13[[#This Row],[AGE (weeks)]]<='Diet input details'!$D$19),"Ration 4",IF(AND(Table13[[#This Row],[AGE (weeks)]]>='Diet input details'!$C$20,Table13[[#This Row],[AGE (weeks)]]<='Diet input details'!$D$20),"Ration 5", "Clear"))))) -> Clear | D89: =(VLOOKUP(Table13[[#This Row],[Ration]],Table22[#All],2,FALSE)) ->  | E89: 457.75 | F89: 1.995 | G89: =Table13[[#This Row],[Bodyweight Mid-point (kg)]]*1000 -> 1995 | H89: 120 | I89: =Table13[[#This Row],[Feed Intake Mid-point (g/bird/day)]]*7 -> 840 | J89: =Table13[[#This Row],[Feed Intake (g/bird/week)]]+J88 -> 66111.5 | K89: 66 | L89: =(Table13[[#This Row],[Hen-Housed Eggs Cumulative Mid-point]]*Table13[[#This Row],[Average Egg Weight Mid-point (g/egg)]]) -> 30211.5
A90: Brown Free-range | B90: 98 | C90: =IF(AND(Table13[[#This Row],[AGE (weeks)]]>='Diet input details'!$C$16,Table13[[#This Row],[AGE (weeks)]]<='Diet input details'!$D$16),"Ration 1",IF(AND(Table13[[#This Row],[AGE (weeks)]]>='Diet input details'!$C$17,Table13[[#This Row],[AGE (weeks)]]<='Diet input details'!$D$17),"Ration 2",IF(AND(Table13[[#This Row],[AGE (weeks)]]>='Diet input details'!$C$18,Table13[[#This Row],[AGE (weeks)]]<='Diet input details'!$D$18),"Ration 3",IF(AND(Table13[[#This Row],[AGE (weeks)]]>='Diet input details'!$C$19,Table13[[#This Row],[AGE (weeks)]]<='Diet input details'!$D$19),"Ration 4",IF(AND(Table13[[#This Row],[AGE (weeks)]]>='Diet input details'!$C$20,Table13[[#This Row],[AGE (weeks)]]<='Diet input details'!$D$20),"Ration 5", "Clear"))))) -> Clear | D90: =(VLOOKUP(Table13[[#This Row],[Ration]],Table22[#All],2,FALSE)) ->  | E90: 462.3 | F90: 1.995 | G90: =Table13[[#This Row],[Bodyweight Mid-point (kg)]]*1000 -> 1995 | H90: 120 | I90: =Table13[[#This Row],[Feed Intake Mid-point (g/bird/day)]]*7 -> 840 | J90: =Table13[[#This Row],[Feed Intake (g/bird/week)]]+J89 -> 66951.5 | K90: 66.05 | L90: =(Table13[[#This Row],[Hen-Housed Eggs Cumulative Mid-point]]*Table13[[#This Row],[Average Egg Weight Mid-point (g/egg)]]) -> 30534.915
A91: Brown Free-range | B91: 99 | C91: =IF(AND(Table13[[#This Row],[AGE (weeks)]]>='Diet input details'!$C$16,Table13[[#This Row],[AGE (weeks)]]<='Diet input details'!$D$16),"Ration 1",IF(AND(Table13[[#This Row],[AGE (weeks)]]>='Diet input details'!$C$17,Table13[[#This Row],[AGE (weeks)]]<='Diet input details'!$D$17),"Ration 2",IF(AND(Table13[[#This Row],[AGE (weeks)]]>='Diet input details'!$C$18,Table13[[#This Row],[AGE (weeks)]]<='Diet input details'!$D$18),"Ration 3",IF(AND(Table13[[#This Row],[AGE (weeks)]]>='Diet input details'!$C$19,Table13[[#This Row],[AGE (weeks)]]<='Diet input details'!$D$19),"Ration 4",IF(AND(Table13[[#This Row],[AGE (weeks)]]>='Diet input details'!$C$20,Table13[[#This Row],[AGE (weeks)]]<='Diet input details'!$D$20),"Ration 5", "Clear"))))) -> Clear | D91: =(VLOOKUP(Table13[[#This Row],[Ration]],Table22[#All],2,FALSE)) ->  | E91: 466.95 | F91: 1.995 | G91: =Table13[[#This Row],[Bodyweight Mid-point (kg)]]*1000 -> 1995 | H91: 120 | I91: =Table13[[#This Row],[Feed Intake Mid-point (g/bird/day)]]*7 -> 840 | J91: =Table13[[#This Row],[Feed Intake (g/bird/week)]]+J90 -> 67791.5 | K91: 66.05 | L91: =(Table13[[#This Row],[Hen-Housed Eggs Cumulative Mid-point]]*Table13[[#This Row],[Average Egg Weight Mid-point (g/egg)]]) -> 30842.0475
A92: Brown Free-range | B92: 100 | C92: =IF(AND(Table13[[#This Row],[AGE (weeks)]]>='Diet input details'!$C$16,Table13[[#This Row],[AGE (weeks)]]<='Diet input details'!$D$16),"Ration 1",IF(AND(Table13[[#This Row],[AGE (weeks)]]>='Diet input details'!$C$17,Table13[[#This Row],[AGE (weeks)]]<='Diet input details'!$D$17),"Ration 2",IF(AND(Table13[[#This Row],[AGE (weeks)]]>='Diet input details'!$C$18,Table13[[#This Row],[AGE (weeks)]]<='Diet input details'!$D$18),"Ration 3",IF(AND(Table13[[#This Row],[AGE (weeks)]]>='Diet input details'!$C$19,Table13[[#This Row],[AGE (weeks)]]<='Diet input details'!$D$19),"Ration 4",IF(AND(Table13[[#This Row],[AGE (weeks)]]>='Diet input details'!$C$20,Table13[[#This Row],[AGE (weeks)]]<='Diet input details'!$D$20),"Ration 5", "Clear"))))) -> Clear | D92: =(VLOOKUP(Table13[[#This Row],[Ration]],Table22[#All],2,FALSE)) ->  | E92: 471.5 | F92: 1.995 | G92: =Table13[[#This Row],[Bodyweight Mid-point (kg)]]*1000 -> 1995 | H92: 120 | I92: =Table13[[#This Row],[Feed Intake Mid-point (g/bird/day)]]*7 -> 840 | J92: =Table13[[#This Row],[Feed Intake (g/bird/week)]]+J91 -> 68631.5 | K92: 66.1 | L92: =(Table13[[#This Row],[Hen-Housed Eggs Cumulative Mid-point]]*Table13[[#This Row],[Average Egg Weight Mid-point (g/egg)]]) -> 31166.15
A93: Brown Colony | B93: 16 | C93: =IF(AND(Table13[[#This Row],[AGE (weeks)]]>='Diet input details'!$C$16,Table13[[#This Row],[AGE (weeks)]]<='Diet input details'!$D$16),"Ration 1",IF(AND(Table13[[#This Row],[AGE (weeks)]]>='Diet input details'!$C$17,Table13[[#This Row],[AGE (weeks)]]<='Diet input details'!$D$17),"Ration 2",IF(AND(Table13[[#This Row],[AGE (weeks)]]>='Diet input details'!$C$18,Table13[[#This Row],[AGE (weeks)]]<='Diet input details'!$D$18),"Ration 3",IF(AND(Table13[[#This Row],[AGE (weeks)]]>='Diet input details'!$C$19,Table13[[#This Row],[AGE (weeks)]]<='Diet input details'!$D$19),"Ration 4",IF(AND(Table13[[#This Row],[AGE (weeks)]]>='Diet input details'!$C$20,Table13[[#This Row],[AGE (weeks)]]<='Diet input details'!$D$20),"Ration 5", "Clear"))))) -> Clear | D93: =(VLOOKUP(Table13[[#This Row],[Ration]],Table22[#All],2,FALSE)) ->  | E93: 0.65 | F93: 1.52 | G93: =Table13[[#This Row],[Bodyweight Mid-point (kg)]]*1000 -> 1520 | H93: 85 | I93: =Table13[[#This Row],[Feed Intake Mid-point (g/bird/day)]]*7 -> 595 | J93: =Table13[[#This Row],[Feed Intake (g/bird/week)]] -> 595 | K93: 49.4 | L93: =(Table13[[#This Row],[Hen-Housed Eggs Cumulative Mid-point]]*Table13[[#This Row],[Average Egg Weight Mid-point (g/egg)]]) -> 32.11
A94: Brown Colony | B94: 17 | C94: =IF(AND(Table13[[#This Row],[AGE (weeks)]]>='Diet input details'!$C$16,Table13[[#This Row],[AGE (weeks)]]<='Diet input details'!$D$16),"Ration 1",IF(AND(Table13[[#This Row],[AGE (weeks)]]>='Diet input details'!$C$17,Table13[[#This Row],[AGE (weeks)]]<='Diet input details'!$D$17),"Ration 2",IF(AND(Table13[[#This Row],[AGE (weeks)]]>='Diet input details'!$C$18,Table13[[#This Row],[AGE (weeks)]]<='Diet input details'!$D$18),"Ration 3",IF(AND(Table13[[#This Row],[AGE (weeks)]]>='Diet input details'!$C$19,Table13[[#This Row],[AGE (weeks)]]<='Diet input details'!$D$19),"Ration 4",IF(AND(Table13[[#This Row],[AGE (weeks)]]>='Diet input details'!$C$20,Table13[[#This Row],[AGE (weeks)]]<='Diet input details'!$D$20),"Ration 5", "Clear"))))) -> Clear | D94: =(VLOOKUP(Table13[[#This Row],[Ration]],Table22[#All],2,FALSE)) ->  | E94: 0.65 | F94: 1.52 | G94: =Table13[[#This Row],[Bodyweight Mid-point (kg)]]*1000 -> 1520 | H94: 85 | I94: =Table13[[#This Row],[Feed Intake Mid-point (g/bird/day)]]*7 -> 595 | J94: =Table13[[#This Row],[Feed Intake (g/bird/week)]]+J93 -> 1190 | K94: 49.4 | L94: =(Table13[[#This Row],[Hen-Housed Eggs Cumulative Mid-point]]*Table13[[#This Row],[Average Egg Weight Mid-point (g/egg)]]) -> 32.11
A95: Brown Colony | B95: 18 | C95: =IF(AND(Table13[[#This Row],[AGE (weeks)]]>='Diet input details'!$C$16,Table13[[#This Row],[AGE (weeks)]]<='Diet input details'!$D$16),"Ration 1",IF(AND(Table13[[#This Row],[AGE (weeks)]]>='Diet input details'!$C$17,Table13[[#This Row],[AGE (weeks)]]<='Diet input details'!$D$17),"Ration 2",IF(AND(Table13[[#This Row],[AGE (weeks)]]>='Diet input details'!$C$18,Table13[[#This Row],[AGE (weeks)]]<='Diet input details'!$D$18),"Ration 3",IF(AND(Table13[[#This Row],[AGE (weeks)]]>='Diet input details'!$C$19,Table13[[#This Row],[AGE (weeks)]]<='Diet input details'!$D$19),"Ration 4",IF(AND(Table13[[#This Row],[AGE (weeks)]]>='Diet input details'!$C$20,Table13[[#This Row],[AGE (weeks)]]<='Diet input details'!$D$20),"Ration 5", "Clear"))))) -> Clear | D95: =(VLOOKUP(Table13[[#This Row],[Ration]],Table22[#All],2,FALSE)) ->  | E95: 0.65 | F95: 1.52 | G95: =Table13[[#This Row],[Bodyweight Mid-point (kg)]]*1000 -> 1520 | H95: 85 | I95: =Table13[[#This Row],[Feed Intake Mid-point (g/bird/day)]]*7 -> 595 | J95: =Table13[[#This Row],[Feed Intake (g/bird/week)]]+J94 -> 1785 | K95: 49.4 | L95: =(Table13[[#This Row],[Hen-Housed Eggs Cumulative Mid-point]]*Table13[[#This Row],[Average Egg Weight Mid-point (g/egg)]]) -> 32.11
A96: Brown Colony | B96: 19 | C96: =IF(AND(Table13[[#This Row],[AGE (weeks)]]>='Diet input details'!$C$16,Table13[[#This Row],[AGE (weeks)]]<='Diet input details'!$D$16),"Ration 1",IF(AND(Table13[[#This Row],[AGE (weeks)]]>='Diet input details'!$C$17,Table13[[#This Row],[AGE (weeks)]]<='Diet input details'!$D$17),"Ration 2",IF(AND(Table13[[#This Row],[AGE (weeks)]]>='Diet input details'!$C$18,Table13[[#This Row],[AGE (weeks)]]<='Diet input details'!$D$18),"Ration 3",IF(AND(Table13[[#This Row],[AGE (weeks)]]>='Diet input details'!$C$19,Table13[[#This Row],[AGE (weeks)]]<='Diet input details'!$D$19),"Ration 4",IF(AND(Table13[[#This Row],[AGE (weeks)]]>='Diet input details'!$C$20,Table13[[#This Row],[AGE (weeks)]]<='Diet input details'!$D$20),"Ration 5", "Clear"))))) -> Clear | D96: =(VLOOKUP(Table13[[#This Row],[Ration]],Table22[#All],2,FALSE)) ->  | E96: 2.8 | F96: 1.62 | G96: =Table13[[#This Row],[Bodyweight Mid-point (kg)]]*1000 -> 1620 | H96: 88 | I96: =Table13[[#This Row],[Feed Intake Mid-point (g/bird/day)]]*7 -> 616 | J96: =Table13[[#This Row],[Feed Intake (g/bird/week)]]+J95 -> 2401 | K96: 50 | L96: =(Table13[[#This Row],[Hen-Housed Eggs Cumulative Mid-point]]*Table13[[#This Row],[Average Egg Weight Mid-point (g/egg)]]) -> 140
A97: Brown Colony | B97: 20 | C97: =IF(AND(Table13[[#This Row],[AGE (weeks)]]>='Diet input details'!$C$16,Table13[[#This Row],[AGE (weeks)]]<='Diet input details'!$D$16),"Ration 1",IF(AND(Table13[[#This Row],[AGE (weeks)]]>='Diet input details'!$C$17,Table13[[#This Row],[AGE (weeks)]]<='Diet input details'!$D$17),"Ration 2",IF(AND(Table13[[#This Row],[AGE (weeks)]]>='Diet input details'!$C$18,Table13[[#This Row],[AGE (weeks)]]<='Diet input details'!$D$18),"Ration 3",IF(AND(Table13[[#This Row],[AGE (weeks)]]>='Diet input details'!$C$19,Table13[[#This Row],[AGE (weeks)]]<='Diet input details'!$D$19),"Ration 4",IF(AND(Table13[[#This Row],[AGE (weeks)]]>='Diet input details'!$C$20,Table13[[#This Row],[AGE (weeks)]]<='Diet input details'!$D$20),"Ration 5", "Clear"))))) -> Clear | D97: =(VLOOKUP(Table13[[#This Row],[Ration]],Table22[#All],2,FALSE)) ->  | E97: 6.9 | F97: 1.68 | G97: =Table13[[#This Row],[Bodyweight Mid-point (kg)]]*1000 -> 1680 | H97: 94 | I97: =Table13[[#This Row],[Feed Intake Mid-point (g/bird/day)]]*7 -> 658 | J97: =Table13[[#This Row],[Feed Intake (g/bird/week)]]+J96 -> 3059 | K97: 51.2 | L97: =(Table13[[#This Row],[Hen-Housed Eggs Cumulative Mid-point]]*Table13[[#This Row],[Average Egg Weight Mid-point (g/egg)]]) -> 353.28
A98: Brown Colony | B98: 21 | C98: =IF(AND(Table13[[#This Row],[AGE (weeks)]]>='Diet input details'!$C$16,Table13[[#This Row],[AGE (weeks)]]<='Diet input details'!$D$16),"Ration 1",IF(AND(Table13[[#This Row],[AGE (weeks)]]>='Diet input details'!$C$17,Table13[[#This Row],[AGE (weeks)]]<='Diet input details'!$D$17),"Ration 2",IF(AND(Table13[[#This Row],[AGE (weeks)]]>='Diet input details'!$C$18,Table13[[#This Row],[AGE (weeks)]]<='Diet input details'!$D$18),"Ration 3",IF(AND(Table13[[#This Row],[AGE (weeks)]]>='Diet input details'!$C$19,Table13[[#This Row],[AGE (weeks)]]<='Diet input details'!$D$19),"Ration 4",IF(AND(Table13[[#This Row],[AGE (weeks)]]>='Diet input details'!$C$20,Table13[[#This Row],[AGE (weeks)]]<='Diet input details'!$D$20),"Ration 5", "Clear"))))) -> Clear | D98: =(VLOOKUP(Table13[[#This Row],[Ration]],Table22[#All],2,FALSE)) ->  | E98: 12.5 | F98: 1.72 | G98: =Table13[[#This Row],[Bodyweight Mid-point (kg)]]*1000 -> 1720 | H98: 98 | I98: =Table13[[#This Row],[Feed Intake Mid-point (g/bird/day)]]*7 -> 686 | J98: =Table13[[#This Row],[Feed Intake (g/bird/week)]]+J97 -> 3745 | K98: 52.55 | L98: =(Table13[[#This Row],[Hen-Housed Eggs Cumulative Mid-point]]*Table13[[#This Row],[Average Egg Weight Mid-point (g/egg)]]) -> 656.875
A99: Brown Colony | B99: 22 | C99: =IF(AND(Table13[[#This Row],[AGE (weeks)]]>='Diet input details'!$C$16,Table13[[#This Row],[AGE (weeks)]]<='Diet input details'!$D$16),"Ration 1",IF(AND(Table13[[#This Row],[AGE (weeks)]]>='Diet input details'!$C$17,Table13[[#This Row],[AGE (weeks)]]<='Diet input details'!$D$17),"Ration 2",IF(AND(Table13[[#This Row],[AGE (weeks)]]>='Diet input details'!$C$18,Table13[[#This Row],[AGE (weeks)]]<='Diet input details'!$D$18),"Ration 3",IF(AND(Table13[[#This Row],[AGE (weeks)]]>='Diet input details'!$C$19,Table13[[#This Row],[AGE (weeks)]]<='Diet input details'!$D$19),"Ration 4",IF(AND(Table13[[#This Row],[AGE (weeks)]]>='Diet input details'!$C$20,Table13[[#This Row],[AGE (weeks)]]<='Diet input details'!$D$20),"Ration 5", "Clear"))))) -> Clear | D99: =(VLOOKUP(Table13[[#This Row],[Ration]],Table22[#All],2,FALSE)) ->  | E99: 18.75 | F99: 1.77 | G99: =Table13[[#This Row],[Bodyweight Mid-point (kg)]]*1000 -> 1770 | H99: 102 | I99: =Table13[[#This Row],[Feed Intake Mid-point (g/bird/day)]]*7 -> 714 | J99: =Table13[[#This Row],[Feed Intake (g/bird/week)]]+J98 -> 4459 | K99: 54.2 | L99: =(Table13[[#This Row],[Hen-Housed Eggs Cumulative Mid-point]]*Table13[[#This Row],[Average Egg Weight Mid-point (g/egg)]]) -> 1016.25
A100: Brown Colony | B100: 23 | C100: =IF(AND(Table13[[#This Row],[AGE (weeks)]]>='Diet input details'!$C$16,Table13[[#This Row],[AGE (weeks)]]<='Diet input details'!$D$16),"Ration 1",IF(AND(Table13[[#This Row],[AGE (weeks)]]>='Diet input details'!$C$17,Table13[[#This Row],[AGE (weeks)]]<='Diet input details'!$D$17),"Ration 2",IF(AND(Table13[[#This Row],[AGE (weeks)]]>='Diet input details'!$C$18,Table13[[#This Row],[AGE (weeks)]]<='Diet input details'!$D$18),"Ration 3",IF(AND(Table13[[#This Row],[AGE (weeks)]]>='Diet input details'!$C$19,Table13[[#This Row],[AGE (weeks)]]<='Diet input details'!$D$19),"Ration 4",IF(AND(Table13[[#This Row],[AGE (weeks)]]>='Diet input details'!$C$20,Table13[[#This Row],[AGE (weeks)]]<='Diet input details'!$D$20),"Ration 5", "Clear"))))) -> Clear | D100: =(VLOOKUP(Table13[[#This Row],[Ration]],Table22[#All],2,FALSE)) ->  | E100: 25.25 | F100: 1.8 | G100: =Table13[[#This Row],[Bodyweight Mid-point (kg)]]*1000 -> 1800 | H100: 106 | I100: =Table13[[#This Row],[Feed Intake Mid-point (g/bird/day)]]*7 -> 742 | J100: =Table13[[#This Row],[Feed Intake (g/bird/week)]]+J99 -> 5201 | K100: 55.5 | L100: =(Table13[[#This Row],[Hen-Housed Eggs Cumulative Mid-point]]*Table13[[#This Row],[Average Egg Weight Mid-point (g/egg)]]) -> 1401.375
A101: Brown Colony | B101: 24 | C101: =IF(AND(Table13[[#This Row],[AGE (weeks)]]>='Diet input details'!$C$16,Table13[[#This Row],[AGE (weeks)]]<='Diet input details'!$D$16),"Ration 1",IF(AND(Table13[[#This Row],[AGE (weeks)]]>='Diet input details'!$C$17,Table13[[#This Row],[AGE (weeks)]]<='Diet input details'!$D$17),"Ration 2",IF(AND(Table13[[#This Row],[AGE (weeks)]]>='Diet input details'!$C$18,Table13[[#This Row],[AGE (weeks)]]<='Diet input details'!$D$18),"Ration 3",IF(AND(Table13[[#This Row],[AGE (weeks)]]>='Diet input details'!$C$19,Table13[[#This Row],[AGE (weeks)]]<='Diet input details'!$D$19),"Ration 4",IF(AND(Table13[[#This Row],[AGE (weeks)]]>='Diet input details'!$C$20,Table13[[#This Row],[AGE (weeks)]]<='Diet input details'!$D$20),"Ration 5", "Clear"))))) -> Clear | D101: =(VLOOKUP(Table13[[#This Row],[Ration]],Table22[#All],2,FALSE)) ->  | E101: 31.75 | F101: 1.84 | G101: =Table13[[#This Row],[Bodyweight Mid-point (kg)]]*1000 -> 1840 | H101: 108 | I101: =Table13[[#This Row],[Feed Intake Mid-point (g/bird/day)]]*7 -> 756 | J101: =Table13[[#This Row],[Feed Intake (g/bird/week)]]+J100 -> 5957 | K101: 56.6 | L101: =(Table13[[#This Row],[Hen-Housed Eggs Cumulative Mid-point]]*Table13[[#This Row],[Average Egg Weight Mid-point (g/egg)]]) -> 1797.05
A102: Brown Colony | B102: 25 | C102: =IF(AND(Table13[[#This Row],[AGE (weeks)]]>='Diet input details'!$C$16,Table13[[#This Row],[AGE (weeks)]]<='Diet input details'!$D$16),"Ration 1",IF(AND(Table13[[#This Row],[AGE (weeks)]]>='Diet input details'!$C$17,Table13[[#This Row],[AGE (weeks)]]<='Diet input details'!$D$17),"Ration 2",IF(AND(Table13[[#This Row],[AGE (weeks)]]>='Diet input details'!$C$18,Table13[[#This Row],[AGE (weeks)]]<='Diet input details'!$D$18),"Ration 3",IF(AND(Table13[[#This Row],[AGE (weeks)]]>='Diet input details'!$C$19,Table13[[#This Row],[AGE (weeks)]]<='Diet input details'!$D$19),"Ration 4",IF(AND(Table13[[#This Row],[AGE (weeks)]]>='Diet input details'!$C$20,Table13[[#This Row],[AGE (weeks)]]<='Diet input details'!$D$20),"Ration 5", "Clear"))))) -> Clear | D102: =(VLOOKUP(Table13[[#This Row],[Ration]],Table22[#All],2,FALSE)) ->  | E102: 38.3 | F102: 1.85 | G102: =Table13[[#This Row],[Bodyweight Mid-point (kg)]]*1000 -> 1850 | H102: 109 | I102: =Table13[[#This Row],[Feed Intake Mid-point (g/bird/day)]]*7 -> 763 | J102: =Table13[[#This Row],[Feed Intake (g/bird/week)]]+J101 -> 6720 | K102: 57.8 | L102: =(Table13[[#This Row],[Hen-Housed Eggs Cumulative Mid-point]]*Table13[[#This Row],[Average Egg Weight Mid-point (g/egg)]]) -> 2213.74
A103: Brown Colony | B103: 26 | C103: =IF(AND(Table13[[#This Row],[AGE (weeks)]]>='Diet input details'!$C$16,Table13[[#This Row],[AGE (weeks)]]<='Diet input details'!$D$16),"Ration 1",IF(AND(Table13[[#This Row],[AGE (weeks)]]>='Diet input details'!$C$17,Table13[[#This Row],[AGE (weeks)]]<='Diet input details'!$D$17),"Ration 2",IF(AND(Table13[[#This Row],[AGE (weeks)]]>='Diet input details'!$C$18,Table13[[#This Row],[AGE (weeks)]]<='Diet input details'!$D$18),"Ration 3",IF(AND(Table13[[#This Row],[AGE (weeks)]]>='Diet input details'!$C$19,Table13[[#This Row],[AGE (weeks)]]<='Diet input details'!$D$19),"Ration 4",IF(AND(Table13[[#This Row],[AGE (weeks)]]>='Diet input details'!$C$20,Table13[[#This Row],[AGE (weeks)]]<='Diet input details'!$D$20),"Ration 5", "Clear"))))) -> Clear | D103: =(VLOOKUP(Table13[[#This Row],[Ration]],Table22[#All],2,FALSE)) ->  | E103: 44.95 | F103: 1.86 | G103: =Table13[[#This Row],[Bodyweight Mid-point (kg)]]*1000 -> 1860 | H103: 110 | I103: =Table13[[#This Row],[Feed Intake Mid-point (g/bird/day)]]*7 -> 770 | J103: =Table13[[#This Row],[Feed Intake (g/bird/week)]]+J102 -> 7490 | K103: 58.5 | L103: =(Table13[[#This Row],[Hen-Housed Eggs Cumulative Mid-point]]*Table13[[#This Row],[Average Egg Weight Mid-point (g/egg)]]) -> 2629.575
A104: Brown Colony | B104: 27 | C104: =IF(AND(Table13[[#This Row],[AGE (weeks)]]>='Diet input details'!$C$16,Table13[[#This Row],[AGE (weeks)]]<='Diet input details'!$D$16),"Ration 1",IF(AND(Table13[[#This Row],[AGE (weeks)]]>='Diet input details'!$C$17,Table13[[#This Row],[AGE (weeks)]]<='Diet input details'!$D$17),"Ration 2",IF(AND(Table13[[#This Row],[AGE (weeks)]]>='Diet input details'!$C$18,Table13[[#This Row],[AGE (weeks)]]<='Diet input details'!$D$18),"Ration 3",IF(AND(Table13[[#This Row],[AGE (weeks)]]>='Diet input details'!$C$19,Table13[[#This Row],[AGE (weeks)]]<='Diet input details'!$D$19),"Ration 4",IF(AND(Table13[[#This Row],[AGE (weeks)]]>='Diet input details'!$C$20,Table13[[#This Row],[AGE (weeks)]]<='Diet input details'!$D$20),"Ration 5", "Clear"))))) -> Clear | D104: =(VLOOKUP(Table13[[#This Row],[Ration]],Table22[#All],2,FALSE)) ->  | E104: 51.6 | F104: 1.88 | G104: =Table13[[#This Row],[Bodyweight Mid-point (kg)]]*1000 -> 1880 | H104: 110 | I104: =Table13[[#This Row],[Feed Intake Mid-point (g/bird/day)]]*7 -> 770 | J104: =Table13[[#This Row],[Feed Intake (g/bird/week)]]+J103 -> 8260 | K104: 59.6 | L104: =(Table13[[#This Row],[Hen-Housed Eggs Cumulative Mid-point]]*Table13[[#This Row],[Average Egg Weight Mid-point (g/egg)]]) -> 3075.36
A105: Brown Colony | B105: 28 | C105: =IF(AND(Table13[[#This Row],[AGE (weeks)]]>='Diet input details'!$C$16,Table13[[#This Row],[AGE (weeks)]]<='Diet input details'!$D$16),"Ration 1",IF(AND(Table13[[#This Row],[AGE (weeks)]]>='Diet input details'!$C$17,Table13[[#This Row],[AGE (weeks)]]<='Diet input details'!$D$17),"Ration 2",IF(AND(Table13[[#This Row],[AGE (weeks)]]>='Diet input details'!$C$18,Table13[[#This Row],[AGE (weeks)]]<='Diet input details'!$D$18),"Ration 3",IF(AND(Table13[[#This Row],[AGE (weeks)]]>='Diet input details'!$C$19,Table13[[#This Row],[AGE (weeks)]]<='Diet input details'!$D$19),"Ration 4",IF(AND(Table13[[#This Row],[AGE (weeks)]]>='Diet input details'!$C$20,Table13[[#This Row],[AGE (weeks)]]<='Diet input details'!$D$20),"Ration 5", "Clear"))))) -> Clear | D105: =(VLOOKUP(Table13[[#This Row],[Ration]],Table22[#All],2,FALSE)) ->  | E105: 58.2 | F105: 1.89 | G105: =Table13[[#This Row],[Bodyweight Mid-point (kg)]]*1000 -> 1890 | H105: 110 | I105: =Table13[[#This Row],[Feed Intake Mid-point (g/bird/day)]]*7 -> 770 | J105: =Table13[[#This Row],[Feed Intake (g/bird/week)]]+J104 -> 9030 | K105: 60.2 | L105: =(Table13[[#This Row],[Hen-Housed Eggs Cumulative Mid-point]]*Table13[[#This Row],[Average Egg Weight Mid-point (g/egg)]]) -> 3503.64
A106: Brown Colony | B106: 29 | C106: =IF(AND(Table13[[#This Row],[AGE (weeks)]]>='Diet input details'!$C$16,Table13[[#This Row],[AGE (weeks)]]<='Diet input details'!$D$16),"Ration 1",IF(AND(Table13[[#This Row],[AGE (weeks)]]>='Diet input details'!$C$17,Table13[[#This Row],[AGE (weeks)]]<='Diet input details'!$D$17),"Ration 2",IF(AND(Table13[[#This Row],[AGE (weeks)]]>='Diet input details'!$C$18,Table13[[#This Row],[AGE (weeks)]]<='Diet input details'!$D$18),"Ration 3",IF(AND(Table13[[#This Row],[AGE (weeks)]]>='Diet input details'!$C$19,Table13[[#This Row],[AGE (weeks)]]<='Diet input details'!$D$19),"Ration 4",IF(AND(Table13[[#This Row],[AGE (weeks)]]>='Diet input details'!$C$20,Table13[[#This Row],[AGE (weeks)]]<='Diet input details'!$D$20),"Ration 5", "Clear"))))) -> Clear | D106: =(VLOOKUP(Table13[[#This Row],[Ration]],Table22[#All],2,FALSE)) ->  | E106: 64.85 | F106: 1.9 | G106: =Table13[[#This Row],[Bodyweight Mid-point (kg)]]*1000 -> 1900 | H106: 110 | I106: =Table13[[#This Row],[Feed Intake Mid-point (g/bird/day)]]*7 -> 770 | J106: =Table13[[#This Row],[Feed Intake (g/bird/week)]]+J105 -> 9800 | K106: 60.5 | L106: =(Table13[[#This Row],[Hen-Housed Eggs Cumulative Mid-point]]*Table13[[#This Row],[Average Egg Weight Mid-point (g/egg)]]) -> 3923.425
A107: Brown Colony | B107: 30 | C107: =IF(AND(Table13[[#This Row],[AGE (weeks)]]>='Diet input details'!$C$16,Table13[[#This Row],[AGE (weeks)]]<='Diet input details'!$D$16),"Ration 1",IF(AND(Table13[[#This Row],[AGE (weeks)]]>='Diet input details'!$C$17,Table13[[#This Row],[AGE (weeks)]]<='Diet input details'!$D$17),"Ration 2",IF(AND(Table13[[#This Row],[AGE (weeks)]]>='Diet input details'!$C$18,Table13[[#This Row],[AGE (weeks)]]<='Diet input details'!$D$18),"Ration 3",IF(AND(Table13[[#This Row],[AGE (weeks)]]>='Diet input details'!$C$19,Table13[[#This Row],[AGE (weeks)]]<='Diet input details'!$D$19),"Ration 4",IF(AND(Table13[[#This Row],[AGE (weeks)]]>='Diet input details'!$C$20,Table13[[#This Row],[AGE (weeks)]]<='Diet input details'!$D$20),"Ration 5", "Clear"))))) -> Clear | D107: =(VLOOKUP(Table13[[#This Row],[Ration]],Table22[#All],2,FALSE)) ->  | E107: 71.45 | F107: 1.9 | G107: =Table13[[#This Row],[Bodyweight Mid-point (kg)]]*1000 -> 1900 | H107: 110 | I107: =Table13[[#This Row],[Feed Intake Mid-point (g/bird/day)]]*7 -> 770 | J107: =Table13[[#This Row],[Feed Intake (g/bird/week)]]+J106 -> 10570 | K107: 60.9 | L107: =(Table13[[#This Row],[Hen-Housed Eggs Cumulative Mid-point]]*Table13[[#This Row],[Average Egg Weight Mid-point (g/egg)]]) -> 4351.305
A108: Brown Colony | B108: 31 | C108: =IF(AND(Table13[[#This Row],[AGE (weeks)]]>='Diet input details'!$C$16,Table13[[#This Row],[AGE (weeks)]]<='Diet input details'!$D$16),"Ration 1",IF(AND(Table13[[#This Row],[AGE (weeks)]]>='Diet input details'!$C$17,Table13[[#This Row],[AGE (weeks)]]<='Diet input details'!$D$17),"Ration 2",IF(AND(Table13[[#This Row],[AGE (weeks)]]>='Diet input details'!$C$18,Table13[[#This Row],[AGE (weeks)]]<='Diet input details'!$D$18),"Ration 3",IF(AND(Table13[[#This Row],[AGE (weeks)]]>='Diet input details'!$C$19,Table13[[#This Row],[AGE (weeks)]]<='Diet input details'!$D$19),"Ration 4",IF(AND(Table13[[#This Row],[AGE (weeks)]]>='Diet input details'!$C$20,Table13[[#This Row],[AGE (weeks)]]<='Diet input details'!$D$20),"Ration 5", "Clear"))))) -> Clear | D108: =(VLOOKUP(Table13[[#This Row],[Ration]],Table22[#All],2,FALSE)) ->  | E108: 78 | F108: 1.9 | G108: =Table13[[#This Row],[Bodyweight Mid-point (kg)]]*1000 -> 1900 | H108: 111 | I108: =Table13[[#This Row],[Feed Intake Mid-point (g/bird/day)]]*7 -> 777 | J108: =Table13[[#This Row],[Feed Intake (g/bird/week)]]+J107 -> 11347 | K108: 61.1 | L108: =(Table13[[#This Row],[Hen-Housed Eggs Cumulative Mid-point]]*Table13[[#This Row],[Average Egg Weight Mid-point (g/egg)]]) -> 4765.8
A109: Brown Colony | B109: 32 | C109: =IF(AND(Table13[[#This Row],[AGE (weeks)]]>='Diet input details'!$C$16,Table13[[#This Row],[AGE (weeks)]]<='Diet input details'!$D$16),"Ration 1",IF(AND(Table13[[#This Row],[AGE (weeks)]]>='Diet input details'!$C$17,Table13[[#This Row],[AGE (weeks)]]<='Diet input details'!$D$17),"Ration 2",IF(AND(Table13[[#This Row],[AGE (weeks)]]>='Diet input details'!$C$18,Table13[[#This Row],[AGE (weeks)]]<='Diet input details'!$D$18),"Ration 3",IF(AND(Table13[[#This Row],[AGE (weeks)]]>='Diet input details'!$C$19,Table13[[#This Row],[AGE (weeks)]]<='Diet input details'!$D$19),"Ration 4",IF(AND(Table13[[#This Row],[AGE (weeks)]]>='Diet input details'!$C$20,Table13[[#This Row],[AGE (weeks)]]<='Diet input details'!$D$20),"Ration 5", "Clear"))))) -> Clear | D109: =(VLOOKUP(Table13[[#This Row],[Ration]],Table22[#All],2,FALSE)) ->  | E109: 84.6 | F109: 1.91 | G109: =Table13[[#This Row],[Bodyweight Mid-point (kg)]]*1000 -> 1910 | H109: 111 | I109: =Table13[[#This Row],[Feed Intake Mid-point (g/bird/day)]]*7 -> 777 | J109: =Table13[[#This Row],[Feed Intake (g/bird/week)]]+J108 -> 12124 | K109: 61.3 | L109: =(Table13[[#This Row],[Hen-Housed Eggs Cumulative Mid-point]]*Table13[[#This Row],[Average Egg Weight Mid-point (g/egg)]]) -> 5185.98
A110: Brown Colony | B110: 33 | C110: =IF(AND(Table13[[#This Row],[AGE (weeks)]]>='Diet input details'!$C$16,Table13[[#This Row],[AGE (weeks)]]<='Diet input details'!$D$16),"Ration 1",IF(AND(Table13[[#This Row],[AGE (weeks)]]>='Diet input details'!$C$17,Table13[[#This Row],[AGE (weeks)]]<='Diet input details'!$D$17),"Ration 2",IF(AND(Table13[[#This Row],[AGE (weeks)]]>='Diet input details'!$C$18,Table13[[#This Row],[AGE (weeks)]]<='Diet input details'!$D$18),"Ration 3",IF(AND(Table13[[#This Row],[AGE (weeks)]]>='Diet input details'!$C$19,Table13[[#This Row],[AGE (weeks)]]<='Diet input details'!$D$19),"Ration 4",IF(AND(Table13[[#This Row],[AGE (weeks)]]>='Diet input details'!$C$20,Table13[[#This Row],[AGE (weeks)]]<='Diet input details'!$D$20),"Ration 5", "Clear"))))) -> Clear | D110: =(VLOOKUP(Table13[[#This Row],[Ration]],Table22[#All],2,FALSE)) ->  | E110: 91.15 | F110: 1.91 | G110: =Table13[[#This Row],[Bodyweight Mid-point (kg)]]*1000 -> 1910 | H110: 111 | I110: =Table13[[#This Row],[Feed Intake Mid-point (g/bird/day)]]*7 -> 777 | J110: =Table13[[#This Row],[Feed Intake (g/bird/week)]]+J109 -> 12901 | K110: 61.5 | L110: =(Table13[[#This Row],[Hen-Housed Eggs Cumulative Mid-point]]*Table13[[#This Row],[Average Egg Weight Mid-point (g/egg)]]) -> 5605.725
A111: Brown Colony | B111: 34 | C111: =IF(AND(Table13[[#This Row],[AGE (weeks)]]>='Diet input details'!$C$16,Table13[[#This Row],[AGE (weeks)]]<='Diet input details'!$D$16),"Ration 1",IF(AND(Table13[[#This Row],[AGE (weeks)]]>='Diet input details'!$C$17,Table13[[#This Row],[AGE (weeks)]]<='Diet input details'!$D$17),"Ration 2",IF(AND(Table13[[#This Row],[AGE (weeks)]]>='Diet input details'!$C$18,Table13[[#This Row],[AGE (weeks)]]<='Diet input details'!$D$18),"Ration 3",IF(AND(Table13[[#This Row],[AGE (weeks)]]>='Diet input details'!$C$19,Table13[[#This Row],[AGE (weeks)]]<='Diet input details'!$D$19),"Ration 4",IF(AND(Table13[[#This Row],[AGE (weeks)]]>='Diet input details'!$C$20,Table13[[#This Row],[AGE (weeks)]]<='Diet input details'!$D$20),"Ration 5", "Clear"))))) -> Clear | D111: =(VLOOKUP(Table13[[#This Row],[Ration]],Table22[#All],2,FALSE)) ->  | E111: 97.7 | F111: 1.91 | G111: =Table13[[#This Row],[Bodyweight Mid-point (kg)]]*1000 -> 1910 | H111: 111 | I111: =Table13[[#This Row],[Feed Intake Mid-point (g/bird/day)]]*7 -> 777 | J111: =Table13[[#This Row],[Feed Intake (g/bird/week)]]+J110 -> 13678 | K111: 61.7 | L111: =(Table13[[#This Row],[Hen-Housed Eggs Cumulative Mid-point]]*Table13[[#This Row],[Average Egg Weight Mid-point (g/egg)]]) -> 6028.09
A112: Brown Colony | B112: 35 | C112: =IF(AND(Table13[[#This Row],[AGE (weeks)]]>='Diet input details'!$C$16,Table13[[#This Row],[AGE (weeks)]]<='Diet input details'!$D$16),"Ration 1",IF(AND(Table13[[#This Row],[AGE (weeks)]]>='Diet input details'!$C$17,Table13[[#This Row],[AGE (weeks)]]<='Diet input details'!$D$17),"Ration 2",IF(AND(Table13[[#This Row],[AGE (weeks)]]>='Diet input details'!$C$18,Table13[[#This Row],[AGE (weeks)]]<='Diet input details'!$D$18),"Ration 3",IF(AND(Table13[[#This Row],[AGE (weeks)]]>='Diet input details'!$C$19,Table13[[#This Row],[AGE (weeks)]]<='Diet input details'!$D$19),"Ration 4",IF(AND(Table13[[#This Row],[AGE (weeks)]]>='Diet input details'!$C$20,Table13[[#This Row],[AGE (weeks)]]<='Diet input details'!$D$20),"Ration 5", "Clear"))))) -> Clear | D112: =(VLOOKUP(Table13[[#This Row],[Ration]],Table22[#All],2,FALSE)) ->  | E112: 104.25 | F112: 1.91 | G112: =Table13[[#This Row],[Bodyweight Mid-point (kg)]]*1000 -> 1910 | H112: 111 | I112: =Table13[[#This Row],[Feed Intake Mid-point (g/bird/day)]]*7 -> 777 | J112: =Table13[[#This Row],[Feed Intake (g/bird/week)]]+J111 -> 14455 | K112: 61.8 | L112: =(Table13[[#This Row],[Hen-Housed Eggs Cumulative Mid-point]]*Table13[[#This Row],[Average Egg Weight Mid-point (g/egg)]]) -> 6442.65
A113: Brown Colony | B113: 36 | C113: =IF(AND(Table13[[#This Row],[AGE (weeks)]]>='Diet input details'!$C$16,Table13[[#This Row],[AGE (weeks)]]<='Diet input details'!$D$16),"Ration 1",IF(AND(Table13[[#This Row],[AGE (weeks)]]>='Diet input details'!$C$17,Table13[[#This Row],[AGE (weeks)]]<='Diet input details'!$D$17),"Ration 2",IF(AND(Table13[[#This Row],[AGE (weeks)]]>='Diet input details'!$C$18,Table13[[#This Row],[AGE (weeks)]]<='Diet input details'!$D$18),"Ration 3",IF(AND(Table13[[#This Row],[AGE (weeks)]]>='Diet input details'!$C$19,Table13[[#This Row],[AGE (weeks)]]<='Diet input details'!$D$19),"Ration 4",IF(AND(Table13[[#This Row],[AGE (weeks)]]>='Diet input details'!$C$20,Table13[[#This Row],[AGE (weeks)]]<='Diet input details'!$D$20),"Ration 5", "Clear"))))) -> Clear | D113: =(VLOOKUP(Table13[[#This Row],[Ration]],Table22[#All],2,FALSE)) ->  | E113: 110.7 | F113: 1.92 | G113: =Table13[[#This Row],[Bodyweight Mid-point (kg)]]*1000 -> 1920 | H113: 111 | I113: =Table13[[#This Row],[Feed Intake Mid-point (g/bird/day)]]*7 -> 777 | J113: =Table13[[#This Row],[Feed Intake (g/bird/week)]]+J112 -> 15232 | K113: 61.9 | L113: =(Table13[[#This Row],[Hen-Housed Eggs Cumulative Mid-point]]*Table13[[#This Row],[Average Egg Weight Mid-point (g/egg)]]) -> 6852.33
A114: Brown Colony | B114: 37 | C114: =IF(AND(Table13[[#This Row],[AGE (weeks)]]>='Diet input details'!$C$16,Table13[[#This Row],[AGE (weeks)]]<='Diet input details'!$D$16),"Ration 1",IF(AND(Table13[[#This Row],[AGE (weeks)]]>='Diet input details'!$C$17,Table13[[#This Row],[AGE (weeks)]]<='Diet input details'!$D$17),"Ration 2",IF(AND(Table13[[#This Row],[AGE (weeks)]]>='Diet input details'!$C$18,Table13[[#This Row],[AGE (weeks)]]<='Diet input details'!$D$18),"Ration 3",IF(AND(Table13[[#This Row],[AGE (weeks)]]>='Diet input details'!$C$19,Table13[[#This Row],[AGE (weeks)]]<='Diet input details'!$D$19),"Ration 4",IF(AND(Table13[[#This Row],[AGE (weeks)]]>='Diet input details'!$C$20,Table13[[#This Row],[AGE (weeks)]]<='Diet input details'!$D$20),"Ration 5", "Clear"))))) -> Clear | D114: =(VLOOKUP(Table13[[#This Row],[Ration]],Table22[#All],2,FALSE)) ->  | E114: 117.2 | F114: 1.92 | G114: =Table13[[#This Row],[Bodyweight Mid-point (kg)]]*1000 -> 1920 | H114: 111 | I114: =Table13[[#This Row],[Feed Intake Mid-point (g/bird/day)]]*7 -> 777 | J114: =Table13[[#This Row],[Feed Intake (g/bird/week)]]+J113 -> 16009 | K114: 62 | L114: =(Table13[[#This Row],[Hen-Housed Eggs Cumulative Mid-point]]*Table13[[#This Row],[Average Egg Weight Mid-point (g/egg)]]) -> 7266.4
A115: Brown Colony | B115: 38 | C115: =IF(AND(Table13[[#This Row],[AGE (weeks)]]>='Diet input details'!$C$16,Table13[[#This Row],[AGE (weeks)]]<='Diet input details'!$D$16),"Ration 1",IF(AND(Table13[[#This Row],[AGE (weeks)]]>='Diet input details'!$C$17,Table13[[#This Row],[AGE (weeks)]]<='Diet input details'!$D$17),"Ration 2",IF(AND(Table13[[#This Row],[AGE (weeks)]]>='Diet input details'!$C$18,Table13[[#This Row],[AGE (weeks)]]<='Diet input details'!$D$18),"Ration 3",IF(AND(Table13[[#This Row],[AGE (weeks)]]>='Diet input details'!$C$19,Table13[[#This Row],[AGE (weeks)]]<='Diet input details'!$D$19),"Ration 4",IF(AND(Table13[[#This Row],[AGE (weeks)]]>='Diet input details'!$C$20,Table13[[#This Row],[AGE (weeks)]]<='Diet input details'!$D$20),"Ration 5", "Clear"))))) -> Clear | D115: =(VLOOKUP(Table13[[#This Row],[Ration]],Table22[#All],2,FALSE)) ->  | E115: 123.65 | F115: 1.92 | G115: =Table13[[#This Row],[Bodyweight Mid-point (kg)]]*1000 -> 1920 | H115: 111 | I115: =Table13[[#This Row],[Feed Intake Mid-point (g/bird/day)]]*7 -> 777 | J115: =Table13[[#This Row],[Feed Intake (g/bird/week)]]+J114 -> 16786 | K115: 62.1 | L115: =(Table13[[#This Row],[Hen-Housed Eggs Cumulative Mid-point]]*Table13[[#This Row],[Average Egg Weight Mid-point (g/egg)]]) -> 7678.665
A116: Brown Colony | B116: 39 | C116: =IF(AND(Table13[[#This Row],[AGE (weeks)]]>='Diet input details'!$C$16,Table13[[#This Row],[AGE (weeks)]]<='Diet input details'!$D$16),"Ration 1",IF(AND(Table13[[#This Row],[AGE (weeks)]]>='Diet input details'!$C$17,Table13[[#This Row],[AGE (weeks)]]<='Diet input details'!$D$17),"Ration 2",IF(AND(Table13[[#This Row],[AGE (weeks)]]>='Diet input details'!$C$18,Table13[[#This Row],[AGE (weeks)]]<='Diet input details'!$D$18),"Ration 3",IF(AND(Table13[[#This Row],[AGE (weeks)]]>='Diet input details'!$C$19,Table13[[#This Row],[AGE (weeks)]]<='Diet input details'!$D$19),"Ration 4",IF(AND(Table13[[#This Row],[AGE (weeks)]]>='Diet input details'!$C$20,Table13[[#This Row],[AGE (weeks)]]<='Diet input details'!$D$20),"Ration 5", "Clear"))))) -> Clear | D116: =(VLOOKUP(Table13[[#This Row],[Ration]],Table22[#All],2,FALSE)) ->  | E116: 130.05 | F116: 1.93 | G116: =Table13[[#This Row],[Bodyweight Mid-point (kg)]]*1000 -> 1930 | H116: 111 | I116: =Table13[[#This Row],[Feed Intake Mid-point (g/bird/day)]]*7 -> 777 | J116: =Table13[[#This Row],[Feed Intake (g/bird/week)]]+J115 -> 17563 | K116: 62.2 | L116: =(Table13[[#This Row],[Hen-Housed Eggs Cumulative Mid-point]]*Table13[[#This Row],[Average Egg Weight Mid-point (g/egg)]]) -> 8089.11
A117: Brown Colony | B117: 40 | C117: =IF(AND(Table13[[#This Row],[AGE (weeks)]]>='Diet input details'!$C$16,Table13[[#This Row],[AGE (weeks)]]<='Diet input details'!$D$16),"Ration 1",IF(AND(Table13[[#This Row],[AGE (weeks)]]>='Diet input details'!$C$17,Table13[[#This Row],[AGE (weeks)]]<='Diet input details'!$D$17),"Ration 2",IF(AND(Table13[[#This Row],[AGE (weeks)]]>='Diet input details'!$C$18,Table13[[#This Row],[AGE (weeks)]]<='Diet input details'!$D$18),"Ration 3",IF(AND(Table13[[#This Row],[AGE (weeks)]]>='Diet input details'!$C$19,Table13[[#This Row],[AGE (weeks)]]<='Diet input details'!$D$19),"Ration 4",IF(AND(Table13[[#This Row],[AGE (weeks)]]>='Diet input details'!$C$20,Table13[[#This Row],[AGE (weeks)]]<='Diet input details'!$D$20),"Ration 5", "Clear"))))) -> Clear | D117: =(VLOOKUP(Table13[[#This Row],[Ration]],Table22[#All],2,FALSE)) ->  | E117: 136.4 | F117: 1.93 | G117: =Table13[[#This Row],[Bodyweight Mid-point (kg)]]*1000 -> 1930 | H117: 111 | I117: =Table13[[#This Row],[Feed Intake Mid-point (g/bird/day)]]*7 -> 777 | J117: =Table13[[#This Row],[Feed Intake (g/bird/week)]]+J116 -> 18340 | K117: 62.3 | L117: =(Table13[[#This Row],[Hen-Housed Eggs Cumulative Mid-point]]*Table13[[#This Row],[Average Egg Weight Mid-point (g/egg)]]) -> 8497.72
A118: Brown Colony | B118: 41 | C118: =IF(AND(Table13[[#This Row],[AGE (weeks)]]>='Diet input details'!$C$16,Table13[[#This Row],[AGE (weeks)]]<='Diet input details'!$D$16),"Ration 1",IF(AND(Table13[[#This Row],[AGE (weeks)]]>='Diet input details'!$C$17,Table13[[#This Row],[AGE (weeks)]]<='Diet input details'!$D$17),"Ration 2",IF(AND(Table13[[#This Row],[AGE (weeks)]]>='Diet input details'!$C$18,Table13[[#This Row],[AGE (weeks)]]<='Diet input details'!$D$18),"Ration 3",IF(AND(Table13[[#This Row],[AGE (weeks)]]>='Diet input details'!$C$19,Table13[[#This Row],[AGE (weeks)]]<='Diet input details'!$D$19),"Ration 4",IF(AND(Table13[[#This Row],[AGE (weeks)]]>='Diet input details'!$C$20,Table13[[#This Row],[AGE (weeks)]]<='Diet input details'!$D$20),"Ration 5", "Clear"))))) -> Clear | D118: =(VLOOKUP(Table13[[#This Row],[Ration]],Table22[#All],2,FALSE)) ->  | E118: 142.75 | F118: 1.93 | G118: =Table13[[#This Row],[Bodyweight Mid-point (kg)]]*1000 -> 1930 | H118: 111 | I118: =Table13[[#This Row],[Feed Intake Mid-point (g/bird/day)]]*7 -> 777 | J118: =Table13[[#This Row],[Feed Intake (g/bird/week)]]+J117 -> 19117 | K118: 62.4 | L118: =(Table13[[#This Row],[Hen-Housed Eggs Cumulative Mid-point]]*Table13[[#This Row],[Average Egg Weight Mid-point (g/egg)]]) -> 8907.6
A119: Brown Colony | B119: 42 | C119: =IF(AND(Table13[[#This Row],[AGE (weeks)]]>='Diet input details'!$C$16,Table13[[#This Row],[AGE (weeks)]]<='Diet input details'!$D$16),"Ration 1",IF(AND(Table13[[#This Row],[AGE (weeks)]]>='Diet input details'!$C$17,Table13[[#This Row],[AGE (weeks)]]<='Diet input details'!$D$17),"Ration 2",IF(AND(Table13[[#This Row],[AGE (weeks)]]>='Diet input details'!$C$18,Table13[[#This Row],[AGE (weeks)]]<='Diet input details'!$D$18),"Ration 3",IF(AND(Table13[[#This Row],[AGE (weeks)]]>='Diet input details'!$C$19,Table13[[#This Row],[AGE (weeks)]]<='Diet input details'!$D$19),"Ration 4",IF(AND(Table13[[#This Row],[AGE (weeks)]]>='Diet input details'!$C$20,Table13[[#This Row],[AGE (weeks)]]<='Diet input details'!$D$20),"Ration 5", "Clear"))))) -> Clear | D119: =(VLOOKUP(Table13[[#This Row],[Ration]],Table22[#All],2,FALSE)) ->  | E119: 149.1 | F119: 1.94 | G119: =Table13[[#This Row],[Bodyweight Mid-point (kg)]]*1000 -> 1940 | H119: 111 | I119: =Table13[[#This Row],[Feed Intake Mid-point (g/bird/day)]]*7 -> 777 | J119: =Table13[[#This Row],[Feed Intake (g/bird/week)]]+J118 -> 19894 | K119: 62.6 | L119: =(Table13[[#This Row],[Hen-Housed Eggs Cumulative Mid-point]]*Table13[[#This Row],[Average Egg Weight Mid-point (g/egg)]]) -> 9333.66
A120: Brown Colony | B120: 43 | C120: =IF(AND(Table13[[#This Row],[AGE (weeks)]]>='Diet input details'!$C$16,Table13[[#This Row],[AGE (weeks)]]<='Diet input details'!$D$16),"Ration 1",IF(AND(Table13[[#This Row],[AGE (weeks)]]>='Diet input details'!$C$17,Table13[[#This Row],[AGE (weeks)]]<='Diet input details'!$D$17),"Ration 2",IF(AND(Table13[[#This Row],[AGE (weeks)]]>='Diet input details'!$C$18,Table13[[#This Row],[AGE (weeks)]]<='Diet input details'!$D$18),"Ration 3",IF(AND(Table13[[#This Row],[AGE (weeks)]]>='Diet input details'!$C$19,Table13[[#This Row],[AGE (weeks)]]<='Diet input details'!$D$19),"Ration 4",IF(AND(Table13[[#This Row],[AGE (weeks)]]>='Diet input details'!$C$20,Table13[[#This Row],[AGE (weeks)]]<='Diet input details'!$D$20),"Ration 5", "Clear"))))) -> Clear | D120: =(VLOOKUP(Table13[[#This Row],[Ration]],Table22[#All],2,FALSE)) ->  | E120: 155.35 | F120: 1.94 | G120: =Table13[[#This Row],[Bodyweight Mid-point (kg)]]*1000 -> 1940 | H120: 111 | I120: =Table13[[#This Row],[Feed Intake Mid-point (g/bird/day)]]*7 -> 777 | J120: =Table13[[#This Row],[Feed Intake (g/bird/week)]]+J119 -> 20671 | K120: 62.8 | L120: =(Table13[[#This Row],[Hen-Housed Eggs Cumulative Mid-point]]*Table13[[#This Row],[Average Egg Weight Mid-point (g/egg)]]) -> 9755.98
A121: Brown Colony | B121: 44 | C121: =IF(AND(Table13[[#This Row],[AGE (weeks)]]>='Diet input details'!$C$16,Table13[[#This Row],[AGE (weeks)]]<='Diet input details'!$D$16),"Ration 1",IF(AND(Table13[[#This Row],[AGE (weeks)]]>='Diet input details'!$C$17,Table13[[#This Row],[AGE (weeks)]]<='Diet input details'!$D$17),"Ration 2",IF(AND(Table13[[#This Row],[AGE (weeks)]]>='Diet input details'!$C$18,Table13[[#This Row],[AGE (weeks)]]<='Diet input details'!$D$18),"Ration 3",IF(AND(Table13[[#This Row],[AGE (weeks)]]>='Diet input details'!$C$19,Table13[[#This Row],[AGE (weeks)]]<='Diet input details'!$D$19),"Ration 4",IF(AND(Table13[[#This Row],[AGE (weeks)]]>='Diet input details'!$C$20,Table13[[#This Row],[AGE (weeks)]]<='Diet input details'!$D$20),"Ration 5", "Clear"))))) -> Clear | D121: =(VLOOKUP(Table13[[#This Row],[Ration]],Table22[#All],2,FALSE)) ->  | E121: 161.55 | F121: 1.94 | G121: =Table13[[#This Row],[Bodyweight Mid-point (kg)]]*1000 -> 1940 | H121: 111 | I121: =Table13[[#This Row],[Feed Intake Mid-point (g/bird/day)]]*7 -> 777 | J121: =Table13[[#This Row],[Feed Intake (g/bird/week)]]+J120 -> 21448 | K121: 62.9 | L121: =(Table13[[#This Row],[Hen-Housed Eggs Cumulative Mid-point]]*Table13[[#This Row],[Average Egg Weight Mid-point (g/egg)]]) -> 10161.495
A122: Brown Colony | B122: 45 | C122: =IF(AND(Table13[[#This Row],[AGE (weeks)]]>='Diet input details'!$C$16,Table13[[#This Row],[AGE (weeks)]]<='Diet input details'!$D$16),"Ration 1",IF(AND(Table13[[#This Row],[AGE (weeks)]]>='Diet input details'!$C$17,Table13[[#This Row],[AGE (weeks)]]<='Diet input details'!$D$17),"Ration 2",IF(AND(Table13[[#This Row],[AGE (weeks)]]>='Diet input details'!$C$18,Table13[[#This Row],[AGE (weeks)]]<='Diet input details'!$D$18),"Ration 3",IF(AND(Table13[[#This Row],[AGE (weeks)]]>='Diet input details'!$C$19,Table13[[#This Row],[AGE (weeks)]]<='Diet input details'!$D$19),"Ration 4",IF(AND(Table13[[#This Row],[AGE (weeks)]]>='Diet input details'!$C$20,Table13[[#This Row],[AGE (weeks)]]<='Diet input details'!$D$20),"Ration 5", "Clear"))))) -> Clear | D122: =(VLOOKUP(Table13[[#This Row],[Ration]],Table22[#All],2,FALSE)) ->  | E122: 167.8 | F122: 1.95 | G122: =Table13[[#This Row],[Bodyweight Mid-point (kg)]]*1000 -> 1950 | H122: 110 | I122: =Table13[[#This Row],[Feed Intake Mid-point (g/bird/day)]]*7 -> 770 | J122: =Table13[[#This Row],[Feed Intake (g/bird/week)]]+J121 -> 22218 | K122: 62.9 | L122: =(Table13[[#This Row],[Hen-Housed Eggs Cumulative Mid-point]]*Table13[[#This Row],[Average Egg Weight Mid-point (g/egg)]]) -> 10554.62
A123: Brown Colony | B123: 46 | C123: =IF(AND(Table13[[#This Row],[AGE (weeks)]]>='Diet input details'!$C$16,Table13[[#This Row],[AGE (weeks)]]<='Diet input details'!$D$16),"Ration 1",IF(AND(Table13[[#This Row],[AGE (weeks)]]>='Diet input details'!$C$17,Table13[[#This Row],[AGE (weeks)]]<='Diet input details'!$D$17),"Ration 2",IF(AND(Table13[[#This Row],[AGE (weeks)]]>='Diet input details'!$C$18,Table13[[#This Row],[AGE (weeks)]]<='Diet input details'!$D$18),"Ration 3",IF(AND(Table13[[#This Row],[AGE (weeks)]]>='Diet input details'!$C$19,Table13[[#This Row],[AGE (weeks)]]<='Diet input details'!$D$19),"Ration 4",IF(AND(Table13[[#This Row],[AGE (weeks)]]>='Diet input details'!$C$20,Table13[[#This Row],[AGE (weeks)]]<='Diet input details'!$D$20),"Ration 5", "Clear"))))) -> Clear | D123: =(VLOOKUP(Table13[[#This Row],[Ration]],Table22[#All],2,FALSE)) ->  | E123: 174 | F123: 1.95 | G123: =Table13[[#This Row],[Bodyweight Mid-point (kg)]]*1000 -> 1950 | H123: 110 | I123: =Table13[[#This Row],[Feed Intake Mid-point (g/bird/day)]]*7 -> 770 | J123: =Table13[[#This Row],[Feed Intake (g/bird/week)]]+J122 -> 22988 | K123: 63 | L123: =(Table13[[#This Row],[Hen-Housed Eggs Cumulative Mid-point]]*Table13[[#This Row],[Average Egg Weight Mid-point (g/egg)]]) -> 10962
A124: Brown Colony | B124: 47 | C124: =IF(AND(Table13[[#This Row],[AGE (weeks)]]>='Diet input details'!$C$16,Table13[[#This Row],[AGE (weeks)]]<='Diet input details'!$D$16),"Ration 1",IF(AND(Table13[[#This Row],[AGE (weeks)]]>='Diet input details'!$C$17,Table13[[#This Row],[AGE (weeks)]]<='Diet input details'!$D$17),"Ration 2",IF(AND(Table13[[#This Row],[AGE (weeks)]]>='Diet input details'!$C$18,Table13[[#This Row],[AGE (weeks)]]<='Diet input details'!$D$18),"Ration 3",IF(AND(Table13[[#This Row],[AGE (weeks)]]>='Diet input details'!$C$19,Table13[[#This Row],[AGE (weeks)]]<='Diet input details'!$D$19),"Ration 4",IF(AND(Table13[[#This Row],[AGE (weeks)]]>='Diet input details'!$C$20,Table13[[#This Row],[AGE (weeks)]]<='Diet input details'!$D$20),"Ration 5", "Clear"))))) -> Clear | D124: =(VLOOKUP(Table13[[#This Row],[Ration]],Table22[#All],2,FALSE)) ->  | E124: 180.05 | F124: 1.95 | G124: =Table13[[#This Row],[Bodyweight Mid-point (kg)]]*1000 -> 1950 | H124: 110 | I124: =Table13[[#This Row],[Feed Intake Mid-point (g/bird/day)]]*7 -> 770 | J124: =Table13[[#This Row],[Feed Intake (g/bird/week)]]+J123 -> 23758 | K124: 63.1 | L124: =(Table13[[#This Row],[Hen-Housed Eggs Cumulative Mid-point]]*Table13[[#This Row],[Average Egg Weight Mid-point (g/egg)]]) -> 11361.155
A125: Brown Colony | B125: 48 | C125: =IF(AND(Table13[[#This Row],[AGE (weeks)]]>='Diet input details'!$C$16,Table13[[#This Row],[AGE (weeks)]]<='Diet input details'!$D$16),"Ration 1",IF(AND(Table13[[#This Row],[AGE (weeks)]]>='Diet input details'!$C$17,Table13[[#This Row],[AGE (weeks)]]<='Diet input details'!$D$17),"Ration 2",IF(AND(Table13[[#This Row],[AGE (weeks)]]>='Diet input details'!$C$18,Table13[[#This Row],[AGE (weeks)]]<='Diet input details'!$D$18),"Ration 3",IF(AND(Table13[[#This Row],[AGE (weeks)]]>='Diet input details'!$C$19,Table13[[#This Row],[AGE (weeks)]]<='Diet input details'!$D$19),"Ration 4",IF(AND(Table13[[#This Row],[AGE (weeks)]]>='Diet input details'!$C$20,Table13[[#This Row],[AGE (weeks)]]<='Diet input details'!$D$20),"Ration 5", "Clear"))))) -> Clear | D125: =(VLOOKUP(Table13[[#This Row],[Ration]],Table22[#All],2,FALSE)) ->  | E125: 186.2 | F125: 1.95 | G125: =Table13[[#This Row],[Bodyweight Mid-point (kg)]]*1000 -> 1950 | H125: 110 | I125: =Table13[[#This Row],[Feed Intake Mid-point (g/bird/day)]]*7 -> 770 | J125: =Table13[[#This Row],[Feed Intake (g/bird/week)]]+J124 -> 24528 | K125: 63.2 | L125: =(Table13[[#This Row],[Hen-Housed Eggs Cumulative Mid-point]]*Table13[[#This Row],[Average Egg Weight Mid-point (g/egg)]]) -> 11767.84
A126: Brown Colony | B126: 49 | C126: =IF(AND(Table13[[#This Row],[AGE (weeks)]]>='Diet input details'!$C$16,Table13[[#This Row],[AGE (weeks)]]<='Diet input details'!$D$16),"Ration 1",IF(AND(Table13[[#This Row],[AGE (weeks)]]>='Diet input details'!$C$17,Table13[[#This Row],[AGE (weeks)]]<='Diet input details'!$D$17),"Ration 2",IF(AND(Table13[[#This Row],[AGE (weeks)]]>='Diet input details'!$C$18,Table13[[#This Row],[AGE (weeks)]]<='Diet input details'!$D$18),"Ration 3",IF(AND(Table13[[#This Row],[AGE (weeks)]]>='Diet input details'!$C$19,Table13[[#This Row],[AGE (weeks)]]<='Diet input details'!$D$19),"Ration 4",IF(AND(Table13[[#This Row],[AGE (weeks)]]>='Diet input details'!$C$20,Table13[[#This Row],[AGE (weeks)]]<='Diet input details'!$D$20),"Ration 5", "Clear"))))) -> Clear | D126: =(VLOOKUP(Table13[[#This Row],[Ration]],Table22[#All],2,FALSE)) ->  | E126: 192.3 | F126: 1.95 | G126: =Table13[[#This Row],[Bodyweight Mid-point (kg)]]*1000 -> 1950 | H126: 110 | I126: =Table13[[#This Row],[Feed Intake Mid-point (g/bird/day)]]*7 -> 770 | J126: =Table13[[#This Row],[Feed Intake (g/bird/week)]]+J125 -> 25298 | K126: 63.3 | L126: =(Table13[[#This Row],[Hen-Housed Eggs Cumulative Mid-point]]*Table13[[#This Row],[Average Egg Weight Mid-point (g/egg)]]) -> 12172.59
A127: Brown Colony | B127: 50 | C127: =IF(AND(Table13[[#This Row],[AGE (weeks)]]>='Diet input details'!$C$16,Table13[[#This Row],[AGE (weeks)]]<='Diet input details'!$D$16),"Ration 1",IF(AND(Table13[[#This Row],[AGE (weeks)]]>='Diet input details'!$C$17,Table13[[#This Row],[AGE (weeks)]]<='Diet input details'!$D$17),"Ration 2",IF(AND(Table13[[#This Row],[AGE (weeks)]]>='Diet input details'!$C$18,Table13[[#This Row],[AGE (weeks)]]<='Diet input details'!$D$18),"Ration 3",IF(AND(Table13[[#This Row],[AGE (weeks)]]>='Diet input details'!$C$19,Table13[[#This Row],[AGE (weeks)]]<='Diet input details'!$D$19),"Ration 4",IF(AND(Table13[[#This Row],[AGE (weeks)]]>='Diet input details'!$C$20,Table13[[#This Row],[AGE (weeks)]]<='Diet input details'!$D$20),"Ration 5", "Clear"))))) -> Clear | D127: =(VLOOKUP(Table13[[#This Row],[Ration]],Table22[#All],2,FALSE)) ->  | E127: 198.35 | F127: 1.95 | G127: =Table13[[#This Row],[Bodyweight Mid-point (kg)]]*1000 -> 1950 | H127: 110 | I127: =Table13[[#This Row],[Feed Intake Mid-point (g/bird/day)]]*7 -> 770 | J127: =Table13[[#This Row],[Feed Intake (g/bird/week)]]+J126 -> 26068 | K127: 63.4 | L127: =(Table13[[#This Row],[Hen-Housed Eggs Cumulative Mid-point]]*Table13[[#This Row],[Average Egg Weight Mid-point (g/egg)]]) -> 12575.39
A128: Brown Colony | B128: 51 | C128: =IF(AND(Table13[[#This Row],[AGE (weeks)]]>='Diet input details'!$C$16,Table13[[#This Row],[AGE (weeks)]]<='Diet input details'!$D$16),"Ration 1",IF(AND(Table13[[#This Row],[AGE (weeks)]]>='Diet input details'!$C$17,Table13[[#This Row],[AGE (weeks)]]<='Diet input details'!$D$17),"Ration 2",IF(AND(Table13[[#This Row],[AGE (weeks)]]>='Diet input details'!$C$18,Table13[[#This Row],[AGE (weeks)]]<='Diet input details'!$D$18),"Ration 3",IF(AND(Table13[[#This Row],[AGE (weeks)]]>='Diet input details'!$C$19,Table13[[#This Row],[AGE (weeks)]]<='Diet input details'!$D$19),"Ration 4",IF(AND(Table13[[#This Row],[AGE (weeks)]]>='Diet input details'!$C$20,Table13[[#This Row],[AGE (weeks)]]<='Diet input details'!$D$20),"Ration 5", "Clear"))))) -> Clear | D128: =(VLOOKUP(Table13[[#This Row],[Ration]],Table22[#All],2,FALSE)) ->  | E128: 204.4 | F128: 1.95 | G128: =Table13[[#This Row],[Bodyweight Mid-point (kg)]]*1000 -> 1950 | H128: 109 | I128: =Table13[[#This Row],[Feed Intake Mid-point (g/bird/day)]]*7 -> 763 | J128: =Table13[[#This Row],[Feed Intake (g/bird/week)]]+J127 -> 26831 | K128: 63.4 | L128: =(Table13[[#This Row],[Hen-Housed Eggs Cumulative Mid-point]]*Table13[[#This Row],[Average Egg Weight Mid-point (g/egg)]]) -> 12958.96
A129: Brown Colony | B129: 52 | C129: =IF(AND(Table13[[#This Row],[AGE (weeks)]]>='Diet input details'!$C$16,Table13[[#This Row],[AGE (weeks)]]<='Diet input details'!$D$16),"Ration 1",IF(AND(Table13[[#This Row],[AGE (weeks)]]>='Diet input details'!$C$17,Table13[[#This Row],[AGE (weeks)]]<='Diet input details'!$D$17),"Ration 2",IF(AND(Table13[[#This Row],[AGE (weeks)]]>='Diet input details'!$C$18,Table13[[#This Row],[AGE (weeks)]]<='Diet input details'!$D$18),"Ration 3",IF(AND(Table13[[#This Row],[AGE (weeks)]]>='Diet input details'!$C$19,Table13[[#This Row],[AGE (weeks)]]<='Diet input details'!$D$19),"Ration 4",IF(AND(Table13[[#This Row],[AGE (weeks)]]>='Diet input details'!$C$20,Table13[[#This Row],[AGE (weeks)]]<='Diet input details'!$D$20),"Ration 5", "Clear"))))) -> Clear | D129: =(VLOOKUP(Table13[[#This Row],[Ration]],Table22[#All],2,FALSE)) ->  | E129: 210.4 | F129: 1.95 | G129: =Table13[[#This Row],[Bodyweight Mid-point (kg)]]*1000 -> 1950 | H129: 109 | I129: =Table13[[#This Row],[Feed Intake Mid-point (g/bird/day)]]*7 -> 763 | J129: =Table13[[#This Row],[Feed Intake (g/bird/week)]]+J128 -> 27594 | K129: 63.5 | L129: =(Table13[[#This Row],[Hen-Housed Eggs Cumulative Mid-point]]*Table13[[#This Row],[Average Egg Weight Mid-point (g/egg)]]) -> 13360.4
A130: Brown Colony | B130: 53 | C130: =IF(AND(Table13[[#This Row],[AGE (weeks)]]>='Diet input details'!$C$16,Table13[[#This Row],[AGE (weeks)]]<='Diet input details'!$D$16),"Ration 1",IF(AND(Table13[[#This Row],[AGE (weeks)]]>='Diet input details'!$C$17,Table13[[#This Row],[AGE (weeks)]]<='Diet input details'!$D$17),"Ration 2",IF(AND(Table13[[#This Row],[AGE (weeks)]]>='Diet input details'!$C$18,Table13[[#This Row],[AGE (weeks)]]<='Diet input details'!$D$18),"Ration 3",IF(AND(Table13[[#This Row],[AGE (weeks)]]>='Diet input details'!$C$19,Table13[[#This Row],[AGE (weeks)]]<='Diet input details'!$D$19),"Ration 4",IF(AND(Table13[[#This Row],[AGE (weeks)]]>='Diet input details'!$C$20,Table13[[#This Row],[AGE (weeks)]]<='Diet input details'!$D$20),"Ration 5", "Clear"))))) -> Clear | D130: =(VLOOKUP(Table13[[#This Row],[Ration]],Table22[#All],2,FALSE)) ->  | E130: 216.4 | F130: 1.95 | G130: =Table13[[#This Row],[Bodyweight Mid-point (kg)]]*1000 -> 1950 | H130: 109 | I130: =Table13[[#This Row],[Feed Intake Mid-point (g/bird/day)]]*7 -> 763 | J130: =Table13[[#This Row],[Feed Intake (g/bird/week)]]+J129 -> 28357 | K130: 63.5 | L130: =(Table13[[#This Row],[Hen-Housed Eggs Cumulative Mid-point]]*Table13[[#This Row],[Average Egg Weight Mid-point (g/egg)]]) -> 13741.4
A131: Brown Colony | B131: 54 | C131: =IF(AND(Table13[[#This Row],[AGE (weeks)]]>='Diet input details'!$C$16,Table13[[#This Row],[AGE (weeks)]]<='Diet input details'!$D$16),"Ration 1",IF(AND(Table13[[#This Row],[AGE (weeks)]]>='Diet input details'!$C$17,Table13[[#This Row],[AGE (weeks)]]<='Diet input details'!$D$17),"Ration 2",IF(AND(Table13[[#This Row],[AGE (weeks)]]>='Diet input details'!$C$18,Table13[[#This Row],[AGE (weeks)]]<='Diet input details'!$D$18),"Ration 3",IF(AND(Table13[[#This Row],[AGE (weeks)]]>='Diet input details'!$C$19,Table13[[#This Row],[AGE (weeks)]]<='Diet input details'!$D$19),"Ration 4",IF(AND(Table13[[#This Row],[AGE (weeks)]]>='Diet input details'!$C$20,Table13[[#This Row],[AGE (weeks)]]<='Diet input details'!$D$20),"Ration 5", "Clear"))))) -> Clear | D131: =(VLOOKUP(Table13[[#This Row],[Ration]],Table22[#All],2,FALSE)) ->  | E131: 222.35 | F131: 1.95 | G131: =Table13[[#This Row],[Bodyweight Mid-point (kg)]]*1000 -> 1950 | H131: 109 | I131: =Table13[[#This Row],[Feed Intake Mid-point (g/bird/day)]]*7 -> 763 | J131: =Table13[[#This Row],[Feed Intake (g/bird/week)]]+J130 -> 29120 | K131: 63.5 | L131: =(Table13[[#This Row],[Hen-Housed Eggs Cumulative Mid-point]]*Table13[[#This Row],[Average Egg Weight Mid-point (g/egg)]]) -> 14119.225
A132: Brown Colony | B132: 55 | C132: =IF(AND(Table13[[#This Row],[AGE (weeks)]]>='Diet input details'!$C$16,Table13[[#This Row],[AGE (weeks)]]<='Diet input details'!$D$16),"Ration 1",IF(AND(Table13[[#This Row],[AGE (weeks)]]>='Diet input details'!$C$17,Table13[[#This Row],[AGE (weeks)]]<='Diet input details'!$D$17),"Ration 2",IF(AND(Table13[[#This Row],[AGE (weeks)]]>='Diet input details'!$C$18,Table13[[#This Row],[AGE (weeks)]]<='Diet input details'!$D$18),"Ration 3",IF(AND(Table13[[#This Row],[AGE (weeks)]]>='Diet input details'!$C$19,Table13[[#This Row],[AGE (weeks)]]<='Diet input details'!$D$19),"Ration 4",IF(AND(Table13[[#This Row],[AGE (weeks)]]>='Diet input details'!$C$20,Table13[[#This Row],[AGE (weeks)]]<='Diet input details'!$D$20),"Ration 5", "Clear"))))) -> Clear | D132: =(VLOOKUP(Table13[[#This Row],[Ration]],Table22[#All],2,FALSE)) ->  | E132: 228.3 | F132: 1.96 | G132: =Table13[[#This Row],[Bodyweight Mid-point (kg)]]*1000 -> 1960 | H132: 109 | I132: =Table13[[#This Row],[Feed Intake Mid-point (g/bird/day)]]*7 -> 763 | J132: =Table13[[#This Row],[Feed Intake (g/bird/week)]]+J131 -> 29883 | K132: 63.5 | L132: =(Table13[[#This Row],[Hen-Housed Eggs Cumulative Mid-point]]*Table13[[#This Row],[Average Egg Weight Mid-point (g/egg)]]) -> 14497.05
A133: Brown Colony | B133: 56 | C133: =IF(AND(Table13[[#This Row],[AGE (weeks)]]>='Diet input details'!$C$16,Table13[[#This Row],[AGE (weeks)]]<='Diet input details'!$D$16),"Ration 1",IF(AND(Table13[[#This Row],[AGE (weeks)]]>='Diet input details'!$C$17,Table13[[#This Row],[AGE (weeks)]]<='Diet input details'!$D$17),"Ration 2",IF(AND(Table13[[#This Row],[AGE (weeks)]]>='Diet input details'!$C$18,Table13[[#This Row],[AGE (weeks)]]<='Diet input details'!$D$18),"Ration 3",IF(AND(Table13[[#This Row],[AGE (weeks)]]>='Diet input details'!$C$19,Table13[[#This Row],[AGE (weeks)]]<='Diet input details'!$D$19),"Ration 4",IF(AND(Table13[[#This Row],[AGE (weeks)]]>='Diet input details'!$C$20,Table13[[#This Row],[AGE (weeks)]]<='Diet input details'!$D$20),"Ration 5", "Clear"))))) -> Clear | D133: =(VLOOKUP(Table13[[#This Row],[Ration]],Table22[#All],2,FALSE)) ->  | E133: 234.25 | F133: 1.96 | G133: =Table13[[#This Row],[Bodyweight Mid-point (kg)]]*1000 -> 1960 | H133: 109 | I133: =Table13[[#This Row],[Feed Intake Mid-point (g/bird/day)]]*7 -> 763 | J133: =Table13[[#This Row],[Feed Intake (g/bird/week)]]+J132 -> 30646 | K133: 63.6 | L133: =(Table13[[#This Row],[Hen-Housed Eggs Cumulative Mid-point]]*Table13[[#This Row],[Average Egg Weight Mid-point (g/egg)]]) -> 14898.3
A134: Brown Colony | B134: 57 | C134: =IF(AND(Table13[[#This Row],[AGE (weeks)]]>='Diet input details'!$C$16,Table13[[#This Row],[AGE (weeks)]]<='Diet input details'!$D$16),"Ration 1",IF(AND(Table13[[#This Row],[AGE (weeks)]]>='Diet input details'!$C$17,Table13[[#This Row],[AGE (weeks)]]<='Diet input details'!$D$17),"Ration 2",IF(AND(Table13[[#This Row],[AGE (weeks)]]>='Diet input details'!$C$18,Table13[[#This Row],[AGE (weeks)]]<='Diet input details'!$D$18),"Ration 3",IF(AND(Table13[[#This Row],[AGE (weeks)]]>='Diet input details'!$C$19,Table13[[#This Row],[AGE (weeks)]]<='Diet input details'!$D$19),"Ration 4",IF(AND(Table13[[#This Row],[AGE (weeks)]]>='Diet input details'!$C$20,Table13[[#This Row],[AGE (weeks)]]<='Diet input details'!$D$20),"Ration 5", "Clear"))))) -> Clear | D134: =(VLOOKUP(Table13[[#This Row],[Ration]],Table22[#All],2,FALSE)) ->  | E134: 240.1 | F134: 1.96 | G134: =Table13[[#This Row],[Bodyweight Mid-point (kg)]]*1000 -> 1960 | H134: 109 | I134: =Table13[[#This Row],[Feed Intake Mid-point (g/bird/day)]]*7 -> 763 | J134: =Table13[[#This Row],[Feed Intake (g/bird/week)]]+J133 -> 31409 | K134: 63.6 | L134: =(Table13[[#This Row],[Hen-Housed Eggs Cumulative Mid-point]]*Table13[[#This Row],[Average Egg Weight Mid-point (g/egg)]]) -> 15270.36
A135: Brown Colony | B135: 58 | C135: =IF(AND(Table13[[#This Row],[AGE (weeks)]]>='Diet input details'!$C$16,Table13[[#This Row],[AGE (weeks)]]<='Diet input details'!$D$16),"Ration 1",IF(AND(Table13[[#This Row],[AGE (weeks)]]>='Diet input details'!$C$17,Table13[[#This Row],[AGE (weeks)]]<='Diet input details'!$D$17),"Ration 2",IF(AND(Table13[[#This Row],[AGE (weeks)]]>='Diet input details'!$C$18,Table13[[#This Row],[AGE (weeks)]]<='Diet input details'!$D$18),"Ration 3",IF(AND(Table13[[#This Row],[AGE (weeks)]]>='Diet input details'!$C$19,Table13[[#This Row],[AGE (weeks)]]<='Diet input details'!$D$19),"Ration 4",IF(AND(Table13[[#This Row],[AGE (weeks)]]>='Diet input details'!$C$20,Table13[[#This Row],[AGE (weeks)]]<='Diet input details'!$D$20),"Ration 5", "Clear"))))) -> Clear | D135: =(VLOOKUP(Table13[[#This Row],[Ration]],Table22[#All],2,FALSE)) ->  | E135: 245.95 | F135: 1.96 | G135: =Table13[[#This Row],[Bodyweight Mid-point (kg)]]*1000 -> 1960 | H135: 109 | I135: =Table13[[#This Row],[Feed Intake Mid-point (g/bird/day)]]*7 -> 763 | J135: =Table13[[#This Row],[Feed Intake (g/bird/week)]]+J134 -> 32172 | K135: 63.6 | L135: =(Table13[[#This Row],[Hen-Housed Eggs Cumulative Mid-point]]*Table13[[#This Row],[Average Egg Weight Mid-point (g/egg)]]) -> 15642.42
A136: Brown Colony | B136: 59 | C136: =IF(AND(Table13[[#This Row],[AGE (weeks)]]>='Diet input details'!$C$16,Table13[[#This Row],[AGE (weeks)]]<='Diet input details'!$D$16),"Ration 1",IF(AND(Table13[[#This Row],[AGE (weeks)]]>='Diet input details'!$C$17,Table13[[#This Row],[AGE (weeks)]]<='Diet input details'!$D$17),"Ration 2",IF(AND(Table13[[#This Row],[AGE (weeks)]]>='Diet input details'!$C$18,Table13[[#This Row],[AGE (weeks)]]<='Diet input details'!$D$18),"Ration 3",IF(AND(Table13[[#This Row],[AGE (weeks)]]>='Diet input details'!$C$19,Table13[[#This Row],[AGE (weeks)]]<='Diet input details'!$D$19),"Ration 4",IF(AND(Table13[[#This Row],[AGE (weeks)]]>='Diet input details'!$C$20,Table13[[#This Row],[AGE (weeks)]]<='Diet input details'!$D$20),"Ration 5", "Clear"))))) -> Clear | D136: =(VLOOKUP(Table13[[#This Row],[Ration]],Table22[#All],2,FALSE)) ->  | E136: 251.8 | F136: 1.96 | G136: =Table13[[#This Row],[Bodyweight Mid-point (kg)]]*1000 -> 1960 | H136: 109 | I136: =Table13[[#This Row],[Feed Intake Mid-point (g/bird/day)]]*7 -> 763 | J136: =Table13[[#This Row],[Feed Intake (g/bird/week)]]+J135 -> 32935 | K136: 63.7 | L136: =(Table13[[#This Row],[Hen-Housed Eggs Cumulative Mid-point]]*Table13[[#This Row],[Average Egg Weight Mid-point (g/egg)]]) -> 16039.66
A137: Brown Colony | B137: 60 | C137: =IF(AND(Table13[[#This Row],[AGE (weeks)]]>='Diet input details'!$C$16,Table13[[#This Row],[AGE (weeks)]]<='Diet input details'!$D$16),"Ration 1",IF(AND(Table13[[#This Row],[AGE (weeks)]]>='Diet input details'!$C$17,Table13[[#This Row],[AGE (weeks)]]<='Diet input details'!$D$17),"Ration 2",IF(AND(Table13[[#This Row],[AGE (weeks)]]>='Diet input details'!$C$18,Table13[[#This Row],[AGE (weeks)]]<='Diet input details'!$D$18),"Ration 3",IF(AND(Table13[[#This Row],[AGE (weeks)]]>='Diet input details'!$C$19,Table13[[#This Row],[AGE (weeks)]]<='Diet input details'!$D$19),"Ration 4",IF(AND(Table13[[#This Row],[AGE (weeks)]]>='Diet input details'!$C$20,Table13[[#This Row],[AGE (weeks)]]<='Diet input details'!$D$20),"Ration 5", "Clear"))))) -> Clear | D137: =(VLOOKUP(Table13[[#This Row],[Ration]],Table22[#All],2,FALSE)) ->  | E137: 257.6 | F137: 1.96 | G137: =Table13[[#This Row],[Bodyweight Mid-point (kg)]]*1000 -> 1960 | H137: 109 | I137: =Table13[[#This Row],[Feed Intake Mid-point (g/bird/day)]]*7 -> 763 | J137: =Table13[[#This Row],[Feed Intake (g/bird/week)]]+J136 -> 33698 | K137: 63.7 | L137: =(Table13[[#This Row],[Hen-Housed Eggs Cumulative Mid-point]]*Table13[[#This Row],[Average Egg Weight Mid-point (g/egg)]]) -> 16409.12
A138: Brown Colony | B138: 61 | C138: =IF(AND(Table13[[#This Row],[AGE (weeks)]]>='Diet input details'!$C$16,Table13[[#This Row],[AGE (weeks)]]<='Diet input details'!$D$16),"Ration 1",IF(AND(Table13[[#This Row],[AGE (weeks)]]>='Diet input details'!$C$17,Table13[[#This Row],[AGE (weeks)]]<='Diet input details'!$D$17),"Ration 2",IF(AND(Table13[[#This Row],[AGE (weeks)]]>='Diet input details'!$C$18,Table13[[#This Row],[AGE (weeks)]]<='Diet input details'!$D$18),"Ration 3",IF(AND(Table13[[#This Row],[AGE (weeks)]]>='Diet input details'!$C$19,Table13[[#This Row],[AGE (weeks)]]<='Diet input details'!$D$19),"Ration 4",IF(AND(Table13[[#This Row],[AGE (weeks)]]>='Diet input details'!$C$20,Table13[[#This Row],[AGE (weeks)]]<='Diet input details'!$D$20),"Ration 5", "Clear"))))) -> Clear | D138: =(VLOOKUP(Table13[[#This Row],[Ration]],Table22[#All],2,FALSE)) ->  | E138: 263.35 | F138: 1.96 | G138: =Table13[[#This Row],[Bodyweight Mid-point (kg)]]*1000 -> 1960 | H138: 109 | I138: =Table13[[#This Row],[Feed Intake Mid-point (g/bird/day)]]*7 -> 763 | J138: =Table13[[#This Row],[Feed Intake (g/bird/week)]]+J137 -> 34461 | K138: 63.8 | L138: =(Table13[[#This Row],[Hen-Housed Eggs Cumulative Mid-point]]*Table13[[#This Row],[Average Egg Weight Mid-point (g/egg)]]) -> 16801.73
A139: Brown Colony | B139: 62 | C139: =IF(AND(Table13[[#This Row],[AGE (weeks)]]>='Diet input details'!$C$16,Table13[[#This Row],[AGE (weeks)]]<='Diet input details'!$D$16),"Ration 1",IF(AND(Table13[[#This Row],[AGE (weeks)]]>='Diet input details'!$C$17,Table13[[#This Row],[AGE (weeks)]]<='Diet input details'!$D$17),"Ration 2",IF(AND(Table13[[#This Row],[AGE (weeks)]]>='Diet input details'!$C$18,Table13[[#This Row],[AGE (weeks)]]<='Diet input details'!$D$18),"Ration 3",IF(AND(Table13[[#This Row],[AGE (weeks)]]>='Diet input details'!$C$19,Table13[[#This Row],[AGE (weeks)]]<='Diet input details'!$D$19),"Ration 4",IF(AND(Table13[[#This Row],[AGE (weeks)]]>='Diet input details'!$C$20,Table13[[#This Row],[AGE (weeks)]]<='Diet input details'!$D$20),"Ration 5", "Clear"))))) -> Clear | D139: =(VLOOKUP(Table13[[#This Row],[Ration]],Table22[#All],2,FALSE)) ->  | E139: 269.1 | F139: 1.96 | G139: =Table13[[#This Row],[Bodyweight Mid-point (kg)]]*1000 -> 1960 | H139: 109 | I139: =Table13[[#This Row],[Feed Intake Mid-point (g/bird/day)]]*7 -> 763 | J139: =Table13[[#This Row],[Feed Intake (g/bird/week)]]+J138 -> 35224 | K139: 63.8 | L139: =(Table13[[#This Row],[Hen-Housed Eggs Cumulative Mid-point]]*Table13[[#This Row],[Average Egg Weight Mid-point (g/egg)]]) -> 17168.58
A140: Brown Colony | B140: 63 | C140: =IF(AND(Table13[[#This Row],[AGE (weeks)]]>='Diet input details'!$C$16,Table13[[#This Row],[AGE (weeks)]]<='Diet input details'!$D$16),"Ration 1",IF(AND(Table13[[#This Row],[AGE (weeks)]]>='Diet input details'!$C$17,Table13[[#This Row],[AGE (weeks)]]<='Diet input details'!$D$17),"Ration 2",IF(AND(Table13[[#This Row],[AGE (weeks)]]>='Diet input details'!$C$18,Table13[[#This Row],[AGE (weeks)]]<='Diet input details'!$D$18),"Ration 3",IF(AND(Table13[[#This Row],[AGE (weeks)]]>='Diet input details'!$C$19,Table13[[#This Row],[AGE (weeks)]]<='Diet input details'!$D$19),"Ration 4",IF(AND(Table13[[#This Row],[AGE (weeks)]]>='Diet input details'!$C$20,Table13[[#This Row],[AGE (weeks)]]<='Diet input details'!$D$20),"Ration 5", "Clear"))))) -> Clear | D140: =(VLOOKUP(Table13[[#This Row],[Ration]],Table22[#All],2,FALSE)) ->  | E140: 274.75 | F140: 1.96 | G140: =Table13[[#This Row],[Bodyweight Mid-point (kg)]]*1000 -> 1960 | H140: 109 | I140: =Table13[[#This Row],[Feed Intake Mid-point (g/bird/day)]]*7 -> 763 | J140: =Table13[[#This Row],[Feed Intake (g/bird/week)]]+J139 -> 35987 | K140: 63.9 | L140: =(Table13[[#This Row],[Hen-Housed Eggs Cumulative Mid-point]]*Table13[[#This Row],[Average Egg Weight Mid-point (g/egg)]]) -> 17556.525
A141: Brown Colony | B141: 64 | C141: =IF(AND(Table13[[#This Row],[AGE (weeks)]]>='Diet input details'!$C$16,Table13[[#This Row],[AGE (weeks)]]<='Diet input details'!$D$16),"Ration 1",IF(AND(Table13[[#This Row],[AGE (weeks)]]>='Diet input details'!$C$17,Table13[[#This Row],[AGE (weeks)]]<='Diet input details'!$D$17),"Ration 2",IF(AND(Table13[[#This Row],[AGE (weeks)]]>='Diet input details'!$C$18,Table13[[#This Row],[AGE (weeks)]]<='Diet input details'!$D$18),"Ration 3",IF(AND(Table13[[#This Row],[AGE (weeks)]]>='Diet input details'!$C$19,Table13[[#This Row],[AGE (weeks)]]<='Diet input details'!$D$19),"Ration 4",IF(AND(Table13[[#This Row],[AGE (weeks)]]>='Diet input details'!$C$20,Table13[[#This Row],[AGE (weeks)]]<='Diet input details'!$D$20),"Ration 5", "Clear"))))) -> Clear | D141: =(VLOOKUP(Table13[[#This Row],[Ration]],Table22[#All],2,FALSE)) ->  | E141: 280.5 | F141: 1.96 | G141: =Table13[[#This Row],[Bodyweight Mid-point (kg)]]*1000 -> 1960 | H141: 109 | I141: =Table13[[#This Row],[Feed Intake Mid-point (g/bird/day)]]*7 -> 763 | J141: =Table13[[#This Row],[Feed Intake (g/bird/week)]]+J140 -> 36750 | K141: 63.9 | L141: =(Table13[[#This Row],[Hen-Housed Eggs Cumulative Mid-point]]*Table13[[#This Row],[Average Egg Weight Mid-point (g/egg)]]) -> 17923.95
A142: Brown Colony | B142: 65 | C142: =IF(AND(Table13[[#This Row],[AGE (weeks)]]>='Diet input details'!$C$16,Table13[[#This Row],[AGE (weeks)]]<='Diet input details'!$D$16),"Ration 1",IF(AND(Table13[[#This Row],[AGE (weeks)]]>='Diet input details'!$C$17,Table13[[#This Row],[AGE (weeks)]]<='Diet input details'!$D$17),"Ration 2",IF(AND(Table13[[#This Row],[AGE (weeks)]]>='Diet input details'!$C$18,Table13[[#This Row],[AGE (weeks)]]<='Diet input details'!$D$18),"Ration 3",IF(AND(Table13[[#This Row],[AGE (weeks)]]>='Diet input details'!$C$19,Table13[[#This Row],[AGE (weeks)]]<='Diet input details'!$D$19),"Ration 4",IF(AND(Table13[[#This Row],[AGE (weeks)]]>='Diet input details'!$C$20,Table13[[#This Row],[AGE (weeks)]]<='Diet input details'!$D$20),"Ration 5", "Clear"))))) -> Clear | D142: =(VLOOKUP(Table13[[#This Row],[Ration]],Table22[#All],2,FALSE)) ->  | E142: 286.2 | F142: 1.96 | G142: =Table13[[#This Row],[Bodyweight Mid-point (kg)]]*1000 -> 1960 | H142: 109 | I142: =Table13[[#This Row],[Feed Intake Mid-point (g/bird/day)]]*7 -> 763 | J142: =Table13[[#This Row],[Feed Intake (g/bird/week)]]+J141 -> 37513 | K142: 64 | L142: =(Table13[[#This Row],[Hen-Housed Eggs Cumulative Mid-point]]*Table13[[#This Row],[Average Egg Weight Mid-point (g/egg)]]) -> 18316.8
A143: Brown Colony | B143: 66 | C143: =IF(AND(Table13[[#This Row],[AGE (weeks)]]>='Diet input details'!$C$16,Table13[[#This Row],[AGE (weeks)]]<='Diet input details'!$D$16),"Ration 1",IF(AND(Table13[[#This Row],[AGE (weeks)]]>='Diet input details'!$C$17,Table13[[#This Row],[AGE (weeks)]]<='Diet input details'!$D$17),"Ration 2",IF(AND(Table13[[#This Row],[AGE (weeks)]]>='Diet input details'!$C$18,Table13[[#This Row],[AGE (weeks)]]<='Diet input details'!$D$18),"Ration 3",IF(AND(Table13[[#This Row],[AGE (weeks)]]>='Diet input details'!$C$19,Table13[[#This Row],[AGE (weeks)]]<='Diet input details'!$D$19),"Ration 4",IF(AND(Table13[[#This Row],[AGE (weeks)]]>='Diet input details'!$C$20,Table13[[#This Row],[AGE (weeks)]]<='Diet input details'!$D$20),"Ration 5", "Clear"))))) -> Clear | D143: =(VLOOKUP(Table13[[#This Row],[Ration]],Table22[#All],2,FALSE)) ->  | E143: 291.75 | F143: 1.96 | G143: =Table13[[#This Row],[Bodyweight Mid-point (kg)]]*1000 -> 1960 | H143: 109 | I143: =Table13[[#This Row],[Feed Intake Mid-point (g/bird/day)]]*7 -> 763 | J143: =Table13[[#This Row],[Feed Intake (g/bird/week)]]+J142 -> 38276 | K143: 64 | L143: =(Table13[[#This Row],[Hen-Housed Eggs Cumulative Mid-point]]*Table13[[#This Row],[Average Egg Weight Mid-point (g/egg)]]) -> 18672
A144: Brown Colony | B144: 67 | C144: =IF(AND(Table13[[#This Row],[AGE (weeks)]]>='Diet input details'!$C$16,Table13[[#This Row],[AGE (weeks)]]<='Diet input details'!$D$16),"Ration 1",IF(AND(Table13[[#This Row],[AGE (weeks)]]>='Diet input details'!$C$17,Table13[[#This Row],[AGE (weeks)]]<='Diet input details'!$D$17),"Ration 2",IF(AND(Table13[[#This Row],[AGE (weeks)]]>='Diet input details'!$C$18,Table13[[#This Row],[AGE (weeks)]]<='Diet input details'!$D$18),"Ration 3",IF(AND(Table13[[#This Row],[AGE (weeks)]]>='Diet input details'!$C$19,Table13[[#This Row],[AGE (weeks)]]<='Diet input details'!$D$19),"Ration 4",IF(AND(Table13[[#This Row],[AGE (weeks)]]>='Diet input details'!$C$20,Table13[[#This Row],[AGE (weeks)]]<='Diet input details'!$D$20),"Ration 5", "Clear"))))) -> Clear | D144: =(VLOOKUP(Table13[[#This Row],[Ration]],Table22[#All],2,FALSE)) ->  | E144: 297.35 | F144: 1.96 | G144: =Table13[[#This Row],[Bodyweight Mid-point (kg)]]*1000 -> 1960 | H144: 109 | I144: =Table13[[#This Row],[Feed Intake Mid-point (g/bird/day)]]*7 -> 763 | J144: =Table13[[#This Row],[Feed Intake (g/bird/week)]]+J143 -> 39039 | K144: 64.1 | L144: =(Table13[[#This Row],[Hen-Housed Eggs Cumulative Mid-point]]*Table13[[#This Row],[Average Egg Weight Mid-point (g/egg)]]) -> 19060.135
A145: Brown Colony | B145: 68 | C145: =IF(AND(Table13[[#This Row],[AGE (weeks)]]>='Diet input details'!$C$16,Table13[[#This Row],[AGE (weeks)]]<='Diet input details'!$D$16),"Ration 1",IF(AND(Table13[[#This Row],[AGE (weeks)]]>='Diet input details'!$C$17,Table13[[#This Row],[AGE (weeks)]]<='Diet input details'!$D$17),"Ration 2",IF(AND(Table13[[#This Row],[AGE (weeks)]]>='Diet input details'!$C$18,Table13[[#This Row],[AGE (weeks)]]<='Diet input details'!$D$18),"Ration 3",IF(AND(Table13[[#This Row],[AGE (weeks)]]>='Diet input details'!$C$19,Table13[[#This Row],[AGE (weeks)]]<='Diet input details'!$D$19),"Ration 4",IF(AND(Table13[[#This Row],[AGE (weeks)]]>='Diet input details'!$C$20,Table13[[#This Row],[AGE (weeks)]]<='Diet input details'!$D$20),"Ration 5", "Clear"))))) -> Clear | D145: =(VLOOKUP(Table13[[#This Row],[Ration]],Table22[#All],2,FALSE)) ->  | E145: 302.9 | F145: 1.96 | G145: =Table13[[#This Row],[Bodyweight Mid-point (kg)]]*1000 -> 1960 | H145: 109 | I145: =Table13[[#This Row],[Feed Intake Mid-point (g/bird/day)]]*7 -> 763 | J145: =Table13[[#This Row],[Feed Intake (g/bird/week)]]+J144 -> 39802 | K145: 64.1 | L145: =(Table13[[#This Row],[Hen-Housed Eggs Cumulative Mid-point]]*Table13[[#This Row],[Average Egg Weight Mid-point (g/egg)]]) -> 19415.89
A146: Brown Colony | B146: 69 | C146: =IF(AND(Table13[[#This Row],[AGE (weeks)]]>='Diet input details'!$C$16,Table13[[#This Row],[AGE (weeks)]]<='Diet input details'!$D$16),"Ration 1",IF(AND(Table13[[#This Row],[AGE (weeks)]]>='Diet input details'!$C$17,Table13[[#This Row],[AGE (weeks)]]<='Diet input details'!$D$17),"Ration 2",IF(AND(Table13[[#This Row],[AGE (weeks)]]>='Diet input details'!$C$18,Table13[[#This Row],[AGE (weeks)]]<='Diet input details'!$D$18),"Ration 3",IF(AND(Table13[[#This Row],[AGE (weeks)]]>='Diet input details'!$C$19,Table13[[#This Row],[AGE (weeks)]]<='Diet input details'!$D$19),"Ration 4",IF(AND(Table13[[#This Row],[AGE (weeks)]]>='Diet input details'!$C$20,Table13[[#This Row],[AGE (weeks)]]<='Diet input details'!$D$20),"Ration 5", "Clear"))))) -> Clear | D146: =(VLOOKUP(Table13[[#This Row],[Ration]],Table22[#All],2,FALSE)) ->  | E146: 308.35 | F146: 1.96 | G146: =Table13[[#This Row],[Bodyweight Mid-point (kg)]]*1000 -> 1960 | H146: 109 | I146: =Table13[[#This Row],[Feed Intake Mid-point (g/bird/day)]]*7 -> 763 | J146: =Table13[[#This Row],[Feed Intake (g/bird/week)]]+J145 -> 40565 | K146: 64.2 | L146: =(Table13[[#This Row],[Hen-Housed Eggs Cumulative Mid-point]]*Table13[[#This Row],[Average Egg Weight Mid-point (g/egg)]]) -> 19796.07
A147: Brown Colony | B147: 70 | C147: =IF(AND(Table13[[#This Row],[AGE (weeks)]]>='Diet input details'!$C$16,Table13[[#This Row],[AGE (weeks)]]<='Diet input details'!$D$16),"Ration 1",IF(AND(Table13[[#This Row],[AGE (weeks)]]>='Diet input details'!$C$17,Table13[[#This Row],[AGE (weeks)]]<='Diet input details'!$D$17),"Ration 2",IF(AND(Table13[[#This Row],[AGE (weeks)]]>='Diet input details'!$C$18,Table13[[#This Row],[AGE (weeks)]]<='Diet input details'!$D$18),"Ration 3",IF(AND(Table13[[#This Row],[AGE (weeks)]]>='Diet input details'!$C$19,Table13[[#This Row],[AGE (weeks)]]<='Diet input details'!$D$19),"Ration 4",IF(AND(Table13[[#This Row],[AGE (weeks)]]>='Diet input details'!$C$20,Table13[[#This Row],[AGE (weeks)]]<='Diet input details'!$D$20),"Ration 5", "Clear"))))) -> Clear | D147: =(VLOOKUP(Table13[[#This Row],[Ration]],Table22[#All],2,FALSE)) ->  | E147: 313.85 | F147: 1.97 | G147: =Table13[[#This Row],[Bodyweight Mid-point (kg)]]*1000 -> 1970 | H147: 109 | I147: =Table13[[#This Row],[Feed Intake Mid-point (g/bird/day)]]*7 -> 763 | J147: =Table13[[#This Row],[Feed Intake (g/bird/week)]]+J146 -> 41328 | K147: 64.2 | L147: =(Table13[[#This Row],[Hen-Housed Eggs Cumulative Mid-point]]*Table13[[#This Row],[Average Egg Weight Mid-point (g/egg)]]) -> 20149.17
A148: Brown Colony | B148: 71 | C148: =IF(AND(Table13[[#This Row],[AGE (weeks)]]>='Diet input details'!$C$16,Table13[[#This Row],[AGE (weeks)]]<='Diet input details'!$D$16),"Ration 1",IF(AND(Table13[[#This Row],[AGE (weeks)]]>='Diet input details'!$C$17,Table13[[#This Row],[AGE (weeks)]]<='Diet input details'!$D$17),"Ration 2",IF(AND(Table13[[#This Row],[AGE (weeks)]]>='Diet input details'!$C$18,Table13[[#This Row],[AGE (weeks)]]<='Diet input details'!$D$18),"Ration 3",IF(AND(Table13[[#This Row],[AGE (weeks)]]>='Diet input details'!$C$19,Table13[[#This Row],[AGE (weeks)]]<='Diet input details'!$D$19),"Ration 4",IF(AND(Table13[[#This Row],[AGE (weeks)]]>='Diet input details'!$C$20,Table13[[#This Row],[AGE (weeks)]]<='Diet input details'!$D$20),"Ration 5", "Clear"))))) -> Clear | D148: =(VLOOKUP(Table13[[#This Row],[Ration]],Table22[#All],2,FALSE)) ->  | E148: 319.2 | F148: 1.97 | G148: =Table13[[#This Row],[Bodyweight Mid-point (kg)]]*1000 -> 1970 | H148: 109 | I148: =Table13[[#This Row],[Feed Intake Mid-point (g/bird/day)]]*7 -> 763 | J148: =Table13[[#This Row],[Feed Intake (g/bird/week)]]+J147 -> 42091 | K148: 64.3 | L148: =(Table13[[#This Row],[Hen-Housed Eggs Cumulative Mid-point]]*Table13[[#This Row],[Average Egg Weight Mid-point (g/egg)]]) -> 20524.56
A149: Brown Colony | B149: 72 | C149: =IF(AND(Table13[[#This Row],[AGE (weeks)]]>='Diet input details'!$C$16,Table13[[#This Row],[AGE (weeks)]]<='Diet input details'!$D$16),"Ration 1",IF(AND(Table13[[#This Row],[AGE (weeks)]]>='Diet input details'!$C$17,Table13[[#This Row],[AGE (weeks)]]<='Diet input details'!$D$17),"Ration 2",IF(AND(Table13[[#This Row],[AGE (weeks)]]>='Diet input details'!$C$18,Table13[[#This Row],[AGE (weeks)]]<='Diet input details'!$D$18),"Ration 3",IF(AND(Table13[[#This Row],[AGE (weeks)]]>='Diet input details'!$C$19,Table13[[#This Row],[AGE (weeks)]]<='Diet input details'!$D$19),"Ration 4",IF(AND(Table13[[#This Row],[AGE (weeks)]]>='Diet input details'!$C$20,Table13[[#This Row],[AGE (weeks)]]<='Diet input details'!$D$20),"Ration 5", "Clear"))))) -> Clear | D149: =(VLOOKUP(Table13[[#This Row],[Ration]],Table22[#All],2,FALSE)) ->  | E149: 324.6 | F149: 1.97 | G149: =Table13[[#This Row],[Bodyweight Mid-point (kg)]]*1000 -> 1970 | H149: 109 | I149: =Table13[[#This Row],[Feed Intake Mid-point (g/bird/day)]]*7 -> 763 | J149: =Table13[[#This Row],[Feed Intake (g/bird/week)]]+J148 -> 42854 | K149: 64.3 | L149: =(Table13[[#This Row],[Hen-Housed Eggs Cumulative Mid-point]]*Table13[[#This Row],[Average Egg Weight Mid-point (g/egg)]]) -> 20871.78
A150: Brown Colony | B150: 73 | C150: =IF(AND(Table13[[#This Row],[AGE (weeks)]]>='Diet input details'!$C$16,Table13[[#This Row],[AGE (weeks)]]<='Diet input details'!$D$16),"Ration 1",IF(AND(Table13[[#This Row],[AGE (weeks)]]>='Diet input details'!$C$17,Table13[[#This Row],[AGE (weeks)]]<='Diet input details'!$D$17),"Ration 2",IF(AND(Table13[[#This Row],[AGE (weeks)]]>='Diet input details'!$C$18,Table13[[#This Row],[AGE (weeks)]]<='Diet input details'!$D$18),"Ration 3",IF(AND(Table13[[#This Row],[AGE (weeks)]]>='Diet input details'!$C$19,Table13[[#This Row],[AGE (weeks)]]<='Diet input details'!$D$19),"Ration 4",IF(AND(Table13[[#This Row],[AGE (weeks)]]>='Diet input details'!$C$20,Table13[[#This Row],[AGE (weeks)]]<='Diet input details'!$D$20),"Ration 5", "Clear"))))) -> Clear | D150: =(VLOOKUP(Table13[[#This Row],[Ration]],Table22[#All],2,FALSE)) ->  | E150: 329.9 | F150: 1.97 | G150: =Table13[[#This Row],[Bodyweight Mid-point (kg)]]*1000 -> 1970 | H150: 109 | I150: =Table13[[#This Row],[Feed Intake Mid-point (g/bird/day)]]*7 -> 763 | J150: =Table13[[#This Row],[Feed Intake (g/bird/week)]]+J149 -> 43617 | K150: 64.4 | L150: =(Table13[[#This Row],[Hen-Housed Eggs Cumulative Mid-point]]*Table13[[#This Row],[Average Egg Weight Mid-point (g/egg)]]) -> 21245.56
A151: Brown Colony | B151: 74 | C151: =IF(AND(Table13[[#This Row],[AGE (weeks)]]>='Diet input details'!$C$16,Table13[[#This Row],[AGE (weeks)]]<='Diet input details'!$D$16),"Ration 1",IF(AND(Table13[[#This Row],[AGE (weeks)]]>='Diet input details'!$C$17,Table13[[#This Row],[AGE (weeks)]]<='Diet input details'!$D$17),"Ration 2",IF(AND(Table13[[#This Row],[AGE (weeks)]]>='Diet input details'!$C$18,Table13[[#This Row],[AGE (weeks)]]<='Diet input details'!$D$18),"Ration 3",IF(AND(Table13[[#This Row],[AGE (weeks)]]>='Diet input details'!$C$19,Table13[[#This Row],[AGE (weeks)]]<='Diet input details'!$D$19),"Ration 4",IF(AND(Table13[[#This Row],[AGE (weeks)]]>='Diet input details'!$C$20,Table13[[#This Row],[AGE (weeks)]]<='Diet input details'!$D$20),"Ration 5", "Clear"))))) -> Clear | D151: =(VLOOKUP(Table13[[#This Row],[Ration]],Table22[#All],2,FALSE)) ->  | E151: 335.15 | F151: 1.97 | G151: =Table13[[#This Row],[Bodyweight Mid-point (kg)]]*1000 -> 1970 | H151: 109 | I151: =Table13[[#This Row],[Feed Intake Mid-point (g/bird/day)]]*7 -> 763 | J151: =Table13[[#This Row],[Feed Intake (g/bird/week)]]+J150 -> 44380 | K151: 64.4 | L151: =(Table13[[#This Row],[Hen-Housed Eggs Cumulative Mid-point]]*Table13[[#This Row],[Average Egg Weight Mid-point (g/egg)]]) -> 21583.66
A152: Brown Colony | B152: 75 | C152: =IF(AND(Table13[[#This Row],[AGE (weeks)]]>='Diet input details'!$C$16,Table13[[#This Row],[AGE (weeks)]]<='Diet input details'!$D$16),"Ration 1",IF(AND(Table13[[#This Row],[AGE (weeks)]]>='Diet input details'!$C$17,Table13[[#This Row],[AGE (weeks)]]<='Diet input details'!$D$17),"Ration 2",IF(AND(Table13[[#This Row],[AGE (weeks)]]>='Diet input details'!$C$18,Table13[[#This Row],[AGE (weeks)]]<='Diet input details'!$D$18),"Ration 3",IF(AND(Table13[[#This Row],[AGE (weeks)]]>='Diet input details'!$C$19,Table13[[#This Row],[AGE (weeks)]]<='Diet input details'!$D$19),"Ration 4",IF(AND(Table13[[#This Row],[AGE (weeks)]]>='Diet input details'!$C$20,Table13[[#This Row],[AGE (weeks)]]<='Diet input details'!$D$20),"Ration 5", "Clear"))))) -> Clear | D152: =(VLOOKUP(Table13[[#This Row],[Ration]],Table22[#All],2,FALSE)) ->  | E152: 340.35 | F152: 1.97 | G152: =Table13[[#This Row],[Bodyweight Mid-point (kg)]]*1000 -> 1970 | H152: 109 | I152: =Table13[[#This Row],[Feed Intake Mid-point (g/bird/day)]]*7 -> 763 | J152: =Table13[[#This Row],[Feed Intake (g/bird/week)]]+J151 -> 45143 | K152: 64.5 | L152: =(Table13[[#This Row],[Hen-Housed Eggs Cumulative Mid-point]]*Table13[[#This Row],[Average Egg Weight Mid-point (g/egg)]]) -> 21952.575
A153: Brown Colony | B153: 76 | C153: =IF(AND(Table13[[#This Row],[AGE (weeks)]]>='Diet input details'!$C$16,Table13[[#This Row],[AGE (weeks)]]<='Diet input details'!$D$16),"Ration 1",IF(AND(Table13[[#This Row],[AGE (weeks)]]>='Diet input details'!$C$17,Table13[[#This Row],[AGE (weeks)]]<='Diet input details'!$D$17),"Ration 2",IF(AND(Table13[[#This Row],[AGE (weeks)]]>='Diet input details'!$C$18,Table13[[#This Row],[AGE (weeks)]]<='Diet input details'!$D$18),"Ration 3",IF(AND(Table13[[#This Row],[AGE (weeks)]]>='Diet input details'!$C$19,Table13[[#This Row],[AGE (weeks)]]<='Diet input details'!$D$19),"Ration 4",IF(AND(Table13[[#This Row],[AGE (weeks)]]>='Diet input details'!$C$20,Table13[[#This Row],[AGE (weeks)]]<='Diet input details'!$D$20),"Ration 5", "Clear"))))) -> Clear | D153: =(VLOOKUP(Table13[[#This Row],[Ration]],Table22[#All],2,FALSE)) ->  | E153: 345.5 | F153: 1.97 | G153: =Table13[[#This Row],[Bodyweight Mid-point (kg)]]*1000 -> 1970 | H153: 109 | I153: =Table13[[#This Row],[Feed Intake Mid-point (g/bird/day)]]*7 -> 763 | J153: =Table13[[#This Row],[Feed Intake (g/bird/week)]]+J152 -> 45906 | K153: 64.5 | L153: =(Table13[[#This Row],[Hen-Housed Eggs Cumulative Mid-point]]*Table13[[#This Row],[Average Egg Weight Mid-point (g/egg)]]) -> 22284.75
A154: Brown Colony | B154: 77 | C154: =IF(AND(Table13[[#This Row],[AGE (weeks)]]>='Diet input details'!$C$16,Table13[[#This Row],[AGE (weeks)]]<='Diet input details'!$D$16),"Ration 1",IF(AND(Table13[[#This Row],[AGE (weeks)]]>='Diet input details'!$C$17,Table13[[#This Row],[AGE (weeks)]]<='Diet input details'!$D$17),"Ration 2",IF(AND(Table13[[#This Row],[AGE (weeks)]]>='Diet input details'!$C$18,Table13[[#This Row],[AGE (weeks)]]<='Diet input details'!$D$18),"Ration 3",IF(AND(Table13[[#This Row],[AGE (weeks)]]>='Diet input details'!$C$19,Table13[[#This Row],[AGE (weeks)]]<='Diet input details'!$D$19),"Ration 4",IF(AND(Table13[[#This Row],[AGE (weeks)]]>='Diet input details'!$C$20,Table13[[#This Row],[AGE (weeks)]]<='Diet input details'!$D$20),"Ration 5", "Clear"))))) -> Clear | D154: =(VLOOKUP(Table13[[#This Row],[Ration]],Table22[#All],2,FALSE)) ->  | E154: 350.55 | F154: 1.97 | G154: =Table13[[#This Row],[Bodyweight Mid-point (kg)]]*1000 -> 1970 | H154: 109 | I154: =Table13[[#This Row],[Feed Intake Mid-point (g/bird/day)]]*7 -> 763 | J154: =Table13[[#This Row],[Feed Intake (g/bird/week)]]+J153 -> 46669 | K154: 64.6 | L154: =(Table13[[#This Row],[Hen-Housed Eggs Cumulative Mid-point]]*Table13[[#This Row],[Average Egg Weight Mid-point (g/egg)]]) -> 22645.53
A155: Brown Colony | B155: 78 | C155: =IF(AND(Table13[[#This Row],[AGE (weeks)]]>='Diet input details'!$C$16,Table13[[#This Row],[AGE (weeks)]]<='Diet input details'!$D$16),"Ration 1",IF(AND(Table13[[#This Row],[AGE (weeks)]]>='Diet input details'!$C$17,Table13[[#This Row],[AGE (weeks)]]<='Diet input details'!$D$17),"Ration 2",IF(AND(Table13[[#This Row],[AGE (weeks)]]>='Diet input details'!$C$18,Table13[[#This Row],[AGE (weeks)]]<='Diet input details'!$D$18),"Ration 3",IF(AND(Table13[[#This Row],[AGE (weeks)]]>='Diet input details'!$C$19,Table13[[#This Row],[AGE (weeks)]]<='Diet input details'!$D$19),"Ration 4",IF(AND(Table13[[#This Row],[AGE (weeks)]]>='Diet input details'!$C$20,Table13[[#This Row],[AGE (weeks)]]<='Diet input details'!$D$20),"Ration 5", "Clear"))))) -> Clear | D155: =(VLOOKUP(Table13[[#This Row],[Ration]],Table22[#All],2,FALSE)) ->  | E155: 355.6 | F155: 1.97 | G155: =Table13[[#This Row],[Bodyweight Mid-point (kg)]]*1000 -> 1970 | H155: 109 | I155: =Table13[[#This Row],[Feed Intake Mid-point (g/bird/day)]]*7 -> 763 | J155: =Table13[[#This Row],[Feed Intake (g/bird/week)]]+J154 -> 47432 | K155: 64.6 | L155: =(Table13[[#This Row],[Hen-Housed Eggs Cumulative Mid-point]]*Table13[[#This Row],[Average Egg Weight Mid-point (g/egg)]]) -> 22971.76
A156: Brown Colony | B156: 79 | C156: =IF(AND(Table13[[#This Row],[AGE (weeks)]]>='Diet input details'!$C$16,Table13[[#This Row],[AGE (weeks)]]<='Diet input details'!$D$16),"Ration 1",IF(AND(Table13[[#This Row],[AGE (weeks)]]>='Diet input details'!$C$17,Table13[[#This Row],[AGE (weeks)]]<='Diet input details'!$D$17),"Ration 2",IF(AND(Table13[[#This Row],[AGE (weeks)]]>='Diet input details'!$C$18,Table13[[#This Row],[AGE (weeks)]]<='Diet input details'!$D$18),"Ration 3",IF(AND(Table13[[#This Row],[AGE (weeks)]]>='Diet input details'!$C$19,Table13[[#This Row],[AGE (weeks)]]<='Diet input details'!$D$19),"Ration 4",IF(AND(Table13[[#This Row],[AGE (weeks)]]>='Diet input details'!$C$20,Table13[[#This Row],[AGE (weeks)]]<='Diet input details'!$D$20),"Ration 5", "Clear"))))) -> Clear | D156: =(VLOOKUP(Table13[[#This Row],[Ration]],Table22[#All],2,FALSE)) ->  | E156: 360.65 | F156: 1.97 | G156: =Table13[[#This Row],[Bodyweight Mid-point (kg)]]*1000 -> 1970 | H156: 109 | I156: =Table13[[#This Row],[Feed Intake Mid-point (g/bird/day)]]*7 -> 763 | J156: =Table13[[#This Row],[Feed Intake (g/bird/week)]]+J155 -> 48195 | K156: 64.7 | L156: =(Table13[[#This Row],[Hen-Housed Eggs Cumulative Mid-point]]*Table13[[#This Row],[Average Egg Weight Mid-point (g/egg)]]) -> 23334.055
A157: Brown Colony | B157: 80 | C157: =IF(AND(Table13[[#This Row],[AGE (weeks)]]>='Diet input details'!$C$16,Table13[[#This Row],[AGE (weeks)]]<='Diet input details'!$D$16),"Ration 1",IF(AND(Table13[[#This Row],[AGE (weeks)]]>='Diet input details'!$C$17,Table13[[#This Row],[AGE (weeks)]]<='Diet input details'!$D$17),"Ration 2",IF(AND(Table13[[#This Row],[AGE (weeks)]]>='Diet input details'!$C$18,Table13[[#This Row],[AGE (weeks)]]<='Diet input details'!$D$18),"Ration 3",IF(AND(Table13[[#This Row],[AGE (weeks)]]>='Diet input details'!$C$19,Table13[[#This Row],[AGE (weeks)]]<='Diet input details'!$D$19),"Ration 4",IF(AND(Table13[[#This Row],[AGE (weeks)]]>='Diet input details'!$C$20,Table13[[#This Row],[AGE (weeks)]]<='Diet input details'!$D$20),"Ration 5", "Clear"))))) -> Clear | D157: =(VLOOKUP(Table13[[#This Row],[Ration]],Table22[#All],2,FALSE)) ->  | E157: 365.6 | F157: 1.97 | G157: =Table13[[#This Row],[Bodyweight Mid-point (kg)]]*1000 -> 1970 | H157: 109 | I157: =Table13[[#This Row],[Feed Intake Mid-point (g/bird/day)]]*7 -> 763 | J157: =Table13[[#This Row],[Feed Intake (g/bird/week)]]+J156 -> 48958 | K157: 64.8 | L157: =(Table13[[#This Row],[Hen-Housed Eggs Cumulative Mid-point]]*Table13[[#This Row],[Average Egg Weight Mid-point (g/egg)]]) -> 23690.88
A158: Brown Colony | B158: 81 | C158: =IF(AND(Table13[[#This Row],[AGE (weeks)]]>='Diet input details'!$C$16,Table13[[#This Row],[AGE (weeks)]]<='Diet input details'!$D$16),"Ration 1",IF(AND(Table13[[#This Row],[AGE (weeks)]]>='Diet input details'!$C$17,Table13[[#This Row],[AGE (weeks)]]<='Diet input details'!$D$17),"Ration 2",IF(AND(Table13[[#This Row],[AGE (weeks)]]>='Diet input details'!$C$18,Table13[[#This Row],[AGE (weeks)]]<='Diet input details'!$D$18),"Ration 3",IF(AND(Table13[[#This Row],[AGE (weeks)]]>='Diet input details'!$C$19,Table13[[#This Row],[AGE (weeks)]]<='Diet input details'!$D$19),"Ration 4",IF(AND(Table13[[#This Row],[AGE (weeks)]]>='Diet input details'!$C$20,Table13[[#This Row],[AGE (weeks)]]<='Diet input details'!$D$20),"Ration 5", "Clear"))))) -> Clear | D158: =(VLOOKUP(Table13[[#This Row],[Ration]],Table22[#All],2,FALSE)) ->  | E158: 370.55 | F158: 1.97 | G158: =Table13[[#This Row],[Bodyweight Mid-point (kg)]]*1000 -> 1970 | H158: 109 | I158: =Table13[[#This Row],[Feed Intake Mid-point (g/bird/day)]]*7 -> 763 | J158: =Table13[[#This Row],[Feed Intake (g/bird/week)]]+J157 -> 49721 | K158: 64.8 | L158: =(Table13[[#This Row],[Hen-Housed Eggs Cumulative Mid-point]]*Table13[[#This Row],[Average Egg Weight Mid-point (g/egg)]]) -> 24011.64
A159: Brown Colony | B159: 82 | C159: =IF(AND(Table13[[#This Row],[AGE (weeks)]]>='Diet input details'!$C$16,Table13[[#This Row],[AGE (weeks)]]<='Diet input details'!$D$16),"Ration 1",IF(AND(Table13[[#This Row],[AGE (weeks)]]>='Diet input details'!$C$17,Table13[[#This Row],[AGE (weeks)]]<='Diet input details'!$D$17),"Ration 2",IF(AND(Table13[[#This Row],[AGE (weeks)]]>='Diet input details'!$C$18,Table13[[#This Row],[AGE (weeks)]]<='Diet input details'!$D$18),"Ration 3",IF(AND(Table13[[#This Row],[AGE (weeks)]]>='Diet input details'!$C$19,Table13[[#This Row],[AGE (weeks)]]<='Diet input details'!$D$19),"Ration 4",IF(AND(Table13[[#This Row],[AGE (weeks)]]>='Diet input details'!$C$20,Table13[[#This Row],[AGE (weeks)]]<='Diet input details'!$D$20),"Ration 5", "Clear"))))) -> Clear | D159: =(VLOOKUP(Table13[[#This Row],[Ration]],Table22[#All],2,FALSE)) ->  | E159: 375.55 | F159: 1.97 | G159: =Table13[[#This Row],[Bodyweight Mid-point (kg)]]*1000 -> 1970 | H159: 109 | I159: =Table13[[#This Row],[Feed Intake Mid-point (g/bird/day)]]*7 -> 763 | J159: =Table13[[#This Row],[Feed Intake (g/bird/week)]]+J158 -> 50484 | K159: 64.8 | L159: =(Table13[[#This Row],[Hen-Housed Eggs Cumulative Mid-point]]*Table13[[#This Row],[Average Egg Weight Mid-point (g/egg)]]) -> 24335.64
A160: Brown Colony | B160: 83 | C160: =IF(AND(Table13[[#This Row],[AGE (weeks)]]>='Diet input details'!$C$16,Table13[[#This Row],[AGE (weeks)]]<='Diet input details'!$D$16),"Ration 1",IF(AND(Table13[[#This Row],[AGE (weeks)]]>='Diet input details'!$C$17,Table13[[#This Row],[AGE (weeks)]]<='Diet input details'!$D$17),"Ration 2",IF(AND(Table13[[#This Row],[AGE (weeks)]]>='Diet input details'!$C$18,Table13[[#This Row],[AGE (weeks)]]<='Diet input details'!$D$18),"Ration 3",IF(AND(Table13[[#This Row],[AGE (weeks)]]>='Diet input details'!$C$19,Table13[[#This Row],[AGE (weeks)]]<='Diet input details'!$D$19),"Ration 4",IF(AND(Table13[[#This Row],[AGE (weeks)]]>='Diet input details'!$C$20,Table13[[#This Row],[AGE (weeks)]]<='Diet input details'!$D$20),"Ration 5", "Clear"))))) -> Clear | D160: =(VLOOKUP(Table13[[#This Row],[Ration]],Table22[#All],2,FALSE)) ->  | E160: 380.45 | F160: 1.97 | G160: =Table13[[#This Row],[Bodyweight Mid-point (kg)]]*1000 -> 1970 | H160: 109 | I160: =Table13[[#This Row],[Feed Intake Mid-point (g/bird/day)]]*7 -> 763 | J160: =Table13[[#This Row],[Feed Intake (g/bird/week)]]+J159 -> 51247 | K160: 64.9 | L160: =(Table13[[#This Row],[Hen-Housed Eggs Cumulative Mid-point]]*Table13[[#This Row],[Average Egg Weight Mid-point (g/egg)]]) -> 24691.205
A161: Brown Colony | B161: 84 | C161: =IF(AND(Table13[[#This Row],[AGE (weeks)]]>='Diet input details'!$C$16,Table13[[#This Row],[AGE (weeks)]]<='Diet input details'!$D$16),"Ration 1",IF(AND(Table13[[#This Row],[AGE (weeks)]]>='Diet input details'!$C$17,Table13[[#This Row],[AGE (weeks)]]<='Diet input details'!$D$17),"Ration 2",IF(AND(Table13[[#This Row],[AGE (weeks)]]>='Diet input details'!$C$18,Table13[[#This Row],[AGE (weeks)]]<='Diet input details'!$D$18),"Ration 3",IF(AND(Table13[[#This Row],[AGE (weeks)]]>='Diet input details'!$C$19,Table13[[#This Row],[AGE (weeks)]]<='Diet input details'!$D$19),"Ration 4",IF(AND(Table13[[#This Row],[AGE (weeks)]]>='Diet input details'!$C$20,Table13[[#This Row],[AGE (weeks)]]<='Diet input details'!$D$20),"Ration 5", "Clear"))))) -> Clear | D161: =(VLOOKUP(Table13[[#This Row],[Ration]],Table22[#All],2,FALSE)) ->  | E161: 385.35 | F161: 1.97 | G161: =Table13[[#This Row],[Bodyweight Mid-point (kg)]]*1000 -> 1970 | H161: 109 | I161: =Table13[[#This Row],[Feed Intake Mid-point (g/bird/day)]]*7 -> 763 | J161: =Table13[[#This Row],[Feed Intake (g/bird/week)]]+J160 -> 52010 | K161: 64.9 | L161: =(Table13[[#This Row],[Hen-Housed Eggs Cumulative Mid-point]]*Table13[[#This Row],[Average Egg Weight Mid-point (g/egg)]]) -> 25009.215
A162: Brown Colony | B162: 85 | C162: =IF(AND(Table13[[#This Row],[AGE (weeks)]]>='Diet input details'!$C$16,Table13[[#This Row],[AGE (weeks)]]<='Diet input details'!$D$16),"Ration 1",IF(AND(Table13[[#This Row],[AGE (weeks)]]>='Diet input details'!$C$17,Table13[[#This Row],[AGE (weeks)]]<='Diet input details'!$D$17),"Ration 2",IF(AND(Table13[[#This Row],[AGE (weeks)]]>='Diet input details'!$C$18,Table13[[#This Row],[AGE (weeks)]]<='Diet input details'!$D$18),"Ration 3",IF(AND(Table13[[#This Row],[AGE (weeks)]]>='Diet input details'!$C$19,Table13[[#This Row],[AGE (weeks)]]<='Diet input details'!$D$19),"Ration 4",IF(AND(Table13[[#This Row],[AGE (weeks)]]>='Diet input details'!$C$20,Table13[[#This Row],[AGE (weeks)]]<='Diet input details'!$D$20),"Ration 5", "Clear"))))) -> Clear | D162: =(VLOOKUP(Table13[[#This Row],[Ration]],Table22[#All],2,FALSE)) ->  | E162: 390.2 | F162: 1.97 | G162: =Table13[[#This Row],[Bodyweight Mid-point (kg)]]*1000 -> 1970 | H162: 109 | I162: =Table13[[#This Row],[Feed Intake Mid-point (g/bird/day)]]*7 -> 763 | J162: =Table13[[#This Row],[Feed Intake (g/bird/week)]]+J161 -> 52773 | K162: 64.9 | L162: =(Table13[[#This Row],[Hen-Housed Eggs Cumulative Mid-point]]*Table13[[#This Row],[Average Egg Weight Mid-point (g/egg)]]) -> 25323.98
A163: Brown Colony | B163: 86 | C163: =IF(AND(Table13[[#This Row],[AGE (weeks)]]>='Diet input details'!$C$16,Table13[[#This Row],[AGE (weeks)]]<='Diet input details'!$D$16),"Ration 1",IF(AND(Table13[[#This Row],[AGE (weeks)]]>='Diet input details'!$C$17,Table13[[#This Row],[AGE (weeks)]]<='Diet input details'!$D$17),"Ration 2",IF(AND(Table13[[#This Row],[AGE (weeks)]]>='Diet input details'!$C$18,Table13[[#This Row],[AGE (weeks)]]<='Diet input details'!$D$18),"Ration 3",IF(AND(Table13[[#This Row],[AGE (weeks)]]>='Diet input details'!$C$19,Table13[[#This Row],[AGE (weeks)]]<='Diet input details'!$D$19),"Ration 4",IF(AND(Table13[[#This Row],[AGE (weeks)]]>='Diet input details'!$C$20,Table13[[#This Row],[AGE (weeks)]]<='Diet input details'!$D$20),"Ration 5", "Clear"))))) -> Clear | D163: =(VLOOKUP(Table13[[#This Row],[Ration]],Table22[#All],2,FALSE)) ->  | E163: 395.1 | F163: 1.97 | G163: =Table13[[#This Row],[Bodyweight Mid-point (kg)]]*1000 -> 1970 | H163: 109 | I163: =Table13[[#This Row],[Feed Intake Mid-point (g/bird/day)]]*7 -> 763 | J163: =Table13[[#This Row],[Feed Intake (g/bird/week)]]+J162 -> 53536 | K163: 64.9 | L163: =(Table13[[#This Row],[Hen-Housed Eggs Cumulative Mid-point]]*Table13[[#This Row],[Average Egg Weight Mid-point (g/egg)]]) -> 25641.99
A164: Brown Colony | B164: 87 | C164: =IF(AND(Table13[[#This Row],[AGE (weeks)]]>='Diet input details'!$C$16,Table13[[#This Row],[AGE (weeks)]]<='Diet input details'!$D$16),"Ration 1",IF(AND(Table13[[#This Row],[AGE (weeks)]]>='Diet input details'!$C$17,Table13[[#This Row],[AGE (weeks)]]<='Diet input details'!$D$17),"Ration 2",IF(AND(Table13[[#This Row],[AGE (weeks)]]>='Diet input details'!$C$18,Table13[[#This Row],[AGE (weeks)]]<='Diet input details'!$D$18),"Ration 3",IF(AND(Table13[[#This Row],[AGE (weeks)]]>='Diet input details'!$C$19,Table13[[#This Row],[AGE (weeks)]]<='Diet input details'!$D$19),"Ration 4",IF(AND(Table13[[#This Row],[AGE (weeks)]]>='Diet input details'!$C$20,Table13[[#This Row],[AGE (weeks)]]<='Diet input details'!$D$20),"Ration 5", "Clear"))))) -> Clear | D164: =(VLOOKUP(Table13[[#This Row],[Ration]],Table22[#All],2,FALSE)) ->  | E164: 399.85 | F164: 1.97 | G164: =Table13[[#This Row],[Bodyweight Mid-point (kg)]]*1000 -> 1970 | H164: 109 | I164: =Table13[[#This Row],[Feed Intake Mid-point (g/bird/day)]]*7 -> 763 | J164: =Table13[[#This Row],[Feed Intake (g/bird/week)]]+J163 -> 54299 | K164: 65 | L164: =(Table13[[#This Row],[Hen-Housed Eggs Cumulative Mid-point]]*Table13[[#This Row],[Average Egg Weight Mid-point (g/egg)]]) -> 25990.25
A165: Brown Colony | B165: 88 | C165: =IF(AND(Table13[[#This Row],[AGE (weeks)]]>='Diet input details'!$C$16,Table13[[#This Row],[AGE (weeks)]]<='Diet input details'!$D$16),"Ration 1",IF(AND(Table13[[#This Row],[AGE (weeks)]]>='Diet input details'!$C$17,Table13[[#This Row],[AGE (weeks)]]<='Diet input details'!$D$17),"Ration 2",IF(AND(Table13[[#This Row],[AGE (weeks)]]>='Diet input details'!$C$18,Table13[[#This Row],[AGE (weeks)]]<='Diet input details'!$D$18),"Ration 3",IF(AND(Table13[[#This Row],[AGE (weeks)]]>='Diet input details'!$C$19,Table13[[#This Row],[AGE (weeks)]]<='Diet input details'!$D$19),"Ration 4",IF(AND(Table13[[#This Row],[AGE (weeks)]]>='Diet input details'!$C$20,Table13[[#This Row],[AGE (weeks)]]<='Diet input details'!$D$20),"Ration 5", "Clear"))))) -> Clear | D165: =(VLOOKUP(Table13[[#This Row],[Ration]],Table22[#All],2,FALSE)) ->  | E165: 404.65 | F165: 1.97 | G165: =Table13[[#This Row],[Bodyweight Mid-point (kg)]]*1000 -> 1970 | H165: 109 | I165: =Table13[[#This Row],[Feed Intake Mid-point (g/bird/day)]]*7 -> 763 | J165: =Table13[[#This Row],[Feed Intake (g/bird/week)]]+J164 -> 55062 | K165: 65 | L165: =(Table13[[#This Row],[Hen-Housed Eggs Cumulative Mid-point]]*Table13[[#This Row],[Average Egg Weight Mid-point (g/egg)]]) -> 26302.25
A166: Brown Colony | B166: 89 | C166: =IF(AND(Table13[[#This Row],[AGE (weeks)]]>='Diet input details'!$C$16,Table13[[#This Row],[AGE (weeks)]]<='Diet input details'!$D$16),"Ration 1",IF(AND(Table13[[#This Row],[AGE (weeks)]]>='Diet input details'!$C$17,Table13[[#This Row],[AGE (weeks)]]<='Diet input details'!$D$17),"Ration 2",IF(AND(Table13[[#This Row],[AGE (weeks)]]>='Diet input details'!$C$18,Table13[[#This Row],[AGE (weeks)]]<='Diet input details'!$D$18),"Ration 3",IF(AND(Table13[[#This Row],[AGE (weeks)]]>='Diet input details'!$C$19,Table13[[#This Row],[AGE (weeks)]]<='Diet input details'!$D$19),"Ration 4",IF(AND(Table13[[#This Row],[AGE (weeks)]]>='Diet input details'!$C$20,Table13[[#This Row],[AGE (weeks)]]<='Diet input details'!$D$20),"Ration 5", "Clear"))))) -> Clear | D166: =(VLOOKUP(Table13[[#This Row],[Ration]],Table22[#All],2,FALSE)) ->  | E166: 409.4 | F166: 1.97 | G166: =Table13[[#This Row],[Bodyweight Mid-point (kg)]]*1000 -> 1970 | H166: 109 | I166: =Table13[[#This Row],[Feed Intake Mid-point (g/bird/day)]]*7 -> 763 | J166: =Table13[[#This Row],[Feed Intake (g/bird/week)]]+J165 -> 55825 | K166: 65 | L166: =(Table13[[#This Row],[Hen-Housed Eggs Cumulative Mid-point]]*Table13[[#This Row],[Average Egg Weight Mid-point (g/egg)]]) -> 26611
A167: Brown Colony | B167: 90 | C167: =IF(AND(Table13[[#This Row],[AGE (weeks)]]>='Diet input details'!$C$16,Table13[[#This Row],[AGE (weeks)]]<='Diet input details'!$D$16),"Ration 1",IF(AND(Table13[[#This Row],[AGE (weeks)]]>='Diet input details'!$C$17,Table13[[#This Row],[AGE (weeks)]]<='Diet input details'!$D$17),"Ration 2",IF(AND(Table13[[#This Row],[AGE (weeks)]]>='Diet input details'!$C$18,Table13[[#This Row],[AGE (weeks)]]<='Diet input details'!$D$18),"Ration 3",IF(AND(Table13[[#This Row],[AGE (weeks)]]>='Diet input details'!$C$19,Table13[[#This Row],[AGE (weeks)]]<='Diet input details'!$D$19),"Ration 4",IF(AND(Table13[[#This Row],[AGE (weeks)]]>='Diet input details'!$C$20,Table13[[#This Row],[AGE (weeks)]]<='Diet input details'!$D$20),"Ration 5", "Clear"))))) -> Clear | D167: =(VLOOKUP(Table13[[#This Row],[Ration]],Table22[#All],2,FALSE)) ->  | E167: 414.2 | F167: 1.97 | G167: =Table13[[#This Row],[Bodyweight Mid-point (kg)]]*1000 -> 1970 | H167: 109 | I167: =Table13[[#This Row],[Feed Intake Mid-point (g/bird/day)]]*7 -> 763 | J167: =Table13[[#This Row],[Feed Intake (g/bird/week)]]+J166 -> 56588 | K167: 65 | L167: =(Table13[[#This Row],[Hen-Housed Eggs Cumulative Mid-point]]*Table13[[#This Row],[Average Egg Weight Mid-point (g/egg)]]) -> 26923
A168: Brown Colony | B168: 91 | C168: =IF(AND(Table13[[#This Row],[AGE (weeks)]]>='Diet input details'!$C$16,Table13[[#This Row],[AGE (weeks)]]<='Diet input details'!$D$16),"Ration 1",IF(AND(Table13[[#This Row],[AGE (weeks)]]>='Diet input details'!$C$17,Table13[[#This Row],[AGE (weeks)]]<='Diet input details'!$D$17),"Ration 2",IF(AND(Table13[[#This Row],[AGE (weeks)]]>='Diet input details'!$C$18,Table13[[#This Row],[AGE (weeks)]]<='Diet input details'!$D$18),"Ration 3",IF(AND(Table13[[#This Row],[AGE (weeks)]]>='Diet input details'!$C$19,Table13[[#This Row],[AGE (weeks)]]<='Diet input details'!$D$19),"Ration 4",IF(AND(Table13[[#This Row],[AGE (weeks)]]>='Diet input details'!$C$20,Table13[[#This Row],[AGE (weeks)]]<='Diet input details'!$D$20),"Ration 5", "Clear"))))) -> Clear | D168: =(VLOOKUP(Table13[[#This Row],[Ration]],Table22[#All],2,FALSE)) ->  | E168: 418.9 | F168: 1.98 | G168: =Table13[[#This Row],[Bodyweight Mid-point (kg)]]*1000 -> 1980 | H168: 108 | I168: =Table13[[#This Row],[Feed Intake Mid-point (g/bird/day)]]*7 -> 756 | J168: =Table13[[#This Row],[Feed Intake (g/bird/week)]]+J167 -> 57344 | K168: 65.1 | L168: =(Table13[[#This Row],[Hen-Housed Eggs Cumulative Mid-point]]*Table13[[#This Row],[Average Egg Weight Mid-point (g/egg)]]) -> 27270.39
A169: Brown Colony | B169: 92 | C169: =IF(AND(Table13[[#This Row],[AGE (weeks)]]>='Diet input details'!$C$16,Table13[[#This Row],[AGE (weeks)]]<='Diet input details'!$D$16),"Ration 1",IF(AND(Table13[[#This Row],[AGE (weeks)]]>='Diet input details'!$C$17,Table13[[#This Row],[AGE (weeks)]]<='Diet input details'!$D$17),"Ration 2",IF(AND(Table13[[#This Row],[AGE (weeks)]]>='Diet input details'!$C$18,Table13[[#This Row],[AGE (weeks)]]<='Diet input details'!$D$18),"Ration 3",IF(AND(Table13[[#This Row],[AGE (weeks)]]>='Diet input details'!$C$19,Table13[[#This Row],[AGE (weeks)]]<='Diet input details'!$D$19),"Ration 4",IF(AND(Table13[[#This Row],[AGE (weeks)]]>='Diet input details'!$C$20,Table13[[#This Row],[AGE (weeks)]]<='Diet input details'!$D$20),"Ration 5", "Clear"))))) -> Clear | D169: =(VLOOKUP(Table13[[#This Row],[Ration]],Table22[#All],2,FALSE)) ->  | E169: 423.6 | F169: 1.98 | G169: =Table13[[#This Row],[Bodyweight Mid-point (kg)]]*1000 -> 1980 | H169: 108 | I169: =Table13[[#This Row],[Feed Intake Mid-point (g/bird/day)]]*7 -> 756 | J169: =Table13[[#This Row],[Feed Intake (g/bird/week)]]+J168 -> 58100 | K169: 65.1 | L169: =(Table13[[#This Row],[Hen-Housed Eggs Cumulative Mid-point]]*Table13[[#This Row],[Average Egg Weight Mid-point (g/egg)]]) -> 27576.36
A170: Brown Colony | B170: 93 | C170: =IF(AND(Table13[[#This Row],[AGE (weeks)]]>='Diet input details'!$C$16,Table13[[#This Row],[AGE (weeks)]]<='Diet input details'!$D$16),"Ration 1",IF(AND(Table13[[#This Row],[AGE (weeks)]]>='Diet input details'!$C$17,Table13[[#This Row],[AGE (weeks)]]<='Diet input details'!$D$17),"Ration 2",IF(AND(Table13[[#This Row],[AGE (weeks)]]>='Diet input details'!$C$18,Table13[[#This Row],[AGE (weeks)]]<='Diet input details'!$D$18),"Ration 3",IF(AND(Table13[[#This Row],[AGE (weeks)]]>='Diet input details'!$C$19,Table13[[#This Row],[AGE (weeks)]]<='Diet input details'!$D$19),"Ration 4",IF(AND(Table13[[#This Row],[AGE (weeks)]]>='Diet input details'!$C$20,Table13[[#This Row],[AGE (weeks)]]<='Diet input details'!$D$20),"Ration 5", "Clear"))))) -> Clear | D170: =(VLOOKUP(Table13[[#This Row],[Ration]],Table22[#All],2,FALSE)) ->  | E170: 428.25 | F170: 1.98 | G170: =Table13[[#This Row],[Bodyweight Mid-point (kg)]]*1000 -> 1980 | H170: 108 | I170: =Table13[[#This Row],[Feed Intake Mid-point (g/bird/day)]]*7 -> 756 | J170: =Table13[[#This Row],[Feed Intake (g/bird/week)]]+J169 -> 58856 | K170: 65.1 | L170: =(Table13[[#This Row],[Hen-Housed Eggs Cumulative Mid-point]]*Table13[[#This Row],[Average Egg Weight Mid-point (g/egg)]]) -> 27879.075
A171: Brown Colony | B171: 94 | C171: =IF(AND(Table13[[#This Row],[AGE (weeks)]]>='Diet input details'!$C$16,Table13[[#This Row],[AGE (weeks)]]<='Diet input details'!$D$16),"Ration 1",IF(AND(Table13[[#This Row],[AGE (weeks)]]>='Diet input details'!$C$17,Table13[[#This Row],[AGE (weeks)]]<='Diet input details'!$D$17),"Ration 2",IF(AND(Table13[[#This Row],[AGE (weeks)]]>='Diet input details'!$C$18,Table13[[#This Row],[AGE (weeks)]]<='Diet input details'!$D$18),"Ration 3",IF(AND(Table13[[#This Row],[AGE (weeks)]]>='Diet input details'!$C$19,Table13[[#This Row],[AGE (weeks)]]<='Diet input details'!$D$19),"Ration 4",IF(AND(Table13[[#This Row],[AGE (weeks)]]>='Diet input details'!$C$20,Table13[[#This Row],[AGE (weeks)]]<='Diet input details'!$D$20),"Ration 5", "Clear"))))) -> Clear | D171: =(VLOOKUP(Table13[[#This Row],[Ration]],Table22[#All],2,FALSE)) ->  | E171: 432.9 | F171: 1.98 | G171: =Table13[[#This Row],[Bodyweight Mid-point (kg)]]*1000 -> 1980 | H171: 108 | I171: =Table13[[#This Row],[Feed Intake Mid-point (g/bird/day)]]*7 -> 756 | J171: =Table13[[#This Row],[Feed Intake (g/bird/week)]]+J170 -> 59612 | K171: 65.2 | L171: =(Table13[[#This Row],[Hen-Housed Eggs Cumulative Mid-point]]*Table13[[#This Row],[Average Egg Weight Mid-point (g/egg)]]) -> 28225.08
A172: Brown Colony | B172: 95 | C172: =IF(AND(Table13[[#This Row],[AGE (weeks)]]>='Diet input details'!$C$16,Table13[[#This Row],[AGE (weeks)]]<='Diet input details'!$D$16),"Ration 1",IF(AND(Table13[[#This Row],[AGE (weeks)]]>='Diet input details'!$C$17,Table13[[#This Row],[AGE (weeks)]]<='Diet input details'!$D$17),"Ration 2",IF(AND(Table13[[#This Row],[AGE (weeks)]]>='Diet input details'!$C$18,Table13[[#This Row],[AGE (weeks)]]<='Diet input details'!$D$18),"Ration 3",IF(AND(Table13[[#This Row],[AGE (weeks)]]>='Diet input details'!$C$19,Table13[[#This Row],[AGE (weeks)]]<='Diet input details'!$D$19),"Ration 4",IF(AND(Table13[[#This Row],[AGE (weeks)]]>='Diet input details'!$C$20,Table13[[#This Row],[AGE (weeks)]]<='Diet input details'!$D$20),"Ration 5", "Clear"))))) -> Clear | D172: =(VLOOKUP(Table13[[#This Row],[Ration]],Table22[#All],2,FALSE)) ->  | E172: 437.55 | F172: 1.98 | G172: =Table13[[#This Row],[Bodyweight Mid-point (kg)]]*1000 -> 1980 | H172: 108 | I172: =Table13[[#This Row],[Feed Intake Mid-point (g/bird/day)]]*7 -> 756 | J172: =Table13[[#This Row],[Feed Intake (g/bird/week)]]+J171 -> 60368 | K172: 65.2 | L172: =(Table13[[#This Row],[Hen-Housed Eggs Cumulative Mid-point]]*Table13[[#This Row],[Average Egg Weight Mid-point (g/egg)]]) -> 28528.26
A173: Brown Colony | B173: 96 | C173: =IF(AND(Table13[[#This Row],[AGE (weeks)]]>='Diet input details'!$C$16,Table13[[#This Row],[AGE (weeks)]]<='Diet input details'!$D$16),"Ration 1",IF(AND(Table13[[#This Row],[AGE (weeks)]]>='Diet input details'!$C$17,Table13[[#This Row],[AGE (weeks)]]<='Diet input details'!$D$17),"Ration 2",IF(AND(Table13[[#This Row],[AGE (weeks)]]>='Diet input details'!$C$18,Table13[[#This Row],[AGE (weeks)]]<='Diet input details'!$D$18),"Ration 3",IF(AND(Table13[[#This Row],[AGE (weeks)]]>='Diet input details'!$C$19,Table13[[#This Row],[AGE (weeks)]]<='Diet input details'!$D$19),"Ration 4",IF(AND(Table13[[#This Row],[AGE (weeks)]]>='Diet input details'!$C$20,Table13[[#This Row],[AGE (weeks)]]<='Diet input details'!$D$20),"Ration 5", "Clear"))))) -> Clear | D173: =(VLOOKUP(Table13[[#This Row],[Ration]],Table22[#All],2,FALSE)) ->  | E173: 442.15 | F173: 1.98 | G173: =Table13[[#This Row],[Bodyweight Mid-point (kg)]]*1000 -> 1980 | H173: 108 | I173: =Table13[[#This Row],[Feed Intake Mid-point (g/bird/day)]]*7 -> 756 | J173: =Table13[[#This Row],[Feed Intake (g/bird/week)]]+J172 -> 61124 | K173: 65.2 | L173: =(Table13[[#This Row],[Hen-Housed Eggs Cumulative Mid-point]]*Table13[[#This Row],[Average Egg Weight Mid-point (g/egg)]]) -> 28828.18
A174: Brown Colony | B174: 97 | C174: =IF(AND(Table13[[#This Row],[AGE (weeks)]]>='Diet input details'!$C$16,Table13[[#This Row],[AGE (weeks)]]<='Diet input details'!$D$16),"Ration 1",IF(AND(Table13[[#This Row],[AGE (weeks)]]>='Diet input details'!$C$17,Table13[[#This Row],[AGE (weeks)]]<='Diet input details'!$D$17),"Ration 2",IF(AND(Table13[[#This Row],[AGE (weeks)]]>='Diet input details'!$C$18,Table13[[#This Row],[AGE (weeks)]]<='Diet input details'!$D$18),"Ration 3",IF(AND(Table13[[#This Row],[AGE (weeks)]]>='Diet input details'!$C$19,Table13[[#This Row],[AGE (weeks)]]<='Diet input details'!$D$19),"Ration 4",IF(AND(Table13[[#This Row],[AGE (weeks)]]>='Diet input details'!$C$20,Table13[[#This Row],[AGE (weeks)]]<='Diet input details'!$D$20),"Ration 5", "Clear"))))) -> Clear | D174: =(VLOOKUP(Table13[[#This Row],[Ration]],Table22[#All],2,FALSE)) ->  | E174: 446.7 | F174: 1.98 | G174: =Table13[[#This Row],[Bodyweight Mid-point (kg)]]*1000 -> 1980 | H174: 108 | I174: =Table13[[#This Row],[Feed Intake Mid-point (g/bird/day)]]*7 -> 756 | J174: =Table13[[#This Row],[Feed Intake (g/bird/week)]]+J173 -> 61880 | K174: 65.3 | L174: =(Table13[[#This Row],[Hen-Housed Eggs Cumulative Mid-point]]*Table13[[#This Row],[Average Egg Weight Mid-point (g/egg)]]) -> 29169.51
A175: Brown Colony | B175: 98 | C175: =IF(AND(Table13[[#This Row],[AGE (weeks)]]>='Diet input details'!$C$16,Table13[[#This Row],[AGE (weeks)]]<='Diet input details'!$D$16),"Ration 1",IF(AND(Table13[[#This Row],[AGE (weeks)]]>='Diet input details'!$C$17,Table13[[#This Row],[AGE (weeks)]]<='Diet input details'!$D$17),"Ration 2",IF(AND(Table13[[#This Row],[AGE (weeks)]]>='Diet input details'!$C$18,Table13[[#This Row],[AGE (weeks)]]<='Diet input details'!$D$18),"Ration 3",IF(AND(Table13[[#This Row],[AGE (weeks)]]>='Diet input details'!$C$19,Table13[[#This Row],[AGE (weeks)]]<='Diet input details'!$D$19),"Ration 4",IF(AND(Table13[[#This Row],[AGE (weeks)]]>='Diet input details'!$C$20,Table13[[#This Row],[AGE (weeks)]]<='Diet input details'!$D$20),"Ration 5", "Clear"))))) -> Clear | D175: =(VLOOKUP(Table13[[#This Row],[Ration]],Table22[#All],2,FALSE)) ->  | E175: 451.2 | F175: 1.98 | G175: =Table13[[#This Row],[Bodyweight Mid-point (kg)]]*1000 -> 1980 | H175: 108 | I175: =Table13[[#This Row],[Feed Intake Mid-point (g/bird/day)]]*7 -> 756 | J175: =Table13[[#This Row],[Feed Intake (g/bird/week)]]+J174 -> 62636 | K175: 65.3 | L175: =(Table13[[#This Row],[Hen-Housed Eggs Cumulative Mid-point]]*Table13[[#This Row],[Average Egg Weight Mid-point (g/egg)]]) -> 29463.36
A176: Brown Colony | B176: 99 | C176: =IF(AND(Table13[[#This Row],[AGE (weeks)]]>='Diet input details'!$C$16,Table13[[#This Row],[AGE (weeks)]]<='Diet input details'!$D$16),"Ration 1",IF(AND(Table13[[#This Row],[AGE (weeks)]]>='Diet input details'!$C$17,Table13[[#This Row],[AGE (weeks)]]<='Diet input details'!$D$17),"Ration 2",IF(AND(Table13[[#This Row],[AGE (weeks)]]>='Diet input details'!$C$18,Table13[[#This Row],[AGE (weeks)]]<='Diet input details'!$D$18),"Ration 3",IF(AND(Table13[[#This Row],[AGE (weeks)]]>='Diet input details'!$C$19,Table13[[#This Row],[AGE (weeks)]]<='Diet input details'!$D$19),"Ration 4",IF(AND(Table13[[#This Row],[AGE (weeks)]]>='Diet input details'!$C$20,Table13[[#This Row],[AGE (weeks)]]<='Diet input details'!$D$20),"Ration 5", "Clear"))))) -> Clear | D176: =(VLOOKUP(Table13[[#This Row],[Ration]],Table22[#All],2,FALSE)) ->  | E176: 455.7 | F176: 1.98 | G176: =Table13[[#This Row],[Bodyweight Mid-point (kg)]]*1000 -> 1980 | H176: 108 | I176: =Table13[[#This Row],[Feed Intake Mid-point (g/bird/day)]]*7 -> 756 | J176: =Table13[[#This Row],[Feed Intake (g/bird/week)]]+J175 -> 63392 | K176: 65.3 | L176: =(Table13[[#This Row],[Hen-Housed Eggs Cumulative Mid-point]]*Table13[[#This Row],[Average Egg Weight Mid-point (g/egg)]]) -> 29757.21
A177: Brown Colony | B177: 100 | C177: =IF(AND(Table13[[#This Row],[AGE (weeks)]]>='Diet input details'!$C$16,Table13[[#This Row],[AGE (weeks)]]<='Diet input details'!$D$16),"Ration 1",IF(AND(Table13[[#This Row],[AGE (weeks)]]>='Diet input details'!$C$17,Table13[[#This Row],[AGE (weeks)]]<='Diet input details'!$D$17),"Ration 2",IF(AND(Table13[[#This Row],[AGE (weeks)]]>='Diet input details'!$C$18,Table13[[#This Row],[AGE (weeks)]]<='Diet input details'!$D$18),"Ration 3",IF(AND(Table13[[#This Row],[AGE (weeks)]]>='Diet input details'!$C$19,Table13[[#This Row],[AGE (weeks)]]<='Diet input details'!$D$19),"Ration 4",IF(AND(Table13[[#This Row],[AGE (weeks)]]>='Diet input details'!$C$20,Table13[[#This Row],[AGE (weeks)]]<='Diet input details'!$D$20),"Ration 5", "Clear"))))) -> Clear | D177: =(VLOOKUP(Table13[[#This Row],[Ration]],Table22[#All],2,FALSE)) ->  | E177: 460.2 | F177: 1.98 | G177: =Table13[[#This Row],[Bodyweight Mid-point (kg)]]*1000 -> 1980 | H177: 108 | I177: =Table13[[#This Row],[Feed Intake Mid-point (g/bird/day)]]*7 -> 756 | J177: =Table13[[#This Row],[Feed Intake (g/bird/week)]]+J176 -> 64148 | K177: 65.35 | L177: =(Table13[[#This Row],[Hen-Housed Eggs Cumulative Mid-point]]*Table13[[#This Row],[Average Egg Weight Mid-point (g/egg)]]) -> 30074.07
A178: White Free-range | B178: 16 | C178: =IF(AND(Table13[[#This Row],[AGE (weeks)]]>='Diet input details'!$C$16,Table13[[#This Row],[AGE (weeks)]]<='Diet input details'!$D$16),"Ration 1",IF(AND(Table13[[#This Row],[AGE (weeks)]]>='Diet input details'!$C$17,Table13[[#This Row],[AGE (weeks)]]<='Diet input details'!$D$17),"Ration 2",IF(AND(Table13[[#This Row],[AGE (weeks)]]>='Diet input details'!$C$18,Table13[[#This Row],[AGE (weeks)]]<='Diet input details'!$D$18),"Ration 3",IF(AND(Table13[[#This Row],[AGE (weeks)]]>='Diet input details'!$C$19,Table13[[#This Row],[AGE (weeks)]]<='Diet input details'!$D$19),"Ration 4",IF(AND(Table13[[#This Row],[AGE (weeks)]]>='Diet input details'!$C$20,Table13[[#This Row],[AGE (weeks)]]<='Diet input details'!$D$20),"Ration 5", "Clear"))))) -> Clear | D178: =(VLOOKUP(Table13[[#This Row],[Ration]],Table22[#All],2,FALSE)) ->  | E178: 0.15 | F178: 1.265 | G178: =Table13[[#This Row],[Bodyweight Mid-point (kg)]]*1000 -> 1265 | H178: 68.5 | I178: =Table13[[#This Row],[Feed Intake Mid-point (g/bird/day)]]*7 -> 479.5 | J178: =Table13[[#This Row],[Feed Intake (g/bird/week)]] -> 479.5 | K178: 44.2 | L178: =(Table13[[#This Row],[Hen-Housed Eggs Cumulative Mid-point]]*Table13[[#This Row],[Average Egg Weight Mid-point (g/egg)]]) -> 6.63
A179: White Free-range | B179: 17 | C179: =IF(AND(Table13[[#This Row],[AGE (weeks)]]>='Diet input details'!$C$16,Table13[[#This Row],[AGE (weeks)]]<='Diet input details'!$D$16),"Ration 1",IF(AND(Table13[[#This Row],[AGE (weeks)]]>='Diet input details'!$C$17,Table13[[#This Row],[AGE (weeks)]]<='Diet input details'!$D$17),"Ration 2",IF(AND(Table13[[#This Row],[AGE (weeks)]]>='Diet input details'!$C$18,Table13[[#This Row],[AGE (weeks)]]<='Diet input details'!$D$18),"Ration 3",IF(AND(Table13[[#This Row],[AGE (weeks)]]>='Diet input details'!$C$19,Table13[[#This Row],[AGE (weeks)]]<='Diet input details'!$D$19),"Ration 4",IF(AND(Table13[[#This Row],[AGE (weeks)]]>='Diet input details'!$C$20,Table13[[#This Row],[AGE (weeks)]]<='Diet input details'!$D$20),"Ration 5", "Clear"))))) -> Clear | D179: =(VLOOKUP(Table13[[#This Row],[Ration]],Table22[#All],2,FALSE)) ->  | E179: 0.15 | F179: 1.265 | G179: =Table13[[#This Row],[Bodyweight Mid-point (kg)]]*1000 -> 1265 | H179: 68.5 | I179: =Table13[[#This Row],[Feed Intake Mid-point (g/bird/day)]]*7 -> 479.5 | J179: =Table13[[#This Row],[Feed Intake (g/bird/week)]]+J178 -> 959 | K179: 44.2 | L179: =(Table13[[#This Row],[Hen-Housed Eggs Cumulative Mid-point]]*Table13[[#This Row],[Average Egg Weight Mid-point (g/egg)]]) -> 6.63
A180: White Free-range | B180: 18 | C180: =IF(AND(Table13[[#This Row],[AGE (weeks)]]>='Diet input details'!$C$16,Table13[[#This Row],[AGE (weeks)]]<='Diet input details'!$D$16),"Ration 1",IF(AND(Table13[[#This Row],[AGE (weeks)]]>='Diet input details'!$C$17,Table13[[#This Row],[AGE (weeks)]]<='Diet input details'!$D$17),"Ration 2",IF(AND(Table13[[#This Row],[AGE (weeks)]]>='Diet input details'!$C$18,Table13[[#This Row],[AGE (weeks)]]<='Diet input details'!$D$18),"Ration 3",IF(AND(Table13[[#This Row],[AGE (weeks)]]>='Diet input details'!$C$19,Table13[[#This Row],[AGE (weeks)]]<='Diet input details'!$D$19),"Ration 4",IF(AND(Table13[[#This Row],[AGE (weeks)]]>='Diet input details'!$C$20,Table13[[#This Row],[AGE (weeks)]]<='Diet input details'!$D$20),"Ration 5", "Clear"))))) -> Clear | D180: =(VLOOKUP(Table13[[#This Row],[Ration]],Table22[#All],2,FALSE)) ->  | E180: 0.15 | F180: 1.265 | G180: =Table13[[#This Row],[Bodyweight Mid-point (kg)]]*1000 -> 1265 | H180: 68.5 | I180: =Table13[[#This Row],[Feed Intake Mid-point (g/bird/day)]]*7 -> 479.5 | J180: =Table13[[#This Row],[Feed Intake (g/bird/week)]]+J179 -> 1438.5 | K180: 44.2 | L180: =(Table13[[#This Row],[Hen-Housed Eggs Cumulative Mid-point]]*Table13[[#This Row],[Average Egg Weight Mid-point (g/egg)]]) -> 6.63
A181: White Free-range | B181: 19 | C181: =IF(AND(Table13[[#This Row],[AGE (weeks)]]>='Diet input details'!$C$16,Table13[[#This Row],[AGE (weeks)]]<='Diet input details'!$D$16),"Ration 1",IF(AND(Table13[[#This Row],[AGE (weeks)]]>='Diet input details'!$C$17,Table13[[#This Row],[AGE (weeks)]]<='Diet input details'!$D$17),"Ration 2",IF(AND(Table13[[#This Row],[AGE (weeks)]]>='Diet input details'!$C$18,Table13[[#This Row],[AGE (weeks)]]<='Diet input details'!$D$18),"Ration 3",IF(AND(Table13[[#This Row],[AGE (weeks)]]>='Diet input details'!$C$19,Table13[[#This Row],[AGE (weeks)]]<='Diet input details'!$D$19),"Ration 4",IF(AND(Table13[[#This Row],[AGE (weeks)]]>='Diet input details'!$C$20,Table13[[#This Row],[AGE (weeks)]]<='Diet input details'!$D$20),"Ration 5", "Clear"))))) -> Clear | D181: =(VLOOKUP(Table13[[#This Row],[Ration]],Table22[#All],2,FALSE)) ->  | E181: 1.45 | F181: 1.32 | G181: =Table13[[#This Row],[Bodyweight Mid-point (kg)]]*1000 -> 1320 | H181: 72.5 | I181: =Table13[[#This Row],[Feed Intake Mid-point (g/bird/day)]]*7 -> 507.5 | J181: =Table13[[#This Row],[Feed Intake (g/bird/week)]]+J180 -> 1946 | K181: 45 | L181: =(Table13[[#This Row],[Hen-Housed Eggs Cumulative Mid-point]]*Table13[[#This Row],[Average Egg Weight Mid-point (g/egg)]]) -> 65.25
A182: White Free-range | B182: 20 | C182: =IF(AND(Table13[[#This Row],[AGE (weeks)]]>='Diet input details'!$C$16,Table13[[#This Row],[AGE (weeks)]]<='Diet input details'!$D$16),"Ration 1",IF(AND(Table13[[#This Row],[AGE (weeks)]]>='Diet input details'!$C$17,Table13[[#This Row],[AGE (weeks)]]<='Diet input details'!$D$17),"Ration 2",IF(AND(Table13[[#This Row],[AGE (weeks)]]>='Diet input details'!$C$18,Table13[[#This Row],[AGE (weeks)]]<='Diet input details'!$D$18),"Ration 3",IF(AND(Table13[[#This Row],[AGE (weeks)]]>='Diet input details'!$C$19,Table13[[#This Row],[AGE (weeks)]]<='Diet input details'!$D$19),"Ration 4",IF(AND(Table13[[#This Row],[AGE (weeks)]]>='Diet input details'!$C$20,Table13[[#This Row],[AGE (weeks)]]<='Diet input details'!$D$20),"Ration 5", "Clear"))))) -> Clear | D182: =(VLOOKUP(Table13[[#This Row],[Ration]],Table22[#All],2,FALSE)) ->  | E182: 4.4 | F182: 1.375 | G182: =Table13[[#This Row],[Bodyweight Mid-point (kg)]]*1000 -> 1375 | H182: 76.5 | I182: =Table13[[#This Row],[Feed Intake Mid-point (g/bird/day)]]*7 -> 535.5 | J182: =Table13[[#This Row],[Feed Intake (g/bird/week)]]+J181 -> 2481.5 | K182: 45.9 | L182: =(Table13[[#This Row],[Hen-Housed Eggs Cumulative Mid-point]]*Table13[[#This Row],[Average Egg Weight Mid-point (g/egg)]]) -> 201.96
A183: White Free-range | B183: 21 | C183: =IF(AND(Table13[[#This Row],[AGE (weeks)]]>='Diet input details'!$C$16,Table13[[#This Row],[AGE (weeks)]]<='Diet input details'!$D$16),"Ration 1",IF(AND(Table13[[#This Row],[AGE (weeks)]]>='Diet input details'!$C$17,Table13[[#This Row],[AGE (weeks)]]<='Diet input details'!$D$17),"Ration 2",IF(AND(Table13[[#This Row],[AGE (weeks)]]>='Diet input details'!$C$18,Table13[[#This Row],[AGE (weeks)]]<='Diet input details'!$D$18),"Ration 3",IF(AND(Table13[[#This Row],[AGE (weeks)]]>='Diet input details'!$C$19,Table13[[#This Row],[AGE (weeks)]]<='Diet input details'!$D$19),"Ration 4",IF(AND(Table13[[#This Row],[AGE (weeks)]]>='Diet input details'!$C$20,Table13[[#This Row],[AGE (weeks)]]<='Diet input details'!$D$20),"Ration 5", "Clear"))))) -> Clear | D183: =(VLOOKUP(Table13[[#This Row],[Ration]],Table22[#All],2,FALSE)) ->  | E183: 8.85 | F183: 1.425 | G183: =Table13[[#This Row],[Bodyweight Mid-point (kg)]]*1000 -> 1425 | H183: 80 | I183: =Table13[[#This Row],[Feed Intake Mid-point (g/bird/day)]]*7 -> 560 | J183: =Table13[[#This Row],[Feed Intake (g/bird/week)]]+J182 -> 3041.5 | K183: 48 | L183: =(Table13[[#This Row],[Hen-Housed Eggs Cumulative Mid-point]]*Table13[[#This Row],[Average Egg Weight Mid-point (g/egg)]]) -> 424.8
A184: White Free-range | B184: 22 | C184: =IF(AND(Table13[[#This Row],[AGE (weeks)]]>='Diet input details'!$C$16,Table13[[#This Row],[AGE (weeks)]]<='Diet input details'!$D$16),"Ration 1",IF(AND(Table13[[#This Row],[AGE (weeks)]]>='Diet input details'!$C$17,Table13[[#This Row],[AGE (weeks)]]<='Diet input details'!$D$17),"Ration 2",IF(AND(Table13[[#This Row],[AGE (weeks)]]>='Diet input details'!$C$18,Table13[[#This Row],[AGE (weeks)]]<='Diet input details'!$D$18),"Ration 3",IF(AND(Table13[[#This Row],[AGE (weeks)]]>='Diet input details'!$C$19,Table13[[#This Row],[AGE (weeks)]]<='Diet input details'!$D$19),"Ration 4",IF(AND(Table13[[#This Row],[AGE (weeks)]]>='Diet input details'!$C$20,Table13[[#This Row],[AGE (weeks)]]<='Diet input details'!$D$20),"Ration 5", "Clear"))))) -> Clear | D184: =(VLOOKUP(Table13[[#This Row],[Ration]],Table22[#All],2,FALSE)) ->  | E184: 14.6 | F184: 1.45 | G184: =Table13[[#This Row],[Bodyweight Mid-point (kg)]]*1000 -> 1450 | H184: 84 | I184: =Table13[[#This Row],[Feed Intake Mid-point (g/bird/day)]]*7 -> 588 | J184: =Table13[[#This Row],[Feed Intake (g/bird/week)]]+J183 -> 3629.5 | K184: 49.8 | L184: =(Table13[[#This Row],[Hen-Housed Eggs Cumulative Mid-point]]*Table13[[#This Row],[Average Egg Weight Mid-point (g/egg)]]) -> 727.08
A185: White Free-range | B185: 23 | C185: =IF(AND(Table13[[#This Row],[AGE (weeks)]]>='Diet input details'!$C$16,Table13[[#This Row],[AGE (weeks)]]<='Diet input details'!$D$16),"Ration 1",IF(AND(Table13[[#This Row],[AGE (weeks)]]>='Diet input details'!$C$17,Table13[[#This Row],[AGE (weeks)]]<='Diet input details'!$D$17),"Ration 2",IF(AND(Table13[[#This Row],[AGE (weeks)]]>='Diet input details'!$C$18,Table13[[#This Row],[AGE (weeks)]]<='Diet input details'!$D$18),"Ration 3",IF(AND(Table13[[#This Row],[AGE (weeks)]]>='Diet input details'!$C$19,Table13[[#This Row],[AGE (weeks)]]<='Diet input details'!$D$19),"Ration 4",IF(AND(Table13[[#This Row],[AGE (weeks)]]>='Diet input details'!$C$20,Table13[[#This Row],[AGE (weeks)]]<='Diet input details'!$D$20),"Ration 5", "Clear"))))) -> Clear | D185: =(VLOOKUP(Table13[[#This Row],[Ration]],Table22[#All],2,FALSE)) ->  | E185: 20.9 | F185: 1.465 | G185: =Table13[[#This Row],[Bodyweight Mid-point (kg)]]*1000 -> 1465 | H185: 89 | I185: =Table13[[#This Row],[Feed Intake Mid-point (g/bird/day)]]*7 -> 623 | J185: =Table13[[#This Row],[Feed Intake (g/bird/week)]]+J184 -> 4252.5 | K185: 51.3 | L185: =(Table13[[#This Row],[Hen-Housed Eggs Cumulative Mid-point]]*Table13[[#This Row],[Average Egg Weight Mid-point (g/egg)]]) -> 1072.17
A186: White Free-range | B186: 24 | C186: =IF(AND(Table13[[#This Row],[AGE (weeks)]]>='Diet input details'!$C$16,Table13[[#This Row],[AGE (weeks)]]<='Diet input details'!$D$16),"Ration 1",IF(AND(Table13[[#This Row],[AGE (weeks)]]>='Diet input details'!$C$17,Table13[[#This Row],[AGE (weeks)]]<='Diet input details'!$D$17),"Ration 2",IF(AND(Table13[[#This Row],[AGE (weeks)]]>='Diet input details'!$C$18,Table13[[#This Row],[AGE (weeks)]]<='Diet input details'!$D$18),"Ration 3",IF(AND(Table13[[#This Row],[AGE (weeks)]]>='Diet input details'!$C$19,Table13[[#This Row],[AGE (weeks)]]<='Diet input details'!$D$19),"Ration 4",IF(AND(Table13[[#This Row],[AGE (weeks)]]>='Diet input details'!$C$20,Table13[[#This Row],[AGE (weeks)]]<='Diet input details'!$D$20),"Ration 5", "Clear"))))) -> Clear | D186: =(VLOOKUP(Table13[[#This Row],[Ration]],Table22[#All],2,FALSE)) ->  | E186: 27.35 | F186: 1.48 | G186: =Table13[[#This Row],[Bodyweight Mid-point (kg)]]*1000 -> 1480 | H186: 92.5 | I186: =Table13[[#This Row],[Feed Intake Mid-point (g/bird/day)]]*7 -> 647.5 | J186: =Table13[[#This Row],[Feed Intake (g/bird/week)]]+J185 -> 4900 | K186: 52.6 | L186: =(Table13[[#This Row],[Hen-Housed Eggs Cumulative Mid-point]]*Table13[[#This Row],[Average Egg Weight Mid-point (g/egg)]]) -> 1438.61
A187: White Free-range | B187: 25 | C187: =IF(AND(Table13[[#This Row],[AGE (weeks)]]>='Diet input details'!$C$16,Table13[[#This Row],[AGE (weeks)]]<='Diet input details'!$D$16),"Ration 1",IF(AND(Table13[[#This Row],[AGE (weeks)]]>='Diet input details'!$C$17,Table13[[#This Row],[AGE (weeks)]]<='Diet input details'!$D$17),"Ration 2",IF(AND(Table13[[#This Row],[AGE (weeks)]]>='Diet input details'!$C$18,Table13[[#This Row],[AGE (weeks)]]<='Diet input details'!$D$18),"Ration 3",IF(AND(Table13[[#This Row],[AGE (weeks)]]>='Diet input details'!$C$19,Table13[[#This Row],[AGE (weeks)]]<='Diet input details'!$D$19),"Ration 4",IF(AND(Table13[[#This Row],[AGE (weeks)]]>='Diet input details'!$C$20,Table13[[#This Row],[AGE (weeks)]]<='Diet input details'!$D$20),"Ration 5", "Clear"))))) -> Clear | D187: =(VLOOKUP(Table13[[#This Row],[Ration]],Table22[#All],2,FALSE)) ->  | E187: 33.9 | F187: 1.5 | G187: =Table13[[#This Row],[Bodyweight Mid-point (kg)]]*1000 -> 1500 | H187: 96 | I187: =Table13[[#This Row],[Feed Intake Mid-point (g/bird/day)]]*7 -> 672 | J187: =Table13[[#This Row],[Feed Intake (g/bird/week)]]+J186 -> 5572 | K187: 53.7 | L187: =(Table13[[#This Row],[Hen-Housed Eggs Cumulative Mid-point]]*Table13[[#This Row],[Average Egg Weight Mid-point (g/egg)]]) -> 1820.43
A188: White Free-range | B188: 26 | C188: =IF(AND(Table13[[#This Row],[AGE (weeks)]]>='Diet input details'!$C$16,Table13[[#This Row],[AGE (weeks)]]<='Diet input details'!$D$16),"Ration 1",IF(AND(Table13[[#This Row],[AGE (weeks)]]>='Diet input details'!$C$17,Table13[[#This Row],[AGE (weeks)]]<='Diet input details'!$D$17),"Ration 2",IF(AND(Table13[[#This Row],[AGE (weeks)]]>='Diet input details'!$C$18,Table13[[#This Row],[AGE (weeks)]]<='Diet input details'!$D$18),"Ration 3",IF(AND(Table13[[#This Row],[AGE (weeks)]]>='Diet input details'!$C$19,Table13[[#This Row],[AGE (weeks)]]<='Diet input details'!$D$19),"Ration 4",IF(AND(Table13[[#This Row],[AGE (weeks)]]>='Diet input details'!$C$20,Table13[[#This Row],[AGE (weeks)]]<='Diet input details'!$D$20),"Ration 5", "Clear"))))) -> Clear | D188: =(VLOOKUP(Table13[[#This Row],[Ration]],Table22[#All],2,FALSE)) ->  | E188: 40.55 | F188: 1.51 | G188: =Table13[[#This Row],[Bodyweight Mid-point (kg)]]*1000 -> 1510 | H188: 97.5 | I188: =Table13[[#This Row],[Feed Intake Mid-point (g/bird/day)]]*7 -> 682.5 | J188: =Table13[[#This Row],[Feed Intake (g/bird/week)]]+J187 -> 6254.5 | K188: 54.7 | L188: =(Table13[[#This Row],[Hen-Housed Eggs Cumulative Mid-point]]*Table13[[#This Row],[Average Egg Weight Mid-point (g/egg)]]) -> 2218.085
A189: White Free-range | B189: 27 | C189: =IF(AND(Table13[[#This Row],[AGE (weeks)]]>='Diet input details'!$C$16,Table13[[#This Row],[AGE (weeks)]]<='Diet input details'!$D$16),"Ration 1",IF(AND(Table13[[#This Row],[AGE (weeks)]]>='Diet input details'!$C$17,Table13[[#This Row],[AGE (weeks)]]<='Diet input details'!$D$17),"Ration 2",IF(AND(Table13[[#This Row],[AGE (weeks)]]>='Diet input details'!$C$18,Table13[[#This Row],[AGE (weeks)]]<='Diet input details'!$D$18),"Ration 3",IF(AND(Table13[[#This Row],[AGE (weeks)]]>='Diet input details'!$C$19,Table13[[#This Row],[AGE (weeks)]]<='Diet input details'!$D$19),"Ration 4",IF(AND(Table13[[#This Row],[AGE (weeks)]]>='Diet input details'!$C$20,Table13[[#This Row],[AGE (weeks)]]<='Diet input details'!$D$20),"Ration 5", "Clear"))))) -> Clear | D189: =(VLOOKUP(Table13[[#This Row],[Ration]],Table22[#All],2,FALSE)) ->  | E189: 47.2 | F189: 1.515 | G189: =Table13[[#This Row],[Bodyweight Mid-point (kg)]]*1000 -> 1515 | H189: 99 | I189: =Table13[[#This Row],[Feed Intake Mid-point (g/bird/day)]]*7 -> 693 | J189: =Table13[[#This Row],[Feed Intake (g/bird/week)]]+J188 -> 6947.5 | K189: 55.5 | L189: =(Table13[[#This Row],[Hen-Housed Eggs Cumulative Mid-point]]*Table13[[#This Row],[Average Egg Weight Mid-point (g/egg)]]) -> 2619.6
A190: White Free-range | B190: 28 | C190: =IF(AND(Table13[[#This Row],[AGE (weeks)]]>='Diet input details'!$C$16,Table13[[#This Row],[AGE (weeks)]]<='Diet input details'!$D$16),"Ration 1",IF(AND(Table13[[#This Row],[AGE (weeks)]]>='Diet input details'!$C$17,Table13[[#This Row],[AGE (weeks)]]<='Diet input details'!$D$17),"Ration 2",IF(AND(Table13[[#This Row],[AGE (weeks)]]>='Diet input details'!$C$18,Table13[[#This Row],[AGE (weeks)]]<='Diet input details'!$D$18),"Ration 3",IF(AND(Table13[[#This Row],[AGE (weeks)]]>='Diet input details'!$C$19,Table13[[#This Row],[AGE (weeks)]]<='Diet input details'!$D$19),"Ration 4",IF(AND(Table13[[#This Row],[AGE (weeks)]]>='Diet input details'!$C$20,Table13[[#This Row],[AGE (weeks)]]<='Diet input details'!$D$20),"Ration 5", "Clear"))))) -> Clear | D190: =(VLOOKUP(Table13[[#This Row],[Ration]],Table22[#All],2,FALSE)) ->  | E190: 53.8 | F190: 1.52 | G190: =Table13[[#This Row],[Bodyweight Mid-point (kg)]]*1000 -> 1520 | H190: 99.5 | I190: =Table13[[#This Row],[Feed Intake Mid-point (g/bird/day)]]*7 -> 696.5 | J190: =Table13[[#This Row],[Feed Intake (g/bird/week)]]+J189 -> 7644 | K190: 56.3 | L190: =(Table13[[#This Row],[Hen-Housed Eggs Cumulative Mid-point]]*Table13[[#This Row],[Average Egg Weight Mid-point (g/egg)]]) -> 3028.94
A191: White Free-range | B191: 29 | C191: =IF(AND(Table13[[#This Row],[AGE (weeks)]]>='Diet input details'!$C$16,Table13[[#This Row],[AGE (weeks)]]<='Diet input details'!$D$16),"Ration 1",IF(AND(Table13[[#This Row],[AGE (weeks)]]>='Diet input details'!$C$17,Table13[[#This Row],[AGE (weeks)]]<='Diet input details'!$D$17),"Ration 2",IF(AND(Table13[[#This Row],[AGE (weeks)]]>='Diet input details'!$C$18,Table13[[#This Row],[AGE (weeks)]]<='Diet input details'!$D$18),"Ration 3",IF(AND(Table13[[#This Row],[AGE (weeks)]]>='Diet input details'!$C$19,Table13[[#This Row],[AGE (weeks)]]<='Diet input details'!$D$19),"Ration 4",IF(AND(Table13[[#This Row],[AGE (weeks)]]>='Diet input details'!$C$20,Table13[[#This Row],[AGE (weeks)]]<='Diet input details'!$D$20),"Ration 5", "Clear"))))) -> Clear | D191: =(VLOOKUP(Table13[[#This Row],[Ration]],Table22[#All],2,FALSE)) ->  | E191: 60.45 | F191: 1.53 | G191: =Table13[[#This Row],[Bodyweight Mid-point (kg)]]*1000 -> 1530 | H191: 100 | I191: =Table13[[#This Row],[Feed Intake Mid-point (g/bird/day)]]*7 -> 700 | J191: =Table13[[#This Row],[Feed Intake (g/bird/week)]]+J190 -> 8344 | K191: 57 | L191: =(Table13[[#This Row],[Hen-Housed Eggs Cumulative Mid-point]]*Table13[[#This Row],[Average Egg Weight Mid-point (g/egg)]]) -> 3445.65
A192: White Free-range | B192: 30 | C192: =IF(AND(Table13[[#This Row],[AGE (weeks)]]>='Diet input details'!$C$16,Table13[[#This Row],[AGE (weeks)]]<='Diet input details'!$D$16),"Ration 1",IF(AND(Table13[[#This Row],[AGE (weeks)]]>='Diet input details'!$C$17,Table13[[#This Row],[AGE (weeks)]]<='Diet input details'!$D$17),"Ration 2",IF(AND(Table13[[#This Row],[AGE (weeks)]]>='Diet input details'!$C$18,Table13[[#This Row],[AGE (weeks)]]<='Diet input details'!$D$18),"Ration 3",IF(AND(Table13[[#This Row],[AGE (weeks)]]>='Diet input details'!$C$19,Table13[[#This Row],[AGE (weeks)]]<='Diet input details'!$D$19),"Ration 4",IF(AND(Table13[[#This Row],[AGE (weeks)]]>='Diet input details'!$C$20,Table13[[#This Row],[AGE (weeks)]]<='Diet input details'!$D$20),"Ration 5", "Clear"))))) -> Clear | D192: =(VLOOKUP(Table13[[#This Row],[Ration]],Table22[#All],2,FALSE)) ->  | E192: 67.1 | F192: 1.53 | G192: =Table13[[#This Row],[Bodyweight Mid-point (kg)]]*1000 -> 1530 | H192: 100 | I192: =Table13[[#This Row],[Feed Intake Mid-point (g/bird/day)]]*7 -> 700 | J192: =Table13[[#This Row],[Feed Intake (g/bird/week)]]+J191 -> 9044 | K192: 57.6 | L192: =(Table13[[#This Row],[Hen-Housed Eggs Cumulative Mid-point]]*Table13[[#This Row],[Average Egg Weight Mid-point (g/egg)]]) -> 3864.96
A193: White Free-range | B193: 31 | C193: =IF(AND(Table13[[#This Row],[AGE (weeks)]]>='Diet input details'!$C$16,Table13[[#This Row],[AGE (weeks)]]<='Diet input details'!$D$16),"Ration 1",IF(AND(Table13[[#This Row],[AGE (weeks)]]>='Diet input details'!$C$17,Table13[[#This Row],[AGE (weeks)]]<='Diet input details'!$D$17),"Ration 2",IF(AND(Table13[[#This Row],[AGE (weeks)]]>='Diet input details'!$C$18,Table13[[#This Row],[AGE (weeks)]]<='Diet input details'!$D$18),"Ration 3",IF(AND(Table13[[#This Row],[AGE (weeks)]]>='Diet input details'!$C$19,Table13[[#This Row],[AGE (weeks)]]<='Diet input details'!$D$19),"Ration 4",IF(AND(Table13[[#This Row],[AGE (weeks)]]>='Diet input details'!$C$20,Table13[[#This Row],[AGE (weeks)]]<='Diet input details'!$D$20),"Ration 5", "Clear"))))) -> Clear | D193: =(VLOOKUP(Table13[[#This Row],[Ration]],Table22[#All],2,FALSE)) ->  | E193: 73.75 | F193: 1.54 | G193: =Table13[[#This Row],[Bodyweight Mid-point (kg)]]*1000 -> 1540 | H193: 100 | I193: =Table13[[#This Row],[Feed Intake Mid-point (g/bird/day)]]*7 -> 700 | J193: =Table13[[#This Row],[Feed Intake (g/bird/week)]]+J192 -> 9744 | K193: 58.1 | L193: =(Table13[[#This Row],[Hen-Housed Eggs Cumulative Mid-point]]*Table13[[#This Row],[Average Egg Weight Mid-point (g/egg)]]) -> 4284.875
A194: White Free-range | B194: 32 | C194: =IF(AND(Table13[[#This Row],[AGE (weeks)]]>='Diet input details'!$C$16,Table13[[#This Row],[AGE (weeks)]]<='Diet input details'!$D$16),"Ration 1",IF(AND(Table13[[#This Row],[AGE (weeks)]]>='Diet input details'!$C$17,Table13[[#This Row],[AGE (weeks)]]<='Diet input details'!$D$17),"Ration 2",IF(AND(Table13[[#This Row],[AGE (weeks)]]>='Diet input details'!$C$18,Table13[[#This Row],[AGE (weeks)]]<='Diet input details'!$D$18),"Ration 3",IF(AND(Table13[[#This Row],[AGE (weeks)]]>='Diet input details'!$C$19,Table13[[#This Row],[AGE (weeks)]]<='Diet input details'!$D$19),"Ration 4",IF(AND(Table13[[#This Row],[AGE (weeks)]]>='Diet input details'!$C$20,Table13[[#This Row],[AGE (weeks)]]<='Diet input details'!$D$20),"Ration 5", "Clear"))))) -> Clear | D194: =(VLOOKUP(Table13[[#This Row],[Ration]],Table22[#All],2,FALSE)) ->  | E194: 80.4 | F194: 1.54 | G194: =Table13[[#This Row],[Bodyweight Mid-point (kg)]]*1000 -> 1540 | H194: 101 | I194: =Table13[[#This Row],[Feed Intake Mid-point (g/bird/day)]]*7 -> 707 | J194: =Table13[[#This Row],[Feed Intake (g/bird/week)]]+J193 -> 10451 | K194: 58.5 | L194: =(Table13[[#This Row],[Hen-Housed Eggs Cumulative Mid-point]]*Table13[[#This Row],[Average Egg Weight Mid-point (g/egg)]]) -> 4703.4
A195: White Free-range | B195: 33 | C195: =IF(AND(Table13[[#This Row],[AGE (weeks)]]>='Diet input details'!$C$16,Table13[[#This Row],[AGE (weeks)]]<='Diet input details'!$D$16),"Ration 1",IF(AND(Table13[[#This Row],[AGE (weeks)]]>='Diet input details'!$C$17,Table13[[#This Row],[AGE (weeks)]]<='Diet input details'!$D$17),"Ration 2",IF(AND(Table13[[#This Row],[AGE (weeks)]]>='Diet input details'!$C$18,Table13[[#This Row],[AGE (weeks)]]<='Diet input details'!$D$18),"Ration 3",IF(AND(Table13[[#This Row],[AGE (weeks)]]>='Diet input details'!$C$19,Table13[[#This Row],[AGE (weeks)]]<='Diet input details'!$D$19),"Ration 4",IF(AND(Table13[[#This Row],[AGE (weeks)]]>='Diet input details'!$C$20,Table13[[#This Row],[AGE (weeks)]]<='Diet input details'!$D$20),"Ration 5", "Clear"))))) -> Clear | D195: =(VLOOKUP(Table13[[#This Row],[Ration]],Table22[#All],2,FALSE)) ->  | E195: 87 | F195: 1.55 | G195: =Table13[[#This Row],[Bodyweight Mid-point (kg)]]*1000 -> 1550 | H195: 101 | I195: =Table13[[#This Row],[Feed Intake Mid-point (g/bird/day)]]*7 -> 707 | J195: =Table13[[#This Row],[Feed Intake (g/bird/week)]]+J194 -> 11158 | K195: 59 | L195: =(Table13[[#This Row],[Hen-Housed Eggs Cumulative Mid-point]]*Table13[[#This Row],[Average Egg Weight Mid-point (g/egg)]]) -> 5133
A196: White Free-range | B196: 34 | C196: =IF(AND(Table13[[#This Row],[AGE (weeks)]]>='Diet input details'!$C$16,Table13[[#This Row],[AGE (weeks)]]<='Diet input details'!$D$16),"Ration 1",IF(AND(Table13[[#This Row],[AGE (weeks)]]>='Diet input details'!$C$17,Table13[[#This Row],[AGE (weeks)]]<='Diet input details'!$D$17),"Ration 2",IF(AND(Table13[[#This Row],[AGE (weeks)]]>='Diet input details'!$C$18,Table13[[#This Row],[AGE (weeks)]]<='Diet input details'!$D$18),"Ration 3",IF(AND(Table13[[#This Row],[AGE (weeks)]]>='Diet input details'!$C$19,Table13[[#This Row],[AGE (weeks)]]<='Diet input details'!$D$19),"Ration 4",IF(AND(Table13[[#This Row],[AGE (weeks)]]>='Diet input details'!$C$20,Table13[[#This Row],[AGE (weeks)]]<='Diet input details'!$D$20),"Ration 5", "Clear"))))) -> Clear | D196: =(VLOOKUP(Table13[[#This Row],[Ration]],Table22[#All],2,FALSE)) ->  | E196: 93.55 | F196: 1.55 | G196: =Table13[[#This Row],[Bodyweight Mid-point (kg)]]*1000 -> 1550 | H196: 101 | I196: =Table13[[#This Row],[Feed Intake Mid-point (g/bird/day)]]*7 -> 707 | J196: =Table13[[#This Row],[Feed Intake (g/bird/week)]]+J195 -> 11865 | K196: 59.3 | L196: =(Table13[[#This Row],[Hen-Housed Eggs Cumulative Mid-point]]*Table13[[#This Row],[Average Egg Weight Mid-point (g/egg)]]) -> 5547.515
A197: White Free-range | B197: 35 | C197: =IF(AND(Table13[[#This Row],[AGE (weeks)]]>='Diet input details'!$C$16,Table13[[#This Row],[AGE (weeks)]]<='Diet input details'!$D$16),"Ration 1",IF(AND(Table13[[#This Row],[AGE (weeks)]]>='Diet input details'!$C$17,Table13[[#This Row],[AGE (weeks)]]<='Diet input details'!$D$17),"Ration 2",IF(AND(Table13[[#This Row],[AGE (weeks)]]>='Diet input details'!$C$18,Table13[[#This Row],[AGE (weeks)]]<='Diet input details'!$D$18),"Ration 3",IF(AND(Table13[[#This Row],[AGE (weeks)]]>='Diet input details'!$C$19,Table13[[#This Row],[AGE (weeks)]]<='Diet input details'!$D$19),"Ration 4",IF(AND(Table13[[#This Row],[AGE (weeks)]]>='Diet input details'!$C$20,Table13[[#This Row],[AGE (weeks)]]<='Diet input details'!$D$20),"Ration 5", "Clear"))))) -> Clear | D197: =(VLOOKUP(Table13[[#This Row],[Ration]],Table22[#All],2,FALSE)) ->  | E197: 100.15 | F197: 1.56 | G197: =Table13[[#This Row],[Bodyweight Mid-point (kg)]]*1000 -> 1560 | H197: 101 | I197: =Table13[[#This Row],[Feed Intake Mid-point (g/bird/day)]]*7 -> 707 | J197: =Table13[[#This Row],[Feed Intake (g/bird/week)]]+J196 -> 12572 | K197: 59.7 | L197: =(Table13[[#This Row],[Hen-Housed Eggs Cumulative Mid-point]]*Table13[[#This Row],[Average Egg Weight Mid-point (g/egg)]]) -> 5978.955
A198: White Free-range | B198: 36 | C198: =IF(AND(Table13[[#This Row],[AGE (weeks)]]>='Diet input details'!$C$16,Table13[[#This Row],[AGE (weeks)]]<='Diet input details'!$D$16),"Ration 1",IF(AND(Table13[[#This Row],[AGE (weeks)]]>='Diet input details'!$C$17,Table13[[#This Row],[AGE (weeks)]]<='Diet input details'!$D$17),"Ration 2",IF(AND(Table13[[#This Row],[AGE (weeks)]]>='Diet input details'!$C$18,Table13[[#This Row],[AGE (weeks)]]<='Diet input details'!$D$18),"Ration 3",IF(AND(Table13[[#This Row],[AGE (weeks)]]>='Diet input details'!$C$19,Table13[[#This Row],[AGE (weeks)]]<='Diet input details'!$D$19),"Ration 4",IF(AND(Table13[[#This Row],[AGE (weeks)]]>='Diet input details'!$C$20,Table13[[#This Row],[AGE (weeks)]]<='Diet input details'!$D$20),"Ration 5", "Clear"))))) -> Clear | D198: =(VLOOKUP(Table13[[#This Row],[Ration]],Table22[#All],2,FALSE)) ->  | E198: 106.7 | F198: 1.56 | G198: =Table13[[#This Row],[Bodyweight Mid-point (kg)]]*1000 -> 1560 | H198: 101.5 | I198: =Table13[[#This Row],[Feed Intake Mid-point (g/bird/day)]]*7 -> 710.5 | J198: =Table13[[#This Row],[Feed Intake (g/bird/week)]]+J197 -> 13282.5 | K198: 60 | L198: =(Table13[[#This Row],[Hen-Housed Eggs Cumulative Mid-point]]*Table13[[#This Row],[Average Egg Weight Mid-point (g/egg)]]) -> 6402
A199: White Free-range | B199: 37 | C199: =IF(AND(Table13[[#This Row],[AGE (weeks)]]>='Diet input details'!$C$16,Table13[[#This Row],[AGE (weeks)]]<='Diet input details'!$D$16),"Ration 1",IF(AND(Table13[[#This Row],[AGE (weeks)]]>='Diet input details'!$C$17,Table13[[#This Row],[AGE (weeks)]]<='Diet input details'!$D$17),"Ration 2",IF(AND(Table13[[#This Row],[AGE (weeks)]]>='Diet input details'!$C$18,Table13[[#This Row],[AGE (weeks)]]<='Diet input details'!$D$18),"Ration 3",IF(AND(Table13[[#This Row],[AGE (weeks)]]>='Diet input details'!$C$19,Table13[[#This Row],[AGE (weeks)]]<='Diet input details'!$D$19),"Ration 4",IF(AND(Table13[[#This Row],[AGE (weeks)]]>='Diet input details'!$C$20,Table13[[#This Row],[AGE (weeks)]]<='Diet input details'!$D$20),"Ration 5", "Clear"))))) -> Clear | D199: =(VLOOKUP(Table13[[#This Row],[Ration]],Table22[#All],2,FALSE)) ->  | E199: 113.2 | F199: 1.56 | G199: =Table13[[#This Row],[Bodyweight Mid-point (kg)]]*1000 -> 1560 | H199: 101.5 | I199: =Table13[[#This Row],[Feed Intake Mid-point (g/bird/day)]]*7 -> 710.5 | J199: =Table13[[#This Row],[Feed Intake (g/bird/week)]]+J198 -> 13993 | K199: 60.3 | L199: =(Table13[[#This Row],[Hen-Housed Eggs Cumulative Mid-point]]*Table13[[#This Row],[Average Egg Weight Mid-point (g/egg)]]) -> 6825.96
A200: White Free-range | B200: 38 | C200: =IF(AND(Table13[[#This Row],[AGE (weeks)]]>='Diet input details'!$C$16,Table13[[#This Row],[AGE (weeks)]]<='Diet input details'!$D$16),"Ration 1",IF(AND(Table13[[#This Row],[AGE (weeks)]]>='Diet input details'!$C$17,Table13[[#This Row],[AGE (weeks)]]<='Diet input details'!$D$17),"Ration 2",IF(AND(Table13[[#This Row],[AGE (weeks)]]>='Diet input details'!$C$18,Table13[[#This Row],[AGE (weeks)]]<='Diet input details'!$D$18),"Ration 3",IF(AND(Table13[[#This Row],[AGE (weeks)]]>='Diet input details'!$C$19,Table13[[#This Row],[AGE (weeks)]]<='Diet input details'!$D$19),"Ration 4",IF(AND(Table13[[#This Row],[AGE (weeks)]]>='Diet input details'!$C$20,Table13[[#This Row],[AGE (weeks)]]<='Diet input details'!$D$20),"Ration 5", "Clear"))))) -> Clear | D200: =(VLOOKUP(Table13[[#This Row],[Ration]],Table22[#All],2,FALSE)) ->  | E200: 119.75 | F200: 1.57 | G200: =Table13[[#This Row],[Bodyweight Mid-point (kg)]]*1000 -> 1570 | H200: 101.5 | I200: =Table13[[#This Row],[Feed Intake Mid-point (g/bird/day)]]*7 -> 710.5 | J200: =Table13[[#This Row],[Feed Intake (g/bird/week)]]+J199 -> 14703.5 | K200: 60.5 | L200: =(Table13[[#This Row],[Hen-Housed Eggs Cumulative Mid-point]]*Table13[[#This Row],[Average Egg Weight Mid-point (g/egg)]]) -> 7244.875
A201: White Free-range | B201: 39 | C201: =IF(AND(Table13[[#This Row],[AGE (weeks)]]>='Diet input details'!$C$16,Table13[[#This Row],[AGE (weeks)]]<='Diet input details'!$D$16),"Ration 1",IF(AND(Table13[[#This Row],[AGE (weeks)]]>='Diet input details'!$C$17,Table13[[#This Row],[AGE (weeks)]]<='Diet input details'!$D$17),"Ration 2",IF(AND(Table13[[#This Row],[AGE (weeks)]]>='Diet input details'!$C$18,Table13[[#This Row],[AGE (weeks)]]<='Diet input details'!$D$18),"Ration 3",IF(AND(Table13[[#This Row],[AGE (weeks)]]>='Diet input details'!$C$19,Table13[[#This Row],[AGE (weeks)]]<='Diet input details'!$D$19),"Ration 4",IF(AND(Table13[[#This Row],[AGE (weeks)]]>='Diet input details'!$C$20,Table13[[#This Row],[AGE (weeks)]]<='Diet input details'!$D$20),"Ration 5", "Clear"))))) -> Clear | D201: =(VLOOKUP(Table13[[#This Row],[Ration]],Table22[#All],2,FALSE)) ->  | E201: 126.2 | F201: 1.57 | G201: =Table13[[#This Row],[Bodyweight Mid-point (kg)]]*1000 -> 1570 | H201: 101.5 | I201: =Table13[[#This Row],[Feed Intake Mid-point (g/bird/day)]]*7 -> 710.5 | J201: =Table13[[#This Row],[Feed Intake (g/bird/week)]]+J200 -> 15414 | K201: 60.7 | L201: =(Table13[[#This Row],[Hen-Housed Eggs Cumulative Mid-point]]*Table13[[#This Row],[Average Egg Weight Mid-point (g/egg)]]) -> 7660.34
A202: White Free-range | B202: 40 | C202: =IF(AND(Table13[[#This Row],[AGE (weeks)]]>='Diet input details'!$C$16,Table13[[#This Row],[AGE (weeks)]]<='Diet input details'!$D$16),"Ration 1",IF(AND(Table13[[#This Row],[AGE (weeks)]]>='Diet input details'!$C$17,Table13[[#This Row],[AGE (weeks)]]<='Diet input details'!$D$17),"Ration 2",IF(AND(Table13[[#This Row],[AGE (weeks)]]>='Diet input details'!$C$18,Table13[[#This Row],[AGE (weeks)]]<='Diet input details'!$D$18),"Ration 3",IF(AND(Table13[[#This Row],[AGE (weeks)]]>='Diet input details'!$C$19,Table13[[#This Row],[AGE (weeks)]]<='Diet input details'!$D$19),"Ration 4",IF(AND(Table13[[#This Row],[AGE (weeks)]]>='Diet input details'!$C$20,Table13[[#This Row],[AGE (weeks)]]<='Diet input details'!$D$20),"Ration 5", "Clear"))))) -> Clear | D202: =(VLOOKUP(Table13[[#This Row],[Ration]],Table22[#All],2,FALSE)) ->  | E202: 132.65 | F202: 1.57 | G202: =Table13[[#This Row],[Bodyweight Mid-point (kg)]]*1000 -> 1570 | H202: 102 | I202: =Table13[[#This Row],[Feed Intake Mid-point (g/bird/day)]]*7 -> 714 | J202: =Table13[[#This Row],[Feed Intake (g/bird/week)]]+J201 -> 16128 | K202: 60.9 | L202: =(Table13[[#This Row],[Hen-Housed Eggs Cumulative Mid-point]]*Table13[[#This Row],[Average Egg Weight Mid-point (g/egg)]]) -> 8078.385
... 60 more rows

Sheet Dataset (hidden)
A1: Calculations
A4: Table 1a. Bodyweight and Cumulative feed intake
A5: Source: | B5: Poultry 01 | C5: Hyline Performance Data
